Workbook

Sheet Cover Sheet
F4: Waltham Forest Childhood Immunisations Dashboard
F6: Report designed following the parameters of the Public Health England COVER programme
F8: Contains data on immunisation uptake for children becoming 12m, 24m and 5yrs in the quarter
F10: Patients becoming 12m
F12: DTaP/IPV/Hib/HepB
F13: Men B
F14: PCV
F15: Rotavirus
F18: Patients becoming 24m
F20: DTaP/IPV/Hib/HepB
F21: MMR
F22: HiB/Men C
F23: PCV (Booster)
F24: Men B (Booster)
F25: Patients becoming 5y
F27: DTaP/IPV/Hib
F28: MMR (Primary)
F29: DTaP/IPV (Booster)
F30: MMR (Booster)
F31: HiB/Men C
F33: N.B. Rotavirus not included in performance target
F34: Version tracking
F35: Version 2.8 | G35: - PCV Schedule updated | M35: December 2020
F37: Version 2.7 | G37: - Removed the 5in1 from Patients becoming 12m, now only 6in1 | M37: April 2019
F39: Version 2.6 | G39: - Men B (Booster) included and 5in1 to have to become 6in1 for patients born after 01/08/2017 | M39: April 2018
F41: Version 2.5 | G41: - Men C removed Men B included | M41: May 2017
F43: Version 2.4 | G43: - DTaP/IPV (Booster) (NO LOWER AGE LIMIT) Removed | M43: May 2016
F45: Version 2.3 | G45: - Lower age limit for MMR, HiB/Men C and PCV adjusted to 1 year in line with NHSE guidance | M45: May 2015
F47: Version 2.2 | G47: - Cluster configuration and practice names updated | M47: April 2015
F49: Version 2.1 | G49: - DTaP/IPV/Hib (No lower age limit) added to 5yr cohort | M49: October 2014
F51: Version 2.0 | G51: - Specification and presentation used from CEG report for Tower Hamlets | M51: September 2014

Sheet Network Summary
M2: March 2022
E3: Waltham Forest Childhood Immunisations Dashboard: Metric Details
E4: Network Summary
E7: Coverage | F7: Percentage of target population immunised | R7: NHSE Targets
E8: Activty | F8: Number of patients immunised | Q8: 0.96 | R8: 90% and over
E9: Required | F9: Number of patients requiring immunisation for network to attain 95% coverage | Q9: 0.1 | R9: Less than 90%
I10: WF-1 | M10: WF-2 | Q10: WF-3 | U10: WF-4 | Y10: WF-5 | AC10: WF-6 | AG10: WF-7 | AK10: NW8
E11: Waltham Forest Total | H11: ='Control Panel'!I78 -> Chingford/ Walthamstow | L11: ='Control Panel'!I79 -> Chingford E4 | P11: ='Control Panel'!I80 -> Leyton Collaborative | T11: ='Control Panel'!I81 -> Forest Integrated Health | X11: ='Control Panel'!I82 -> South Leytonstone | AB11: ='Control Panel'!I83 -> Central Walthamstow | AF11: ='Control Panel'!I84 -> Walthamstow West
B14: (01) 12 MONTH COHORT | C14: ="Patients becoming 12m within "&'Control Panel'!$B$1 -> Patients becoming 12m within Q4 | F14: =I14+M14+Q14+U14+Y14+AC14+AG14 -> 944 | I14: =SUMIFS(OFFSET(REL_D,,MATCH(B14,IND,0)-1),REL_D,$M$2,total,$I$10) -> 170 | M14: =SUMIFS(OFFSET(REL_D,,MATCH(B14,IND,0)-1),REL_D,$M$2,total,$M$10) -> 149 | Q14: =SUMIFS(OFFSET(REL_D,,MATCH($B14,IND,0)-1),REL_D,$M$2,total,$Q$10) -> 88 | U14: =SUMIFS(OFFSET(REL_D,,MATCH($B14,IND,0)-1),REL_D,$M$2,total,$U$10) -> 175 | Y14: =SUMIFS(OFFSET(REL_D,,MATCH($B14,IND,0)-1),REL_D,$M$2,total,$Y$10) -> 87 | AC14: =SUMIFS(OFFSET(REL_D,,MATCH($B14,IND,0)-1),REL_D,$M$2,total,$AC$10) -> 119 | AG14: =SUMIFS(OFFSET(REL_D,,MATCH($B14,IND,0)-1),REL_D,$M$2,total,$AG$10) -> 156
E15: Coverage | F15: Activty | H15: Coverage | I15: Activty | J15: Required | L15: Coverage | M15: Activty | N15: Required | P15: Coverage | Q15: Activty | R15: Required | T15: Coverage | U15: Activty | V15: Required | X15: Coverage | Y15: Activty | Z15: Required | AB15: Coverage | AC15: Activty | AD15: Required | AF15: Coverage | AG15: Activty | AH15: Required
B16: ='Control Panel'!E4 -> (01.01) DTaP/IPV/Hib 6in1 | C16: DTaP/IPV/Hib/HepB | E16: =IFERROR(F16/F$14,"-") -> 0.8940677966 | F16: =I16+M16+Q16+U16+Y16+AC16+AG16 -> 844 | H16: =IFERROR(I16/I$14,"-") -> 0.8823529412 | I16: =SUMIFS(OFFSET(REL_D,,MATCH(B16,IND,0)-1),REL_D,$M$2,total,$I$10) -> 150 | J16: =IF(AND(I$14*0.9-I16<1,(I$14*0.9-I16>0)),1,IF(I$14*0.9-I16<=0,"",I$14*0.9-I16)) -> 3 | L16: =IFERROR(M16/M$14,"-") -> 0.966442953 | M16: =SUMIFS(OFFSET(REL_D,,MATCH(B16,IND,0)-1),REL_D,$M$2,total,$M$10) -> 144 | N16: =IF(AND(M$14*0.9-M16<1,(M$14*0.9-M16>0)),1,IF(M$14*0.9-M16<=0,"",M$14*0.9-M16)) ->  | P16: =IFERROR(Q16/Q$14,"-") -> 0.8863636364 | Q16: =SUMIFS(OFFSET(REL_D,,MATCH($B16,IND,0)-1),REL_D,$M$2,total,$Q$10) -> 78 | R16: =IF(AND(Q$14*0.9-Q16<1,(Q$14*0.9-Q16>0)),1,IF(Q$14*0.9-Q16<=0,"",Q$14*0.9-Q16)) -> 1.2 | T16: =IFERROR(U16/U$14,"-") -> 0.8742857143 | U16: =SUMIFS(OFFSET(REL_D,,MATCH($B16,IND,0)-1),REL_D,$M$2,total,$U$10) -> 153 | V16: =IF(AND(U$14*0.9-U16<1,(U$14*0.9-U16>0)),1,IF(U$14*0.9-U16<=0,"",U$14*0.9-U16)) -> 4.5 | X16: =IFERROR(Y16/Y$14,"-") -> 0.8850574713 | Y16: =SUMIFS(OFFSET(REL_D,,MATCH($B16,IND,0)-1),REL_D,$M$2,total,$Y$10) -> 77 | Z16: =IF(AND(Y$14*0.9-Y16<1,(Y$14*0.9-Y16>0)),1,IF(Y$14*0.9-Y16<=0,"",Y$14*0.9-Y16)) -> 1.3 | AB16: =IFERROR(AC16/AC$14,"-") -> 0.9159663866 | AC16: =SUMIFS(OFFSET(REL_D,,MATCH($B16,IND,0)-1),REL_D,$M$2,total,$AC$10) -> 109 | AD16: =IF(AND(AC$14*0.9-AC16<1,(AC$14*0.9-AC16>0)),1,IF(AC$14*0.9-AC16<=0,"",AC$14*0.9-AC16)) ->  | AF16: =IFERROR(AG16/AG$14,"-") -> 0.8525641026 | AG16: =SUMIFS(OFFSET(REL_D,,MATCH($B16,IND,0)-1),REL_D,$M$2,total,$AG$10) -> 133 | AH16: =IF(AND(AG$14*0.9-AG16<1,(AG$14*0.9-AG16>0)),1,IF(AG$14*0.9-AG16<=0,"",AG$14*0.9-AG16)) -> 7.4
B17: (01.02) Men B (1st and 2nd) | C17: Men B | E17: =IFERROR(F17/F$14,"-") -> 0.8824152542 | F17: =I17+M17+Q17+U17+Y17+AC17+AG17 -> 833 | H17: =IFERROR(I17/I$14,"-") -> 0.8823529412 | I17: =SUMIFS(OFFSET(REL_D,,MATCH(B17,IND,0)-1),REL_D,$M$2,total,$I$10) -> 150 | J17: =IF(AND(I$14*0.9-I17<1,(I$14*0.9-I17>0)),1,IF(I$14*0.9-I17<=0,"",I$14*0.9-I17)) -> 3 | L17: =IFERROR(M17/M$14,"-") -> 0.966442953 | M17: =SUMIFS(OFFSET(REL_D,,MATCH(B17,IND,0)-1),REL_D,$M$2,total,$M$10) -> 144 | N17: =IF(AND(M$14*0.9-M17<1,(M$14*0.9-M17>0)),1,IF(M$14*0.9-M17<=0,"",M$14*0.9-M17)) ->  | P17: =IFERROR(Q17/Q$14,"-") -> 0.8522727273 | Q17: =SUMIFS(OFFSET(REL_D,,MATCH($B17,IND,0)-1),REL_D,$M$2,total,$Q$10) -> 75 | R17: =IF(AND(Q$14*0.9-Q17<1,(Q$14*0.9-Q17>0)),1,IF(Q$14*0.9-Q17<=0,"",Q$14*0.9-Q17)) -> 4.2 | T17: =IFERROR(U17/U$14,"-") -> 0.8571428571 | U17: =SUMIFS(OFFSET(REL_D,,MATCH($B17,IND,0)-1),REL_D,$M$2,total,$U$10) -> 150 | V17: =IF(AND(U$14*0.9-U17<1,(U$14*0.9-U17>0)),1,IF(U$14*0.9-U17<=0,"",U$14*0.9-U17)) -> 7.5 | X17: =IFERROR(Y17/Y$14,"-") -> 0.8735632184 | Y17: =SUMIFS(OFFSET(REL_D,,MATCH($B17,IND,0)-1),REL_D,$M$2,total,$Y$10) -> 76 | Z17: =IF(AND(Y$14*0.9-Y17<1,(Y$14*0.9-Y17>0)),1,IF(Y$14*0.9-Y17<=0,"",Y$14*0.9-Y17)) -> 2.3 | AB17: =IFERROR(AC17/AC$14,"-") -> 0.9159663866 | AC17: =SUMIFS(OFFSET(REL_D,,MATCH($B17,IND,0)-1),REL_D,$M$2,total,$AC$10) -> 109 | AD17: =IF(AND(AC$14*0.9-AC17<1,(AC$14*0.9-AC17>0)),1,IF(AC$14*0.9-AC17<=0,"",AC$14*0.9-AC17)) ->  | AF17: =IFERROR(AG17/AG$14,"-") -> 0.8269230769 | AG17: =SUMIFS(OFFSET(REL_D,,MATCH($B17,IND,0)-1),REL_D,$M$2,total,$AG$10) -> 129 | AH17: =IF(AND(AG$14*0.9-AG17<1,(AG$14*0.9-AG17>0)),1,IF(AG$14*0.9-AG17<=0,"",AG$14*0.9-AG17)) -> 11.4
B18: (01.03) PCV | C18: PCV | E18: 0.9163135593 | F18: 865 | H18: 0.9058823529 | I18: =SUMIFS(OFFSET(REL_D,,MATCH(B18,IND,0)-1),REL_D,$M$2,total,$I$10) -> 154 | J18: =IF(AND(I$14*0.9-I18<1,(I$14*0.9-I18>0)),1,IF(I$14*0.9-I18<=0,"",I$14*0.9-I18)) ->  | L18: 0.966442953 | M18: =SUMIFS(OFFSET(REL_D,,MATCH(B18,IND,0)-1),REL_D,$M$2,total,$M$10) -> 144 | N18: =IF(AND(M$14*0.9-M18<1,(M$14*0.9-M18>0)),1,IF(M$14*0.9-M18<=0,"",M$14*0.9-M18)) ->  | P18: 0.8863636364 | Q18: =SUMIFS(OFFSET(REL_D,,MATCH($B18,IND,0)-1),REL_D,$M$2,total,$Q$10) -> 78 | R18: =IF(AND(Q$14*0.9-Q18<1,(Q$14*0.9-Q18>0)),1,IF(Q$14*0.9-Q18<=0,"",Q$14*0.9-Q18)) -> 1.2 | T18: 0.9028571429 | U18: =SUMIFS(OFFSET(REL_D,,MATCH($B18,IND,0)-1),REL_D,$M$2,total,$U$10) -> 158 | V18: =IF(AND(U$14*0.9-U18<1,(U$14*0.9-U18>0)),1,IF(U$14*0.9-U18<=0,"",U$14*0.9-U18)) ->  | X18: 0.9195402299 | Y18: =SUMIFS(OFFSET(REL_D,,MATCH($B18,IND,0)-1),REL_D,$M$2,total,$Y$10) -> 80 | Z18: =IF(AND(Y$14*0.9-Y18<1,(Y$14*0.9-Y18>0)),1,IF(Y$14*0.9-Y18<=0,"",Y$14*0.9-Y18)) ->  | AB18: 0.9579831933 | AC18: =SUMIFS(OFFSET(REL_D,,MATCH($B18,IND,0)-1),REL_D,$M$2,total,$AC$10) -> 114 | AD18: =IF(AND(AC$14*0.9-AC18<1,(AC$14*0.9-AC18>0)),1,IF(AC$14*0.9-AC18<=0,"",AC$14*0.9-AC18)) ->  | AF18: 0.8782051282 | AG18: =SUMIFS(OFFSET(REL_D,,MATCH($B18,IND,0)-1),REL_D,$M$2,total,$AG$10) -> 137 | AH18: =IF(AND(AG$14*0.9-AG18<1,(AG$14*0.9-AG18>0)),1,IF(AG$14*0.9-AG18<=0,"",AG$14*0.9-AG18)) -> 3.4
B19: (01.04) Rotavirus | C19: Rotavirus | E19: 0.8368644068 | F19: 790 | H19: 0.7882352941 | I19: =SUMIFS(OFFSET(REL_D,,MATCH(B19,IND,0)-1),REL_D,$M$2,total,$I$10) -> 134 | J19: =IF(AND(I$14*0.9-I19<1,(I$14*0.9-I19>0)),1,IF(I$14*0.9-I19<=0,"",I$14*0.9-I19)) -> 19 | L19: 0.9060402685 | M19: =SUMIFS(OFFSET(REL_D,,MATCH(B19,IND,0)-1),REL_D,$M$2,total,$M$10) -> 135 | N19: =IF(AND(M$14*0.9-M19<1,(M$14*0.9-M19>0)),1,IF(M$14*0.9-M19<=0,"",M$14*0.9-M19)) ->  | P19: 0.7613636364 | Q19: =SUMIFS(OFFSET(REL_D,,MATCH($B19,IND,0)-1),REL_D,$M$2,total,$Q$10) -> 67 | R19: =IF(AND(Q$14*0.9-Q19<1,(Q$14*0.9-Q19>0)),1,IF(Q$14*0.9-Q19<=0,"",Q$14*0.9-Q19)) -> 12.2 | T19: 0.76 | U19: =SUMIFS(OFFSET(REL_D,,MATCH($B19,IND,0)-1),REL_D,$M$2,total,$U$10) -> 133 | V19: =IF(AND(U$14*0.9-U19<1,(U$14*0.9-U19>0)),1,IF(U$14*0.9-U19<=0,"",U$14*0.9-U19)) -> 24.5 | X19: 0.8965517241 | Y19: =SUMIFS(OFFSET(REL_D,,MATCH($B19,IND,0)-1),REL_D,$M$2,total,$Y$10) -> 78 | Z19: =IF(AND(Y$14*0.9-Y19<1,(Y$14*0.9-Y19>0)),1,IF(Y$14*0.9-Y19<=0,"",Y$14*0.9-Y19)) -> 1 | AB19: 0.9075630252 | AC19: =SUMIFS(OFFSET(REL_D,,MATCH($B19,IND,0)-1),REL_D,$M$2,total,$AC$10) -> 108 | AD19: =IF(AND(AC$14*0.9-AC19<1,(AC$14*0.9-AC19>0)),1,IF(AC$14*0.9-AC19<=0,"",AC$14*0.9-AC19)) ->  | AF19: 0.8653846154 | AG19: =SUMIFS(OFFSET(REL_D,,MATCH($B19,IND,0)-1),REL_D,$M$2,total,$AG$10) -> 135 | AH19: =IF(AND(AG$14*0.9-AG19<1,(AG$14*0.9-AG19>0)),1,IF(AG$14*0.9-AG19<=0,"",AG$14*0.9-AG19)) -> 5.4
B20: (01.05) BCG | C20: BCG | E20: 0 | F20: =I20+M20+Q20+U20+Y20+AC20+AG20+AK20 -> 0 | H20: 0 | I20: =SUMIFS(OFFSET(REL_D,,MATCH(B20,IND,0)-1),REL_D,$M$2,IF(LEFT($I$10,1)="W",NwID,OrgID),$I$10) -> 0 | J20: =IF(AND(I$14*0.9-I20<1,(I$14*0.9-I20>0)),1,IF(I$14*0.9-I20<=0,"",I$14*0.9-I20)) -> 153 | L20: 0 | M20: =SUMIFS(OFFSET(REL_D,,MATCH($B20,IND,0)-1),REL_D,$M$2,IF(LEFT($M$10,1)="W",NwID,OrgID),$M$10) -> 0 | N20: =IF(AND(M$14*0.9-M20<1,(M$14*0.9-M20>0)),1,IF(M$14*0.9-M20<=0,"",M$14*0.9-M20)) -> 134.1 | P20: 0 | Q20: =SUMIFS(OFFSET(REL_D,,MATCH($B20,IND,0)-1),REL_D,$M$2,IF(LEFT($Q$10,1)="W",NwID,OrgID),$Q$10) -> 0 | R20: =IF(AND(Q$14*0.9-Q20<1,(Q$14*0.9-Q20>0)),1,IF(Q$14*0.9-Q20<=0,"",Q$14*0.9-Q20)) -> 79.2 | T20: 0 | U20: =SUMIFS(OFFSET(REL_D,,MATCH($B20,IND,0)-1),REL_D,$M$2,IF(LEFT($U$10,1)="W",NwID,OrgID),$U$10) -> 0 | V20: =IF(AND(U$14*0.9-U20<1,(U$14*0.9-U20>0)),1,IF(U$14*0.9-U20<=0,"",U$14*0.9-U20)) -> 157.5 | X20: 0 | Y20: =SUMIFS(OFFSET(REL_D,,MATCH($B20,IND,0)-1),REL_D,$M$2,IF(LEFT($Y$10,1)="W",NwID,OrgID),$Y$10) -> 0 | Z20: =IF(AND(Y$14*0.9-Y20<1,(Y$14*0.9-Y20>0)),1,IF(Y$14*0.9-Y20<=0,"",Y$14*0.9-Y20)) -> 78.3 | AB20: 0 | AC20: =SUMIFS(OFFSET(REL_D,,MATCH($B20,IND,0)-1),REL_D,$M$2,IF(LEFT($AC$10,1)="W",NwID,OrgID),$AC$10) -> 0 | AD20: =IF(AND(AC$14*0.9-AC20<1,(AC$14*0.9-AC20>0)),1,IF(AC$14*0.9-AC20<=0,"",AC$14*0.9-AC20)) -> 107.1 | AF20: 0 | AG20: =SUMIFS(OFFSET(REL_D,,MATCH($B20,IND,0)-1),REL_D,$M$2,IF(LEFT($AG$10,1)="W",NwID,OrgID),$AG$10) -> 0 | AH20: =IF(AND(AG$14*0.9-AG20<1,(AG$14*0.9-AG20>0)),1,IF(AG$14*0.9-AG20<=0,"",AG$14*0.9-AG20)) -> 140.4
B22: (02) 24 MONTH COHORT | C22: ="Patients becoming 24m within "&'Control Panel'!$B$1 -> Patients becoming 24m within Q4 | F22: =I22+M22+Q22+U22+Y22+AC22+AG22 -> 981 | I22: =SUMIFS(OFFSET(REL_D,,MATCH(B22,IND,0)-1),REL_D,$M$2,total,$I$10) -> 200 | M22: =SUMIFS(OFFSET(REL_D,,MATCH(B22,IND,0)-1),REL_D,$M$2,total,$M$10) -> 152 | Q22: =SUMIFS(OFFSET(REL_D,,MATCH($B22,IND,0)-1),REL_D,$M$2,total,$Q$10) -> 102 | U22: =SUMIFS(OFFSET(REL_D,,MATCH($B22,IND,0)-1),REL_D,$M$2,total,$U$10) -> 159 | Y22: =SUMIFS(OFFSET(REL_D,,MATCH($B22,IND,0)-1),REL_D,$M$2,total,$Y$10) -> 100 | AC22: =SUMIFS(OFFSET(REL_D,,MATCH($B22,IND,0)-1),REL_D,$M$2,total,$AC$10) -> 123 | AG22: =SUMIFS(OFFSET(REL_D,,MATCH($B22,IND,0)-1),REL_D,$M$2,total,$AG$10) -> 145
E23: Coverage | F23: Activty | H23: Coverage | I23: Activty | J23: Required | L23: Coverage | M23: Activty | N23: Required | P23: Coverage | Q23: Activty | R23: Required | T23: Coverage | U23: Activty | V23: Required | X23: Coverage | Y23: Activty | Z23: Required | AB23: Coverage | AC23: Activty | AD23: Required | AF23: Coverage | AG23: Activty | AH23: Required
B24: ='Control Panel'!E27 -> (02.01) DTaP/IPV/Hib or DTaP/IPV/Hib/HepB | C24: DTaP/IPV/Hib/HepB | E24: =IFERROR(F24/F$22,"-") -> 0.8888888889 | F24: =I24+M24+Q24+U24+Y24+AC24+AG24 -> 872 | H24: =IFERROR(I24/I$22,"-") -> 0.89 | I24: =SUMIFS(OFFSET(REL_D,,MATCH(B24,IND,0)-1),REL_D,$M$2,total,$I$10) -> 178 | J24: =IF(AND(I$22*0.9-I24<1,(I$22*0.9-I24>0)),1,IF(I$22*0.9-I24<=0,"",I$22*0.9-I24)) -> 2 | L24: =IFERROR(M24/M$22,"-") -> 0.9276315789 | M24: =SUMIFS(OFFSET(REL_D,,MATCH(B24,IND,0)-1),REL_D,$M$2,total,$M$10) -> 141 | N24: =IF(AND(M$22*0.9-M24<1,(M$22*0.9-M24>0)),1,IF(M$22*0.9-M24<=0,"",M$22*0.9-M24)) ->  | P24: =IFERROR(Q24/Q$22,"-") -> 0.862745098 | Q24: =SUMIFS(OFFSET(REL_D,,MATCH($B24,IND,0)-1),REL_D,$M$2,total,$Q$10) -> 88 | R24: =IF(AND(Q$22*0.9-Q24<1,(Q$22*0.9-Q24>0)),1,IF(Q$22*0.9-Q24<=0,"",Q$22*0.9-Q24)) -> 3.8 | T24: =IFERROR(U24/U$22,"-") -> 0.8805031447 | U24: =SUMIFS(OFFSET(REL_D,,MATCH($B24,IND,0)-1),REL_D,$M$2,total,$U$10) -> 140 | V24: =IF(AND(U$22*0.9-U24<1,(U$22*0.9-U24>0)),1,IF(U$22*0.9-U24<=0,"",U$22*0.9-U24)) -> 3.1 | X24: =IFERROR(Y24/Y$22,"-") -> 0.89 | Y24: =SUMIFS(OFFSET(REL_D,,MATCH($B24,IND,0)-1),REL_D,$M$2,total,$Y$10) -> 89 | Z24: =IF(AND(Y$22*0.9-Y24<1,(Y$22*0.9-Y24>0)),1,IF(Y$22*0.9-Y24<=0,"",Y$22*0.9-Y24)) -> 1 | AB24: =IFERROR(AC24/AC$22,"-") -> 0.9024390244 | AC24: =SUMIFS(OFFSET(REL_D,,MATCH($B24,IND,0)-1),REL_D,$M$2,total,$AC$10) -> 111 | AD24: =IF(AND(AC$22*0.9-AC24<1,(AC$22*0.9-AC24>0)),1,IF(AC$22*0.9-AC24<=0,"",AC$22*0.9-AC24)) ->  | AF24: =IFERROR(AG24/AG$22,"-") -> 0.8620689655 | AG24: =SUMIFS(OFFSET(REL_D,,MATCH($B24,IND,0)-1),REL_D,$M$2,total,$AG$10) -> 125 | AH24: =IF(AND(AG$22*0.9-AG24<1,(AG$22*0.9-AG24>0)),1,IF(AG$22*0.9-AG24<=0,"",AG$22*0.9-AG24)) -> 5.5
B25: (02.02) MMR | C25: MMR | E25: =IFERROR(F25/F$22,"-") -> 0.750254842 | F25: 736 | H25: =IFERROR(I25/I$22,"-") -> 0.76 | I25: =SUMIFS(OFFSET(REL_D,,MATCH(B25,IND,0)-1),REL_D,$M$2,total,$I$10) -> 152 | J25: =IF(AND(I$22*0.9-I25<1,(I$22*0.9-I25>0)),1,IF(I$22*0.9-I25<=0,"",I$22*0.9-I25)) -> 28 | L25: =IFERROR(M25/M$22,"-") -> 0.7171052632 | M25: =SUMIFS(OFFSET(REL_D,,MATCH(B25,IND,0)-1),REL_D,$M$2,total,$M$10) -> 109 | N25: =IF(AND(M$22*0.9-M25<1,(M$22*0.9-M25>0)),1,IF(M$22*0.9-M25<=0,"",M$22*0.9-M25)) -> 27.8 | P25: =IFERROR(Q25/Q$22,"-") -> 0.5882352941 | Q25: =SUMIFS(OFFSET(REL_D,,MATCH($B25,IND,0)-1),REL_D,$M$2,total,$Q$10) -> 60 | R25: =IF(AND(Q$22*0.9-Q25<1,(Q$22*0.9-Q25>0)),1,IF(Q$22*0.9-Q25<=0,"",Q$22*0.9-Q25)) -> 31.8 | T25: =IFERROR(U25/U$22,"-") -> 0.7106918239 | U25: =SUMIFS(OFFSET(REL_D,,MATCH($B25,IND,0)-1),REL_D,$M$2,total,$U$10) -> 113 | V25: =IF(AND(U$22*0.9-U25<1,(U$22*0.9-U25>0)),1,IF(U$22*0.9-U25<=0,"",U$22*0.9-U25)) -> 30.1 | X25: =IFERROR(Y25/Y$22,"-") -> 0.84 | Y25: =SUMIFS(OFFSET(REL_D,,MATCH($B25,IND,0)-1),REL_D,$M$2,total,$Y$10) -> 84 | Z25: =IF(AND(Y$22*0.9-Y25<1,(Y$22*0.9-Y25>0)),1,IF(Y$22*0.9-Y25<=0,"",Y$22*0.9-Y25)) -> 6 | AB25: =IFERROR(AC25/AC$22,"-") -> 0.8130081301 | AC25: =SUMIFS(OFFSET(REL_D,,MATCH($B25,IND,0)-1),REL_D,$M$2,total,$AC$10) -> 100 | AD25: =IF(AND(AC$22*0.9-AC25<1,(AC$22*0.9-AC25>0)),1,IF(AC$22*0.9-AC25<=0,"",AC$22*0.9-AC25)) -> 10.7 | AF25: =IFERROR(AG25/AG$22,"-") -> 0.8137931034 | AG25: =SUMIFS(OFFSET(REL_D,,MATCH($B25,IND,0)-1),REL_D,$M$2,total,$AG$10) -> 118 | AH25: =IF(AND(AG$22*0.9-AG25<1,(AG$22*0.9-AG25>0)),1,IF(AG$22*0.9-AG25<=0,"",AG$22*0.9-AG25)) -> 12.5
B26: (02.03) HiB/Men C | C26: HiB/Men C | E26: 0.8440366972 | F26: 828 | H26: =IFERROR(I26/I$22,"-") -> 0.885 | I26: =SUMIFS(OFFSET(REL_D,,MATCH(B26,IND,0)-1),REL_D,$M$2,total,$I$10) -> 177 | J26: =IF(AND(I$22*0.9-I26<1,(I$22*0.9-I26>0)),1,IF(I$22*0.9-I26<=0,"",I$22*0.9-I26)) -> 3 | L26: 0.8947368421 | M26: =SUMIFS(OFFSET(REL_D,,MATCH(B26,IND,0)-1),REL_D,$M$2,total,$M$10) -> 136 | N26: =IF(AND(M$22*0.9-M26<1,(M$22*0.9-M26>0)),1,IF(M$22*0.9-M26<=0,"",M$22*0.9-M26)) -> 1 | P26: 0.7352941176 | Q26: =SUMIFS(OFFSET(REL_D,,MATCH($B26,IND,0)-1),REL_D,$M$2,total,$Q$10) -> 75 | R26: =IF(AND(Q$22*0.9-Q26<1,(Q$22*0.9-Q26>0)),1,IF(Q$22*0.9-Q26<=0,"",Q$22*0.9-Q26)) -> 16.8 | T26: 0.8553459119 | U26: =SUMIFS(OFFSET(REL_D,,MATCH($B26,IND,0)-1),REL_D,$M$2,total,$U$10) -> 136 | V26: =IF(AND(U$22*0.9-U26<1,(U$22*0.9-U26>0)),1,IF(U$22*0.9-U26<=0,"",U$22*0.9-U26)) -> 7.1 | X26: 0.84 | Y26: =SUMIFS(OFFSET(REL_D,,MATCH($B26,IND,0)-1),REL_D,$M$2,total,$Y$10) -> 84 | Z26: =IF(AND(Y$22*0.9-Y26<1,(Y$22*0.9-Y26>0)),1,IF(Y$22*0.9-Y26<=0,"",Y$22*0.9-Y26)) -> 6 | AB26: 0.8292682927 | AC26: =SUMIFS(OFFSET(REL_D,,MATCH($B26,IND,0)-1),REL_D,$M$2,total,$AC$10) -> 102 | AD26: =IF(AND(AC$22*0.9-AC26<1,(AC$22*0.9-AC26>0)),1,IF(AC$22*0.9-AC26<=0,"",AC$22*0.9-AC26)) -> 8.7 | AF26: 0.8137931034 | AG26: =SUMIFS(OFFSET(REL_D,,MATCH($B26,IND,0)-1),REL_D,$M$2,total,$AG$10) -> 118 | AH26: =IF(AND(AG$22*0.9-AG26<1,(AG$22*0.9-AG26>0)),1,IF(AG$22*0.9-AG26<=0,"",AG$22*0.9-AG26)) -> 12.5
B27: (02.04) PCV (Booster) | C27: PCV (Booster) | E27: 0.8593272171 | F27: 843 | H27: =IFERROR(I27/I$22,"-") -> 0.89 | I27: =SUMIFS(OFFSET(REL_D,,MATCH(B27,IND,0)-1),REL_D,$M$2,total,$I$10) -> 178 | J27: =IF(AND(I$22*0.9-I27<1,(I$22*0.9-I27>0)),1,IF(I$22*0.9-I27<=0,"",I$22*0.9-I27)) -> 2 | L27: 0.8881578947 | M27: =SUMIFS(OFFSET(REL_D,,MATCH(B27,IND,0)-1),REL_D,$M$2,total,$M$10) -> 135 | N27: =IF(AND(M$22*0.9-M27<1,(M$22*0.9-M27>0)),1,IF(M$22*0.9-M27<=0,"",M$22*0.9-M27)) -> 1.8 | P27: 0.8529411765 | Q27: =SUMIFS(OFFSET(REL_D,,MATCH($B27,IND,0)-1),REL_D,$M$2,total,$Q$10) -> 87 | R27: =IF(AND(Q$22*0.9-Q27<1,(Q$22*0.9-Q27>0)),1,IF(Q$22*0.9-Q27<=0,"",Q$22*0.9-Q27)) -> 4.8 | T27: 0.8616352201 | U27: =SUMIFS(OFFSET(REL_D,,MATCH($B27,IND,0)-1),REL_D,$M$2,total,$U$10) -> 137 | V27: =IF(AND(U$22*0.9-U27<1,(U$22*0.9-U27>0)),1,IF(U$22*0.9-U27<=0,"",U$22*0.9-U27)) -> 6.1 | X27: 0.86 | Y27: =SUMIFS(OFFSET(REL_D,,MATCH($B27,IND,0)-1),REL_D,$M$2,total,$Y$10) -> 86 | Z27: =IF(AND(Y$22*0.9-Y27<1,(Y$22*0.9-Y27>0)),1,IF(Y$22*0.9-Y27<=0,"",Y$22*0.9-Y27)) -> 4 | AB27: 0.8292682927 | AC27: =SUMIFS(OFFSET(REL_D,,MATCH($B27,IND,0)-1),REL_D,$M$2,total,$AC$10) -> 102 | AD27: =IF(AND(AC$22*0.9-AC27<1,(AC$22*0.9-AC27>0)),1,IF(AC$22*0.9-AC27<=0,"",AC$22*0.9-AC27)) -> 8.7 | AF27: 0.8137931034 | AG27: =SUMIFS(OFFSET(REL_D,,MATCH($B27,IND,0)-1),REL_D,$M$2,total,$AG$10) -> 118 | AH27: =IF(AND(AG$22*0.9-AG27<1,(AG$22*0.9-AG27>0)),1,IF(AG$22*0.9-AG27<=0,"",AG$22*0.9-AG27)) -> 12.5
B28: (02.05) Men B (Booster) | C28: MenB (Booster) | E28: 0.8562691131 | F28: 840 | H28: =IFERROR(I28/I$22,"-") -> 0.89 | I28: =SUMIFS(OFFSET(REL_D,,MATCH(B28,IND,0)-1),REL_D,$M$2,total,$I$10) -> 178 | J28: =IF(AND(I$22*0.9-I28<1,(I$22*0.9-I28>0)),1,IF(I$22*0.9-I28<=0,"",I$22*0.9-I28)) -> 2 | L28: 0.8881578947 | M28: =SUMIFS(OFFSET(REL_D,,MATCH(B28,IND,0)-1),REL_D,$M$2,total,$M$10) -> 135 | N28: =IF(AND(M$22*0.9-M28<1,(M$22*0.9-M28>0)),1,IF(M$22*0.9-M28<=0,"",M$22*0.9-M28)) -> 1.8 | P28: 0.8333333333 | Q28: =SUMIFS(OFFSET(REL_D,,MATCH($B28,IND,0)-1),REL_D,$M$2,total,$Q$10) -> 85 | R28: =IF(AND(Q$22*0.9-Q28<1,(Q$22*0.9-Q28>0)),1,IF(Q$22*0.9-Q28<=0,"",Q$22*0.9-Q28)) -> 6.8 | T28: 0.8553459119 | U28: =SUMIFS(OFFSET(REL_D,,MATCH($B28,IND,0)-1),REL_D,$M$2,total,$U$10) -> 136 | V28: =IF(AND(U$22*0.9-U28<1,(U$22*0.9-U28>0)),1,IF(U$22*0.9-U28<=0,"",U$22*0.9-U28)) -> 7.1 | X28: 0.85 | Y28: =SUMIFS(OFFSET(REL_D,,MATCH($B28,IND,0)-1),REL_D,$M$2,total,$Y$10) -> 85 | Z28: =IF(AND(Y$22*0.9-Y28<1,(Y$22*0.9-Y28>0)),1,IF(Y$22*0.9-Y28<=0,"",Y$22*0.9-Y28)) -> 5 | AB28: 0.837398374 | AC28: =SUMIFS(OFFSET(REL_D,,MATCH($B28,IND,0)-1),REL_D,$M$2,total,$AC$10) -> 103 | AD28: =IF(AND(AC$22*0.9-AC28<1,(AC$22*0.9-AC28>0)),1,IF(AC$22*0.9-AC28<=0,"",AC$22*0.9-AC28)) -> 7.7 | AF28: 0.8137931034 | AG28: =SUMIFS(OFFSET(REL_D,,MATCH($B28,IND,0)-1),REL_D,$M$2,total,$AG$10) -> 118 | AH28: =IF(AND(AG$22*0.9-AG28<1,(AG$22*0.9-AG28>0)),1,IF(AG$22*0.9-AG28<=0,"",AG$22*0.9-AG28)) -> 12.5
B30: (03) 5 YEAR COHORT | C30: ="Patients becoming 5y within "&'Control Panel'!$B$1 -> Patients becoming 5y within Q4 | F30: =I30+M30+Q30+U30+Y30+AC30+AG30 -> 950 | I30: =SUMIFS(OFFSET(REL_D,,MATCH(B30,IND,0)-1),REL_D,$M$2,total,$I$10) -> 162 | M30: =SUMIFS(OFFSET(REL_D,,MATCH(B30,IND,0)-1),REL_D,$M$2,total,$M$10) -> 163 | Q30: =SUMIFS(OFFSET(REL_D,,MATCH($B30,IND,0)-1),REL_D,$M$2,total,$Q$10) -> 94 | U30: =SUMIFS(OFFSET(REL_D,,MATCH($B30,IND,0)-1),REL_D,$M$2,total,$U$10) -> 153 | Y30: =SUMIFS(OFFSET(REL_D,,MATCH($B30,IND,0)-1),REL_D,$M$2,total,$Y$10) -> 97 | AC30: =SUMIFS(OFFSET(REL_D,,MATCH($B30,IND,0)-1),REL_D,$M$2,total,$AC$10) -> 141 | AG30: =SUMIFS(OFFSET(REL_D,,MATCH($B30,IND,0)-1),REL_D,$M$2,total,$AG$10) -> 140
E31: Coverage | F31: Activty | H31: Coverage | I31: Activty | J31: Required | L31: Coverage | M31: Activty | N31: Required | P31: Coverage | Q31: Activty | R31: Required | T31: Coverage | U31: Activty | V31: Required | X31: Coverage | Y31: Activty | Z31: Required | AB31: Coverage | AC31: Activty | AD31: Required | AF31: Coverage | AG31: Activty | AH31: Required
B32: ='Control Panel'!E50 -> (03.01) DTaP/IPV/Hib or DTaP/IPV/Hib/HepB | C32: DTaP/IPV/Hib | E32: =IFERROR(F32/F$30,"-") -> 0.8547368421 | F32: =I32+M32+Q32+U32+Y32+AC32+AG32 -> 812 | H32: =IFERROR(I32/I$30,"-") -> 0.8271604938 | I32: =SUMIFS(OFFSET(REL_D,,MATCH(B32,IND,0)-1),REL_D,$M$2,total,$I$10) -> 134 | J32: =IF(AND(I$30*0.9-I32<1,(I$30*0.9-I32>0)),1,IF(I$30*0.9-I32<=0,"",I$30*0.9-I32)) -> 11.8 | L32: =IFERROR(M32/M$30,"-") -> 0.8404907975 | M32: =SUMIFS(OFFSET(REL_D,,MATCH(B32,IND,0)-1),REL_D,$M$2,total,$M$10) -> 137 | N32: =IF(AND(M$30*0.9-M32<1,(M$30*0.9-M32>0)),1,IF(M$30*0.9-M32<=0,"",M$30*0.9-M32)) -> 9.7 | P32: =IFERROR(Q32/Q$30,"-") -> 0.7127659574 | Q32: =SUMIFS(OFFSET(REL_D,,MATCH($B32,IND,0)-1),REL_D,$M$2,total,$Q$10) -> 67 | R32: =IF(AND(Q$30*0.9-Q32<1,(Q$30*0.9-Q32>0)),1,IF(Q$30*0.9-Q32<=0,"",Q$30*0.9-Q32)) -> 17.6 | T32: =IFERROR(U32/U$30,"-") -> 0.8823529412 | U32: =SUMIFS(OFFSET(REL_D,,MATCH($B32,IND,0)-1),REL_D,$M$2,total,$U$10) -> 135 | V32: =IF(AND(U$30*0.9-U32<1,(U$30*0.9-U32>0)),1,IF(U$30*0.9-U32<=0,"",U$30*0.9-U32)) -> 2.7 | X32: =IFERROR(Y32/Y$30,"-") -> 0.8865979381 | Y32: =SUMIFS(OFFSET(REL_D,,MATCH($B32,IND,0)-1),REL_D,$M$2,total,$Y$10) -> 86 | Z32: =IF(AND(Y$30*0.9-Y32<1,(Y$30*0.9-Y32>0)),1,IF(Y$30*0.9-Y32<=0,"",Y$30*0.9-Y32)) -> 1.3 | AB32: =IFERROR(AC32/AC$30,"-") -> 0.9219858156 | AC32: =SUMIFS(OFFSET(REL_D,,MATCH($B32,IND,0)-1),REL_D,$M$2,total,$AC$10) -> 130 | AD32: =IF(AND(AC$30*0.9-AC32<1,(AC$30*0.9-AC32>0)),1,IF(AC$30*0.9-AC32<=0,"",AC$30*0.9-AC32)) ->  | AF32: =IFERROR(AG32/AG$30,"-") -> 0.8785714286 | AG32: =SUMIFS(OFFSET(REL_D,,MATCH($B32,IND,0)-1),REL_D,$M$2,total,$AG$10) -> 123 | AH32: =IF(AND(AG$30*0.9-AG32<1,(AG$30*0.9-AG32>0)),1,IF(AG$30*0.9-AG32<=0,"",AG$30*0.9-AG32)) -> 3
B33: (03.02) MMR (Primary) | C33: MMR (Primary) | E33: =IFERROR(F33/F$30,"-") -> 0.8115789474 | F33: 771 | H33: =IFERROR(I33/I$30,"-") -> 0.7222222222 | I33: =SUMIFS(OFFSET(REL_D,,MATCH(B33,IND,0)-1),REL_D,$M$2,total,$I$10) -> 117 | J33: =IF(AND(I$30*0.9-I33<1,(I$30*0.9-I33>0)),1,IF(I$30*0.9-I33<=0,"",I$30*0.9-I33)) -> 28.8 | L33: =IFERROR(M33/M$30,"-") -> 0.8282208589 | M33: =SUMIFS(OFFSET(REL_D,,MATCH(B33,IND,0)-1),REL_D,$M$2,total,$M$10) -> 135 | N33: =IF(AND(M$30*0.9-M33<1,(M$30*0.9-M33>0)),1,IF(M$30*0.9-M33<=0,"",M$30*0.9-M33)) -> 11.7 | P33: =IFERROR(Q33/Q$30,"-") -> 0.7127659574 | Q33: =SUMIFS(OFFSET(REL_D,,MATCH($B33,IND,0)-1),REL_D,$M$2,total,$Q$10) -> 67 | R33: =IF(AND(Q$30*0.9-Q33<1,(Q$30*0.9-Q33>0)),1,IF(Q$30*0.9-Q33<=0,"",Q$30*0.9-Q33)) -> 17.6 | T33: =IFERROR(U33/U$30,"-") -> 0.7908496732 | U33: =SUMIFS(OFFSET(REL_D,,MATCH($B33,IND,0)-1),REL_D,$M$2,total,$U$10) -> 121 | V33: =IF(AND(U$30*0.9-U33<1,(U$30*0.9-U33>0)),1,IF(U$30*0.9-U33<=0,"",U$30*0.9-U33)) -> 16.7 | X33: =IFERROR(Y33/Y$30,"-") -> 0.8453608247 | Y33: =SUMIFS(OFFSET(REL_D,,MATCH($B33,IND,0)-1),REL_D,$M$2,total,$Y$10) -> 82 | Z33: =IF(AND(Y$30*0.9-Y33<1,(Y$30*0.9-Y33>0)),1,IF(Y$30*0.9-Y33<=0,"",Y$30*0.9-Y33)) -> 5.3 | AB33: =IFERROR(AC33/AC$30,"-") -> 0.9078014184 | AC33: =SUMIFS(OFFSET(REL_D,,MATCH($B33,IND,0)-1),REL_D,$M$2,total,$AC$10) -> 128 | AD33: =IF(AND(AC$30*0.9-AC33<1,(AC$30*0.9-AC33>0)),1,IF(AC$30*0.9-AC33<=0,"",AC$30*0.9-AC33)) ->  | AF33: =IFERROR(AG33/AG$30,"-") -> 0.8642857143 | AG33: =SUMIFS(OFFSET(REL_D,,MATCH($B33,IND,0)-1),REL_D,$M$2,total,$AG$10) -> 121 | AH33: =IF(AND(AG$30*0.9-AG33<1,(AG$30*0.9-AG33>0)),1,IF(AG$30*0.9-AG33<=0,"",AG$30*0.9-AG33)) -> 5
B34: (03.03) DTaP/IPV (Booster) | C34: DTaP/IPV (Booster) | E34: 0.7294736842 | F34: 693 | H34: =IFERROR(I34/I$30,"-") -> 0.7160493827 | I34: =SUMIFS(OFFSET(REL_D,,MATCH(B34,IND,0)-1),REL_D,$M$2,total,$I$10) -> 116 | J34: =IF(AND(I$30*0.9-I34<1,(I$30*0.9-I34>0)),1,IF(I$30*0.9-I34<=0,"",I$30*0.9-I34)) -> 29.8 | L34: 0.8650306748 | M34: =SUMIFS(OFFSET(REL_D,,MATCH(B34,IND,0)-1),REL_D,$M$2,total,$M$10) -> 141 | N34: =IF(AND(M$30*0.9-M34<1,(M$30*0.9-M34>0)),1,IF(M$30*0.9-M34<=0,"",M$30*0.9-M34)) -> 5.7 | P34: 0.6808510638 | Q34: =SUMIFS(OFFSET(REL_D,,MATCH($B34,IND,0)-1),REL_D,$M$2,total,$Q$10) -> 64 | R34: =IF(AND(Q$30*0.9-Q34<1,(Q$30*0.9-Q34>0)),1,IF(Q$30*0.9-Q34<=0,"",Q$30*0.9-Q34)) -> 20.6 | T34: 0.7189542484 | U34: =SUMIFS(OFFSET(REL_D,,MATCH($B34,IND,0)-1),REL_D,$M$2,total,$U$10) -> 110 | V34: =IF(AND(U$30*0.9-U34<1,(U$30*0.9-U34>0)),1,IF(U$30*0.9-U34<=0,"",U$30*0.9-U34)) -> 27.7 | X34: 0.6082474227 | Y34: =SUMIFS(OFFSET(REL_D,,MATCH($B34,IND,0)-1),REL_D,$M$2,total,$Y$10) -> 59 | Z34: =IF(AND(Y$30*0.9-Y34<1,(Y$30*0.9-Y34>0)),1,IF(Y$30*0.9-Y34<=0,"",Y$30*0.9-Y34)) -> 28.3 | AB34: 0.8014184397 | AC34: =SUMIFS(OFFSET(REL_D,,MATCH($B34,IND,0)-1),REL_D,$M$2,total,$AC$10) -> 113 | AD34: =IF(AND(AC$30*0.9-AC34<1,(AC$30*0.9-AC34>0)),1,IF(AC$30*0.9-AC34<=0,"",AC$30*0.9-AC34)) -> 13.9 | AF34: 0.6428571429 | AG34: =SUMIFS(OFFSET(REL_D,,MATCH($B34,IND,0)-1),REL_D,$M$2,total,$AG$10) -> 90 | AH34: =IF(AND(AG$30*0.9-AG34<1,(AG$30*0.9-AG34>0)),1,IF(AG$30*0.9-AG34<=0,"",AG$30*0.9-AG34)) -> 36
B35: (03.05) MMR (Booster) | C35: MMR (Booster) | E35: 0.6368421053 | F35: 605 | H35: 0.5802469136 | I35: =SUMIFS(OFFSET(REL_D,,MATCH(B35,IND,0)-1),REL_D,$M$2,total,$I$10) -> 94 | J35: =IF(AND(I$30*0.9-I35<1,(I$30*0.9-I35>0)),1,IF(I$30*0.9-I35<=0,"",I$30*0.9-I35)) -> 51.8 | L35: 0.5766871166 | M35: =SUMIFS(OFFSET(REL_D,,MATCH(B35,IND,0)-1),REL_D,$M$2,total,$M$10) -> 94 | N35: =IF(AND(M$30*0.9-M35<1,(M$30*0.9-M35>0)),1,IF(M$30*0.9-M35<=0,"",M$30*0.9-M35)) -> 52.7 | P35: 0.3510638298 | Q35: =SUMIFS(OFFSET(REL_D,,MATCH($B35,IND,0)-1),REL_D,$M$2,total,$Q$10) -> 33 | R35: =IF(AND(Q$30*0.9-Q35<1,(Q$30*0.9-Q35>0)),1,IF(Q$30*0.9-Q35<=0,"",Q$30*0.9-Q35)) -> 51.6 | T35: 0.6405228758 | U35: =SUMIFS(OFFSET(REL_D,,MATCH($B35,IND,0)-1),REL_D,$M$2,total,$U$10) -> 98 | V35: =IF(AND(U$30*0.9-U35<1,(U$30*0.9-U35>0)),1,IF(U$30*0.9-U35<=0,"",U$30*0.9-U35)) -> 39.7 | X35: 0.7731958763 | Y35: =SUMIFS(OFFSET(REL_D,,MATCH($B35,IND,0)-1),REL_D,$M$2,total,$Y$10) -> 75 | Z35: =IF(AND(Y$30*0.9-Y35<1,(Y$30*0.9-Y35>0)),1,IF(Y$30*0.9-Y35<=0,"",Y$30*0.9-Y35)) -> 12.3 | AB35: 0.8439716312 | AC35: =SUMIFS(OFFSET(REL_D,,MATCH($B35,IND,0)-1),REL_D,$M$2,total,$AC$10) -> 119 | AD35: =IF(AND(AC$30*0.9-AC35<1,(AC$30*0.9-AC35>0)),1,IF(AC$30*0.9-AC35<=0,"",AC$30*0.9-AC35)) -> 7.9 | AF35: 0.6571428571 | AG35: =SUMIFS(OFFSET(REL_D,,MATCH($B35,IND,0)-1),REL_D,$M$2,total,$AG$10) -> 92 | AH35: =IF(AND(AG$30*0.9-AG35<1,(AG$30*0.9-AG35>0)),1,IF(AG$30*0.9-AG35<=0,"",AG$30*0.9-AG35)) -> 34
B36: (03.04) HiB/Men C | C36: HiB/Men C | E36: 0.8421052632 | F36: 800 | H36: 0.8271604938 | I36: =SUMIFS(OFFSET(REL_D,,MATCH(B36,IND,0)-1),REL_D,$M$2,total,$I$10) -> 134 | J36: =IF(AND(I$30*0.9-I36<1,(I$30*0.9-I36>0)),1,IF(I$30*0.9-I36<=0,"",I$30*0.9-I36)) -> 11.8 | L36: 0.8527607362 | M36: =SUMIFS(OFFSET(REL_D,,MATCH(B36,IND,0)-1),REL_D,$M$2,total,$M$10) -> 139 | N36: =IF(AND(M$30*0.9-M36<1,(M$30*0.9-M36>0)),1,IF(M$30*0.9-M36<=0,"",M$30*0.9-M36)) -> 7.7 | P36: 0.7127659574 | Q36: =SUMIFS(OFFSET(REL_D,,MATCH($B36,IND,0)-1),REL_D,$M$2,total,$Q$10) -> 67 | R36: =IF(AND(Q$30*0.9-Q36<1,(Q$30*0.9-Q36>0)),1,IF(Q$30*0.9-Q36<=0,"",Q$30*0.9-Q36)) -> 17.6 | T36: 0.8692810458 | U36: =SUMIFS(OFFSET(REL_D,,MATCH($B36,IND,0)-1),REL_D,$M$2,total,$U$10) -> 133 | V36: =IF(AND(U$30*0.9-U36<1,(U$30*0.9-U36>0)),1,IF(U$30*0.9-U36<=0,"",U$30*0.9-U36)) -> 4.7 | X36: 0.8350515464 | Y36: =SUMIFS(OFFSET(REL_D,,MATCH($B36,IND,0)-1),REL_D,$M$2,total,$Y$10) -> 81 | Z36: =IF(AND(Y$30*0.9-Y36<1,(Y$30*0.9-Y36>0)),1,IF(Y$30*0.9-Y36<=0,"",Y$30*0.9-Y36)) -> 6.3 | AB36: 0.914893617 | AC36: =SUMIFS(OFFSET(REL_D,,MATCH($B36,IND,0)-1),REL_D,$M$2,total,$AC$10) -> 129 | AD36: =IF(AND(AC$30*0.9-AC36<1,(AC$30*0.9-AC36>0)),1,IF(AC$30*0.9-AC36<=0,"",AC$30*0.9-AC36)) ->  | AF36: 0.8357142857 | AG36: =SUMIFS(OFFSET(REL_D,,MATCH($B36,IND,0)-1),REL_D,$M$2,total,$AG$10) -> 117 | AH36: =IF(AND(AG$30*0.9-AG36<1,(AG$30*0.9-AG36>0)),1,IF(AG$30*0.9-AG36<=0,"",AG$30*0.9-AG36)) -> 9

Sheet Patients becoming 12m
D2: Waltham Forest Childhood Immunisations Dashboard: Metric Details
B3: =VLOOKUP(C5,'Control Panel'!Y49:Z60,2,FALSE) ->  | D3: Patients becoming 12m | F3: =E15 -> 944
B4: 2020-02-01
C5: March 2022 | D5: All Patients | E5: (01) 12 MONTH COHORT | F5: (01.01) DTaP/IPV/Hib 6in1 | G5: DTaP/IPV/Hib(%) | H5: Patients required to achieve NHSE Target (90%) | I5: (01.02) Men B (1st and 2nd) | J5: Men B(%) | K5: Patients required to achieve NHSE Target (90%) | L5: (01.03) PCV | M5: PCV(%) | N5: Patients required to achieve NHSE Target (90%) | O5: (01.04) Rotavirus | P5: Rotavirus(%)
B6: Home | D6: Listsize | E6: Patients becoming 12m | F6: DTaP/IPV/Hib/HepB | G6: DTaP/IPV/Hib/HepB(%) | H6: Patients required to achieve CCG Target (95%) | I6: Men B | J6: Men B(%) | K6: Patients required to achieve CCG Target (95%) | L6: PCV | M6: PCV(%) | N6: Patients required to achieve CCG Target (95%) | O6: Rotavirus | P6: Rotavirus(%)
A7: Cluster
A8: WF-1 | B8: Chingford/ Walthamstow | D8: =SUM(IF($A8=$A$19:$A$57,D$19:D$57)) -> 51956 | E8: =SUM(IF($A8=$A$19:$A$57,E$19:E$57)) -> 170 | F8: =SUM(IF($A8=$A$19:$A$57,F$19:F$57)) -> 150 | G8: =IF(OR(ISTEXT($E8),$E8=0),"N/A",F8/$E8) -> 0.8823529412 | I8: =SUM(IF($A8=$A$19:$A$57,I$19:I$57)) -> 150 | J8: =IF(OR(ISTEXT($E8),$E8=0),"N/A",I8/$E8) -> 0.8823529412 | L8: =SUM(IF($A8=$A$19:$A$57,L$19:L$57)) -> 154 | M8: =IF(OR(ISTEXT($E8),$E8=0),"N/A",L8/$E8) -> 0.9058823529 | O8: =SUM(IF($A8=$A$19:$A$57,O$19:O$57)) -> 134 | P8: =IF(OR(ISTEXT($E8),$E8=0),"N/A",O8/$E8) -> 0.7882352941
A9: WF-2 | B9: Chingford E4 | D9: =SUM(IF($A9=$A$19:$A$57,D$19:D$57)) -> 53291 | E9: =SUM(IF($A9=$A$19:$A$57,E$19:E$57)) -> 149 | F9: =SUM(IF($A9=$A$19:$A$57,F$19:F$57)) -> 144 | G9: 0.966442953 | I9: =SUM(IF($A9=$A$19:$A$57,I$19:I$57)) -> 144 | J9: =IF(OR(ISTEXT($E9),$E9=0),"N/A",I9/$E9) -> 0.966442953 | L9: =SUM(IF($A9=$A$19:$A$57,L$19:L$57)) -> 144 | M9: =IF(OR(ISTEXT($E9),$E9=0),"N/A",L9/$E9) -> 0.966442953 | O9: =SUM(IF($A9=$A$19:$A$57,O$19:O$57)) -> 135 | P9: =IF(OR(ISTEXT($E9),$E9=0),"N/A",O9/$E9) -> 0.9060402685
A10: WF-3 | B10: Leyton Collaborative | D10: =SUM(IF($A10=$A$19:$A$57,D$19:D$57)) -> 35895 | E10: =SUM(IF($A10=$A$19:$A$57,E$19:E$57)) -> 88 | F10: =SUM(IF($A10=$A$19:$A$57,F$19:F$57)) -> 78 | G10: 0.8863636364 | I10: =SUM(IF($A10=$A$19:$A$57,I$19:I$57)) -> 75 | J10: 0.8522727273 | L10: =SUM(IF($A10=$A$19:$A$57,L$19:L$57)) -> 78 | M10: 0.8863636364 | O10: =SUM(IF($A10=$A$19:$A$57,O$19:O$57)) -> 67 | P10: 0.7613636364
A11: WF-4 | B11: Forest Integrated Health | D11: =SUM(IF($A11=$A$19:$A$57,D$19:D$57)) -> 58885 | E11: =SUM(IF($A11=$A$19:$A$57,E$19:E$57)) -> 175 | F11: =SUM(IF($A11=$A$19:$A$57,F$19:F$57)) -> 153 | G11: 0.8742857143 | I11: =SUM(IF($A11=$A$19:$A$57,I$19:I$57)) -> 150 | J11: 0.8571428571 | L11: =SUM(IF($A11=$A$19:$A$57,L$19:L$57)) -> 158 | M11: 0.9028571429 | O11: =SUM(IF($A11=$A$19:$A$57,O$19:O$57)) -> 133 | P11: 0.76
A12: WF-5 | B12: South Leytonstone | D12: =SUM(IF($A12=$A$19:$A$57,D$19:D$57)) -> 36701 | E12: =SUM(IF($A12=$A$19:$A$57,E$19:E$57)) -> 87 | F12: =SUM(IF($A12=$A$19:$A$57,F$19:F$57)) -> 77 | G12: 0.8850574713 | I12: =SUM(IF($A12=$A$19:$A$57,I$19:I$57)) -> 76 | J12: 0.8735632184 | L12: =SUM(IF($A12=$A$19:$A$57,L$19:L$57)) -> 80 | M12: 0.9195402299 | O12: =SUM(IF($A12=$A$19:$A$57,O$19:O$57)) -> 78 | P12: 0.8965517241
A13: WF-6 | B13: Central Walthamstow | D13: =SUM(IF($A13=$A$19:$A$57,D$19:D$57)) -> 41577 | E13: =SUM(IF($A13=$A$19:$A$57,E$19:E$57)) -> 119 | F13: =SUM(IF($A13=$A$19:$A$57,F$19:F$57)) -> 109 | G13: 0.9159663866 | I13: =SUM(IF($A13=$A$19:$A$57,I$19:I$57)) -> 109 | J13: 0.9159663866 | L13: =SUM(IF($A13=$A$19:$A$57,L$19:L$57)) -> 114 | M13: 0.9579831933 | O13: =SUM(IF($A13=$A$19:$A$57,O$19:O$57)) -> 108 | P13: 0.9075630252
A14: WF-7 | B14: Walthamstow West | D14: =SUM(IF($A14=$A$19:$A$57,D$19:D$57)) -> 45074 | E14: =SUM(IF($A14=$A$19:$A$57,E$19:E$57)) -> 156 | F14: =SUM(IF($A14=$A$19:$A$57,F$19:F$57)) -> 133 | G14: 0.8525641026 | I14: =SUM(IF($A14=$A$19:$A$57,I$19:I$57)) -> 129 | J14: 0.8269230769 | L14: =SUM(IF($A14=$A$19:$A$57,L$19:L$57)) -> 137 | M14: 0.8782051282 | O14: =SUM(IF($A14=$A$19:$A$57,O$19:O$57)) -> 135 | P14: 0.8653846154
A15: Total | D15: =SUM(D8:D14) -> 323379 | E15: =SUM(E8:E14) -> 944 | F15: =SUM(F8:F14) -> 844 | G15: 0.8940677966 | I15: =SUM(I8:I14) -> 833 | J15: 0.8824152542 | L15: =SUM(L8:L14) -> 865 | M15: 0.9163135593 | O15: =SUM(O8:O14) -> 790 | P15: 0.8368644068
A16: Minimum and Maximum % | F16: Min | G16: Max | I16: Min | J16: Max | L16: Min | M16: Max | O16: Min | P16: Max
F17: =SMALL(G19:G51,COUNTIF(G19:G51,0)+1) -> 0.6666666667 | G17: =MAX(G19:G51) -> 1 | I17: =SMALL(J19:J51,COUNTIF(J19:J51,0)+1) -> 0.6 | J17: =MAX(J19:J51) -> 1 | L17: =SMALL(M19:M51,COUNTIF(M19:M51,0)+1) -> 0.7 | M17: =MAX(M19:M51) -> 1 | O17: =SMALL(P19:P51,COUNTIF(P19:P51,0)+1) -> 0.05882352941 | P17: =MAX(P19:P51) -> 1
A18: Practices | B18: * SystmOne Practices - No Data
A19: =VLOOKUP(C19,'Control Panel'!$G$132:$K$171,5,FALSE) -> WF-1 | B19: =VLOOKUP(C19,'Control Panel'!$A$85:$F$124,2,FALSE) -> Kings Head Medical Practice | C19: F86700 | D19: =SUMIFS(OFFSET(REL_D,,MATCH($D$5,IND,0)-1),REL_D,$C$5,OrgID,$C19) -> 3901 | E19: =SUMIFS(OFFSET(REL_D,,MATCH($E$5,IND,0)-1),REL_D,$C$5,OrgID,$C19) -> 8 | F19: =SUMIFS(OFFSET(REL_D,,MATCH($F$5,IND,0)-1),REL_D,$C$5,OrgID,$C19) -> 6 | G19: =IF(OR(ISTEXT($E19),$E19=0),"N/A",F19/$E19) -> 0.75 | H19: =IFERROR(ROUNDUP(IF($E19*0.95-F19>=0,$E19*0.95-F19,""),0),"") -> 2 | I19: =SUMIFS(OFFSET(REL_D,,MATCH($I$5,IND,0)-1),REL_D,$C$5,OrgID,$C19) -> 6 | J19: =IF(OR(ISTEXT($E19),$E19=0),"N/A",I19/$E19) -> 0.75 | K19: =IFERROR(ROUNDUP(IF($E19*0.95-I19>=0,$E19*0.95-I19,""),0),"") -> 2 | L19: =SUMIFS(OFFSET(REL_D,,MATCH($L$5,IND,0)-1),REL_D,$C$5,OrgID,$C19) -> 7 | M19: =IF(OR(ISTEXT($E19),$E19=0),"N/A",L19/$E19) -> 0.875 | N19: =IFERROR(ROUNDUP(IF($E19*0.95-L19>=0,$E19*0.95-L19,""),0),"") -> 1 | O19: =SUMIFS(OFFSET(REL_D,,MATCH($O$5,IND,0)-1),REL_D,$C$5,OrgID,$C19) -> 6 | P19: =IF(OR(ISTEXT($E19),$E19=0),"N/A",O19/$E19) -> 0.75
A20: =VLOOKUP(C20,'Control Panel'!$G$132:$K$171,5,FALSE) -> WF-1 | B20: =VLOOKUP(C20,'Control Panel'!$A$85:$F$124,2,FALSE) -> Larkshall Medical Centre | C20: F86664 | D20: 8471 | E20: 17 | F20: 17 | G20: 1 | H20: =IFERROR(ROUNDUP(IF($E20*0.95-F20>=0,$E20*0.95-F20,""),0),"") ->  | I20: 17 | J20: 1 | K20: =IFERROR(ROUNDUP(IF($E20*0.95-I20>=0,$E20*0.95-I20,""),0),"") ->  | L20: 17 | M20: 1 | N20: =IFERROR(ROUNDUP(IF($E20*0.95-L20>=0,$E20*0.95-L20,""),0),"") ->  | O20: 17 | P20: =IF(OR(ISTEXT($E20),$E20=0),"N/A",O20/$E20) -> 1
A21: =VLOOKUP(C21,'Control Panel'!$G$132:$K$171,5,FALSE) -> WF-1 | B21: =VLOOKUP(C21,'Control Panel'!$A$85:$F$124,2,FALSE) -> The Microfaculty* | C21: F86638 | D21: 5199 | E21: 17 | F21: 12 | G21: =IF(OR(ISTEXT($E21),$E21=0),"N/A",F21/$E21) -> 0.7058823529 | H21: 5 | I21: 12 | J21: =IF(OR(ISTEXT($E21),$E21=0),"N/A",I21/$E21) -> 0.7058823529 | K21: 5 | L21: 12 | M21: =IF(OR(ISTEXT($E21),$E21=0),"N/A",L21/$E21) -> 0.7058823529 | N21: 5 | O21: 1 | P21: =IF(OR(ISTEXT($E21),$E21=0),"N/A",O21/$E21) -> 0.05882352941
A22: =VLOOKUP(C22,'Control Panel'!$G$132:$K$171,5,FALSE) -> WF-1 | B22: =VLOOKUP(C22,'Control Panel'!$A$85:$F$124,2,FALSE) -> The Penryhn Surgery | C22: F86005 | D22: 9510 | E22: 42 | F22: 40 | G22: 0.9523809524 | I22: 39 | J22: 0.9285714286 | K22: 1 | L22: 41 | M22: 0.9761904762 | O22: 38 | P22: 0.9047619048
A23: =VLOOKUP(C23,'Control Panel'!$G$132:$K$171,5,FALSE) -> WF-1 | B23: =VLOOKUP(C23,'Control Panel'!$A$85:$F$124,2,FALSE) -> Dr Shantir Practice | C23: F86626 | D23: 7021 | E23: 23 | F23: 21 | G23: 0.9130434783 | H23: 1 | I23: 22 | J23: 0.9565217391 | L23: 22 | M23: 0.9565217391 | O23: 20 | P23: 0.8695652174
A24: =VLOOKUP(C24,'Control Panel'!$G$132:$K$171,5,FALSE) -> WF-1 | B24: =VLOOKUP(C24,'Control Panel'!$A$85:$F$124,2,FALSE) -> Lime Tree & Sinnott Healthcare Ltd | C24: Y01839 | D24: 6236 | E24: 19 | F24: 17 | G24: =IF(OR(ISTEXT($E24),$E24=0),"N/A",F24/$E24) -> 0.8947368421 | H24: 2 | I24: 17 | J24: =IF(OR(ISTEXT($E24),$E24=0),"N/A",I24/$E24) -> 0.8947368421 | K24: 2 | L24: 18 | M24: =IF(OR(ISTEXT($E24),$E24=0),"N/A",L24/$E24) -> 0.9473684211 | N24: 1 | O24: 17 | P24: =IF(OR(ISTEXT($E24),$E24=0),"N/A",O24/$E24) -> 0.8947368421
A25: =VLOOKUP(C25,'Control Panel'!$G$132:$K$171,5,FALSE) -> WF-1 | B25: =VLOOKUP(C25,'Control Panel'!$A$85:$F$124,2,FALSE) -> The Bailey Practice | C25: F86689 | D25: 4395 | E25: 33 | F25: 28 | G25: 0.8484848485 | H25: 4 | I25: 28 | J25: 0.8484848485 | K25: 4 | L25: 28 | M25: 0.8484848485 | N25: 4 | O25: 27 | P25: 0.8181818182
A26: =VLOOKUP(C26,'Control Panel'!$G$132:$K$171,5,FALSE) -> WF-1 | B26: =VLOOKUP(C26,'Control Panel'!$A$85:$F$124,2,FALSE) -> Forest Surgery* | C26: F86026 | D26: 7223 | E26: 11 | F26: 9 | G26: =IF(OR(ISTEXT($E26),$E26=0),"N/A",F26/$E26) -> 0.8181818182 | H26: 2 | I26: 9 | J26: =IF(OR(ISTEXT($E26),$E26=0),"N/A",I26/$E26) -> 0.8181818182 | K26: 2 | L26: 9 | M26: =IF(OR(ISTEXT($E26),$E26=0),"N/A",L26/$E26) -> 0.8181818182 | N26: 2 | O26: 8 | P26: =IF(OR(ISTEXT($E26),$E26=0),"N/A",O26/$E26) -> 0.7272727273
A27: =VLOOKUP(C27,'Control Panel'!$G$132:$K$171,5,FALSE) -> WF-2 | B27: =VLOOKUP(C27,'Control Panel'!$A$85:$F$124,2,FALSE) -> Handsworth Medical Centre* | C27: F86004 | D27: 15970 | E27: 51 | F27: 47 | G27: 0.9215686275 | H27: 2 | I27: 46 | J27: 0.9019607843 | K27: 3 | L27: 46 | M27: 0.9019607843 | N27: 3 | O27: 46 | P27: 0.9019607843
A28: =VLOOKUP(C28,'Control Panel'!$G$132:$K$171,5,FALSE) -> WF-2 | B28: =VLOOKUP(C28,'Control Panel'!$A$85:$F$124,2,FALSE) -> Chingford Medical Practice | C28: Y01291 | D28: 9173 | E28: 26 | F28: 26 | G28: 1 | I28: 26 | J28: 1 | L28: 26 | M28: 1 | O28: 24 | P28: 0.9230769231
A29: =VLOOKUP(C29,'Control Panel'!$G$132:$K$171,5,FALSE) -> WF-2 | B29: =VLOOKUP(C29,'Control Panel'!$A$85:$F$124,2,FALSE) -> Churchill Medical Centre | C29: F86627 | D29: 13283 | E29: 24 | F29: 24 | G29: 1 | I29: 24 | J29: 1 | L29: 24 | M29: 1 | O29: 21 | P29: 0.875
A30: =VLOOKUP(C30,'Control Panel'!$G$132:$K$171,5,FALSE) -> WF-2 | B30: =VLOOKUP(C30,'Control Panel'!$A$85:$F$124,2,FALSE) -> The Ridgeway Surgery | C30: F86078 | D30: 6869 | E30: 12 | F30: 11 | G30: 0.9166666667 | H30: 1 | I30: 12 | J30: 1 | L30: 12 | M30: 1 | O30: 11 | P30: 0.9166666667
A31: =VLOOKUP(C31,'Control Panel'!$G$132:$K$171,5,FALSE) -> WF-2 | B31: =VLOOKUP(C31,'Control Panel'!$A$85:$F$124,2,FALSE) -> Old Church Surgery | C31: F86616 | D31: 7996 | E31: 36 | F31: 36 | G31: 1 | I31: 36 | J31: 1 | L31: 36 | M31: 1 | O31: 33 | P31: 0.9166666667
A32: =VLOOKUP(C32,'Control Panel'!$G$132:$K$171,5,FALSE) -> WF-3 | B32: =VLOOKUP(C32,'Control Panel'!$A$85:$F$124,2,FALSE) -> The Manor Practice | C32: F86011 | D32: 9698 | E32: 21 | F32: 18 | G32: 0.8571428571 | H32: 2 | I32: 18 | J32: 0.8571428571 | K32: 2 | L32: 19 | M32: 0.9047619048 | N32: 1 | O32: 18 | P32: 0.8571428571
A33: =VLOOKUP(C33,'Control Panel'!$G$132:$K$171,5,FALSE) -> WF-3 | B33: =VLOOKUP(C33,'Control Panel'!$A$85:$F$124,2,FALSE) -> Sma Medical Centre | C33: F86038 | D33: 11105 | E33: 28 | F33: 23 | G33: 0.8214285714 | H33: 4 | I33: 23 | J33: 0.8214285714 | K33: 4 | L33: 25 | M33: 0.8928571429 | N33: 2 | O33: 24 | P33: 0.8571428571
A34: =VLOOKUP(C34,'Control Panel'!$G$132:$K$171,5,FALSE) -> WF-3 | B34: =VLOOKUP(C34,'Control Panel'!$A$85:$F$124,2,FALSE) -> Leyton Healthcare (Oliver Road)* | C34: F86074 | D34: 15092 | E34: 39 | F34: 37 | G34: 0.9487179487 | H34: 1 | I34: 34 | J34: 0.8717948718 | K34: 4 | L34: 34 | M34: 0.8717948718 | N34: 4 | O34: 25 | P34: 0.641025641
A35: =VLOOKUP(C35,'Control Panel'!$G$132:$K$171,5,FALSE) -> WF-4 | B35: =VLOOKUP(C35,'Control Panel'!$A$85:$F$124,2,FALSE) -> The Allum Medical Centre | C35: F86036 | D35: 14732 | E35: 42 | F35: 40 | G35: 0.9523809524 | I35: 40 | J35: 0.9523809524 | L35: 40 | M35: 0.9523809524 | O35: 40 | P35: 0.9523809524
A36: =VLOOKUP(C36,'Control Panel'!$G$132:$K$171,5,FALSE) -> WF-4 | B36: =VLOOKUP(C36,'Control Panel'!$A$85:$F$124,2,FALSE) -> Crawley Road Medical Centre | C36: F86044 | D36: 10802 | E36: 35 | F36: 30 | G36: 0.8571428571 | H36: 4 | I36: 30 | J36: 0.8571428571 | K36: 4 | L36: 32 | M36: 0.9142857143 | N36: 2 | O36: 30 | P36: 0.8571428571
A37: =VLOOKUP(C37,'Control Panel'!$G$132:$K$171,5,FALSE) -> WF-4 | B37: =VLOOKUP(C37,'Control Panel'!$A$85:$F$124,2,FALSE) -> Francis Road Medical Centre | C37: F86696 | D37: 6883 | E37: 32 | F37: 23 | G37: 0.71875 | H37: 8 | I37: 22 | J37: 0.6875 | K37: 9 | L37: 26 | M37: 0.8125 | N37: 5 | O37: 23 | P37: 0.71875
A38: =VLOOKUP(C38,'Control Panel'!$G$132:$K$171,5,FALSE) -> WF-4 | B38: =VLOOKUP(C38,'Control Panel'!$A$85:$F$124,2,FALSE) -> Hampton Medical Centre | C38: F86712 | D38: 3395 | E38: 10 | F38: 10 | G38: 1 | I38: 9 | J38: 0.9 | K38: 1 | L38: 10 | M38: 1 | O38: 10 | P38: 1
A39: =VLOOKUP(C39,'Control Panel'!$G$132:$K$171,5,FALSE) -> WF-4 | B39: =VLOOKUP(C39,'Control Panel'!$A$85:$F$124,2,FALSE) -> Lime Tree Surgery | C39: F86650 | D39: 8080 | E39: 23 | F39: 18 | G39: 0.7826086957 | H39: 4 | I39: 18 | J39: 0.7826086957 | K39: 4 | L39: 19 | M39: 0.8260869565 | N39: 3 | O39: 16 | P39: 0.6956521739
A40: =VLOOKUP(C40,'Control Panel'!$G$132:$K$171,5,FALSE) -> WF-4 | B40: =VLOOKUP(C40,'Control Panel'!$A$85:$F$124,2,FALSE) -> The Lyndhurst Surgery | C40: F86088 | D40: 5027 | E40: 16 | F40: 15 | G40: 0.9375 | H40: 1 | I40: 15 | J40: 0.9375 | K40: 1 | L40: 15 | M40: 0.9375 | N40: 1 | O40: 14 | P40: 0.875
A41: =VLOOKUP(C41,'Control Panel'!$G$132:$K$171,5,FALSE) -> WF-4 | B41: =VLOOKUP(C41,'Control Panel'!$A$85:$F$124,2,FALSE) -> The Ecclesbourne Practice* | C41: F86018 | D41: 9966 | E41: 17 | F41: 17 | G41: 1 | I41: 16 | J41: 0.9411764706 | K41: 1 | L41: 16 | M41: 0.9411764706 | N41: 1 | O41: 0 | P41: 0
A42: =VLOOKUP(C42,'Control Panel'!$G$132:$K$171,5,FALSE) -> WF-5 | B42: =VLOOKUP(C42,'Control Panel'!$A$85:$F$124,2,FALSE) -> Green Man Medical Centre | C42: F86621 | D42: 6445 | E42: 12 | F42: 9 | G42: 0.75 | H42: 3 | I42: 8 | J42: 0.6666666667 | K42: 4 | L42: 10 | M42: 0.8333333333 | N42: 2 | O42: 10 | P42: 0.8333333333
A43: =VLOOKUP(C43,'Control Panel'!$G$132:$K$171,5,FALSE) -> WF-5 | B43: =VLOOKUP(C43,'Control Panel'!$A$85:$F$124,2,FALSE) -> High Road Surgery | C43: F86045 | D43: 2026 | E43: 4 | F43: 4 | G43: 1 | I43: 4 | J43: 1 | L43: 4 | M43: 1 | O43: 4 | P43: 1
A44: =VLOOKUP(C44,'Control Panel'!$G$132:$K$171,5,FALSE) -> WF-5 | B44: =VLOOKUP(C44,'Control Panel'!$A$85:$F$124,2,FALSE) -> Kiyani Medical Practice | C44: F86701 | D44: 3853 | E44: 10 | F44: 7 | G44: 0.7 | H44: 3 | I44: 7 | J44: 0.7 | K44: 3 | L44: 7 | M44: 0.7 | N44: 3 | O44: 8 | P44: 0.8
A45: =VLOOKUP(C45,'Control Panel'!$G$132:$K$171,5,FALSE) -> WF-5 | B45: =VLOOKUP(C45,'Control Panel'!$A$85:$F$124,2,FALSE) -> LL Medical Care (Agarwal & Agrwal Practice) | C45: F86625 | D45: 5882 | E45: 6 | F45: 5 | G45: 0.8333333333 | H45: 1 | I45: 5 | J45: 0.8333333333 | K45: 1 | L45: 5 | M45: 0.8333333333 | N45: 1 | O45: 4 | P45: 0.6666666667
A46: =VLOOKUP(C46,'Control Panel'!$G$132:$K$171,5,FALSE) -> WF-5 | B46: =VLOOKUP(C46,'Control Panel'!$A$85:$F$124,2,FALSE) -> The Harrow Road Surgery | C46: F86666 | D46: 14983 | E46: 41 | F46: 39 | G46: 0.9512195122 | I46: 39 | J46: 0.9512195122 | L46: 40 | M46: 0.9756097561 | O46: 38 | P46: 0.9268292683
A47: =VLOOKUP(C47,'Control Panel'!$G$132:$K$171,5,FALSE) -> WF-5 | B47: =VLOOKUP(C47,'Control Panel'!$A$85:$F$124,2,FALSE) -> The Langthorne Sharma Family Practice | C47: F86705 | D47: 3512 | E47: 14 | F47: 13 | G47: 0.9285714286 | H47: 1 | I47: 13 | J47: 0.9285714286 | K47: 1 | L47: 14 | M47: 1 | O47: 14 | P47: 1
A48: =VLOOKUP(C48,'Control Panel'!$G$132:$K$171,5,FALSE) -> WF-6 | B48: =VLOOKUP(C48,'Control Panel'!$A$85:$F$124,2,FALSE) -> Addison Road Medical Practice | C48: F86607 | D48: 15547 | E48: 57 | F48: 56 | G48: 0.9824561404 | I48: 57 | J48: 1 | L48: 57 | M48: 1 | O48: 54 | P48: 0.9473684211
A49: =VLOOKUP(C49,'Control Panel'!$G$132:$K$171,5,FALSE) -> WF-6 | B49: =VLOOKUP(C49,'Control Panel'!$A$85:$F$124,2,FALSE) -> Claremont Medical Centre | C49: F86708 | D49: 2782 | E49: 6 | F49: 5 | G49: 0.8333333333 | H49: 1 | I49: 5 | J49: 0.8333333333 | K49: 1 | L49: 5 | M49: 0.8333333333 | N49: 1 | O49: 5 | P49: 0.8333333333
A50: =VLOOKUP(C50,'Control Panel'!$G$132:$K$171,5,FALSE) -> WF-6 | B50: =VLOOKUP(C50,'Control Panel'!$A$85:$F$124,2,FALSE) -> The Firs | C50: F86001 | D50: 7729 | E50: 15 | F50: 10 | G50: 0.6666666667 | H50: 5 | I50: 9 | J50: 0.6 | K50: 6 | L50: 11 | M50: 0.7333333333 | N50: 4 | O50: 12 | P50: 0.8
A51: =VLOOKUP(C51,'Control Panel'!$G$132:$K$171,5,FALSE) -> WF-6 | B51: =VLOOKUP(C51,'Control Panel'!$A$85:$F$124,2,FALSE) -> Dr Dhital Practice | C51: F86086 | D51: 6265 | E51: 22 | F51: 19 | G51: 0.8636363636 | H51: 2 | I51: 19 | J51: 0.8636363636 | K51: 2 | L51: 22 | M51: 1 | O51: 19 | P51: 0.8636363636
A52: =VLOOKUP(C52,'Control Panel'!$G$132:$K$171,5,FALSE) -> WF-6 | B52: =VLOOKUP(C52,'Control Panel'!$A$85:$F$124,2,FALSE) -> Waltham Forest Community & Family Health Services Ltd | C52: F86644 | D52: 9254 | E52: 19 | F52: 19 | G52: 1 | I52: 19 | J52: 1 | L52: 19 | M52: 1 | O52: 18 | P52: 0.9473684211
A53: =VLOOKUP(C53,'Control Panel'!$G$132:$K$171,5,FALSE) -> WF-7 | B53: =VLOOKUP(C53,'Control Panel'!$A$85:$F$124,2,FALSE) -> Seymour Medical centre | C53: F86006 | D53: 6825 | E53: 19 | F53: 15 | G53: 0.7894736842 | H53: 4 | I53: 15 | J53: 0.7894736842 | K53: 4 | L53: 15 | M53: 0.7894736842 | N53: 4 | O53: 15 | P53: 0.7894736842
A54: =VLOOKUP(C54,'Control Panel'!$G$132:$K$171,5,FALSE) -> WF-7 | B54: =VLOOKUP(C54,'Control Panel'!$A$85:$F$124,2,FALSE) -> Queens Road Medical Centre | C54: F86030 | D54: 8161 | E54: 23 | F54: 21 | G54: 0.9130434783 | H54: 1 | I54: 21 | J54: 0.9130434783 | K54: 1 | L54: 23 | M54: 1 | O54: 22 | P54: 0.9565217391
A55: =VLOOKUP(C55,'Control Panel'!$G$132:$K$171,5,FALSE) -> WF-7 | B55: =VLOOKUP(C55,'Control Panel'!$A$85:$F$124,2,FALSE) -> The Grove Road Medical Centre | C55: F86062 | D55: 7155 | E55: 24 | F55: 20 | G55: 0.8333333333 | H55: 3 | I55: 17 | J55: 0.7083333333 | K55: 6 | L55: 20 | M55: 0.8333333333 | N55: 3 | O55: 21 | P55: 0.875
A56: =VLOOKUP(C56,'Control Panel'!$G$132:$K$171,5,FALSE) -> WF-7 | B56: =VLOOKUP(C56,'Control Panel'!$A$85:$F$124,2,FALSE) -> Higham Hill Medical Centre | C56: F86679 | D56: 6372 | E56: 29 | F56: 26 | G56: 0.8965517241 | H56: 2 | I56: 26 | J56: 0.8965517241 | K56: 2 | L56: 26 | M56: 0.8965517241 | N56: 2 | O56: 26 | P56: 0.8965517241
A57: =VLOOKUP(C57,'Control Panel'!$G$132:$K$171,5,FALSE) -> WF-7 | B57: =VLOOKUP(C57,'Control Panel'!$A$85:$F$124,2,FALSE) -> St James Medical Practice Ltd | C57: F86058 | D57: 16561 | E57: 61 | F57: 51 | G57: 0.8360655738 | H57: 7 | I57: 50 | J57: 0.8196721311 | K57: 8 | L57: 53 | M57: 0.868852459 | N57: 5 | O57: 51 | P57: 0.8360655738

Sheet Patients becoming 24m
D2: Waltham Forest Childhood Immunisations Dashboard: Metric Details
B3: =VLOOKUP(C5,'Control Panel'!Y49:Z60,2,FALSE) ->  | D3: Patients becoming 24m | F3: =E15 -> 981
B4: 2020-02-01
C5: March 2022 | D5: All Patients | E5: (02) 24 MONTH COHORT | F5: (02.01) DTaP/IPV/Hib or DTaP/IPV/Hib/HepB | G5: DTaP/IPV/Hib(%) | H5: (02.02) MMR | I5: MMR(%) | J5: Patients required to achieve NHSE Target (90%) | K5: (02.03) HiB/Men C | L5: HiB/Men C (%) | M5: Patients required to achieve NHSE Target (90%) | N5: (02.04) PCV (Booster) | O5: PCV (Booster)(%) | P5: Patients required to achieve NHSE Target (90%) | Q5: (02.05) Men B (Booster) | R5: Men B (Booster)(%)
B6: Home | D6: Listsize | E6: Patients becoming 24m | F6: DTaP/IPV/Hib/HepB | G6: DTaP/IPV/Hib/HepB(%) | H6: MMR | I6: MMR(%) | J6: Patients required to achieve CCG Target (95%) | K6: HiB/Men C | L6: HiB/Men C (%) | M6: Patients required to achieve CCG Target (95%) | N6: PCV (Booster) | O6: PCV (Booster)(%) | P6: Patients required to achieve CCG Target (95%) | Q6: Men B (Booster) | R6: Men B (Booster)(%)
A7: Cluster
A8: WF-1 | B8: Chingford/ Walthamstow | D8: =SUM(IF($A8=$A$19:$A$57,D$19:D$57)) -> 51956 | E8: =SUM(IF($A8=$A$19:$A$57,E$19:E$57)) -> 200 | F8: =SUM(IF($A8=$A$19:$A$57,F$19:F$57)) -> 178 | G8: =IF(OR(ISTEXT($E8),$E8=0),"N/A",F8/$E8) -> 0.89 | H8: =SUM(IF($A8=$A$19:$A$57,H$19:H$57)) -> 152 | I8: =IF(OR(ISTEXT($E8),$E8=0),"N/A",H8/$E8) -> 0.76 | K8: =SUM(IF($A8=$A$19:$A$57,K$19:K$57)) -> 177 | L8: =IF(OR(ISTEXT($E8),$E8=0),"N/A",K8/$E8) -> 0.885 | N8: =SUM(IF($A8=$A$19:$A$57,N$19:N$57)) -> 178 | O8: =IF(OR(ISTEXT($E8),$E8=0),"N/A",N8/$E8) -> 0.89 | Q8: =SUM(IF($A8=$A$19:$A$57,Q$19:Q$57)) -> 178 | R8: =IF(OR(ISTEXT($E8),$E8=0),"N/A",Q8/$E8) -> 0.89
A9: WF-2 | B9: Chingford E4 | D9: =SUM(IF($A9=$A$19:$A$57,D$19:D$57)) -> 53291 | E9: =SUM(IF($A9=$A$19:$A$57,E$19:E$57)) -> 152 | F9: =SUM(IF($A9=$A$19:$A$57,F$19:F$57)) -> 141 | G9: =IF(OR(ISTEXT($E9),$E9=0),"N/A",F9/$E9) -> 0.9276315789 | H9: =SUM(IF($A9=$A$19:$A$57,H$19:H$57)) -> 109 | I9: =IF(OR(ISTEXT($E9),$E9=0),"N/A",H9/$E9) -> 0.7171052632 | K9: =SUM(IF($A9=$A$19:$A$57,K$19:K$57)) -> 136 | L9: =IF(OR(ISTEXT($E9),$E9=0),"N/A",K9/$E9) -> 0.8947368421 | N9: =SUM(IF($A9=$A$19:$A$57,N$19:N$57)) -> 135 | O9: =IF(OR(ISTEXT($E9),$E9=0),"N/A",N9/$E9) -> 0.8881578947 | Q9: =SUM(IF($A9=$A$19:$A$57,Q$19:Q$57)) -> 135 | R9: =IF(OR(ISTEXT($E9),$E9=0),"N/A",Q9/$E9) -> 0.8881578947
A10: WF-3 | B10: Leyton Collaborative | D10: =SUM(IF($A10=$A$19:$A$57,D$19:D$57)) -> 35895 | E10: =SUM(IF($A10=$A$19:$A$57,E$19:E$57)) -> 102 | F10: =SUM(IF($A10=$A$19:$A$57,F$19:F$57)) -> 88 | G10: 0.862745098 | H10: =SUM(IF($A10=$A$19:$A$57,H$19:H$57)) -> 60 | I10: 0.5882352941 | K10: =SUM(IF($A10=$A$19:$A$57,K$19:K$57)) -> 75 | L10: 0.7352941176 | N10: =SUM(IF($A10=$A$19:$A$57,N$19:N$57)) -> 87 | O10: 0.8529411765 | Q10: =SUM(IF($A10=$A$19:$A$57,Q$19:Q$57)) -> 85 | R10: 0.8333333333
A11: WF-4 | B11: Forest Integrated Health | D11: =SUM(IF($A11=$A$19:$A$57,D$19:D$57)) -> 58885 | E11: =SUM(IF($A11=$A$19:$A$57,E$19:E$57)) -> 159 | F11: =SUM(IF($A11=$A$19:$A$57,F$19:F$57)) -> 140 | G11: 0.8805031447 | H11: =SUM(IF($A11=$A$19:$A$57,H$19:H$57)) -> 113 | I11: 0.7106918239 | K11: =SUM(IF($A11=$A$19:$A$57,K$19:K$57)) -> 136 | L11: 0.8553459119 | N11: =SUM(IF($A11=$A$19:$A$57,N$19:N$57)) -> 137 | O11: 0.8616352201 | Q11: =SUM(IF($A11=$A$19:$A$57,Q$19:Q$57)) -> 136 | R11: 0.8553459119
A12: WF-5 | B12: South Leytonstone | D12: =SUM(IF($A12=$A$19:$A$57,D$19:D$57)) -> 36701 | E12: =SUM(IF($A12=$A$19:$A$57,E$19:E$57)) -> 100 | F12: =SUM(IF($A12=$A$19:$A$57,F$19:F$57)) -> 89 | G12: 0.89 | H12: =SUM(IF($A12=$A$19:$A$57,H$19:H$57)) -> 84 | I12: 0.84 | K12: =SUM(IF($A12=$A$19:$A$57,K$19:K$57)) -> 84 | L12: 0.84 | N12: =SUM(IF($A12=$A$19:$A$57,N$19:N$57)) -> 86 | O12: 0.86 | Q12: =SUM(IF($A12=$A$19:$A$57,Q$19:Q$57)) -> 85 | R12: 0.85
A13: WF-6 | B13: Central Walthamstow | D13: =SUM(IF($A13=$A$19:$A$57,D$19:D$57)) -> 41577 | E13: =SUM(IF($A13=$A$19:$A$57,E$19:E$57)) -> 123 | F13: =SUM(IF($A13=$A$19:$A$57,F$19:F$57)) -> 111 | G13: 0.9024390244 | H13: =SUM(IF($A13=$A$19:$A$57,H$19:H$57)) -> 100 | I13: 0.8130081301 | K13: =SUM(IF($A13=$A$19:$A$57,K$19:K$57)) -> 102 | L13: 0.8292682927 | N13: =SUM(IF($A13=$A$19:$A$57,N$19:N$57)) -> 102 | O13: 0.8292682927 | Q13: =SUM(IF($A13=$A$19:$A$57,Q$19:Q$57)) -> 103 | R13: 0.837398374
A14: WF-7 | B14: Walthamstow West | D14: =SUM(IF($A14=$A$19:$A$57,D$19:D$57)) -> 45074 | E14: =SUM(IF($A14=$A$19:$A$57,E$19:E$57)) -> 145 | F14: =SUM(IF($A14=$A$19:$A$57,F$19:F$57)) -> 125 | G14: 0.8620689655 | H14: =SUM(IF($A14=$A$19:$A$57,H$19:H$57)) -> 118 | I14: 0.8137931034 | K14: =SUM(IF($A14=$A$19:$A$57,K$19:K$57)) -> 118 | L14: 0.8137931034 | N14: =SUM(IF($A14=$A$19:$A$57,N$19:N$57)) -> 118 | O14: 0.8137931034 | Q14: =SUM(IF($A14=$A$19:$A$57,Q$19:Q$57)) -> 118 | R14: 0.8137931034
A15: Total | D15: =SUM(D8:D14) -> 323379 | E15: =SUM(E8:E14) -> 981 | F15: =SUM(F8:F14) -> 872 | G15: 0.8888888889 | H15: =SUM(H8:H14) -> 736 | I15: 0.750254842 | K15: =SUM(K8:K14) -> 828 | L15: 0.8440366972 | N15: =SUM(N8:N14) -> 843 | O15: 0.8593272171 | Q15: =SUM(Q8:Q14) -> 840 | R15: 0.8562691131
A16: Minimum and Maximum % | F16: Min | G16: Max | H16: Min | I16: Max | K16: Min | L16: Max | N16: Min | O16: Max | Q16: Min | R16: Max
F17: =SMALL(G19:G51,COUNTIF(G19:G51,0)+1) -> 0.7222222222 | G17: =MAX(G19:G51) -> 1 | H17: =SMALL(I19:I51,COUNTIF(I19:I51,0)+1) -> 0.04761904762 | I17: =MAX(I19:I51) -> 1 | K17: =SMALL(L19:L51,COUNTIF(L19:L51,0)+1) -> 0.6153846154 | L17: =MAX(L19:L51) -> 1 | N17: =SMALL(O19:O51,COUNTIF(O19:O51,0)+1) -> 0.7222222222 | O17: =MAX(O19:O51) -> 1 | Q17: =SMALL(R19:R51,COUNTIF(R19:R51,0)+1) -> 0.75 | R17: =MAX(R19:R51) -> 1
A18: Practices | B18: * SystmOne Practices - No Data
A19: =VLOOKUP(C19,'Control Panel'!$G$132:$K$171,5,FALSE) -> WF-1 | B19: =VLOOKUP(C19,'Control Panel'!$A$85:$F$124,2,FALSE) -> Kings Head Medical Practice | C19: F86700 | D19: =SUMIFS(OFFSET(REL_D,,MATCH($D$5,IND,0)-1),REL_D,$C$5,OrgID,$C19) -> 3901 | E19: =SUMIFS(OFFSET(REL_D,,MATCH($E$5,IND,0)-1),REL_D,$C$5,OrgID,$C19) -> 12 | F19: =SUMIFS(OFFSET(REL_D,,MATCH($F$5,IND,0)-1),REL_D,$C$5,OrgID,$C19) -> 10 | G19: =IF(OR(ISTEXT($E19),$E19=0),"N/A",F19/$E19) -> 0.8333333333 | H19: =SUMIFS(OFFSET(REL_D,,MATCH($H$5,IND,0)-1),REL_D,$C$5,OrgID,$C19) -> 9 | I19: =IF(OR(ISTEXT($E19),$E19=0),"N/A",H19/$E19) -> 0.75 | J19: =IFERROR(ROUNDUP(IF($E19*0.95-H19>=0,$E19*0.95-H19,""),0),"") -> 3 | K19: =SUMIFS(OFFSET(REL_D,,MATCH($K$5,IND,0)-1),REL_D,$C$5,OrgID,$C19) -> 9 | L19: =IF(OR(ISTEXT($E19),$E19=0),"N/A",K19/$E19) -> 0.75 | M19: =IFERROR(ROUNDUP(IF($E19*0.95-K19>=0,$E19*0.95-K19,""),0),"") -> 3 | N19: =SUMIFS(OFFSET(REL_D,,MATCH($N$5,IND,0)-1),REL_D,$C$5,OrgID,$C19) -> 9 | O19: =IF(OR(ISTEXT($E19),$E19=0),"N/A",N19/$E19) -> 0.75 | P19: =IFERROR(ROUNDUP(IF($E19*0.95-N19>=0,$E19*0.95-N19,""),0),"") -> 3 | Q19: =SUMIFS(OFFSET(REL_D,,MATCH($Q$5,IND,0)-1),REL_D,$C$5,OrgID,$C19) -> 9 | R19: =IF(OR(ISTEXT($E19),$E19=0),"N/A",Q19/$E19) -> 0.75
A20: =VLOOKUP(C20,'Control Panel'!$G$132:$K$171,5,FALSE) -> WF-1 | B20: =VLOOKUP(C20,'Control Panel'!$A$85:$F$124,2,FALSE) -> Larkshall Medical Centre | C20: F86664 | D20: 8471 | E20: 34 | F20: 32 | G20: =IF(OR(ISTEXT($E20),$E20=0),"N/A",F20/$E20) -> 0.9411764706 | H20: 31 | I20: =IF(OR(ISTEXT($E20),$E20=0),"N/A",H20/$E20) -> 0.9117647059 | J20: =IFERROR(ROUNDUP(IF($E20*0.95-H20>=0,$E20*0.95-H20,""),0),"") -> 2 | K20: 31 | L20: =IF(OR(ISTEXT($E20),$E20=0),"N/A",K20/$E20) -> 0.9117647059 | M20: =IFERROR(ROUNDUP(IF($E20*0.95-K20>=0,$E20*0.95-K20,""),0),"") -> 2 | N20: =SUMIFS(OFFSET(REL_D,,MATCH($N$5,IND,0)-1),REL_D,$C$5,OrgID,$C20) -> 31 | O20: =IF(OR(ISTEXT($E20),$E20=0),"N/A",N20/$E20) -> 0.9117647059 | P20: =IFERROR(ROUNDUP(IF($E20*0.95-N20>=0,$E20*0.95-N20,""),0),"") -> 2 | Q20: 31 | R20: =IF(OR(ISTEXT($E20),$E20=0),"N/A",Q20/$E20) -> 0.9117647059
A21: =VLOOKUP(C21,'Control Panel'!$G$132:$K$171,5,FALSE) -> WF-1 | B21: =VLOOKUP(C21,'Control Panel'!$A$85:$F$124,2,FALSE) -> The Microfaculty* | C21: F86638 | D21: 5199 | E21: 18 | F21: 13 | G21: 0.7222222222 | H21: 1 | I21: 0.05555555556 | J21: 17 | K21: 12 | L21: 0.6666666667 | M21: 6 | N21: =SUMIFS(OFFSET(REL_D,,MATCH($N$5,IND,0)-1),REL_D,$C$5,OrgID,$C21) -> 13 | O21: 0.7222222222 | P21: 5 | Q21: 14 | R21: 0.7777777778
A22: =VLOOKUP(C22,'Control Panel'!$G$132:$K$171,5,FALSE) -> WF-1 | B22: =VLOOKUP(C22,'Control Panel'!$A$85:$F$124,2,FALSE) -> The Penryhn Surgery | C22: F86005 | D22: 9510 | E22: 51 | F22: 49 | G22: 0.9607843137 | H22: 49 | I22: 0.9607843137 | K22: 49 | L22: 0.9607843137 | N22: =SUMIFS(OFFSET(REL_D,,MATCH($N$5,IND,0)-1),REL_D,$C$5,OrgID,$C22) -> 48 | O22: 0.9411764706 | P22: 1 | Q22: 48 | R22: 0.9411764706
A23: =VLOOKUP(C23,'Control Panel'!$G$132:$K$171,5,FALSE) -> WF-1 | B23: =VLOOKUP(C23,'Control Panel'!$A$85:$F$124,2,FALSE) -> Dr Shantir Practice | C23: F86626 | D23: 7021 | E23: 23 | F23: 20 | G23: 0.8695652174 | H23: 21 | I23: 0.9130434783 | J23: 1 | K23: 19 | L23: 0.8260869565 | M23: 3 | N23: =SUMIFS(OFFSET(REL_D,,MATCH($N$5,IND,0)-1),REL_D,$C$5,OrgID,$C23) -> 19 | O23: 0.8260869565 | P23: 3 | Q23: 20 | R23: 0.8695652174
A24: =VLOOKUP(C24,'Control Panel'!$G$132:$K$171,5,FALSE) -> WF-1 | B24: =VLOOKUP(C24,'Control Panel'!$A$85:$F$124,2,FALSE) -> Lime Tree & Sinnott Healthcare Ltd | C24: Y01839 | D24: 6236 | E24: 17 | F24: 15 | G24: 0.8823529412 | H24: 16 | I24: 0.9411764706 | J24: 1 | K24: 16 | L24: 0.9411764706 | M24: 1 | N24: =SUMIFS(OFFSET(REL_D,,MATCH($N$5,IND,0)-1),REL_D,$C$5,OrgID,$C24) -> 16 | O24: 0.9411764706 | P24: 1 | Q24: 16 | R24: 0.9411764706
A25: =VLOOKUP(C25,'Control Panel'!$G$132:$K$171,5,FALSE) -> WF-1 | B25: =VLOOKUP(C25,'Control Panel'!$A$85:$F$124,2,FALSE) -> The Bailey Practice | C25: F86689 | D25: 4395 | E25: 24 | F25: 22 | G25: 0.9166666667 | H25: 24 | I25: 1 | K25: 24 | L25: 1 | N25: =SUMIFS(OFFSET(REL_D,,MATCH($N$5,IND,0)-1),REL_D,$C$5,OrgID,$C25) -> 24 | O25: 1 | Q25: 23 | R25: 0.9583333333
A26: =VLOOKUP(C26,'Control Panel'!$G$132:$K$171,5,FALSE) -> WF-1 | B26: =VLOOKUP(C26,'Control Panel'!$A$85:$F$124,2,FALSE) -> Forest Surgery* | C26: F86026 | D26: 7223 | E26: 21 | F26: 17 | G26: 0.8095238095 | H26: 1 | I26: 0.04761904762 | J26: 19 | K26: 17 | L26: 0.8095238095 | M26: 3 | N26: =SUMIFS(OFFSET(REL_D,,MATCH($N$5,IND,0)-1),REL_D,$C$5,OrgID,$C26) -> 18 | O26: 0.8571428571 | P26: 2 | Q26: 17 | R26: 0.8095238095
A27: =VLOOKUP(C27,'Control Panel'!$G$132:$K$171,5,FALSE) -> WF-2 | B27: =VLOOKUP(C27,'Control Panel'!$A$85:$F$124,2,FALSE) -> Handsworth Medical Centre* | C27: F86004 | D27: 15970 | E27: 53 | F27: 50 | G27: 0.9433962264 | H27: 27 | I27: 0.5094339623 | J27: 24 | K27: 53 | L27: 1 | N27: =SUMIFS(OFFSET(REL_D,,MATCH($N$5,IND,0)-1),REL_D,$C$5,OrgID,$C27) -> 53 | O27: 1 | Q27: 52 | R27: 0.9811320755
A28: =VLOOKUP(C28,'Control Panel'!$G$132:$K$171,5,FALSE) -> WF-2 | B28: =VLOOKUP(C28,'Control Panel'!$A$85:$F$124,2,FALSE) -> Chingford Medical Practice | C28: Y01291 | D28: 9173 | E28: 25 | F28: 23 | G28: 0.92 | H28: 22 | I28: 0.88 | J28: 2 | K28: 22 | L28: 0.88 | M28: 2 | N28: =SUMIFS(OFFSET(REL_D,,MATCH($N$5,IND,0)-1),REL_D,$C$5,OrgID,$C28) -> 22 | O28: 0.88 | P28: 2 | Q28: 22 | R28: 0.88
A29: =VLOOKUP(C29,'Control Panel'!$G$132:$K$171,5,FALSE) -> WF-2 | B29: =VLOOKUP(C29,'Control Panel'!$A$85:$F$124,2,FALSE) -> Churchill Medical Centre | C29: F86627 | D29: 13283 | E29: 30 | F29: 29 | G29: 0.9666666667 | H29: 25 | I29: 0.8333333333 | J29: 4 | K29: 25 | L29: 0.8333333333 | M29: 4 | N29: =SUMIFS(OFFSET(REL_D,,MATCH($N$5,IND,0)-1),REL_D,$C$5,OrgID,$C29) -> 24 | O29: 0.8 | P29: 5 | Q29: 25 | R29: 0.8333333333
A30: =VLOOKUP(C30,'Control Panel'!$G$132:$K$171,5,FALSE) -> WF-2 | B30: =VLOOKUP(C30,'Control Panel'!$A$85:$F$124,2,FALSE) -> The Ridgeway Surgery | C30: F86078 | D30: 6869 | E30: 9 | F30: 9 | G30: 1 | H30: 9 | I30: 1 | K30: 9 | L30: 1 | N30: =SUMIFS(OFFSET(REL_D,,MATCH($N$5,IND,0)-1),REL_D,$C$5,OrgID,$C30) -> 9 | O30: 1 | Q30: 9 | R30: 1
A31: =VLOOKUP(C31,'Control Panel'!$G$132:$K$171,5,FALSE) -> WF-2 | B31: =VLOOKUP(C31,'Control Panel'!$A$85:$F$124,2,FALSE) -> Old Church Surgery | C31: F86616 | D31: 7996 | E31: 35 | F31: 30 | G31: 0.8571428571 | H31: 26 | I31: 0.7428571429 | J31: 8 | K31: 27 | L31: 0.7714285714 | M31: 7 | N31: =SUMIFS(OFFSET(REL_D,,MATCH($N$5,IND,0)-1),REL_D,$C$5,OrgID,$C31) -> 27 | O31: 0.7714285714 | P31: 7 | Q31: 27 | R31: 0.7714285714
A32: =VLOOKUP(C32,'Control Panel'!$G$132:$K$171,5,FALSE) -> WF-3 | B32: =VLOOKUP(C32,'Control Panel'!$A$85:$F$124,2,FALSE) -> The Manor Practice | C32: F86011 | D32: 9698 | E32: 22 | F32: 21 | G32: 0.9545454545 | H32: 18 | I32: 0.8181818182 | J32: 3 | K32: 18 | L32: 0.8181818182 | M32: 3 | N32: =SUMIFS(OFFSET(REL_D,,MATCH($N$5,IND,0)-1),REL_D,$C$5,OrgID,$C32) -> 18 | O32: 0.8181818182 | P32: 3 | Q32: 18 | R32: 0.8181818182
A33: =VLOOKUP(C33,'Control Panel'!$G$132:$K$171,5,FALSE) -> WF-3 | B33: =VLOOKUP(C33,'Control Panel'!$A$85:$F$124,2,FALSE) -> Sma Medical Centre | C33: F86038 | D33: 11105 | E33: 28 | F33: 25 | G33: 0.8928571429 | H33: 25 | I33: 0.8928571429 | J33: 2 | K33: 25 | L33: 0.8928571429 | M33: 2 | N33: =SUMIFS(OFFSET(REL_D,,MATCH($N$5,IND,0)-1),REL_D,$C$5,OrgID,$C33) -> 26 | O33: 0.9285714286 | P33: 1 | Q33: 24 | R33: 0.8571428571
A34: =VLOOKUP(C34,'Control Panel'!$G$132:$K$171,5,FALSE) -> WF-3 | B34: =VLOOKUP(C34,'Control Panel'!$A$85:$F$124,2,FALSE) -> Leyton Healthcare (Oliver Road)* | C34: F86074 | D34: 15092 | E34: 52 | F34: 42 | G34: 0.8076923077 | H34: 17 | I34: 0.3269230769 | J34: 33 | K34: 32 | L34: 0.6153846154 | M34: 18 | N34: =SUMIFS(OFFSET(REL_D,,MATCH($N$5,IND,0)-1),REL_D,$C$5,OrgID,$C34) -> 43 | O34: 0.8269230769 | P34: 7 | Q34: 43 | R34: 0.8269230769
A35: =VLOOKUP(C35,'Control Panel'!$G$132:$K$171,5,FALSE) -> WF-4 | B35: =VLOOKUP(C35,'Control Panel'!$A$85:$F$124,2,FALSE) -> The Allum Medical Centre | C35: F86036 | D35: 14732 | E35: 32 | F35: 30 | G35: 0.9375 | H35: 30 | I35: 0.9375 | J35: 1 | K35: 30 | L35: 0.9375 | M35: 1 | N35: =SUMIFS(OFFSET(REL_D,,MATCH($N$5,IND,0)-1),REL_D,$C$5,OrgID,$C35) -> 30 | O35: 0.9375 | P35: 1 | Q35: 30 | R35: 0.9375
A36: =VLOOKUP(C36,'Control Panel'!$G$132:$K$171,5,FALSE) -> WF-4 | B36: =VLOOKUP(C36,'Control Panel'!$A$85:$F$124,2,FALSE) -> Crawley Road Medical Centre | C36: F86044 | D36: 10802 | E36: 39 | F36: 33 | G36: 0.8461538462 | H36: 33 | I36: 0.8461538462 | J36: 5 | K36: 33 | L36: 0.8461538462 | M36: 5 | N36: =SUMIFS(OFFSET(REL_D,,MATCH($N$5,IND,0)-1),REL_D,$C$5,OrgID,$C36) -> 33 | O36: 0.8461538462 | P36: 5 | Q36: 32 | R36: 0.8205128205
A37: =VLOOKUP(C37,'Control Panel'!$G$132:$K$171,5,FALSE) -> WF-4 | B37: =VLOOKUP(C37,'Control Panel'!$A$85:$F$124,2,FALSE) -> Francis Road Medical Centre | C37: F86696 | D37: 6883 | E37: 21 | F37: 19 | G37: 0.9047619048 | H37: 17 | I37: 0.8095238095 | J37: 3 | K37: 17 | L37: 0.8095238095 | M37: 3 | N37: =SUMIFS(OFFSET(REL_D,,MATCH($N$5,IND,0)-1),REL_D,$C$5,OrgID,$C37) -> 17 | O37: 0.8095238095 | P37: 3 | Q37: 17 | R37: 0.8095238095
A38: =VLOOKUP(C38,'Control Panel'!$G$132:$K$171,5,FALSE) -> WF-4 | B38: =VLOOKUP(C38,'Control Panel'!$A$85:$F$124,2,FALSE) -> Hampton Medical Centre | C38: F86712 | D38: 3395 | E38: 7 | F38: 6 | G38: 0.8571428571 | H38: 6 | I38: 0.8571428571 | J38: 1 | K38: 6 | L38: 0.8571428571 | M38: 1 | N38: =SUMIFS(OFFSET(REL_D,,MATCH($N$5,IND,0)-1),REL_D,$C$5,OrgID,$C38) -> 6 | O38: 0.8571428571 | P38: 1 | Q38: 6 | R38: 0.8571428571
A39: =VLOOKUP(C39,'Control Panel'!$G$132:$K$171,5,FALSE) -> WF-4 | B39: =VLOOKUP(C39,'Control Panel'!$A$85:$F$124,2,FALSE) -> Lime Tree Surgery | C39: F86650 | D39: 8080 | E39: 20 | F39: 17 | G39: 0.85 | H39: 16 | I39: 0.8 | J39: 3 | K39: 16 | L39: 0.8 | M39: 3 | N39: =SUMIFS(OFFSET(REL_D,,MATCH($N$5,IND,0)-1),REL_D,$C$5,OrgID,$C39) -> 16 | O39: 0.8 | P39: 3 | Q39: 16 | R39: 0.8
A40: =VLOOKUP(C40,'Control Panel'!$G$132:$K$171,5,FALSE) -> WF-4 | B40: =VLOOKUP(C40,'Control Panel'!$A$85:$F$124,2,FALSE) -> The Lyndhurst Surgery | C40: F86088 | D40: 5027 | E40: 10 | F40: 8 | G40: 0.8 | H40: 9 | I40: 0.9 | J40: 1 | K40: 9 | L40: 0.9 | M40: 1 | N40: =SUMIFS(OFFSET(REL_D,,MATCH($N$5,IND,0)-1),REL_D,$C$5,OrgID,$C40) -> 9 | O40: 0.9 | P40: 1 | Q40: 9 | R40: 0.9
A41: =VLOOKUP(C41,'Control Panel'!$G$132:$K$171,5,FALSE) -> WF-4 | B41: =VLOOKUP(C41,'Control Panel'!$A$85:$F$124,2,FALSE) -> The Ecclesbourne Practice* | C41: F86018 | D41: 9966 | E41: 30 | F41: 27 | G41: 0.9 | H41: 2 | I41: 0.06666666667 | J41: 27 | K41: 25 | L41: 0.8333333333 | M41: 4 | N41: =SUMIFS(OFFSET(REL_D,,MATCH($N$5,IND,0)-1),REL_D,$C$5,OrgID,$C41) -> 26 | O41: 0.8666666667 | P41: 3 | Q41: 26 | R41: 0.8666666667
A42: =VLOOKUP(C42,'Control Panel'!$G$132:$K$171,5,FALSE) -> WF-5 | B42: =VLOOKUP(C42,'Control Panel'!$A$85:$F$124,2,FALSE) -> Green Man Medical Centre | C42: F86621 | D42: 6445 | E42: 24 | F42: 22 | G42: 0.9166666667 | H42: 21 | I42: 0.875 | J42: 2 | K42: 21 | L42: 0.875 | M42: 2 | N42: =SUMIFS(OFFSET(REL_D,,MATCH($N$5,IND,0)-1),REL_D,$C$5,OrgID,$C42) -> 21 | O42: 0.875 | P42: 2 | Q42: 20 | R42: 0.8333333333
A43: =VLOOKUP(C43,'Control Panel'!$G$132:$K$171,5,FALSE) -> WF-5 | B43: =VLOOKUP(C43,'Control Panel'!$A$85:$F$124,2,FALSE) -> High Road Surgery | C43: F86045 | D43: 2026 | E43: 6 | F43: 6 | G43: 1 | H43: 5 | I43: 0.8333333333 | J43: 1 | K43: 5 | L43: 0.8333333333 | M43: 1 | N43: =SUMIFS(OFFSET(REL_D,,MATCH($N$5,IND,0)-1),REL_D,$C$5,OrgID,$C43) -> 5 | O43: 0.8333333333 | P43: 1 | Q43: 5 | R43: 0.8333333333
A44: =VLOOKUP(C44,'Control Panel'!$G$132:$K$171,5,FALSE) -> WF-5 | B44: =VLOOKUP(C44,'Control Panel'!$A$85:$F$124,2,FALSE) -> Kiyani Medical Practice | C44: F86701 | D44: 3853 | E44: 11 | F44: 9 | G44: 0.8181818182 | H44: 8 | I44: 0.7272727273 | J44: 3 | K44: 8 | L44: 0.7272727273 | M44: 3 | N44: =SUMIFS(OFFSET(REL_D,,MATCH($N$5,IND,0)-1),REL_D,$C$5,OrgID,$C44) -> 9 | O44: 0.8181818182 | P44: 2 | Q44: 9 | R44: 0.8181818182
A45: =VLOOKUP(C45,'Control Panel'!$G$132:$K$171,5,FALSE) -> WF-5 | B45: =VLOOKUP(C45,'Control Panel'!$A$85:$F$124,2,FALSE) -> LL Medical Care (Agarwal & Agrwal Practice) | C45: F86625 | D45: 5882 | E45: 10 | F45: 8 | G45: 0.8 | H45: 8 | I45: 0.8 | J45: 2 | K45: 8 | L45: 0.8 | M45: 2 | N45: =SUMIFS(OFFSET(REL_D,,MATCH($N$5,IND,0)-1),REL_D,$C$5,OrgID,$C45) -> 8 | O45: 0.8 | P45: 2 | Q45: 8 | R45: 0.8
A46: =VLOOKUP(C46,'Control Panel'!$G$132:$K$171,5,FALSE) -> WF-5 | B46: =VLOOKUP(C46,'Control Panel'!$A$85:$F$124,2,FALSE) -> The Harrow Road Surgery | C46: F86666 | D46: 14983 | E46: 46 | F46: 41 | G46: 0.8913043478 | H46: 39 | I46: 0.847826087 | J46: 5 | K46: 39 | L46: 0.847826087 | M46: 5 | N46: =SUMIFS(OFFSET(REL_D,,MATCH($N$5,IND,0)-1),REL_D,$C$5,OrgID,$C46) -> 40 | O46: 0.8695652174 | P46: 4 | Q46: 40 | R46: 0.8695652174
A47: =VLOOKUP(C47,'Control Panel'!$G$132:$K$171,5,FALSE) -> WF-5 | B47: =VLOOKUP(C47,'Control Panel'!$A$85:$F$124,2,FALSE) -> The Langthorne Sharma Family Practice | C47: F86705 | D47: 3512 | E47: 3 | F47: 3 | G47: 1 | H47: 3 | I47: 1 | K47: 3 | L47: 1 | N47: =SUMIFS(OFFSET(REL_D,,MATCH($N$5,IND,0)-1),REL_D,$C$5,OrgID,$C47) -> 3 | O47: 1 | Q47: 3 | R47: 1
A48: =VLOOKUP(C48,'Control Panel'!$G$132:$K$171,5,FALSE) -> WF-6 | B48: =VLOOKUP(C48,'Control Panel'!$A$85:$F$124,2,FALSE) -> Addison Road Medical Practice | C48: F86607 | D48: 15547 | E48: 48 | F48: 44 | G48: 0.9166666667 | H48: 41 | I48: 0.8541666667 | J48: 5 | K48: 41 | L48: 0.8541666667 | M48: 5 | N48: =SUMIFS(OFFSET(REL_D,,MATCH($N$5,IND,0)-1),REL_D,$C$5,OrgID,$C48) -> 41 | O48: 0.8541666667 | P48: 5 | Q48: 41 | R48: 0.8541666667
A49: =VLOOKUP(C49,'Control Panel'!$G$132:$K$171,5,FALSE) -> WF-6 | B49: =VLOOKUP(C49,'Control Panel'!$A$85:$F$124,2,FALSE) -> Claremont Medical Centre | C49: F86708 | D49: 2782 | E49: 6 | F49: 5 | G49: 0.8333333333 | H49: 5 | I49: 0.8333333333 | J49: 1 | K49: 5 | L49: 0.8333333333 | M49: 1 | N49: =SUMIFS(OFFSET(REL_D,,MATCH($N$5,IND,0)-1),REL_D,$C$5,OrgID,$C49) -> 5 | O49: 0.8333333333 | P49: 1 | Q49: 5 | R49: 0.8333333333
A50: =VLOOKUP(C50,'Control Panel'!$G$132:$K$171,5,FALSE) -> WF-6 | B50: =VLOOKUP(C50,'Control Panel'!$A$85:$F$124,2,FALSE) -> The Firs | C50: F86001 | D50: 7729 | E50: 20 | F50: 18 | G50: 0.9 | H50: 15 | I50: 0.75 | J50: 4 | K50: 15 | L50: 0.75 | M50: 4 | N50: =SUMIFS(OFFSET(REL_D,,MATCH($N$5,IND,0)-1),REL_D,$C$5,OrgID,$C50) -> 15 | O50: 0.75 | P50: 4 | Q50: 16 | R50: 0.8
A51: =VLOOKUP(C51,'Control Panel'!$G$132:$K$171,5,FALSE) -> WF-6 | B51: =VLOOKUP(C51,'Control Panel'!$A$85:$F$124,2,FALSE) -> Dr Dhital Practice | C51: F86086 | D51: 6265 | E51: 28 | F51: 24 | G51: 0.8571428571 | H51: 21 | I51: 0.75 | J51: 6 | K51: 21 | L51: 0.75 | M51: 6 | N51: =SUMIFS(OFFSET(REL_D,,MATCH($N$5,IND,0)-1),REL_D,$C$5,OrgID,$C51) -> 21 | O51: 0.75 | P51: 6 | Q51: 21 | R51: 0.75
A52: =VLOOKUP(C52,'Control Panel'!$G$132:$K$171,5,FALSE) -> WF-6 | B52: =VLOOKUP(C52,'Control Panel'!$A$85:$F$124,2,FALSE) -> Waltham Forest Community & Family Health Services Ltd | C52: F86644 | D52: 9254 | E52: 21 | F52: 20 | G52: 0.9523809524 | H52: 18 | I52: 0.8571428571 | J52: 2 | K52: 20 | L52: 0.9523809524 | N52: =SUMIFS(OFFSET(REL_D,,MATCH($N$5,IND,0)-1),REL_D,$C$5,OrgID,$C52) -> 20 | O52: 0.9523809524 | Q52: 20 | R52: 0.9523809524
A53: =VLOOKUP(C53,'Control Panel'!$G$132:$K$171,5,FALSE) -> WF-7 | B53: =VLOOKUP(C53,'Control Panel'!$A$85:$F$124,2,FALSE) -> Seymour Medical centre | C53: F86006 | D53: 6825 | E53: 19 | F53: 17 | G53: 0.8947368421 | H53: 17 | I53: 0.8947368421 | J53: 2 | K53: 17 | L53: 0.8947368421 | M53: 2 | N53: =SUMIFS(OFFSET(REL_D,,MATCH($N$5,IND,0)-1),REL_D,$C$5,OrgID,$C53) -> 16 | O53: 0.8421052632 | P53: 3 | Q53: 17 | R53: 0.8947368421
A54: =VLOOKUP(C54,'Control Panel'!$G$132:$K$171,5,FALSE) -> WF-7 | B54: =VLOOKUP(C54,'Control Panel'!$A$85:$F$124,2,FALSE) -> Queens Road Medical Centre | C54: F86030 | D54: 8161 | E54: 22 | F54: 21 | G54: 0.9545454545 | H54: 21 | I54: 0.9545454545 | K54: 21 | L54: 0.9545454545 | N54: =SUMIFS(OFFSET(REL_D,,MATCH($N$5,IND,0)-1),REL_D,$C$5,OrgID,$C54) -> 21 | O54: 0.9545454545 | Q54: 21 | R54: 0.9545454545
A55: =VLOOKUP(C55,'Control Panel'!$G$132:$K$171,5,FALSE) -> WF-7 | B55: =VLOOKUP(C55,'Control Panel'!$A$85:$F$124,2,FALSE) -> The Grove Road Medical Centre | C55: F86062 | D55: 7155 | E55: 8 | F55: 6 | G55: 0.75 | H55: 5 | I55: 0.625 | J55: 3 | K55: 5 | L55: 0.625 | M55: 3 | N55: =SUMIFS(OFFSET(REL_D,,MATCH($N$5,IND,0)-1),REL_D,$C$5,OrgID,$C55) -> 5 | O55: 0.625 | P55: 3 | Q55: 5 | R55: 0.625
A56: =VLOOKUP(C56,'Control Panel'!$G$132:$K$171,5,FALSE) -> WF-7 | B56: =VLOOKUP(C56,'Control Panel'!$A$85:$F$124,2,FALSE) -> Higham Hill Medical Centre | C56: F86679 | D56: 6372 | E56: 27 | F56: 25 | G56: 0.9259259259 | H56: 22 | I56: 0.8148148148 | J56: 4 | K56: 22 | L56: 0.8148148148 | M56: 4 | N56: =SUMIFS(OFFSET(REL_D,,MATCH($N$5,IND,0)-1),REL_D,$C$5,OrgID,$C56) -> 22 | O56: 0.8148148148 | P56: 4 | Q56: 22 | R56: 0.8148148148
A57: =VLOOKUP(C57,'Control Panel'!$G$132:$K$171,5,FALSE) -> WF-7 | B57: =VLOOKUP(C57,'Control Panel'!$A$85:$F$124,2,FALSE) -> St James Medical Practice Ltd | C57: F86058 | D57: 16561 | E57: 69 | F57: 56 | G57: 0.8115942029 | H57: 53 | I57: 0.768115942 | J57: 13 | K57: 53 | L57: 0.768115942 | M57: 13 | N57: =SUMIFS(OFFSET(REL_D,,MATCH($N$5,IND,0)-1),REL_D,$C$5,OrgID,$C57) -> 54 | O57: 0.7826086957 | P57: 12 | Q57: 53 | R57: 0.768115942

Sheet Patients becoming 5y
D2: Waltham Forest Childhood Immunisations Dashboard: Metric Details
B3: =VLOOKUP(C5,'Control Panel'!Y49:Z60,2,FALSE) ->  | D3: Patients becoming 5y | F3: =E15 -> 950
B4: 2020-02-01
C5: March 2022 | D5: All Patients | E5: (03) 5 YEAR COHORT | F5: (03.01) DTaP/IPV/Hib or DTaP/IPV/Hib/HepB | G5: DTaP/IPV/Hib(%) | H5: (03.02) MMR (Primary) | I5: MMR (Primary)(%) | J5: (03.03) DTaP/IPV (Booster) | K5: DTaP/IPV (Booster)(%) | L5: Patients required to achieve NHSE Target (90%) | M5: (03.05) MMR (Booster) | N5: MMR (Booster)(%) | O5: Patients required to achieve NHSE Target (90%) | P5: (03.04) HiB/Men C | Q5: HiB/Men C(%)
B6: Home | D6: Listsize | E6: Patients becoming 5y | F6: DTaP/IPV/Hib | G6: DTaP/IPV/Hib(%) | H6: MMR (Primary) | I6: MMR (Primary)(%) | J6: DTaP/IPV (Booster) | K6: DTaP/IPV (Booster)(%) | L6: Patients required to achieve CCG Target (95%) | M6: MMR (Booster) | N6: MMR (Booster)(%) | O6: Patients required to achieve CCG Target (95%) | P6: HiB/Men C | Q6: HiB/Men C(%)
A7: Cluster
A8: WF-1 | B8: Chingford/ Walthamstow | D8: =SUM(IF($A8=$A$19:$A$57,D$19:D$57)) -> 51956 | E8: =SUM(IF($A8=$A$19:$A$57,E$19:E$57)) -> 162 | F8: =SUM(IF($A8=$A$19:$A$57,F$19:F$57)) -> 134 | G8: =IF(OR(ISTEXT($E8),$E8=0),"N/A",F8/$E8) -> 0.8271604938 | H8: =SUM(IF($A8=$A$19:$A$57,H$19:H$57)) -> 117 | I8: =IF(OR(ISTEXT($E8),$E8=0),"N/A",H8/$E8) -> 0.7222222222 | J8: =SUM(IF($A8=$A$19:$A$57,J$19:J$57)) -> 116 | K8: =IF(OR(ISTEXT($E8),$E8=0),"N/A",J8/$E8) -> 0.7160493827 | M8: =SUM(IF($A8=$A$19:$A$57,M$19:M$57)) -> 94 | N8: =IF(OR(ISTEXT($E8),$E8=0),"N/A",M8/$E8) -> 0.5802469136 | P8: =SUM(IF($A8=$A$19:$A$57,P$19:P$57)) -> 134 | Q8: =IF(OR(ISTEXT($E8),$E8=0),"N/A",P8/$E8) -> 0.8271604938
A9: WF-2 | B9: Chingford E4 | D9: =SUM(IF($A9=$A$19:$A$57,D$19:D$57)) -> 53291 | E9: =SUM(IF($A9=$A$19:$A$57,E$19:E$57)) -> 163 | F9: =SUM(IF($A9=$A$19:$A$57,F$19:F$57)) -> 137 | G9: =IF(OR(ISTEXT($E9),$E9=0),"N/A",F9/$E9) -> 0.8404907975 | H9: =SUM(IF($A9=$A$19:$A$57,H$19:H$57)) -> 135 | I9: =IF(OR(ISTEXT($E9),$E9=0),"N/A",H9/$E9) -> 0.8282208589 | J9: =SUM(IF($A9=$A$19:$A$57,J$19:J$57)) -> 141 | K9: =IF(OR(ISTEXT($E9),$E9=0),"N/A",J9/$E9) -> 0.8650306748 | M9: =SUM(IF($A9=$A$19:$A$57,M$19:M$57)) -> 94 | N9: =IF(OR(ISTEXT($E9),$E9=0),"N/A",M9/$E9) -> 0.5766871166 | P9: =SUM(IF($A9=$A$19:$A$57,P$19:P$57)) -> 139 | Q9: =IF(OR(ISTEXT($E9),$E9=0),"N/A",P9/$E9) -> 0.8527607362
A10: WF-3 | B10: Leyton Collaborative | D10: =SUM(IF($A10=$A$19:$A$57,D$19:D$57)) -> 35895 | E10: =SUM(IF($A10=$A$19:$A$57,E$19:E$57)) -> 94 | F10: =SUM(IF($A10=$A$19:$A$57,F$19:F$57)) -> 67 | G10: 0.7127659574 | H10: =SUM(IF($A10=$A$19:$A$57,H$19:H$57)) -> 67 | I10: 0.7127659574 | J10: =SUM(IF($A10=$A$19:$A$57,J$19:J$57)) -> 64 | K10: 0.6808510638 | M10: =SUM(IF($A10=$A$19:$A$57,M$19:M$57)) -> 33 | N10: 0.3510638298 | P10: =SUM(IF($A10=$A$19:$A$57,P$19:P$57)) -> 67 | Q10: 0.7127659574
A11: WF-4 | B11: Forest Integrated Health | D11: =SUM(IF($A11=$A$19:$A$57,D$19:D$57)) -> 58885 | E11: =SUM(IF($A11=$A$19:$A$57,E$19:E$57)) -> 153 | F11: =SUM(IF($A11=$A$19:$A$57,F$19:F$57)) -> 135 | G11: 0.8823529412 | H11: =SUM(IF($A11=$A$19:$A$57,H$19:H$57)) -> 121 | I11: 0.7908496732 | J11: =SUM(IF($A11=$A$19:$A$57,J$19:J$57)) -> 110 | K11: 0.7189542484 | M11: =SUM(IF($A11=$A$19:$A$57,M$19:M$57)) -> 98 | N11: 0.6405228758 | P11: =SUM(IF($A11=$A$19:$A$57,P$19:P$57)) -> 133 | Q11: 0.8692810458
A12: WF-5 | B12: South Leytonstone | D12: =SUM(IF($A12=$A$19:$A$57,D$19:D$57)) -> 36701 | E12: =SUM(IF($A12=$A$19:$A$57,E$19:E$57)) -> 97 | F12: =SUM(IF($A12=$A$19:$A$57,F$19:F$57)) -> 86 | G12: 0.8865979381 | H12: =SUM(IF($A12=$A$19:$A$57,H$19:H$57)) -> 82 | I12: 0.8453608247 | J12: =SUM(IF($A12=$A$19:$A$57,J$19:J$57)) -> 59 | K12: 0.6082474227 | M12: =SUM(IF($A12=$A$19:$A$57,M$19:M$57)) -> 75 | N12: 0.7731958763 | P12: =SUM(IF($A12=$A$19:$A$57,P$19:P$57)) -> 81 | Q12: 0.8350515464
A13: WF-6 | B13: Central Walthamstow | D13: =SUM(IF($A13=$A$19:$A$57,D$19:D$57)) -> 41577 | E13: =SUM(IF($A13=$A$19:$A$57,E$19:E$57)) -> 141 | F13: =SUM(IF($A13=$A$19:$A$57,F$19:F$57)) -> 130 | G13: 0.9219858156 | H13: =SUM(IF($A13=$A$19:$A$57,H$19:H$57)) -> 128 | I13: 0.9078014184 | J13: =SUM(IF($A13=$A$19:$A$57,J$19:J$57)) -> 113 | K13: 0.8014184397 | M13: =SUM(IF($A13=$A$19:$A$57,M$19:M$57)) -> 119 | N13: 0.8439716312 | P13: =SUM(IF($A13=$A$19:$A$57,P$19:P$57)) -> 129 | Q13: 0.914893617
A14: WF-7 | B14: Walthamstow West | D14: =SUM(IF($A14=$A$19:$A$57,D$19:D$57)) -> 45074 | E14: =SUM(IF($A14=$A$19:$A$57,E$19:E$57)) -> 140 | F14: =SUM(IF($A14=$A$19:$A$57,F$19:F$57)) -> 123 | G14: 0.8785714286 | H14: =SUM(IF($A14=$A$19:$A$57,H$19:H$57)) -> 121 | I14: 0.8642857143 | J14: =SUM(IF($A14=$A$19:$A$57,J$19:J$57)) -> 90 | K14: 0.6428571429 | M14: =SUM(IF($A14=$A$19:$A$57,M$19:M$57)) -> 92 | N14: 0.6571428571 | P14: =SUM(IF($A14=$A$19:$A$57,P$19:P$57)) -> 117 | Q14: 0.8357142857
A15: Total | D15: =SUM(D8:D14) -> 323379 | E15: =SUM(E8:E14) -> 950 | F15: =SUM(F8:F14) -> 812 | G15: 0.8547368421 | H15: =SUM(H8:H14) -> 771 | I15: 0.8115789474 | J15: =SUM(J8:J14) -> 693 | K15: 0.7294736842 | M15: =SUM(M8:M14) -> 605 | N15: 0.6368421053 | P15: =SUM(P8:P14) -> 800 | Q15: 0.8421052632
A16: Minimum and Maximum % | F16: Min | G16: Max | H16: Min | I16: Max | J16: Min | K16: Max | M16: Min | N16: Max | P16: Min | Q16: Max
F17: =SMALL(G19:G51,COUNTIF(G19:G51,0)+1) -> 0.3636363636 | G17: =MAX(G19:G51) -> 1 | H17: =SMALL(I19:I51,COUNTIF(I19:I51,0)+1) -> 0.1 | I17: =MAX(I19:I51) -> 1 | J17: =SMALL(K19:K51,COUNTIF(K19:K51,0)+1) -> 0.3829787234 | K17: =MAX(K19:K51) -> 1 | M17: =SMALL(N19:N51,COUNTIF(N19:N51,0)+1) -> 0.03448275862 | N17: =MAX(N19:N51) -> 1 | P17: =SMALL(Q19:Q51,COUNTIF(Q19:Q51,0)+1) -> 0.4545454545 | Q17: =MAX(Q19:Q51) -> 1
A18: Practices | B18: * SystmOne Practices - No Data
A19: =VLOOKUP(C19,'Control Panel'!$G$132:$K$171,5,FALSE) -> WF-1 | B19: =VLOOKUP(C19,'Control Panel'!$A$85:$F$124,2,FALSE) -> Kings Head Medical Practice | C19: F86700 | D19: =SUMIFS(OFFSET(REL_D,,MATCH($D$5,IND,0)-1),REL_D,$C$5,OrgID,$C19) -> 3901 | E19: =SUMIFS(OFFSET(REL_D,,MATCH($E$5,IND,0)-1),REL_D,$C$5,OrgID,$C19) -> 13 | F19: =SUMIFS(OFFSET(REL_D,,MATCH($F$5,IND,0)-1),REL_D,$C$5,OrgID,$C19) -> 12 | G19: =IF(OR(ISTEXT($E19),$E19=0),"N/A",F19/$E19) -> 0.9230769231 | H19: =SUMIFS(OFFSET(REL_D,,MATCH($H$5,IND,0)-1),REL_D,$C$5,OrgID,$C19) -> 10 | I19: =IF(OR(ISTEXT($E19),$E19=0),"N/A",H19/$E19) -> 0.7692307692 | J19: =SUMIFS(OFFSET(REL_D,,MATCH($J$5,IND,0)-1),REL_D,$C$5,OrgID,$C19) -> 9 | K19: =IF(OR(ISTEXT($E19),$E19=0),"N/A",J19/$E19) -> 0.6923076923 | L19: =IFERROR(ROUNDUP(IF($E19*0.95-J19>=0,$E19*0.95-J19,""),0),"") -> 4 | M19: =SUMIFS(OFFSET(REL_D,,MATCH($M$5,IND,0)-1),REL_D,$C$5,OrgID,$C19) -> 9 | N19: =IF(OR(ISTEXT($E19),$E19=0),"N/A",M19/$E19) -> 0.6923076923 | O19: =IFERROR(ROUNDUP(IF($E19*0.95-M19>=0,$E19*0.95-M19,""),0),"") -> 4 | P19: =SUMIFS(OFFSET(REL_D,,MATCH($P$5,IND,0)-1),REL_D,$C$5,OrgID,$C19) -> 11 | Q19: =IF(OR(ISTEXT($E19),$E19=0),"N/A",P19/$E19) -> 0.8461538462
A20: =VLOOKUP(C20,'Control Panel'!$G$132:$K$171,5,FALSE) -> WF-1 | B20: =VLOOKUP(C20,'Control Panel'!$A$85:$F$124,2,FALSE) -> Larkshall Medical Centre | C20: F86664 | D20: 8471 | E20: 23 | F20: 23 | G20: =IF(OR(ISTEXT($E20),$E20=0),"N/A",F20/$E20) -> 1 | H20: 22 | I20: =IF(OR(ISTEXT($E20),$E20=0),"N/A",H20/$E20) -> 0.9565217391 | J20: 20 | K20: =IF(OR(ISTEXT($E20),$E20=0),"N/A",J20/$E20) -> 0.8695652174 | L20: =IFERROR(ROUNDUP(IF($E20*0.95-J20>=0,$E20*0.95-J20,""),0),"") -> 2 | M20: =SUMIFS(OFFSET(REL_D,,MATCH($M$5,IND,0)-1),REL_D,$C$5,OrgID,$C20) -> 20 | N20: =IF(OR(ISTEXT($E20),$E20=0),"N/A",M20/$E20) -> 0.8695652174 | O20: =IFERROR(ROUNDUP(IF($E20*0.95-M20>=0,$E20*0.95-M20,""),0),"") -> 2 | P20: 22 | Q20: =IF(OR(ISTEXT($E20),$E20=0),"N/A",P20/$E20) -> 0.9565217391
A21: =VLOOKUP(C21,'Control Panel'!$G$132:$K$171,5,FALSE) -> WF-1 | B21: =VLOOKUP(C21,'Control Panel'!$A$85:$F$124,2,FALSE) -> The Microfaculty* | C21: F86638 | D21: 5199 | E21: 20 | F21: 14 | G21: 0.7 | H21: 2 | I21: 0.1 | J21: 9 | K21: 0.45 | L21: 10 | M21: =SUMIFS(OFFSET(REL_D,,MATCH($M$5,IND,0)-1),REL_D,$C$5,OrgID,$C21) -> 1 | N21: 0.05 | O21: 18 | P21: 16 | Q21: 0.8
A22: =VLOOKUP(C22,'Control Panel'!$G$132:$K$171,5,FALSE) -> WF-1 | B22: =VLOOKUP(C22,'Control Panel'!$A$85:$F$124,2,FALSE) -> The Penryhn Surgery | C22: F86005 | D22: 9510 | E22: 30 | F22: 27 | G22: 0.9 | H22: 26 | I22: 0.8666666667 | J22: 22 | K22: =IF(OR(ISTEXT($E22),$E22=0),"N/A",J22/$E22) -> 0.7333333333 | L22: 7 | M22: =SUMIFS(OFFSET(REL_D,,MATCH($M$5,IND,0)-1),REL_D,$C$5,OrgID,$C22) -> 23 | N22: 0.7666666667 | O22: 6 | P22: 27 | Q22: 0.9
A23: =VLOOKUP(C23,'Control Panel'!$G$132:$K$171,5,FALSE) -> WF-1 | B23: =VLOOKUP(C23,'Control Panel'!$A$85:$F$124,2,FALSE) -> Dr Shantir Practice | C23: F86626 | D23: 7021 | E23: 13 | F23: 12 | G23: 0.9230769231 | H23: 12 | I23: 0.9230769231 | J23: 12 | K23: 0.9230769231 | L23: 1 | M23: =SUMIFS(OFFSET(REL_D,,MATCH($M$5,IND,0)-1),REL_D,$C$5,OrgID,$C23) -> 12 | N23: 0.9230769231 | O23: 1 | P23: 12 | Q23: 0.9230769231
A24: =VLOOKUP(C24,'Control Panel'!$G$132:$K$171,5,FALSE) -> WF-1 | B24: =VLOOKUP(C24,'Control Panel'!$A$85:$F$124,2,FALSE) -> Lime Tree & Sinnott Healthcare Ltd | C24: Y01839 | D24: 6236 | E24: 23 | F24: 20 | G24: 0.8695652174 | H24: 19 | I24: 0.8260869565 | J24: 12 | K24: 0.5217391304 | L24: 10 | M24: =SUMIFS(OFFSET(REL_D,,MATCH($M$5,IND,0)-1),REL_D,$C$5,OrgID,$C24) -> 11 | N24: 0.4782608696 | O24: 11 | P24: 18 | Q24: 0.7826086957
A25: =VLOOKUP(C25,'Control Panel'!$G$132:$K$171,5,FALSE) -> WF-1 | B25: =VLOOKUP(C25,'Control Panel'!$A$85:$F$124,2,FALSE) -> The Bailey Practice | C25: F86689 | D25: 4395 | E25: 18 | F25: 18 | G25: 1 | H25: 18 | I25: 1 | J25: 18 | K25: 1 | M25: =SUMIFS(OFFSET(REL_D,,MATCH($M$5,IND,0)-1),REL_D,$C$5,OrgID,$C25) -> 18 | N25: 1 | P25: 18 | Q25: 1
A26: =VLOOKUP(C26,'Control Panel'!$G$132:$K$171,5,FALSE) -> WF-1 | B26: =VLOOKUP(C26,'Control Panel'!$A$85:$F$124,2,FALSE) -> Forest Surgery* | C26: F86026 | D26: 7223 | E26: 22 | F26: 8 | G26: 0.3636363636 | H26: 8 | I26: 0.3636363636 | J26: 14 | K26: 0.6363636364 | L26: 7 | M26: =SUMIFS(OFFSET(REL_D,,MATCH($M$5,IND,0)-1),REL_D,$C$5,OrgID,$C26) -> 0 | N26: 0 | O26: 21 | P26: 10 | Q26: 0.4545454545
A27: =VLOOKUP(C27,'Control Panel'!$G$132:$K$171,5,FALSE) -> WF-2 | B27: =VLOOKUP(C27,'Control Panel'!$A$85:$F$124,2,FALSE) -> Handsworth Medical Centre* | C27: F86004 | D27: 15970 | E27: 58 | F27: 37 | G27: 0.6379310345 | H27: 36 | I27: 0.6206896552 | J27: 47 | K27: 0.8103448276 | L27: 9 | M27: =SUMIFS(OFFSET(REL_D,,MATCH($M$5,IND,0)-1),REL_D,$C$5,OrgID,$C27) -> 2 | N27: 0.03448275862 | O27: 54 | P27: 41 | Q27: 0.7068965517
A28: =VLOOKUP(C28,'Control Panel'!$G$132:$K$171,5,FALSE) -> WF-2 | B28: =VLOOKUP(C28,'Control Panel'!$A$85:$F$124,2,FALSE) -> Chingford Medical Practice | C28: Y01291 | D28: 9173 | E28: 35 | F28: 33 | G28: 0.9428571429 | H28: 33 | I28: 0.9428571429 | J28: 33 | K28: 0.9428571429 | L28: 1 | M28: =SUMIFS(OFFSET(REL_D,,MATCH($M$5,IND,0)-1),REL_D,$C$5,OrgID,$C28) -> 32 | N28: 0.9142857143 | O28: 2 | P28: 34 | Q28: 0.9714285714
A29: =VLOOKUP(C29,'Control Panel'!$G$132:$K$171,5,FALSE) -> WF-2 | B29: =VLOOKUP(C29,'Control Panel'!$A$85:$F$124,2,FALSE) -> Churchill Medical Centre | C29: F86627 | D29: 13283 | E29: 30 | F29: 30 | G29: 1 | H29: 30 | I29: 1 | J29: 27 | K29: 0.9 | L29: 2 | M29: =SUMIFS(OFFSET(REL_D,,MATCH($M$5,IND,0)-1),REL_D,$C$5,OrgID,$C29) -> 27 | N29: 0.9 | O29: 2 | P29: 30 | Q29: 1
A30: =VLOOKUP(C30,'Control Panel'!$G$132:$K$171,5,FALSE) -> WF-2 | B30: =VLOOKUP(C30,'Control Panel'!$A$85:$F$124,2,FALSE) -> The Ridgeway Surgery | C30: F86078 | D30: 6869 | E30: 13 | F30: 13 | G30: 1 | H30: 13 | I30: 1 | J30: 11 | K30: 0.8461538462 | L30: 2 | M30: =SUMIFS(OFFSET(REL_D,,MATCH($M$5,IND,0)-1),REL_D,$C$5,OrgID,$C30) -> 11 | N30: 0.8461538462 | O30: 2 | P30: 12 | Q30: 0.9230769231
A31: =VLOOKUP(C31,'Control Panel'!$G$132:$K$171,5,FALSE) -> WF-2 | B31: =VLOOKUP(C31,'Control Panel'!$A$85:$F$124,2,FALSE) -> Old Church Surgery | C31: F86616 | D31: 7996 | E31: 27 | F31: 24 | G31: 0.8888888889 | H31: 23 | I31: 0.8518518519 | J31: 23 | K31: 0.8518518519 | L31: 3 | M31: =SUMIFS(OFFSET(REL_D,,MATCH($M$5,IND,0)-1),REL_D,$C$5,OrgID,$C31) -> 22 | N31: 0.8148148148 | O31: 4 | P31: 22 | Q31: 0.8148148148
A32: =VLOOKUP(C32,'Control Panel'!$G$132:$K$171,5,FALSE) -> WF-3 | B32: =VLOOKUP(C32,'Control Panel'!$A$85:$F$124,2,FALSE) -> The Manor Practice | C32: F86011 | D32: 9698 | E32: 18 | F32: 16 | G32: 0.8888888889 | H32: 15 | I32: 0.8333333333 | J32: 11 | K32: 0.6111111111 | L32: 7 | M32: =SUMIFS(OFFSET(REL_D,,MATCH($M$5,IND,0)-1),REL_D,$C$5,OrgID,$C32) -> 12 | N32: 0.6666666667 | O32: 6 | P32: 15 | Q32: 0.8333333333
A33: =VLOOKUP(C33,'Control Panel'!$G$132:$K$171,5,FALSE) -> WF-3 | B33: =VLOOKUP(C33,'Control Panel'!$A$85:$F$124,2,FALSE) -> Sma Medical Centre | C33: F86038 | D33: 11105 | E33: 23 | F33: 22 | G33: 0.9565217391 | H33: 22 | I33: 0.9565217391 | J33: 20 | K33: 0.8695652174 | L33: 2 | M33: =SUMIFS(OFFSET(REL_D,,MATCH($M$5,IND,0)-1),REL_D,$C$5,OrgID,$C33) -> 21 | N33: 0.9130434783 | O33: 1 | P33: 21 | Q33: 0.9130434783
A34: =VLOOKUP(C34,'Control Panel'!$G$132:$K$171,5,FALSE) -> WF-3 | B34: =VLOOKUP(C34,'Control Panel'!$A$85:$F$124,2,FALSE) -> Leyton Healthcare (Oliver Road)* | C34: F86074 | D34: 15092 | E34: 53 | F34: 29 | G34: 0.5471698113 | H34: 30 | I34: 0.5660377358 | J34: 33 | K34: 0.6226415094 | L34: 18 | M34: =SUMIFS(OFFSET(REL_D,,MATCH($M$5,IND,0)-1),REL_D,$C$5,OrgID,$C34) -> 0 | N34: 0 | O34: 51 | P34: 31 | Q34: 0.5849056604
A35: =VLOOKUP(C35,'Control Panel'!$G$132:$K$171,5,FALSE) -> WF-4 | B35: =VLOOKUP(C35,'Control Panel'!$A$85:$F$124,2,FALSE) -> The Allum Medical Centre | C35: F86036 | D35: 14732 | E35: 41 | F35: 41 | G35: 1 | H35: 40 | I35: 0.9756097561 | J35: 37 | K35: 0.9024390244 | L35: 2 | M35: =SUMIFS(OFFSET(REL_D,,MATCH($M$5,IND,0)-1),REL_D,$C$5,OrgID,$C35) -> 37 | N35: 0.9024390244 | O35: 2 | P35: 39 | Q35: 0.9512195122
A36: =VLOOKUP(C36,'Control Panel'!$G$132:$K$171,5,FALSE) -> WF-4 | B36: =VLOOKUP(C36,'Control Panel'!$A$85:$F$124,2,FALSE) -> Crawley Road Medical Centre | C36: F86044 | D36: 10802 | E36: 30 | F36: 24 | G36: 0.8 | H36: 22 | I36: 0.7333333333 | J36: 16 | K36: 0.5333333333 | L36: 13 | M36: =SUMIFS(OFFSET(REL_D,,MATCH($M$5,IND,0)-1),REL_D,$C$5,OrgID,$C36) -> 17 | N36: 0.5666666667 | O36: 12 | P36: 22 | Q36: 0.7333333333
A37: =VLOOKUP(C37,'Control Panel'!$G$132:$K$171,5,FALSE) -> WF-4 | B37: =VLOOKUP(C37,'Control Panel'!$A$85:$F$124,2,FALSE) -> Francis Road Medical Centre | C37: F86696 | D37: 6883 | E37: 16 | F37: 15 | G37: 0.9375 | H37: 15 | I37: 0.9375 | J37: 11 | K37: 0.6875 | L37: 5 | M37: =SUMIFS(OFFSET(REL_D,,MATCH($M$5,IND,0)-1),REL_D,$C$5,OrgID,$C37) -> 11 | N37: 0.6875 | O37: 5 | P37: 15 | Q37: 0.9375
A38: =VLOOKUP(C38,'Control Panel'!$G$132:$K$171,5,FALSE) -> WF-4 | B38: =VLOOKUP(C38,'Control Panel'!$A$85:$F$124,2,FALSE) -> Hampton Medical Centre | C38: F86712 | D38: 3395 | E38: 6 | F38: 6 | G38: 1 | H38: 6 | I38: 1 | J38: 6 | K38: 1 | M38: =SUMIFS(OFFSET(REL_D,,MATCH($M$5,IND,0)-1),REL_D,$C$5,OrgID,$C38) -> 6 | N38: 1 | P38: 6 | Q38: 1
A39: =VLOOKUP(C39,'Control Panel'!$G$132:$K$171,5,FALSE) -> WF-4 | B39: =VLOOKUP(C39,'Control Panel'!$A$85:$F$124,2,FALSE) -> Lime Tree Surgery | C39: F86650 | D39: 8080 | E39: 18 | F39: 17 | G39: 0.9444444444 | H39: 16 | I39: 0.8888888889 | J39: 13 | K39: 0.7222222222 | L39: 5 | M39: =SUMIFS(OFFSET(REL_D,,MATCH($M$5,IND,0)-1),REL_D,$C$5,OrgID,$C39) -> 13 | N39: 0.7222222222 | O39: 5 | P39: 17 | Q39: 0.9444444444
A40: =VLOOKUP(C40,'Control Panel'!$G$132:$K$171,5,FALSE) -> WF-4 | B40: =VLOOKUP(C40,'Control Panel'!$A$85:$F$124,2,FALSE) -> The Lyndhurst Surgery | C40: F86088 | D40: 5027 | E40: 14 | F40: 14 | G40: 1 | H40: 14 | I40: 1 | J40: 12 | K40: 0.8571428571 | L40: 2 | M40: =SUMIFS(OFFSET(REL_D,,MATCH($M$5,IND,0)-1),REL_D,$C$5,OrgID,$C40) -> 12 | N40: 0.8571428571 | O40: 2 | P40: 13 | Q40: 0.9285714286
A41: =VLOOKUP(C41,'Control Panel'!$G$132:$K$171,5,FALSE) -> WF-4 | B41: =VLOOKUP(C41,'Control Panel'!$A$85:$F$124,2,FALSE) -> The Ecclesbourne Practice* | C41: F86018 | D41: 9966 | E41: 28 | F41: 18 | G41: 0.6428571429 | H41: 8 | I41: 0.2857142857 | J41: 15 | K41: 0.5357142857 | L41: 12 | M41: =SUMIFS(OFFSET(REL_D,,MATCH($M$5,IND,0)-1),REL_D,$C$5,OrgID,$C41) -> 2 | N41: 0.07142857143 | O41: 25 | P41: 21 | Q41: 0.75
A42: =VLOOKUP(C42,'Control Panel'!$G$132:$K$171,5,FALSE) -> WF-5 | B42: =VLOOKUP(C42,'Control Panel'!$A$85:$F$124,2,FALSE) -> Green Man Medical Centre | C42: F86621 | D42: 6445 | E42: 14 | F42: 12 | G42: 0.8571428571 | H42: 13 | I42: 0.9285714286 | J42: 12 | K42: 0.8571428571 | L42: 2 | M42: =SUMIFS(OFFSET(REL_D,,MATCH($M$5,IND,0)-1),REL_D,$C$5,OrgID,$C42) -> 13 | N42: 0.9285714286 | O42: 1 | P42: 13 | Q42: 0.9285714286
A43: =VLOOKUP(C43,'Control Panel'!$G$132:$K$171,5,FALSE) -> WF-5 | B43: =VLOOKUP(C43,'Control Panel'!$A$85:$F$124,2,FALSE) -> High Road Surgery | C43: F86045 | D43: 2026 | E43: 5 | F43: 4 | G43: 0.8 | H43: 4 | I43: 0.8 | J43: 4 | K43: 0.8 | L43: 1 | M43: =SUMIFS(OFFSET(REL_D,,MATCH($M$5,IND,0)-1),REL_D,$C$5,OrgID,$C43) -> 4 | N43: 0.8 | O43: 1 | P43: 4 | Q43: 0.8
A44: =VLOOKUP(C44,'Control Panel'!$G$132:$K$171,5,FALSE) -> WF-5 | B44: =VLOOKUP(C44,'Control Panel'!$A$85:$F$124,2,FALSE) -> Kiyani Medical Practice | C44: F86701 | D44: 3853 | E44: 7 | F44: 6 | G44: 0.8571428571 | H44: 5 | I44: 0.7142857143 | J44: 3 | K44: 0.4285714286 | L44: 4 | M44: =SUMIFS(OFFSET(REL_D,,MATCH($M$5,IND,0)-1),REL_D,$C$5,OrgID,$C44) -> 2 | N44: 0.2857142857 | O44: 5 | P44: 5 | Q44: 0.7142857143
A45: =VLOOKUP(C45,'Control Panel'!$G$132:$K$171,5,FALSE) -> WF-5 | B45: =VLOOKUP(C45,'Control Panel'!$A$85:$F$124,2,FALSE) -> LL Medical Care (Agarwal & Agrwal Practice) | C45: F86625 | D45: 5882 | E45: 17 | F45: 16 | G45: 0.9411764706 | H45: 15 | I45: 0.8823529412 | J45: 15 | K45: 0.8823529412 | L45: 2 | M45: =SUMIFS(OFFSET(REL_D,,MATCH($M$5,IND,0)-1),REL_D,$C$5,OrgID,$C45) -> 14 | N45: 0.8235294118 | O45: 3 | P45: 15 | Q45: 0.8823529412
A46: =VLOOKUP(C46,'Control Panel'!$G$132:$K$171,5,FALSE) -> WF-5 | B46: =VLOOKUP(C46,'Control Panel'!$A$85:$F$124,2,FALSE) -> The Harrow Road Surgery | C46: F86666 | D46: 14983 | E46: 47 | F46: 41 | G46: 0.8723404255 | H46: 38 | I46: 0.8085106383 | J46: 18 | K46: 0.3829787234 | L46: 27 | M46: =SUMIFS(OFFSET(REL_D,,MATCH($M$5,IND,0)-1),REL_D,$C$5,OrgID,$C46) -> 35 | N46: 0.7446808511 | O46: 10 | P46: 38 | Q46: 0.8085106383
A47: =VLOOKUP(C47,'Control Panel'!$G$132:$K$171,5,FALSE) -> WF-5 | B47: =VLOOKUP(C47,'Control Panel'!$A$85:$F$124,2,FALSE) -> The Langthorne Sharma Family Practice | C47: F86705 | D47: 3512 | E47: 7 | F47: 7 | G47: 1 | H47: 7 | I47: 1 | J47: 7 | K47: 1 | M47: =SUMIFS(OFFSET(REL_D,,MATCH($M$5,IND,0)-1),REL_D,$C$5,OrgID,$C47) -> 7 | N47: 1 | P47: 6 | Q47: 0.8571428571
A48: =VLOOKUP(C48,'Control Panel'!$G$132:$K$171,5,FALSE) -> WF-6 | B48: =VLOOKUP(C48,'Control Panel'!$A$85:$F$124,2,FALSE) -> Addison Road Medical Practice | C48: F86607 | D48: 15547 | E48: 47 | F48: 42 | G48: 0.8936170213 | H48: 43 | I48: 0.914893617 | J48: 42 | K48: 0.8936170213 | L48: 3 | M48: =SUMIFS(OFFSET(REL_D,,MATCH($M$5,IND,0)-1),REL_D,$C$5,OrgID,$C48) -> 42 | N48: 0.8936170213 | O48: 3 | P48: 42 | Q48: 0.8936170213
A49: =VLOOKUP(C49,'Control Panel'!$G$132:$K$171,5,FALSE) -> WF-6 | B49: =VLOOKUP(C49,'Control Panel'!$A$85:$F$124,2,FALSE) -> Claremont Medical Centre | C49: F86708 | D49: 2782 | E49: 9 | F49: 6 | G49: 0.6666666667 | H49: 7 | I49: 0.7777777778 | J49: 5 | K49: 0.5555555556 | L49: 4 | M49: =SUMIFS(OFFSET(REL_D,,MATCH($M$5,IND,0)-1),REL_D,$C$5,OrgID,$C49) -> 5 | N49: 0.5555555556 | O49: 4 | P49: 7 | Q49: 0.7777777778
A50: =VLOOKUP(C50,'Control Panel'!$G$132:$K$171,5,FALSE) -> WF-6 | B50: =VLOOKUP(C50,'Control Panel'!$A$85:$F$124,2,FALSE) -> The Firs | C50: F86001 | D50: 7729 | E50: 30 | F50: 30 | G50: 1 | H50: 28 | I50: 0.9333333333 | J50: 27 | K50: 0.9 | L50: 2 | M50: =SUMIFS(OFFSET(REL_D,,MATCH($M$5,IND,0)-1),REL_D,$C$5,OrgID,$C50) -> 27 | N50: 0.9 | O50: 2 | P50: 29 | Q50: 0.9666666667
A51: =VLOOKUP(C51,'Control Panel'!$G$132:$K$171,5,FALSE) -> WF-6 | B51: =VLOOKUP(C51,'Control Panel'!$A$85:$F$124,2,FALSE) -> Dr Dhital Practice | C51: F86086 | D51: 6265 | E51: 28 | F51: 26 | G51: 0.9285714286 | H51: 25 | I51: 0.8928571429 | J51: 21 | K51: 0.75 | L51: 6 | M51: =SUMIFS(OFFSET(REL_D,,MATCH($M$5,IND,0)-1),REL_D,$C$5,OrgID,$C51) -> 22 | N51: 0.7857142857 | O51: 5 | P51: 26 | Q51: 0.9285714286
A52: =VLOOKUP(C52,'Control Panel'!$G$132:$K$171,5,FALSE) -> WF-6 | B52: =VLOOKUP(C52,'Control Panel'!$A$85:$F$124,2,FALSE) -> Waltham Forest Community & Family Health Services Ltd | C52: F86644 | D52: 9254 | E52: 27 | F52: 26 | G52: 0.962962963 | H52: 25 | I52: 0.9259259259 | J52: 18 | K52: 0.6666666667 | L52: 8 | M52: =SUMIFS(OFFSET(REL_D,,MATCH($M$5,IND,0)-1),REL_D,$C$5,OrgID,$C52) -> 23 | N52: 0.8518518519 | O52: 3 | P52: 25 | Q52: 0.9259259259
A53: =VLOOKUP(C53,'Control Panel'!$G$132:$K$171,5,FALSE) -> WF-7 | B53: =VLOOKUP(C53,'Control Panel'!$A$85:$F$124,2,FALSE) -> Seymour Medical centre | C53: F86006 | D53: 6825 | E53: 21 | F53: 16 | G53: 0.7619047619 | H53: 18 | I53: 0.8571428571 | J53: 13 | K53: 0.619047619 | L53: 7 | M53: =SUMIFS(OFFSET(REL_D,,MATCH($M$5,IND,0)-1),REL_D,$C$5,OrgID,$C53) -> 14 | N53: 0.6666666667 | O53: 6 | P53: 17 | Q53: 0.8095238095
A54: =VLOOKUP(C54,'Control Panel'!$G$132:$K$171,5,FALSE) -> WF-7 | B54: =VLOOKUP(C54,'Control Panel'!$A$85:$F$124,2,FALSE) -> Queens Road Medical Centre | C54: F86030 | D54: 8161 | E54: 27 | F54: 24 | G54: 0.8888888889 | H54: 24 | I54: 0.8888888889 | J54: 20 | K54: 0.7407407407 | L54: 6 | M54: =SUMIFS(OFFSET(REL_D,,MATCH($M$5,IND,0)-1),REL_D,$C$5,OrgID,$C54) -> 20 | N54: 0.7407407407 | O54: 6 | P54: 23 | Q54: 0.8518518519
A55: =VLOOKUP(C55,'Control Panel'!$G$132:$K$171,5,FALSE) -> WF-7 | B55: =VLOOKUP(C55,'Control Panel'!$A$85:$F$124,2,FALSE) -> The Grove Road Medical Centre | C55: F86062 | D55: 7155 | E55: 21 | F55: 19 | G55: 0.9047619048 | H55: 17 | I55: 0.8095238095 | J55: 10 | K55: 0.4761904762 | L55: 10 | M55: =SUMIFS(OFFSET(REL_D,,MATCH($M$5,IND,0)-1),REL_D,$C$5,OrgID,$C55) -> 10 | N55: 0.4761904762 | O55: 10 | P55: 16 | Q55: 0.7619047619
A56: =VLOOKUP(C56,'Control Panel'!$G$132:$K$171,5,FALSE) -> WF-7 | B56: =VLOOKUP(C56,'Control Panel'!$A$85:$F$124,2,FALSE) -> Higham Hill Medical Centre | C56: F86679 | D56: 6372 | E56: 28 | F56: 24 | G56: 0.8571428571 | H56: 24 | I56: 0.8571428571 | J56: 16 | K56: 0.5714285714 | L56: 11 | M56: =SUMIFS(OFFSET(REL_D,,MATCH($M$5,IND,0)-1),REL_D,$C$5,OrgID,$C56) -> 16 | N56: 0.5714285714 | O56: 11 | P56: 23 | Q56: 0.8214285714
A57: =VLOOKUP(C57,'Control Panel'!$G$132:$K$171,5,FALSE) -> WF-7 | B57: =VLOOKUP(C57,'Control Panel'!$A$85:$F$124,2,FALSE) -> St James Medical Practice Ltd | C57: F86058 | D57: 16561 | E57: 43 | F57: 40 | G57: 0.9302325581 | H57: 38 | I57: 0.8837209302 | J57: 31 | K57: 0.7209302326 | L57: 10 | M57: =SUMIFS(OFFSET(REL_D,,MATCH($M$5,IND,0)-1),REL_D,$C$5,OrgID,$C57) -> 32 | N57: 0.7441860465 | O57: 9 | P57: 38 | Q57: 0.8837209302

Sheet Trending
D1: Waltham Forest - Childhood Immunisations | M1: ="'"&K3&"'!$C$9:$AT$71" -> '1st April 2016'!$C$9:$AT$71
G2: Waltham Forest
B3: 2015/16 Q1 | D3: =VLOOKUP(G2,'Control Panel'!I77:J119,2,FALSE) -> Total | E3: =IF(D3="Total",TRUE,IF(LEFT($D$3,1)="P",TRUE,FALSE)) -> TRUE | F3: =IF(D3="Total","WF",D3) -> WF | G3: FHV | K3: 1st April 2016
G4: Patient becoming 12m | H4: Control Panel'!J34:J36
B6: =INDEX(INDIRECT(VLOOKUP($G$4,'Control Panel'!$J$41:$K$43,2,FALSE)),COLUMN(Rows!A1)) -> (01) 12 MONTH COHORT | C6: =INDEX(INDIRECT(VLOOKUP($G$4,'Control Panel'!$J$41:$K$43,2,FALSE)),COLUMN(Rows!B1)) -> (01.01) DTaP/IPV/Hib 6in1 | D6: =INDEX(INDIRECT(VLOOKUP($G$4,'Control Panel'!$J$41:$K$43,2,FALSE)),COLUMN(Rows!C1)) -> (01.02) Men B (1st and 2nd) | E6: =INDEX(INDIRECT(VLOOKUP($G$4,'Control Panel'!$J$41:$K$43,2,FALSE)),COLUMN(Rows!D1)) -> (01.03) PCV
A7: Time Stamp | B7: =IFERROR(INDEX(INDIRECT(VLOOKUP($G$4,'Control Panel'!$J$36:$L$38,3,FALSE)),COLUMN(Rows!B17)),"") -> DTaP/IPV/Hib % | C7: =IFERROR(INDEX(INDIRECT(VLOOKUP($G$4,'Control Panel'!$J$36:$L$38,3,FALSE)),COLUMN(Rows!C17)),"") -> Men C / Men B % | D7: =IFERROR(INDEX(INDIRECT(VLOOKUP($G$4,'Control Panel'!$J$36:$L$38,3,FALSE)),COLUMN(Rows!D17)),"") -> PCV %
A8: March 2019 (Baseline) | B8: =IFERROR(C42/B42,"") -> 0.9776733255 | C8: =IFERROR(D42/B42,"") -> 1.001175088 | D8: =IFERROR(E42/B42,NA()) -> 815.9106933
A9: April 2019 | B9: =IFERROR(C45/B45,"") -> 0.8496801706 | C9: =IFERROR(D45/B45,"") -> 0.842217484 | D9: =IFERROR(E45/B45,NA()) -> 0.8592750533
A10: May 2019 | B10: 0.8537886873 | C10: 0.8473852721 | D10: 0.8655282818
A11: June 2019 | B11: 0.8582089552 | C11: 0.8571428571 | D11: 0.8742004264
A12: July 2019 | B12: 0.8794326241 | C12: 0.874366768 | D12: 0.8875379939
A13: August 2019 | B13: 0.8812182741 | C13: 0.8710659898 | D13: 0.8873096447
A14: September 2019 | B14: 0.8812691914 | C14: 0.8700102354 | D14: 0.8863868987
A15: October 2019 | B15: 0.8923395445 | C15: 0.8954451346 | D15: 0.9037267081
A16: November 2019 | B16: 0.8909657321 | C16: 0.8951194185 | D16: 0.9044652129
A17: December 2019 | B17: 0.885177453 | C17: 0.8903966597 | D17: 0.8997912317
A18: January 2020 | B18: 0.8896551724 | C18: 0.8827586207 | D18: 0.8954022989
A19: February 2020 | B19: 0.8946135831 | C19: 0.887587822 | D19: 0.8992974239
A20: March 2020 | B20: 0.8951048951 | C20: 0.8869463869 | D20: 0.8997668998
A21: April 2020 | B21: =IFERROR(C57/B57,"") -> 0.9001062699 | C21: =IFERROR(D57/B57,"") -> 0.8926673751 | D21: =IFERROR(E57/B57,NA()) -> 0.9075451647
A22: May 2020 | B22: 0.9010638298 | C22: 0.8936170213 | D22: 0.9106382979
A23: June 2020 | B23: =IFERROR(C59/B59,"") -> 0.8981972428 | C23: =IFERROR(D59/B59,"") -> 0.8907741251 | D23: =IFERROR(E59/B59,NA()) -> 0.9098621421
A24: July 2020 | B24: =IFERROR(C60/B60,"") -> 0.8747252747 | C24: =IFERROR(D60/B60,"") -> 0.8769230769 | D24: =IFERROR(E60/B60,NA()) -> 0.8901098901
A25: August 2020 | B25: 0.8733480176 | C25: 0.8766519824 | D25: 0.8898678414
A26: September 2020 | B26: =IFERROR(C62/B62,"") -> 0.8780487805 | C26: =IFERROR(D62/B62,"") -> 0.8813747228 | D26: =IFERROR(E62/B62,NA()) -> 0.8924611973
A27: October 2020 | B27: =IFERROR(C63/B63,"") -> 0.8600645856 | C27: =IFERROR(D63/B63,"") -> 0.8654467169 | D27: =IFERROR(E63/B63,NA()) -> 0.8439181916
A28: November 2020 | B28: =IFERROR(C64/B64,"") -> 0.8622559653 | C28: =IFERROR(D64/B64,"") -> 0.8655097614 | D28: =IFERROR(E64/B64,NA()) -> 0.8438177874
A29: December 2020 | B29: =IFERROR(C65/B65,"") -> 0.8648648649 | C29: =IFERROR(D65/B65,"") -> 0.8648648649 | D29: =IFERROR(E65/B65,NA()) -> 0.8432432432
A30: January 2021 | B30: =IFERROR(C66/B66,"") -> 0.8629500581 | C30: =IFERROR(D66/B66,"") -> 0.8617886179 | D30: =IFERROR(E66/B66,NA()) -> 0.9012775842
A31: February 2021 | B31: =IFERROR(C67/B67,"") -> 0.865967366 | C31: =IFERROR(D67/B67,"") -> 0.8648018648 | D31: =IFERROR(E67/B67,NA()) -> 0.9067599068
A32: March 2021 | B32: 0.8691037736 | C32: 0.8691037736 | D32: 0.9115566038
A33: April 2021 | B33: =IFERROR(C69/B69,"") -> 0.8382526564 | C33: =IFERROR(D69/B69,"") -> 0.8370720189 | D33: =IFERROR(E69/B69,NA()) -> 0.8748524203
A34: May 2021 | B34: =IFERROR(C70/B70,"") -> 0.8392434988 | C34: =IFERROR(D70/B70,"") -> 0.8392434988 | D34: =IFERROR(E70/B70,NA()) -> 0.8758865248
A35: June 2021 | B35: 0.8489278752 | C35: 0.8479532164 | D35: 0.8723196881
A36: July 2021 | B36: =IFERROR(C72/B72,"") -> 0.8697318008 | C36: =IFERROR(D72/B72,"") -> 0.8563218391 | D36: =IFERROR(E72/B72,NA()) -> 0.8831417625
A37: August 2021 | B37: =IFERROR(C73/B73,"") -> 0.880794702 | C37: =IFERROR(D73/B73,"") -> 0.8666035951 | D37: =IFERROR(E73/B73,NA()) -> 0.8836329234
A38: September 2021 | B38: 0.8827977316 | C38: 0.8667296786 | D38: 0.8846880907
A39: October 2021 | B39: =IFERROR(C75/B75,"") -> 0.904860393 | C39: =IFERROR(D75/B75,"") -> 0.8883143744 | D39: =IFERROR(E75/B75,NA()) -> 0.9141675284
A40: November 2021 | B40: =IFERROR(C76/B76,"") -> 0.9059561129 | C40: =IFERROR(D76/B76,"") -> 0.8881922675 | D40: =IFERROR(E76/B76,NA()) -> 0.9132706374
A41: December 2021 | B41: 0.9106029106 | C41: 0.8908523909 | D41: 0.9116424116
A42: January 2022 | B42: 0.9130901288 | C42: 0.8927038627 | D42: 0.9141630901 | E42: =IFERROR(SUMIFS(OFFSET(REL_D,,MATCH($E$6,IND,0)-1),REL_D,$A42,IF(LEFT($D$3,1)="W",NwID,OrgID),$D$3),"") -> 745
A43: February 2022 | B43: =IFERROR(C79/B79,"") -> 0.8894736842 | C43: =IFERROR(D79/B79,"") -> 0.8747368421 | D43: =IFERROR(E79/B79,NA()) -> 0.9105263158
A44: March 2022 | B44: =IFERROR(C80/B80,"") -> 0.8940677966 | C44: =IFERROR(D80/B80,"") -> 0.8824152542 | D44: =IFERROR(E80/B80,NA()) -> 0.9163135593
A45: 2019-04-01 | B45: =SUMIFS(OFFSET(REL_D,,MATCH($B$6,IND,0)-1),REL_D,$A45,IF($E$3,NwID,OrgID),$F$3) -> 938 | C45: =SUMIFS(OFFSET(REL_D,,MATCH($C$6,IND,0)-1),REL_D,$A45,IF($E$3,NwID,OrgID),$F$3) -> 797 | D45: =SUMIFS(OFFSET(REL_D,,MATCH($D$6,IND,0)-1),REL_D,$A45,IF($E$3,NwID,OrgID),$F$3) -> 790 | E45: =SUMIFS(OFFSET(REL_D,,MATCH($E$6,IND,0)-1),REL_D,$A45,IF($E$3,NwID,OrgID),$F$3) -> 806
A46: 2019-05-01 | B46: =SUMIFS(OFFSET(REL_D,,MATCH($B$6,IND,0)-1),REL_D,$A46,IF($E$3,NwID,OrgID),$F$3) -> 937 | C46: =SUMIFS(OFFSET(REL_D,,MATCH($C$6,IND,0)-1),REL_D,$A46,IF($E$3,NwID,OrgID),$F$3) -> 800 | D46: =SUMIFS(OFFSET(REL_D,,MATCH($D$6,IND,0)-1),REL_D,$A46,IF($E$3,NwID,OrgID),$F$3) -> 794 | E46: =SUMIFS(OFFSET(REL_D,,MATCH($E$6,IND,0)-1),REL_D,$A46,IF($E$3,NwID,OrgID),$F$3) -> 811
A47: 2019-06-01 | B47: =SUMIFS(OFFSET(REL_D,,MATCH($B$6,IND,0)-1),REL_D,$A47,IF($E$3,NwID,OrgID),$F$3) -> 938 | C47: =SUMIFS(OFFSET(REL_D,,MATCH($C$6,IND,0)-1),REL_D,$A47,IF($E$3,NwID,OrgID),$F$3) -> 805 | D47: =SUMIFS(OFFSET(REL_D,,MATCH($D$6,IND,0)-1),REL_D,$A47,IF($E$3,NwID,OrgID),$F$3) -> 804 | E47: =SUMIFS(OFFSET(REL_D,,MATCH($E$6,IND,0)-1),REL_D,$A47,IF($E$3,NwID,OrgID),$F$3) -> 820
A48: 2019-07-01 | B48: =SUMIFS(OFFSET(REL_D,,MATCH($B$6,IND,0)-1),REL_D,$A48,IF($E$3,NwID,OrgID),$F$3) -> 987 | C48: =SUMIFS(OFFSET(REL_D,,MATCH($C$6,IND,0)-1),REL_D,$A48,IF($E$3,NwID,OrgID),$F$3) -> 868 | D48: =SUMIFS(OFFSET(REL_D,,MATCH($D$6,IND,0)-1),REL_D,$A48,IF($E$3,NwID,OrgID),$F$3) -> 863 | E48: =SUMIFS(OFFSET(REL_D,,MATCH($E$6,IND,0)-1),REL_D,$A48,IF($E$3,NwID,OrgID),$F$3) -> 876
A49: 2019-08-01 | B49: =SUMIFS(OFFSET(REL_D,,MATCH($B$6,IND,0)-1),REL_D,$A49,IF($E$3,NwID,OrgID),$F$3) -> 985 | C49: =SUMIFS(OFFSET(REL_D,,MATCH($C$6,IND,0)-1),REL_D,$A49,IF($E$3,NwID,OrgID),$F$3) -> 868 | D49: =SUMIFS(OFFSET(REL_D,,MATCH($D$6,IND,0)-1),REL_D,$A49,IF($E$3,NwID,OrgID),$F$3) -> 858 | E49: =SUMIFS(OFFSET(REL_D,,MATCH($E$6,IND,0)-1),REL_D,$A49,IF($E$3,NwID,OrgID),$F$3) -> 874
A50: 2019-09-01 | B50: =SUMIFS(OFFSET(REL_D,,MATCH($B$6,IND,0)-1),REL_D,$A50,IF($E$3,NwID,OrgID),$F$3) -> 977 | C50: =SUMIFS(OFFSET(REL_D,,MATCH($C$6,IND,0)-1),REL_D,$A50,IF($E$3,NwID,OrgID),$F$3) -> 861 | D50: =SUMIFS(OFFSET(REL_D,,MATCH($D$6,IND,0)-1),REL_D,$A50,IF($E$3,NwID,OrgID),$F$3) -> 850 | E50: =SUMIFS(OFFSET(REL_D,,MATCH($E$6,IND,0)-1),REL_D,$A50,IF($E$3,NwID,OrgID),$F$3) -> 866
A51: 2019-10-01 | B51: =SUMIFS(OFFSET(REL_D,,MATCH($B$6,IND,0)-1),REL_D,$A51,IF($E$3,NwID,OrgID),$F$3) -> 966 | C51: =SUMIFS(OFFSET(REL_D,,MATCH($C$6,IND,0)-1),REL_D,$A51,IF($E$3,NwID,OrgID),$F$3) -> 862 | D51: =SUMIFS(OFFSET(REL_D,,MATCH($D$6,IND,0)-1),REL_D,$A51,IF($E$3,NwID,OrgID),$F$3) -> 865 | E51: =SUMIFS(OFFSET(REL_D,,MATCH($E$6,IND,0)-1),REL_D,$A51,IF($E$3,NwID,OrgID),$F$3) -> 873
A52: 2019-11-01 | B52: =SUMIFS(OFFSET(REL_D,,MATCH($B$6,IND,0)-1),REL_D,$A52,IF($E$3,NwID,OrgID),$F$3) -> 963 | C52: =SUMIFS(OFFSET(REL_D,,MATCH($C$6,IND,0)-1),REL_D,$A52,IF($E$3,NwID,OrgID),$F$3) -> 858 | D52: =SUMIFS(OFFSET(REL_D,,MATCH($D$6,IND,0)-1),REL_D,$A52,IF($E$3,NwID,OrgID),$F$3) -> 862 | E52: =SUMIFS(OFFSET(REL_D,,MATCH($E$6,IND,0)-1),REL_D,$A52,IF($E$3,NwID,OrgID),$F$3) -> 871
A53: 2019-12-01 | B53: =SUMIFS(OFFSET(REL_D,,MATCH($B$6,IND,0)-1),REL_D,$A53,IF($E$3,NwID,OrgID),$F$3) -> 958 | C53: =SUMIFS(OFFSET(REL_D,,MATCH($C$6,IND,0)-1),REL_D,$A53,IF($E$3,NwID,OrgID),$F$3) -> 848 | D53: =SUMIFS(OFFSET(REL_D,,MATCH($D$6,IND,0)-1),REL_D,$A53,IF($E$3,NwID,OrgID),$F$3) -> 853 | E53: =SUMIFS(OFFSET(REL_D,,MATCH($E$6,IND,0)-1),REL_D,$A53,IF($E$3,NwID,OrgID),$F$3) -> 862
A54: 2020-01-01 | B54: =SUMIFS(OFFSET(REL_D,,MATCH($B$6,IND,0)-1),REL_D,$A54,IF($E$3,NwID,OrgID),$F$3) -> 870 | C54: =SUMIFS(OFFSET(REL_D,,MATCH($C$6,IND,0)-1),REL_D,$A54,IF($E$3,NwID,OrgID),$F$3) -> 774 | D54: =SUMIFS(OFFSET(REL_D,,MATCH($D$6,IND,0)-1),REL_D,$A54,IF($E$3,NwID,OrgID),$F$3) -> 768 | E54: =SUMIFS(OFFSET(REL_D,,MATCH($E$6,IND,0)-1),REL_D,$A54,IF($E$3,NwID,OrgID),$F$3) -> 779
A55: 2020-02-01 | B55: =SUMIFS(OFFSET(REL_D,,MATCH($B$6,IND,0)-1),REL_D,$A55,IF($E$3,NwID,OrgID),$F$3) -> 854 | C55: =SUMIFS(OFFSET(REL_D,,MATCH($C$6,IND,0)-1),REL_D,$A55,IF($E$3,NwID,OrgID),$F$3) -> 764 | D55: =SUMIFS(OFFSET(REL_D,,MATCH($D$6,IND,0)-1),REL_D,$A55,IF($E$3,NwID,OrgID),$F$3) -> 758 | E55: =SUMIFS(OFFSET(REL_D,,MATCH($E$6,IND,0)-1),REL_D,$A55,IF($E$3,NwID,OrgID),$F$3) -> 768
A56: 2020-03-01 | B56: =SUMIFS(OFFSET(REL_D,,MATCH($B$6,IND,0)-1),REL_D,$A56,IF($E$3,NwID,OrgID),$F$3) -> 858 | C56: =SUMIFS(OFFSET(REL_D,,MATCH($C$6,IND,0)-1),REL_D,$A56,IF($E$3,NwID,OrgID),$F$3) -> 768 | D56: =SUMIFS(OFFSET(REL_D,,MATCH($D$6,IND,0)-1),REL_D,$A56,IF($E$3,NwID,OrgID),$F$3) -> 761 | E56: =SUMIFS(OFFSET(REL_D,,MATCH($E$6,IND,0)-1),REL_D,$A56,IF($E$3,NwID,OrgID),$F$3) -> 772
A57: 2020-04-01 | B57: =SUMIFS(OFFSET(REL_D,,MATCH($B$6,IND,0)-1),REL_D,$A57,IF($E$3,NwID,OrgID),$F$3) -> 941 | C57: =SUMIFS(OFFSET(REL_D,,MATCH($C$6,IND,0)-1),REL_D,$A57,IF($E$3,NwID,OrgID),$F$3) -> 847 | D57: =SUMIFS(OFFSET(REL_D,,MATCH($D$6,IND,0)-1),REL_D,$A57,IF($E$3,NwID,OrgID),$F$3) -> 840 | E57: =SUMIFS(OFFSET(REL_D,,MATCH($E$6,IND,0)-1),REL_D,$A57,IF($E$3,NwID,OrgID),$F$3) -> 854
A58: 2020-05-01 | B58: =SUMIFS(OFFSET(REL_D,,MATCH($B$6,IND,0)-1),REL_D,$A58,IF($E$3,NwID,OrgID),$F$3) -> 940 | C58: =SUMIFS(OFFSET(REL_D,,MATCH($C$6,IND,0)-1),REL_D,$A58,IF($E$3,NwID,OrgID),$F$3) -> 847 | D58: =SUMIFS(OFFSET(REL_D,,MATCH($D$6,IND,0)-1),REL_D,$A58,IF($E$3,NwID,OrgID),$F$3) -> 840 | E58: =SUMIFS(OFFSET(REL_D,,MATCH($E$6,IND,0)-1),REL_D,$A58,IF($E$3,NwID,OrgID),$F$3) -> 856
A59: 2020-06-01 | B59: =SUMIFS(OFFSET(REL_D,,MATCH($B$6,IND,0)-1),REL_D,$A59,IF($E$3,NwID,OrgID),$F$3) -> 943 | C59: =SUMIFS(OFFSET(REL_D,,MATCH($C$6,IND,0)-1),REL_D,$A59,IF($E$3,NwID,OrgID),$F$3) -> 847 | D59: =SUMIFS(OFFSET(REL_D,,MATCH($D$6,IND,0)-1),REL_D,$A59,IF($E$3,NwID,OrgID),$F$3) -> 840 | E59: =SUMIFS(OFFSET(REL_D,,MATCH($E$6,IND,0)-1),REL_D,$A59,IF($E$3,NwID,OrgID),$F$3) -> 858
A60: 2020-07-01 | B60: =SUMIFS(OFFSET(REL_D,,MATCH($B$6,IND,0)-1),REL_D,$A60,IF($E$3,NwID,OrgID),$F$3) -> 910 | C60: =SUMIFS(OFFSET(REL_D,,MATCH($C$6,IND,0)-1),REL_D,$A60,IF($E$3,NwID,OrgID),$F$3) -> 796 | D60: =SUMIFS(OFFSET(REL_D,,MATCH($D$6,IND,0)-1),REL_D,$A60,IF($E$3,NwID,OrgID),$F$3) -> 798 | E60: =SUMIFS(OFFSET(REL_D,,MATCH($E$6,IND,0)-1),REL_D,$A60,IF($E$3,NwID,OrgID),$F$3) -> 810
A61: 2020-08-01 | B61: =SUMIFS(OFFSET(REL_D,,MATCH($B$6,IND,0)-1),REL_D,$A61,IF($E$3,NwID,OrgID),$F$3) -> 908 | C61: =SUMIFS(OFFSET(REL_D,,MATCH($C$6,IND,0)-1),REL_D,$A61,IF($E$3,NwID,OrgID),$F$3) -> 793 | D61: =SUMIFS(OFFSET(REL_D,,MATCH($D$6,IND,0)-1),REL_D,$A61,IF($E$3,NwID,OrgID),$F$3) -> 796 | E61: =SUMIFS(OFFSET(REL_D,,MATCH($E$6,IND,0)-1),REL_D,$A61,IF($E$3,NwID,OrgID),$F$3) -> 808
A62: 2020-09-01 | B62: =SUMIFS(OFFSET(REL_D,,MATCH($B$6,IND,0)-1),REL_D,$A62,IF($E$3,NwID,OrgID),$F$3) -> 902 | C62: =SUMIFS(OFFSET(REL_D,,MATCH($C$6,IND,0)-1),REL_D,$A62,IF($E$3,NwID,OrgID),$F$3) -> 792 | D62: =SUMIFS(OFFSET(REL_D,,MATCH($D$6,IND,0)-1),REL_D,$A62,IF($E$3,NwID,OrgID),$F$3) -> 795 | E62: =SUMIFS(OFFSET(REL_D,,MATCH($E$6,IND,0)-1),REL_D,$A62,IF($E$3,NwID,OrgID),$F$3) -> 805
A63: 2020-10-01 | B63: =SUMIFS(OFFSET(REL_D,,MATCH($B$6,IND,0)-1),REL_D,$A63,IF($E$3,NwID,OrgID),$F$3) -> 929 | C63: =SUMIFS(OFFSET(REL_D,,MATCH($C$6,IND,0)-1),REL_D,$A63,IF($E$3,NwID,OrgID),$F$3) -> 799 | D63: =SUMIFS(OFFSET(REL_D,,MATCH($D$6,IND,0)-1),REL_D,$A63,IF($E$3,NwID,OrgID),$F$3) -> 804 | E63: =SUMIFS(OFFSET(REL_D,,MATCH($E$6,IND,0)-1),REL_D,$A63,IF($E$3,NwID,OrgID),$F$3) -> 784
A64: 2020-11-01 | B64: =SUMIFS(OFFSET(REL_D,,MATCH($B$6,IND,0)-1),REL_D,$A64,IF($E$3,NwID,OrgID),$F$3) -> 922 | C64: =SUMIFS(OFFSET(REL_D,,MATCH($C$6,IND,0)-1),REL_D,$A64,IF($E$3,NwID,OrgID),$F$3) -> 795 | D64: =SUMIFS(OFFSET(REL_D,,MATCH($D$6,IND,0)-1),REL_D,$A64,IF($E$3,NwID,OrgID),$F$3) -> 798 | E64: =SUMIFS(OFFSET(REL_D,,MATCH($E$6,IND,0)-1),REL_D,$A64,IF($E$3,NwID,OrgID),$F$3) -> 778
A65: 2020-12-01 | B65: =SUMIFS(OFFSET(REL_D,,MATCH($B$6,IND,0)-1),REL_D,$A65,IF($E$3,NwID,OrgID),$F$3) -> 925 | C65: =SUMIFS(OFFSET(REL_D,,MATCH($C$6,IND,0)-1),REL_D,$A65,IF($E$3,NwID,OrgID),$F$3) -> 800 | D65: =SUMIFS(OFFSET(REL_D,,MATCH($D$6,IND,0)-1),REL_D,$A65,IF($E$3,NwID,OrgID),$F$3) -> 800 | E65: =SUMIFS(OFFSET(REL_D,,MATCH($E$6,IND,0)-1),REL_D,$A65,IF($E$3,NwID,OrgID),$F$3) -> 780
A66: 2021-01-01 | B66: =SUMIFS(OFFSET(REL_D,,MATCH($B$6,IND,0)-1),REL_D,$A66,IF($E$3,NwID,OrgID),$F$3) -> 861 | C66: =SUMIFS(OFFSET(REL_D,,MATCH($C$6,IND,0)-1),REL_D,$A66,IF($E$3,NwID,OrgID),$F$3) -> 743 | D66: =SUMIFS(OFFSET(REL_D,,MATCH($D$6,IND,0)-1),REL_D,$A66,IF($E$3,NwID,OrgID),$F$3) -> 742 | E66: =SUMIFS(OFFSET(REL_D,,MATCH($E$6,IND,0)-1),REL_D,$A66,IF($E$3,NwID,OrgID),$F$3) -> 776
A67: 2021-02-01 | B67: =SUMIFS(OFFSET(REL_D,,MATCH($B$6,IND,0)-1),REL_D,$A67,IF($E$3,NwID,OrgID),$F$3) -> 858 | C67: =SUMIFS(OFFSET(REL_D,,MATCH($C$6,IND,0)-1),REL_D,$A67,IF($E$3,NwID,OrgID),$F$3) -> 743 | D67: =SUMIFS(OFFSET(REL_D,,MATCH($D$6,IND,0)-1),REL_D,$A67,IF($E$3,NwID,OrgID),$F$3) -> 742 | E67: =SUMIFS(OFFSET(REL_D,,MATCH($E$6,IND,0)-1),REL_D,$A67,IF($E$3,NwID,OrgID),$F$3) -> 778
A68: 2021-03-01 | B68: =SUMIFS(OFFSET(REL_D,,MATCH($B$6,IND,0)-1),REL_D,$A68,IF($E$3,NwID,OrgID),$F$3) -> 848 | C68: =SUMIFS(OFFSET(REL_D,,MATCH($C$6,IND,0)-1),REL_D,$A68,IF($E$3,NwID,OrgID),$F$3) -> 737 | D68: =SUMIFS(OFFSET(REL_D,,MATCH($D$6,IND,0)-1),REL_D,$A68,IF($E$3,NwID,OrgID),$F$3) -> 737 | E68: =SUMIFS(OFFSET(REL_D,,MATCH($E$6,IND,0)-1),REL_D,$A68,IF($E$3,NwID,OrgID),$F$3) -> 773
A69: 2021-04-01 | B69: =SUMIFS(OFFSET(REL_D,,MATCH($B$6,IND,0)-1),REL_D,$A69,IF($E$3,NwID,OrgID),$F$3) -> 847 | C69: =SUMIFS(OFFSET(REL_D,,MATCH($C$6,IND,0)-1),REL_D,$A69,IF($E$3,NwID,OrgID),$F$3) -> 710 | D69: =SUMIFS(OFFSET(REL_D,,MATCH($D$6,IND,0)-1),REL_D,$A69,IF($E$3,NwID,OrgID),$F$3) -> 709 | E69: =SUMIFS(OFFSET(REL_D,,MATCH($E$6,IND,0)-1),REL_D,$A69,IF($E$3,NwID,OrgID),$F$3) -> 741
A70: 2021-05-01 | B70: =SUMIFS(OFFSET(REL_D,,MATCH($B$6,IND,0)-1),REL_D,$A70,IF($E$3,NwID,OrgID),$F$3) -> 846 | C70: =SUMIFS(OFFSET(REL_D,,MATCH($C$6,IND,0)-1),REL_D,$A70,IF($E$3,NwID,OrgID),$F$3) -> 710 | D70: =SUMIFS(OFFSET(REL_D,,MATCH($D$6,IND,0)-1),REL_D,$A70,IF($E$3,NwID,OrgID),$F$3) -> 710 | E70: =SUMIFS(OFFSET(REL_D,,MATCH($E$6,IND,0)-1),REL_D,$A70,IF($E$3,NwID,OrgID),$F$3) -> 741
A71: 2021-06-01 | B71: =SUMIFS(OFFSET(REL_D,,MATCH($B$6,IND,0)-1),REL_D,$A71,IF($E$3,NwID,OrgID),$F$3) -> 1026 | C71: =SUMIFS(OFFSET(REL_D,,MATCH($C$6,IND,0)-1),REL_D,$A71,IF($E$3,NwID,OrgID),$F$3) -> 871 | D71: =SUMIFS(OFFSET(REL_D,,MATCH($D$6,IND,0)-1),REL_D,$A71,IF($E$3,NwID,OrgID),$F$3) -> 870 | E71: =SUMIFS(OFFSET(REL_D,,MATCH($E$6,IND,0)-1),REL_D,$A71,IF($E$3,NwID,OrgID),$F$3) -> 895
A72: 2021-07-01 | B72: =SUMIFS(OFFSET(REL_D,,MATCH($B$6,IND,0)-1),REL_D,$A72,IF($E$3,NwID,OrgID),$F$3) -> 1044 | C72: =SUMIFS(OFFSET(REL_D,,MATCH($C$6,IND,0)-1),REL_D,$A72,IF($E$3,NwID,OrgID),$F$3) -> 908 | D72: =SUMIFS(OFFSET(REL_D,,MATCH($D$6,IND,0)-1),REL_D,$A72,IF($E$3,NwID,OrgID),$F$3) -> 894 | E72: =SUMIFS(OFFSET(REL_D,,MATCH($E$6,IND,0)-1),REL_D,$A72,IF($E$3,NwID,OrgID),$F$3) -> 922
A73: 2021-08-01 | B73: =SUMIFS(OFFSET(REL_D,,MATCH($B$6,IND,0)-1),REL_D,$A73,IF($E$3,NwID,OrgID),$F$3) -> 1057 | C73: =SUMIFS(OFFSET(REL_D,,MATCH($C$6,IND,0)-1),REL_D,$A73,IF($E$3,NwID,OrgID),$F$3) -> 931 | D73: =SUMIFS(OFFSET(REL_D,,MATCH($D$6,IND,0)-1),REL_D,$A73,IF($E$3,NwID,OrgID),$F$3) -> 916 | E73: =SUMIFS(OFFSET(REL_D,,MATCH($E$6,IND,0)-1),REL_D,$A73,IF($E$3,NwID,OrgID),$F$3) -> 934
A74: 2021-09-01 | B74: =SUMIFS(OFFSET(REL_D,,MATCH($B$6,IND,0)-1),REL_D,$A74,IF($E$3,NwID,OrgID),$F$3) -> 1058 | C74: =SUMIFS(OFFSET(REL_D,,MATCH($C$6,IND,0)-1),REL_D,$A74,IF($E$3,NwID,OrgID),$F$3) -> 934 | D74: =SUMIFS(OFFSET(REL_D,,MATCH($D$6,IND,0)-1),REL_D,$A74,IF($E$3,NwID,OrgID),$F$3) -> 917 | E74: =SUMIFS(OFFSET(REL_D,,MATCH($E$6,IND,0)-1),REL_D,$A74,IF($E$3,NwID,OrgID),$F$3) -> 936
A75: 2021-10-01 | B75: =SUMIFS(OFFSET(REL_D,,MATCH($B$6,IND,0)-1),REL_D,$A75,IF($E$3,NwID,OrgID),$F$3) -> 967 | C75: =SUMIFS(OFFSET(REL_D,,MATCH($C$6,IND,0)-1),REL_D,$A75,IF($E$3,NwID,OrgID),$F$3) -> 875 | D75: =SUMIFS(OFFSET(REL_D,,MATCH($D$6,IND,0)-1),REL_D,$A75,IF($E$3,NwID,OrgID),$F$3) -> 859 | E75: =SUMIFS(OFFSET(REL_D,,MATCH($E$6,IND,0)-1),REL_D,$A75,IF($E$3,NwID,OrgID),$F$3) -> 884
A76: 2021-11-01 | B76: =SUMIFS(OFFSET(REL_D,,MATCH($B$6,IND,0)-1),REL_D,$A76,IF($E$3,NwID,OrgID),$F$3) -> 957 | C76: =SUMIFS(OFFSET(REL_D,,MATCH($C$6,IND,0)-1),REL_D,$A76,IF($E$3,NwID,OrgID),$F$3) -> 867 | D76: =SUMIFS(OFFSET(REL_D,,MATCH($D$6,IND,0)-1),REL_D,$A76,IF($E$3,NwID,OrgID),$F$3) -> 850 | E76: =SUMIFS(OFFSET(REL_D,,MATCH($E$6,IND,0)-1),REL_D,$A76,IF($E$3,NwID,OrgID),$F$3) -> 874
A77: 2021-12-01 | B77: =SUMIFS(OFFSET(REL_D,,MATCH($B$6,IND,0)-1),REL_D,$A77,IF($E$3,NwID,OrgID),$F$3) -> 962 | C77: =SUMIFS(OFFSET(REL_D,,MATCH($C$6,IND,0)-1),REL_D,$A77,IF($E$3,NwID,OrgID),$F$3) -> 876 | D77: =SUMIFS(OFFSET(REL_D,,MATCH($D$6,IND,0)-1),REL_D,$A77,IF($E$3,NwID,OrgID),$F$3) -> 857 | E77: =SUMIFS(OFFSET(REL_D,,MATCH($E$6,IND,0)-1),REL_D,$A77,IF($E$3,NwID,OrgID),$F$3) -> 877
A78: 2022-01-01 | B78: =SUMIFS(OFFSET(REL_D,,MATCH($B$6,IND,0)-1),REL_D,$A78,IF($E$3,NwID,OrgID),$F$3) -> 932 | C78: =SUMIFS(OFFSET(REL_D,,MATCH($C$6,IND,0)-1),REL_D,$A78,IF($E$3,NwID,OrgID),$F$3) -> 851 | D78: =SUMIFS(OFFSET(REL_D,,MATCH($D$6,IND,0)-1),REL_D,$A78,IF($E$3,NwID,OrgID),$F$3) -> 832 | E78: =SUMIFS(OFFSET(REL_D,,MATCH($E$6,IND,0)-1),REL_D,$A78,IF($E$3,NwID,OrgID),$F$3) -> 852
A79: 2022-02-01 | B79: =SUMIFS(OFFSET(REL_D,,MATCH($B$6,IND,0)-1),REL_D,$A79,IF($E$3,NwID,OrgID),$F$3) -> 950 | C79: =SUMIFS(OFFSET(REL_D,,MATCH($C$6,IND,0)-1),REL_D,$A79,IF($E$3,NwID,OrgID),$F$3) -> 845 | D79: =SUMIFS(OFFSET(REL_D,,MATCH($D$6,IND,0)-1),REL_D,$A79,IF($E$3,NwID,OrgID),$F$3) -> 831 | E79: =SUMIFS(OFFSET(REL_D,,MATCH($E$6,IND,0)-1),REL_D,$A79,IF($E$3,NwID,OrgID),$F$3) -> 865
A80: 2022-03-01 | B80: =SUMIFS(OFFSET(REL_D,,MATCH($B$6,IND,0)-1),REL_D,$A80,IF($E$3,NwID,OrgID),$F$3) -> 944 | C80: =SUMIFS(OFFSET(REL_D,,MATCH($C$6,IND,0)-1),REL_D,$A80,IF($E$3,NwID,OrgID),$F$3) -> 844 | D80: =SUMIFS(OFFSET(REL_D,,MATCH($D$6,IND,0)-1),REL_D,$A80,IF($E$3,NwID,OrgID),$F$3) -> 833 | E80: =SUMIFS(OFFSET(REL_D,,MATCH($E$6,IND,0)-1),REL_D,$A80,IF($E$3,NwID,OrgID),$F$3) -> 865

Sheet Rows (hidden)

Sheet Lookup (hidden)
A1: listsize.csv | B1: All Patients
A2: (01)_12_MONTH_COHORT.csv | B2: (01) 12 MONTH COHORT
A3: (01.01)_DTaP_IPV_Hib_HepB.csv | B3: (01.01) DTaP/IPV/Hib 6in1
A4: (01.02)_Men_B_(1st_and_2nd).csv | B4: (01.02) Men B (1st and 2nd)
A5: (01.03)_PCV.csv | B5: (01.03) PCV
A6: (01.04)_Rotavirus.csv | B6: (01.04) Rotavirus
A7: (01.05)_BCG.csv | B7: (01.05) BCG
A8: (02)_24_MONTH_COHORT.csv | B8: (02) 24 MONTH COHORT
A9: (02.01)_DTaP_IPV_Hib_or_DTaP_IPV_Hib_HepB.csv | B9: (02.01) DTaP/IPV/Hib Combined
A10: (02.02)_MMR.csv | B10: (02.02) MMR
A11: (02.03)_HiB_Men_C.csv | B11: (02.03) HiB/Men C
A12: (02.04)_PCV_(Booster).csv | B12: (02.04) PCV (Booster)
A13: (03)_5_YEAR_COHORT.csv | B13: (03) 5 YEAR COHORT
A14: (03.01)_DTaP_IPV_Hib_or_DTaP_IPV_Hib_HepB.csv | B14: (03.01) DTaP/IPV/Hib Combined
A15: (03.02)_MMR_(Primary).csv | B15: (03.02) MMR (Primary)
B16: (03.03) DTaP/IPV (Booster)
A17: (03.04)_HiB_Men_C.csv | B17: (03.04) HiB/Men C
B18: (03.05) MMR (Booster)
A19: (02.05)_Men_B_(Booster).csv | B19: (02.05) Men B (Booster)
A22: listsize_(WF_Dashboards_CEG___COVER_Audit_Child_Imms).csv | B22: All Patients | F22: listsize_(WF_Dashboards_CEG___COVER_Audit_Child_Imms).csv | G22: (01)_12_MONTH_COHORT_(WF_Dashboards_CEG___COVER_Audit_Child_Imms).csv | H22: (01.01)_DTaP_IPV_Hib_HepB_(WF_Dashboards_CEG___COVER_Audit_Child_Imms).csv | I22: (01.02)_Men_B_(1st_and_2nd)_(WF_Dashboards_CEG___COVER_Audit_Child_Imms).csv | J22: (01.03)_PCV_(WF_Dashboards_CEG___COVER_Audit_Child_Imms).csv | K22: (01.04)_Rotavirus_(WF_Dashboards_CEG___COVER_Audit_Child_Imms).csv | L22: (01.05)_BCG_(WF_Dashboards_CEG___COVER_Audit_Child_Imms).csv | M22: (02)_24_MONTH_COHORT_(WF_Dashboards_CEG___COVER_Audit_Child_Imms).csv | N22: (02.01)_DTaP_IPV_Hib_or_DTaP_IPV_Hib_HepB_(WF_Dashboards_CEG___COVER_Audit_Child_Imms).csv | O22: (02.02)_MMR_(WF_Dashboards_CEG___COVER_Audit_Child_Imms).csv | P22: (02.03)_HiB_Men_C_(WF_Dashboards_CEG___COVER_Audit_Child_Imms).csv | Q22: (02.04)_PCV_(Booster)_(WF_Dashboards_CEG___COVER_Audit_Child_Imms).csv | R22: (02.05)_Men_B_(Booster)_(WF_Dashboards_CEG___COVER_Audit_Child_Imms).csv | S22: (03)_5_YEAR_COHORT_(WF_Dashboards_CEG___COVER_Audit_Child_Imms).csv | T22: (03.01)_DTaP_IPV_Hib_or_DTaP_IPV_Hib_HepB_(WF_Dashboards_CEG___COVER_Audit_Child_Imms).csv | U22: (03.02)_MMR_(Primary)_(WF_Dashboards_CEG___COVER_Audit_Child_Imms).csv | V22: (03.03)_DTaP_IPV_(Booster)_(WF_Dashboards_CEG___COVER_Audit_Child_Imms).csv | W22: (03.04)_HiB_Men_C_(WF_Dashboards_CEG___COVER_Audit_Child_Imms).csv | X22: (03.05)_MMR_(Booster)_(WF_Dashboards_CEG___COVER_Audit_Child_Imms).csv
A23: (01)_12_MONTH_COHORT_(WF_Dashboards_CEG___COVER_Audit_Child_Imms).csv | B23: (01) 12 MONTH COHORT | E23: F86004 | F23: =VLOOKUP($E23,_S1[#All],MATCH(Lookup!F$22,_S1[#Headers],0),FALSE) -> 15970 | G23: =VLOOKUP($E23,_S1[#All],MATCH(Lookup!G$22,_S1[#Headers],0),FALSE) -> 51 | H23: =VLOOKUP($E23,_S1[#All],MATCH(Lookup!H$22,_S1[#Headers],0),FALSE) -> 47 | I23: =VLOOKUP($E23,_S1[#All],MATCH(Lookup!I$22,_S1[#Headers],0),FALSE) -> 46 | J23: =VLOOKUP($E23,_S1[#All],MATCH(Lookup!J$22,_S1[#Headers],0),FALSE) -> 46 | K23: =VLOOKUP($E23,_S1[#All],MATCH(Lookup!K$22,_S1[#Headers],0),FALSE) -> 46 | L23: =VLOOKUP($E23,_S1[#All],MATCH(Lookup!L$22,_S1[#Headers],0),FALSE) -> 9 | M23: =VLOOKUP($E23,_S1[#All],MATCH(Lookup!M$22,_S1[#Headers],0),FALSE) -> 53 | N23: =VLOOKUP($E23,_S1[#All],MATCH(Lookup!N$22,_S1[#Headers],0),FALSE) -> 50 | O23: =VLOOKUP($E23,_S1[#All],MATCH(Lookup!O$22,_S1[#Headers],0),FALSE) -> 27 | P23: =VLOOKUP($E23,_S1[#All],MATCH(Lookup!P$22,_S1[#Headers],0),FALSE) -> 53 | Q23: =VLOOKUP($E23,_S1[#All],MATCH(Lookup!Q$22,_S1[#Headers],0),FALSE) -> 53 | R23: =VLOOKUP($E23,_S1[#All],MATCH(Lookup!R$22,_S1[#Headers],0),FALSE) -> 52 | S23: =VLOOKUP($E23,_S1[#All],MATCH(Lookup!S$22,_S1[#Headers],0),FALSE) -> 58 | T23: =VLOOKUP($E23,_S1[#All],MATCH(Lookup!T$22,_S1[#Headers],0),FALSE) -> 37 | U23: =VLOOKUP($E23,_S1[#All],MATCH(Lookup!U$22,_S1[#Headers],0),FALSE) -> 36 | V23: =VLOOKUP($E23,_S1[#All],MATCH(Lookup!V$22,_S1[#Headers],0),FALSE) -> 47 | W23: =VLOOKUP($E23,_S1[#All],MATCH(Lookup!W$22,_S1[#Headers],0),FALSE) -> 41 | X23: =VLOOKUP($E23,_S1[#All],MATCH(Lookup!X$22,_S1[#Headers],0),FALSE) -> 2
A24: (01.01)_DTaP_IPV_Hib_HepB_(WF_Dashboards_CEG___COVER_Audit_Child_Imms).csv | B24: (01.01) DTaP/IPV/Hib 6in1 | E24: F86018 | F24: =VLOOKUP($E24,_S1[#All],MATCH(Lookup!F$22,_S1[#Headers],0),FALSE) -> 9966 | G24: =VLOOKUP($E24,_S1[#All],MATCH(Lookup!G$22,_S1[#Headers],0),FALSE) -> 17 | H24: =VLOOKUP($E24,_S1[#All],MATCH(Lookup!H$22,_S1[#Headers],0),FALSE) -> 17 | I24: =VLOOKUP($E24,_S1[#All],MATCH(Lookup!I$22,_S1[#Headers],0),FALSE) -> 16 | J24: =VLOOKUP($E24,_S1[#All],MATCH(Lookup!J$22,_S1[#Headers],0),FALSE) -> 16 | K24: =VLOOKUP($E24,_S1[#All],MATCH(Lookup!K$22,_S1[#Headers],0),FALSE) -> 0 | L24: =VLOOKUP($E24,_S1[#All],MATCH(Lookup!L$22,_S1[#Headers],0),FALSE) -> 3 | M24: =VLOOKUP($E24,_S1[#All],MATCH(Lookup!M$22,_S1[#Headers],0),FALSE) -> 30 | N24: =VLOOKUP($E24,_S1[#All],MATCH(Lookup!N$22,_S1[#Headers],0),FALSE) -> 27 | O24: =VLOOKUP($E24,_S1[#All],MATCH(Lookup!O$22,_S1[#Headers],0),FALSE) -> 2 | P24: =VLOOKUP($E24,_S1[#All],MATCH(Lookup!P$22,_S1[#Headers],0),FALSE) -> 25 | Q24: =VLOOKUP($E24,_S1[#All],MATCH(Lookup!Q$22,_S1[#Headers],0),FALSE) -> 26 | R24: =VLOOKUP($E24,_S1[#All],MATCH(Lookup!R$22,_S1[#Headers],0),FALSE) -> 26 | S24: =VLOOKUP($E24,_S1[#All],MATCH(Lookup!S$22,_S1[#Headers],0),FALSE) -> 28 | T24: =VLOOKUP($E24,_S1[#All],MATCH(Lookup!T$22,_S1[#Headers],0),FALSE) -> 18 | U24: =VLOOKUP($E24,_S1[#All],MATCH(Lookup!U$22,_S1[#Headers],0),FALSE) -> 8 | V24: =VLOOKUP($E24,_S1[#All],MATCH(Lookup!V$22,_S1[#Headers],0),FALSE) -> 15 | W24: =VLOOKUP($E24,_S1[#All],MATCH(Lookup!W$22,_S1[#Headers],0),FALSE) -> 21 | X24: =VLOOKUP($E24,_S1[#All],MATCH(Lookup!X$22,_S1[#Headers],0),FALSE) -> 2
A25: (01.02)_Men_B_(1st_and_2nd)_(WF_Dashboards_CEG___COVER_Audit_Child_Imms).csv | B25: (01.02) Men B (1st and 2nd) | E25: F86026 | F25: =VLOOKUP($E25,_S1[#All],MATCH(Lookup!F$22,_S1[#Headers],0),FALSE) -> 7223 | G25: =VLOOKUP($E25,_S1[#All],MATCH(Lookup!G$22,_S1[#Headers],0),FALSE) -> 11 | H25: =VLOOKUP($E25,_S1[#All],MATCH(Lookup!H$22,_S1[#Headers],0),FALSE) -> 9 | I25: =VLOOKUP($E25,_S1[#All],MATCH(Lookup!I$22,_S1[#Headers],0),FALSE) -> 9 | J25: =VLOOKUP($E25,_S1[#All],MATCH(Lookup!J$22,_S1[#Headers],0),FALSE) -> 9 | K25: =VLOOKUP($E25,_S1[#All],MATCH(Lookup!K$22,_S1[#Headers],0),FALSE) -> 8 | L25: =VLOOKUP($E25,_S1[#All],MATCH(Lookup!L$22,_S1[#Headers],0),FALSE) -> 0 | M25: =VLOOKUP($E25,_S1[#All],MATCH(Lookup!M$22,_S1[#Headers],0),FALSE) -> 21 | N25: =VLOOKUP($E25,_S1[#All],MATCH(Lookup!N$22,_S1[#Headers],0),FALSE) -> 17 | O25: =VLOOKUP($E25,_S1[#All],MATCH(Lookup!O$22,_S1[#Headers],0),FALSE) -> 1 | P25: =VLOOKUP($E25,_S1[#All],MATCH(Lookup!P$22,_S1[#Headers],0),FALSE) -> 17 | Q25: =VLOOKUP($E25,_S1[#All],MATCH(Lookup!Q$22,_S1[#Headers],0),FALSE) -> 18 | R25: =VLOOKUP($E25,_S1[#All],MATCH(Lookup!R$22,_S1[#Headers],0),FALSE) -> 17 | S25: =VLOOKUP($E25,_S1[#All],MATCH(Lookup!S$22,_S1[#Headers],0),FALSE) -> 22 | T25: =VLOOKUP($E25,_S1[#All],MATCH(Lookup!T$22,_S1[#Headers],0),FALSE) -> 8 | U25: =VLOOKUP($E25,_S1[#All],MATCH(Lookup!U$22,_S1[#Headers],0),FALSE) -> 8 | V25: =VLOOKUP($E25,_S1[#All],MATCH(Lookup!V$22,_S1[#Headers],0),FALSE) -> 14 | W25: =VLOOKUP($E25,_S1[#All],MATCH(Lookup!W$22,_S1[#Headers],0),FALSE) -> 10 | X25: =VLOOKUP($E25,_S1[#All],MATCH(Lookup!X$22,_S1[#Headers],0),FALSE) -> 0
A26: (01.03)_PCV_(WF_Dashboards_CEG___COVER_Audit_Child_Imms).csv | B26: (01.03) PCV | E26: F86074 | F26: =VLOOKUP($E26,_S1[#All],MATCH(Lookup!F$22,_S1[#Headers],0),FALSE) -> 15092 | G26: =VLOOKUP($E26,_S1[#All],MATCH(Lookup!G$22,_S1[#Headers],0),FALSE) -> 39 | H26: =VLOOKUP($E26,_S1[#All],MATCH(Lookup!H$22,_S1[#Headers],0),FALSE) -> 37 | I26: =VLOOKUP($E26,_S1[#All],MATCH(Lookup!I$22,_S1[#Headers],0),FALSE) -> 34 | J26: =VLOOKUP($E26,_S1[#All],MATCH(Lookup!J$22,_S1[#Headers],0),FALSE) -> 34 | K26: =VLOOKUP($E26,_S1[#All],MATCH(Lookup!K$22,_S1[#Headers],0),FALSE) -> 25 | L26: =VLOOKUP($E26,_S1[#All],MATCH(Lookup!L$22,_S1[#Headers],0),FALSE) -> 7 | M26: =VLOOKUP($E26,_S1[#All],MATCH(Lookup!M$22,_S1[#Headers],0),FALSE) -> 52 | N26: =VLOOKUP($E26,_S1[#All],MATCH(Lookup!N$22,_S1[#Headers],0),FALSE) -> 42 | O26: =VLOOKUP($E26,_S1[#All],MATCH(Lookup!O$22,_S1[#Headers],0),FALSE) -> 17 | P26: =VLOOKUP($E26,_S1[#All],MATCH(Lookup!P$22,_S1[#Headers],0),FALSE) -> 32 | Q26: =VLOOKUP($E26,_S1[#All],MATCH(Lookup!Q$22,_S1[#Headers],0),FALSE) -> 43 | R26: =VLOOKUP($E26,_S1[#All],MATCH(Lookup!R$22,_S1[#Headers],0),FALSE) -> 43 | S26: =VLOOKUP($E26,_S1[#All],MATCH(Lookup!S$22,_S1[#Headers],0),FALSE) -> 53 | T26: =VLOOKUP($E26,_S1[#All],MATCH(Lookup!T$22,_S1[#Headers],0),FALSE) -> 29 | U26: =VLOOKUP($E26,_S1[#All],MATCH(Lookup!U$22,_S1[#Headers],0),FALSE) -> 30 | V26: =VLOOKUP($E26,_S1[#All],MATCH(Lookup!V$22,_S1[#Headers],0),FALSE) -> 33 | W26: =VLOOKUP($E26,_S1[#All],MATCH(Lookup!W$22,_S1[#Headers],0),FALSE) -> 31 | X26: =VLOOKUP($E26,_S1[#All],MATCH(Lookup!X$22,_S1[#Headers],0),FALSE) -> 0
A27: (01.04)_Rotavirus_(WF_Dashboards_CEG___COVER_Audit_Child_Imms).csv | B27: (01.04) Rotavirus | E27: F86638 | F27: =VLOOKUP($E27,_S1[#All],MATCH(Lookup!F$22,_S1[#Headers],0),FALSE) -> 5199 | G27: =VLOOKUP($E27,_S1[#All],MATCH(Lookup!G$22,_S1[#Headers],0),FALSE) -> 17 | H27: =VLOOKUP($E27,_S1[#All],MATCH(Lookup!H$22,_S1[#Headers],0),FALSE) -> 12 | I27: =VLOOKUP($E27,_S1[#All],MATCH(Lookup!I$22,_S1[#Headers],0),FALSE) -> 12 | J27: =VLOOKUP($E27,_S1[#All],MATCH(Lookup!J$22,_S1[#Headers],0),FALSE) -> 12 | K27: =VLOOKUP($E27,_S1[#All],MATCH(Lookup!K$22,_S1[#Headers],0),FALSE) -> 1 | L27: =VLOOKUP($E27,_S1[#All],MATCH(Lookup!L$22,_S1[#Headers],0),FALSE) -> 2 | M27: =VLOOKUP($E27,_S1[#All],MATCH(Lookup!M$22,_S1[#Headers],0),FALSE) -> 18 | N27: =VLOOKUP($E27,_S1[#All],MATCH(Lookup!N$22,_S1[#Headers],0),FALSE) -> 13 | O27: =VLOOKUP($E27,_S1[#All],MATCH(Lookup!O$22,_S1[#Headers],0),FALSE) -> 1 | P27: =VLOOKUP($E27,_S1[#All],MATCH(Lookup!P$22,_S1[#Headers],0),FALSE) -> 12 | Q27: =VLOOKUP($E27,_S1[#All],MATCH(Lookup!Q$22,_S1[#Headers],0),FALSE) -> 13 | R27: =VLOOKUP($E27,_S1[#All],MATCH(Lookup!R$22,_S1[#Headers],0),FALSE) -> 14 | S27: =VLOOKUP($E27,_S1[#All],MATCH(Lookup!S$22,_S1[#Headers],0),FALSE) -> 20 | T27: =VLOOKUP($E27,_S1[#All],MATCH(Lookup!T$22,_S1[#Headers],0),FALSE) -> 14 | U27: =VLOOKUP($E27,_S1[#All],MATCH(Lookup!U$22,_S1[#Headers],0),FALSE) -> 2 | V27: =VLOOKUP($E27,_S1[#All],MATCH(Lookup!V$22,_S1[#Headers],0),FALSE) -> 9 | W27: =VLOOKUP($E27,_S1[#All],MATCH(Lookup!W$22,_S1[#Headers],0),FALSE) -> 16 | X27: =VLOOKUP($E27,_S1[#All],MATCH(Lookup!X$22,_S1[#Headers],0),FALSE) -> 1
A28: (01.05)_BCG_(WF_Dashboards_CEG___COVER_Audit_Child_Imms).csv | B28: (01.05) BCG
A29: (02)_24_MONTH_COHORT_(WF_Dashboards_CEG___COVER_Audit_Child_Imms).csv | B29: (02) 24 MONTH COHORT | F29: All Patients | G29: (01) 12 MONTH COHORT | H29: (01.01) DTaP/IPV/Hib 6in1 | I29: (01.02) Men B (1st and 2nd) | J29: (01.03) PCV | K29: (01.04) Rotavirus | L29: (01.05) BCG | M29: (02) 24 MONTH COHORT | N29: (02.01) DTaP/IPV/Hib Combined | O29: (02.02) MMR | P29: (02.03) HiB/Men C | Q29: (02.04) PCV (Booster) | R29: (02.05) Men B (Booster) | S29: (03) 5 YEAR COHORT | T29: (03.01) DTaP/IPV/Hib Combined | U29: (03.02) MMR (Primary) | V29: (03.03) DTaP/IPV (Booster) | W29: (03.04) HiB/Men C | X29: (03.05) MMR (Booster)
A30: (02.01)_DTaP_IPV_Hib_or_DTaP_IPV_Hib_HepB_(WF_Dashboards_CEG___COVER_Audit_Child_Imms).csv | B30: (02.01) DTaP/IPV/Hib Combined
A31: (02.02)_MMR_(WF_Dashboards_CEG___COVER_Audit_Child_Imms).csv | B31: (02.02) MMR
A32: (02.03)_HiB_Men_C_(WF_Dashboards_CEG___COVER_Audit_Child_Imms).csv | B32: (02.03) HiB/Men C | H32: _(WF_Dashboards_CEG___COVER_Audit_Child_Imms).csv
A33: (02.04)_PCV_(Booster)_(WF_Dashboards_CEG___COVER_Audit_Child_Imms).csv | B33: (02.04) PCV (Booster)
A34: (03)_5_YEAR_COHORT_(WF_Dashboards_CEG___COVER_Audit_Child_Imms).csv | B34: (03) 5 YEAR COHORT
A35: (03.01)_DTaP_IPV_Hib_or_DTaP_IPV_Hib_HepB_(WF_Dashboards_CEG___COVER_Audit_Child_Imms).csv | B35: (03.01) DTaP/IPV/Hib Combined
A36: (03.02)_MMR_(Primary)_(WF_Dashboards_CEG___COVER_Audit_Child_Imms).csv | B36: (03.02) MMR (Primary) | G36: _(WF_Dashboards_CEG___COVER_Audit_Child_Imms).csv
A37: (03.03)_DTaP_IPV_(Booster)_(WF_Dashboards_CEG___COVER_Audit_Child_Imms).csv | B37: (03.03) DTaP/IPV (Booster)
A38: (03.04)_HiB_Men_C_(WF_Dashboards_CEG___COVER_Audit_Child_Imms).csv | B38: (03.04) HiB/Men C
A39: (03.05)_MMR_(Booster)_(WF_Dashboards_CEG___COVER_Audit_Child_Imms).csv | B39: (03.05) MMR (Booster)
A40: (02.05)_Men_B_(Booster)_(WF_Dashboards_CEG___COVER_Audit_Child_Imms).csv | B40: (02.05) Men B (Booster)

Sheet Data (hidden)
A1: 2019-04-01 | B1: =VLOOKUP(J1,'Control Panel'!$G$132:$K$171,5,FALSE) ->  | C1: Childhood Immunisations Q1 | E1: Last Run: | G1: Population Count | H1: 283256 | K1: Search | L1: All Patients | M1: (01) 12 MONTH COHORT | N1: (01.01) DTaP/IPV/Hib 6in1 | O1: (01.02) Men B (1st and 2nd) | P1: (01.03) PCV | Q1: (01.04) Rotavirus | R1: (01.05) BCG | S1: (02) 24 MONTH COHORT | T1: (02.01) DTaP/IPV/Hib or DTaP/IPV/Hib/HepB | U1: (02.02) MMR | V1: (02.03) HiB/Men C | W1: (02.04) PCV (Booster) | X1: (02.05) Men B (Booster) | Y1: (03) 5 YEAR COHORT | Z1: (03.01) DTaP/IPV/Hib or DTaP/IPV/Hib/HepB | AA1: (03.02) MMR (Primary) | AB1: (03.03) DTaP/IPV (Booster) | AC1: (03.04) HiB/Men C | AD1: (03.05) MMR (Booster)
A2: 2019-04-01 | B2: =VLOOKUP(J2,'Control Panel'!$G$132:$K$171,5,FALSE) ->  | E2: 2019-05-14T11:19:00 | G2: Males | H2: 144492 | J2: Organisation Code
A3: 2019-04-01 | B3: =VLOOKUP(J3,'Control Panel'!$G$132:$K$171,5,FALSE) -> WF-6 | C3: WF | E3: Relative Date: | G3: Females | H3: 138764 | J3: F86001 | L3: 7940 | M3: 21 | N3: 21 | O3: 21 | P3: 21 | Q3: 19 | R3: 3 | S3: 30 | T3: 25 | U3: 20 | V3: 20 | W3: 20 | X3: 20 | Y3: 22 | Z3: 17 | AA3: 15 | AB3: 10 | AC3: 16 | AD3: 12
A4: 2019-04-01 | B4: =VLOOKUP(J4,'Control Panel'!$G$132:$K$171,5,FALSE) -> WF-1 | C4: WF | E4: 2019-05-01 | J4: F86005 | L4: 8200 | M4: 54 | N4: 45 | O4: 45 | P4: 46 | Q4: 47 | R4: 3 | S4: 31 | T4: 31 | U4: 30 | V4: 29 | W4: 29 | X4: 30 | Y4: 28 | Z4: 27 | AA4: 26 | AB4: 19 | AC4: 26 | AD4: 20
A5: 2019-04-01 | B5: =VLOOKUP(J5,'Control Panel'!$G$132:$K$171,5,FALSE) -> WF-7 | C5: WF | J5: F86006 | L5: 6199 | M5: 23 | N5: 17 | O5: 17 | P5: 17 | Q5: 18 | R5: 3 | S5: 26 | T5: 24 | U5: 22 | V5: 22 | W5: 23 | X5: 22 | Y5: 19 | Z5: 17 | AA5: 16 | AB5: 11 | AC5: 15 | AD5: 11
A6: 2019-04-01 | B6: =VLOOKUP(J6,'Control Panel'!$G$132:$K$171,5,FALSE) -> WF-3 | C6: WF | J6: F86011 | L6: 9264 | M6: 29 | N6: 22 | O6: 23 | P6: 23 | Q6: 20 | R6: 2 | S6: 28 | T6: 23 | U6: 21 | V6: 20 | W6: 21 | X6: 20 | Y6: 17 | Z6: 14 | AA6: 15 | AB6: 14 | AC6: 14 | AD6: 14
A7: 2019-04-01 | B7: =VLOOKUP(J7,'Control Panel'!$G$132:$K$171,5,FALSE) -> WF-7 | C7: WF | J7: F86030 | L7: 8091 | M7: 39 | N7: 34 | O7: 34 | P7: 35 | Q7: 33 | R7: 13 | S7: 41 | T7: 40 | U7: 40 | V7: 40 | W7: 40 | X7: 40 | Y7: 22 | Z7: 20 | AA7: 21 | AB7: 18 | AC7: 21 | AD7: 20
A8: 2019-04-01 | B8: =VLOOKUP(J8,'Control Panel'!$G$132:$K$171,5,FALSE) -> WF-4 | C8: WF | J8: F86036 | L8: 15793 | M8: 44 | N8: 41 | O8: 41 | P8: 41 | Q8: 40 | R8: 20 | S8: 50 | T8: 48 | U8: 45 | V8: 45 | W8: 45 | X8: 45 | Y8: 43 | Z8: 39 | AA8: 40 | AB8: 38 | AC8: 39 | AD8: 37
A9: 2019-04-01 | B9: =VLOOKUP(J9,'Control Panel'!$G$132:$K$171,5,FALSE) -> WF-3 | C9: WF | J9: F86038 | L9: 10989 | M9: 47 | N9: 37 | O9: 37 | P9: 38 | Q9: 37 | R9: 3 | S9: 43 | T9: 38 | U9: 34 | V9: 35 | W9: 35 | X9: 34 | Y9: 38 | Z9: 32 | AA9: 32 | AB9: 24 | AC9: 30 | AD9: 25
A10: 2019-04-01 | B10: =VLOOKUP(J10,'Control Panel'!$G$132:$K$171,5,FALSE) -> WF-4 | C10: WF | J10: F86044 | L10: 8955 | M10: 35 | N10: 27 | O10: 27 | P10: 27 | Q10: 26 | R10: 7 | S10: 35 | T10: 27 | U10: 25 | V10: 26 | W10: 26 | X10: 25 | Y10: 22 | Z10: 16 | AA10: 17 | AB10: 13 | AC10: 16 | AD10: 14
A11: 2019-04-01 | B11: =VLOOKUP(J11,'Control Panel'!$G$132:$K$171,5,FALSE) -> WF-5 | C11: WF | J11: F86045 | L11: 1912 | M11: 4 | N11: 4 | O11: 3 | P11: 4 | Q11: 4 | R11: 2 | S11: 0 | T11: 0 | U11: 0 | V11: 0 | W11: 0 | X11: 0 | Y11: 4 | Z11: 4 | AA11: 4 | AB11: 4 | AC11: 3 | AD11: 4
A12: 2019-04-01 | B12: =VLOOKUP(J12,'Control Panel'!$G$132:$K$171,5,FALSE) -> WF-7 | C12: WF | J12: F86058 | L12: 15128 | M12: 65 | N12: 51 | O12: 51 | P12: 51 | Q12: 53 | R12: 12 | S12: 68 | T12: 55 | U12: 51 | V12: 51 | W12: 52 | X12: 52 | Y12: 62 | Z12: 55 | AA12: 52 | AB12: 42 | AC12: 53 | AD12: 44
A13: 2019-04-01 | B13: =VLOOKUP(J13,'Control Panel'!$G$132:$K$171,5,FALSE) -> WF-7 | C13: WF | J13: F86062 | L13: 7084 | M13: 28 | N13: 24 | O13: 24 | P13: 25 | Q13: 25 | R13: 9 | S13: 21 | T13: 19 | U13: 16 | V13: 16 | W13: 16 | X13: 16 | Y13: 22 | Z13: 20 | AA13: 20 | AB13: 14 | AC13: 19 | AD13: 15
A14: 2019-04-01 | B14: =VLOOKUP(J14,'Control Panel'!$G$132:$K$171,5,FALSE) -> WF-2 | C14: WF | J14: F86078 | L14: 7360 | M14: 14 | N14: 13 | O14: 13 | P14: 13 | Q14: 10 | R14: 6 | S14: 13 | T14: 13 | U14: 12 | V14: 12 | W14: 12 | X14: 12 | Y14: 18 | Z14: 18 | AA14: 17 | AB14: 11 | AC14: 17 | AD14: 14
A15: 2019-04-01 | B15: =VLOOKUP(J15,'Control Panel'!$G$132:$K$171,5,FALSE) -> WF-6 | C15: WF | J15: F86086 | L15: 5885 | M15: 22 | N15: 20 | O15: 20 | P15: 20 | Q15: 19 | R15: 7 | S15: 30 | T15: 26 | U15: 22 | V15: 22 | W15: 22 | X15: 22 | Y15: 21 | Z15: 6 | AA15: 18 | AB15: 12 | AC15: 17 | AD15: 14
A16: 2019-04-01 | B16: =VLOOKUP(J16,'Control Panel'!$G$132:$K$171,5,FALSE) -> WF-4 | C16: WF | J16: F86088 | L16: 4746 | M16: 11 | N16: 9 | O16: 9 | P16: 9 | Q16: 9 | R16: 1 | S16: 7 | T16: 6 | U16: 3 | V16: 3 | W16: 4 | X16: 3 | Y16: 5 | Z16: 3 | AA16: 4 | AB16: 3 | AC16: 5 | AD16: 3
A17: 2019-04-01 | B17: =VLOOKUP(J17,'Control Panel'!$G$132:$K$171,5,FALSE) -> WF-6 | C17: WF | J17: F86607 | L17: 14154 | M17: 55 | N17: 48 | O17: 48 | P17: 49 | Q17: 48 | R17: 22 | S17: 48 | T17: 45 | U17: 42 | V17: 44 | W17: 42 | X17: 43 | Y17: 48 | Z17: 46 | AA17: 43 | AB17: 38 | AC17: 42 | AD17: 45
A18: 2019-04-01 | B18: =VLOOKUP(J18,'Control Panel'!$G$132:$K$171,5,FALSE) -> WF-2 | C18: WF | J18: F86616 | L18: 6670 | M18: 18 | N18: 13 | O18: 13 | P18: 15 | Q18: 15 | R18: 1 | S18: 45 | T18: 39 | U18: 36 | V18: 37 | W18: 37 | X18: 35 | Y18: 15 | Z18: 13 | AA18: 12 | AB18: 11 | AC18: 11 | AD18: 10
A19: 2019-04-01 | B19: =VLOOKUP(J19,'Control Panel'!$G$132:$K$171,5,FALSE) -> WF-5 | C19: WF | J19: F86621 | L19: 5674 | M19: 19 | N19: 17 | O19: 18 | P19: 18 | Q19: 19 | R19: 7 | S19: 22 | T19: 21 | U19: 20 | V19: 20 | W19: 20 | X19: 19 | Y19: 12 | Z19: 2 | AA19: 2 | AB19: 8 | AC19: 2 | AD19: 9
A20: 2019-04-01 | B20: =VLOOKUP(J20,'Control Panel'!$G$132:$K$171,5,FALSE) -> WF-5 | C20: WF | J20: F86625 | L20: 6111 | M20: 15 | N20: 12 | O20: 12 | P20: 12 | Q20: 12 | R20: 4 | S20: 19 | T20: 17 | U20: 17 | V20: 17 | W20: 17 | X20: 17 | Y20: 18 | Z20: 17 | AA20: 15 | AB20: 13 | AC20: 4 | AD20: 14
A21: 2019-04-01 | B21: =VLOOKUP(J21,'Control Panel'!$G$132:$K$171,5,FALSE) -> WF-1 | C21: WF | J21: F86626 | L21: 5297 | M21: 14 | N21: 11 | O21: 11 | P21: 11 | Q21: 13 | R21: 4 | S21: 13 | T21: 13 | U21: 10 | V21: 10 | W21: 11 | X21: 11 | Y21: 22 | Z21: 22 | AA21: 18 | AB21: 15 | AC21: 13 | AD21: 15
A22: 2019-04-01 | B22: =VLOOKUP(J22,'Control Panel'!$G$132:$K$171,5,FALSE) -> WF-2 | C22: WF | J22: F86627 | L22: 13888 | M22: 35 | N22: 31 | O22: 29 | P22: 31 | Q22: 27 | R22: 11 | S22: 33 | T22: 33 | U22: 28 | V22: 29 | W22: 29 | X22: 29 | Y22: 42 | Z22: 36 | AA22: 36 | AB22: 35 | AC22: 35 | AD22: 35
A23: 2019-04-01 | B23: =VLOOKUP(J23,'Control Panel'!$G$132:$K$171,5,FALSE) -> WF-6 | C23: WF | J23: F86644 | L23: 10867 | M23: 34 | N23: 25 | O23: 25 | P23: 26 | Q23: 24 | R23: 6 | S23: 39 | T23: 36 | U23: 28 | V23: 28 | W23: 30 | X23: 30 | Y23: 37 | Z23: 32 | AA23: 34 | AB23: 18 | AC23: 30 | AD23: 27
A24: 2019-04-01 | B24: =VLOOKUP(J24,'Control Panel'!$G$132:$K$171,5,FALSE) -> WF-4 | C24: WF | J24: F86650 | L24: 8202 | M24: 32 | N24: 24 | O24: 24 | P24: 24 | Q24: 23 | R24: 3 | S24: 29 | T24: 26 | U24: 24 | V24: 24 | W24: 24 | X24: 23 | Y24: 24 | Z24: 20 | AA24: 19 | AB24: 11 | AC24: 20 | AD24: 11
A25: 2019-04-01 | B25: =VLOOKUP(J25,'Control Panel'!$G$132:$K$171,5,FALSE) -> WF-1 | C25: WF | J25: F86664 | L25: 8332 | M25: 25 | N25: 22 | O25: 21 | P25: 22 | Q25: 23 | R25: 2 | S25: 27 | T25: 25 | U25: 23 | V25: 23 | W25: 24 | X25: 23 | Y25: 32 | Z25: 30 | AA25: 27 | AB25: 28 | AC25: 28 | AD25: 28
A26: 2019-04-01 | B26: =VLOOKUP(J26,'Control Panel'!$G$132:$K$171,5,FALSE) -> WF-5 | C26: WF | J26: F86666 | L26: 14133 | M26: 43 | N26: 39 | O26: 38 | P26: 38 | Q26: 38 | R26: 14 | S26: 44 | T26: 41 | U26: 38 | V26: 39 | W26: 39 | X26: 39 | Y26: 52 | Z26: 43 | AA26: 44 | AB26: 41 | AC26: 43 | AD26: 43
A27: 2019-04-01 | B27: =VLOOKUP(J27,'Control Panel'!$G$132:$K$171,5,FALSE) -> WF-7 | C27: WF | J27: F86679 | L27: 5757 | M27: 30 | N27: 27 | O27: 25 | P27: 26 | Q27: 27 | R27: 9 | S27: 21 | T27: 18 | U27: 19 | V27: 19 | W27: 20 | X27: 19 | Y27: 18 | Z27: 6 | AA27: 7 | AB27: 11 | AC27: 8 | AD27: 13
A28: 2019-04-01 | B28: =VLOOKUP(J28,'Control Panel'!$G$132:$K$171,5,FALSE) -> WF-1 | C28: WF | J28: F86689 | L28: 4059 | M28: 36 | N28: 36 | O28: 35 | P28: 36 | Q28: 36 | R28: 9 | S28: 30 | T28: 25 | U28: 24 | V28: 25 | W28: 25 | X28: 25 | Y28: 13 | Z28: 7 | AA28: 11 | AB28: 8 | AC28: 11 | AD28: 8
A29: 2019-04-01 | B29: =VLOOKUP(J29,'Control Panel'!$G$132:$K$171,5,FALSE) -> WF-4 | C29: WF | J29: F86696 | L29: 5139 | M29: 11 | N29: 10 | O29: 10 | P29: 11 | Q29: 10 | R29: 0 | S29: 18 | T29: 13 | U29: 13 | V29: 14 | W29: 13 | X29: 12 | Y29: 18 | Z29: 16 | AA29: 16 | AB29: 12 | AC29: 16 | AD29: 14
A30: 2019-04-01 | B30: =VLOOKUP(J30,'Control Panel'!$G$132:$K$171,5,FALSE) -> WF-1 | C30: WF | J30: F86700 | L30: 3772 | M30: 13 | N30: 12 | O30: 12 | P30: 12 | Q30: 12 | R30: 3 | S30: 11 | T30: 11 | U30: 10 | V30: 10 | W30: 10 | X30: 9 | Y30: 15 | Z30: 15 | AA30: 15 | AB30: 14 | AC30: 15 | AD30: 15
A31: 2019-04-01 | B31: =VLOOKUP(J31,'Control Panel'!$G$132:$K$171,5,FALSE) -> WF-5 | C31: WF | J31: F86701 | L31: 3282 | M31: 9 | N31: 9 | O31: 9 | P31: 9 | Q31: 9 | R31: 1 | S31: 9 | T31: 9 | U31: 9 | V31: 9 | W31: 9 | X31: 9 | Y31: 11 | Z31: 6 | AA31: 6 | AB31: 8 | AC31: 5 | AD31: 9
A32: 2019-04-01 | B32: =VLOOKUP(J32,'Control Panel'!$G$132:$K$171,5,FALSE) -> WF-5 | C32: WF | J32: F86705 | L32: 3029 | M32: 14 | N32: 13 | O32: 13 | P32: 13 | Q32: 13 | R32: 10 | S32: 10 | T32: 10 | U32: 8 | V32: 6 | W32: 6 | X32: 7 | Y32: 10 | Z32: 10 | AA32: 10 | AB32: 9 | AC32: 9 | AD32: 9
A33: 2019-04-01 | B33: =VLOOKUP(J33,'Control Panel'!$G$132:$K$171,5,FALSE) -> WF-6 | C33: WF | J33: F86708 | L33: 2776 | M33: 9 | N33: 9 | O33: 9 | P33: 9 | Q33: 8 | R33: 6 | S33: 9 | T33: 8 | U33: 7 | V33: 7 | W33: 7 | X33: 7 | Y33: 4 | Z33: 4 | AA33: 3 | AB33: 2 | AC33: 3 | AD33: 2
A34: 2019-04-01 | B34: =VLOOKUP(J34,'Control Panel'!$G$132:$K$171,5,FALSE) -> WF-4 | C34: WF | J34: F86712 | L34: 3085 | M34: 4 | N34: 3 | O34: 3 | P34: 3 | Q34: 3 | R34: 1 | S34: 7 | T34: 6 | U34: 6 | V34: 6 | W34: 6 | X34: 6 | Y34: 8 | Z34: 2 | AA34: 6 | AB34: 5 | AC34: 6 | AD34: 6
A35: 2019-04-01 | B35: =VLOOKUP(J35,'Control Panel'!$G$132:$K$171,5,FALSE) -> WF-2 | C35: WF | J35: Y01291 | L35: 8792 | M35: 24 | N35: 23 | O35: 23 | P35: 23 | Q35: 19 | R35: 4 | S35: 32 | T35: 30 | U35: 29 | V35: 29 | W35: 29 | X35: 29 | Y35: 33 | Z35: 33 | AA35: 32 | AB35: 30 | AC35: 31 | AD35: 30
A36: 2019-04-01 | B36: =VLOOKUP(J36,'Control Panel'!$G$132:$K$171,5,FALSE) -> WF-1 | C36: WF | J36: Y01839 | L36: 6549 | M36: 32 | N36: 27 | O36: 27 | P36: 27 | Q36: 27 | R36: 8 | S36: 23 | T36: 22 | U36: 20 | V36: 21 | W36: 21 | X36: 21 | Y36: 30 | Z36: 28 | AA36: 28 | AB36: 24 | AC36: 28 | AD36: 24
A37: 2019-04-01 | B37: =VLOOKUP(J37,'Control Panel'!$G$132:$K$171,5,FALSE) -> WF-3 | C37: WF | J37: Y02585 | L37: 8112 | M37: 30 | N37: 21 | O37: 20 | P37: 21 | Q37: 20 | R37: 13 | S37: 36 | T37: 30 | U37: 23 | V37: 23 | W37: 25 | X37: 26 | Y37: 31 | Z37: 30 | AA37: 28 | AB37: 24 | AC37: 29 | AD37: 25
A38: 2019-04-01 | B38: =VLOOKUP(J38,'Control Panel'!$G$132:$K$171,5,FALSE) ->  | J38: Total | L38: 269627 | M38: 950 | N38: 809 | O38: 801 | P38: 818 | Q38: 798 | R38: 236 | S38: 960 | T38: 864 | U38: 785 | V38: 791 | W38: 799 | X38: 790 | Y38: 848 | Z38: 716 | AA38: 719 | AB38: 607 | AC38: 690 | AD38: 648
A39: 2019-03-01 | B39: =VLOOKUP(J39,'Control Panel'!$G$132:$K$171,5,FALSE) ->  | C39: Childhood Immunisations Q4 | E39: Last Run: | G39: Population Count | H39: 281164 | K39: Search | L39: All Patients | M39: (01) 12 MONTH COHORT | N39: (01.01) DTaP/IPV/Hib 6in1 | O39: (01.02) Men B (1st and 2nd) | P39: (01.03) PCV | Q39: (01.04) Rotavirus | R39: (01.05) BCG | S39: (02) 24 MONTH COHORT | T39: (02.01) DTaP/IPV/Hib Combined | U39: (02.02) MMR | V39: (02.03) HiB/Men C | W39: (02.04) PCV (Booster) | X39: (02.05) Men B (Booster) | Y39: (03) 5 YEAR COHORT | Z39: (03.01) DTaP/IPV/Hib Combined | AA39: (03.02) MMR (Primary) | AB39: (03.03) DTaP/IPV (Booster) | AC39: (03.04) HiB/Men C | AD39: (03.05) MMR (Booster)
A40: 2019-03-01 | B40: =VLOOKUP(J40,'Control Panel'!$G$132:$K$171,5,FALSE) ->  | E40: 2019-05-14T13:20:00 | G40: Males | H40: 143400 | J40: Organisation Code
A41: 2019-03-01 | B41: =VLOOKUP(J41,'Control Panel'!$G$132:$K$171,5,FALSE) ->  | E41: Relative Date: | G41: Females | H41: 137764 | J41: F84676 | L41: 4393 | M41: 10 | N41: 10 | O41: 10 | P41: 10 | Q41: 10 | R41: 1 | S41: 16 | T41: 14 | U41: 14 | V41: 14 | W41: 14 | X41: 14 | Y41: 19 | Z41: 18 | AA41: 18 | AB41: 19 | AC41: 18 | AD41: 18
A42: 2019-03-01 | B42: =VLOOKUP(J42,'Control Panel'!$G$132:$K$171,5,FALSE) -> WF-6 | C42: WF | E42: 2019-04-01 | J42: F86001 | L42: 7948 | M42: 18 | N42: 17 | O42: 17 | P42: 17 | Q42: 16 | R42: 7 | S42: 33 | T42: 32 | U42: 27 | V42: 27 | W42: 29 | X42: 29 | Y42: 18 | Z42: 18 | AA42: 12 | AB42: 15 | AC42: 18 | AD42: 17
A43: 2019-03-01 | B43: =VLOOKUP(J43,'Control Panel'!$G$132:$K$171,5,FALSE) -> WF-1 | C43: WF | J43: F86005 | L43: 8169 | M43: 43 | N43: 39 | O43: 38 | P43: 41 | Q43: 39 | R43: 4 | S43: 36 | T43: 34 | U43: 32 | V43: 31 | W43: 31 | X43: 30 | Y43: 29 | Z43: 10 | AA43: 27 | AB43: 22 | AC43: 24 | AD43: 25
A44: 2019-03-01 | B44: =VLOOKUP(J44,'Control Panel'!$G$132:$K$171,5,FALSE) -> WF-7 | C44: WF | J44: F86006 | L44: 6181 | M44: 21 | N44: 18 | O44: 17 | P44: 18 | Q44: 17 | R44: 2 | S44: 20 | T44: 16 | U44: 17 | V44: 16 | W44: 16 | X44: 16 | Y44: 15 | Z44: 15 | AA44: 15 | AB44: 9 | AC44: 15 | AD44: 13
A45: 2019-03-01 | B45: =VLOOKUP(J45,'Control Panel'!$G$132:$K$171,5,FALSE) -> WF-3 | C45: WF | J45: F86011 | L45: 9257 | M45: 23 | N45: 19 | O45: 19 | P45: 19 | Q45: 21 | R45: 3 | S45: 19 | T45: 15 | U45: 12 | V45: 13 | W45: 13 | X45: 13 | Y45: 28 | Z45: 24 | AA45: 23 | AB45: 21 | AC45: 24 | AD45: 19
A46: 2019-03-01 | B46: =VLOOKUP(J46,'Control Panel'!$G$132:$K$171,5,FALSE) -> WF-7 | C46: WF | J46: F86030 | L46: 8111 | M46: 17 | N46: 14 | O46: 16 | P46: 16 | Q46: 14 | R46: 3 | S46: 29 | T46: 29 | U46: 27 | V46: 27 | W46: 27 | X46: 26 | Y46: 27 | Z46: 26 | AA46: 26 | AB46: 26 | AC46: 25 | AD46: 27
A47: 2019-03-01 | B47: =VLOOKUP(J47,'Control Panel'!$G$132:$K$171,5,FALSE) -> WF-4 | C47: WF | J47: F86036 | L47: 15689 | M47: 48 | N47: 45 | O47: 44 | P47: 45 | Q47: 43 | R47: 27 | S47: 51 | T47: 51 | U47: 48 | V47: 48 | W47: 49 | X47: 49 | Y47: 44 | Z47: 42 | AA47: 41 | AB47: 36 | AC47: 40 | AD47: 36
A48: 2019-03-01 | B48: =VLOOKUP(J48,'Control Panel'!$G$132:$K$171,5,FALSE) -> WF-3 | C48: WF | J48: F86038 | L48: 10936 | M48: 46 | N48: 44 | O48: 44 | P48: 44 | Q48: 41 | R48: 1 | S48: 29 | T48: 27 | U48: 26 | V48: 26 | W48: 25 | X48: 27 | Y48: 32 | Z48: 29 | AA48: 30 | AB48: 24 | AC48: 30 | AD48: 24
A49: 2019-03-01 | B49: =VLOOKUP(J49,'Control Panel'!$G$132:$K$171,5,FALSE) -> WF-4 | C49: WF | J49: F86044 | L49: 8829 | M49: 44 | N49: 35 | O49: 35 | P49: 36 | Q49: 30 | R49: 11 | S49: 33 | T49: 30 | U49: 24 | V49: 24 | W49: 24 | X49: 23 | Y49: 15 | Z49: 13 | AA49: 11 | AB49: 9 | AC49: 11 | AD49: 8
A50: 2019-03-01 | B50: =VLOOKUP(J50,'Control Panel'!$G$132:$K$171,5,FALSE) -> WF-5 | C50: WF | J50: F86045 | L50: 1901 | M50: 4 | N50: 4 | O50: 4 | P50: 4 | Q50: 4 | R50: 2 | S50: 7 | T50: 6 | U50: 3 | V50: 3 | W50: 3 | X50: 3 | Y50: 3 | Z50: 3 | AA50: 2 | AB50: 2 | AC50: 2 | AD50: 2
A51: 2019-03-01 | B51: =VLOOKUP(J51,'Control Panel'!$G$132:$K$171,5,FALSE) -> WF-7 | C51: WF | J51: F86058 | L51: 15046 | M51: 56 | N51: 46 | O51: 47 | P51: 47 | Q51: 45 | R51: 6 | S51: 50 | T51: 48 | U51: 43 | V51: 43 | W51: 43 | X51: 42 | Y51: 51 | Z51: 41 | AA51: 44 | AB51: 32 | AC51: 43 | AD51: 33
A52: 2019-03-01 | B52: =VLOOKUP(J52,'Control Panel'!$G$132:$K$171,5,FALSE) -> WF-7 | C52: WF | J52: F86062 | L52: 7020 | M52: 12 | N52: 12 | O52: 12 | P52: 12 | Q52: 12 | R52: 3 | S52: 25 | T52: 22 | U52: 21 | V52: 21 | W52: 21 | X52: 21 | Y52: 26 | Z52: 23 | AA52: 21 | AB52: 14 | AC52: 20 | AD52: 16
A53: 2019-03-01 | B53: =VLOOKUP(J53,'Control Panel'!$G$132:$K$171,5,FALSE) -> WF-2 | C53: WF | J53: F86078 | L53: 7367 | M53: 18 | N53: 18 | O53: 18 | P53: 18 | Q53: 18 | R53: 3 | S53: 15 | T53: 11 | U53: 12 | V53: 12 | W53: 12 | X53: 12 | Y53: 21 | Z53: 18 | AA53: 16 | AB53: 15 | AC53: 17 | AD53: 14
A54: 2019-03-01 | B54: =VLOOKUP(J54,'Control Panel'!$G$132:$K$171,5,FALSE) -> WF-6 | C54: WF | J54: F86086 | L54: 5823 | M54: 30 | N54: 27 | O54: 27 | P54: 27 | Q54: 27 | R54: 6 | S54: 31 | T54: 27 | U54: 22 | V54: 22 | W54: 23 | X54: 24 | Y54: 26 | Z54: 11 | AA54: 24 | AB54: 13 | AC54: 24 | AD54: 15
A55: 2019-03-01 | B55: =VLOOKUP(J55,'Control Panel'!$G$132:$K$171,5,FALSE) -> WF-4 | C55: WF | J55: F86088 | L55: 4712 | M55: 8 | N55: 6 | O55: 5 | P55: 6 | Q55: 6 | R55: 3 | S55: 13 | T55: 12 | U55: 7 | V55: 8 | W55: 8 | X55: 8 | Y55: 5 | Z55: 0 | AA55: 3 | AB55: 3 | AC55: 3 | AD55: 3
A56: 2019-03-01 | B56: =VLOOKUP(J56,'Control Panel'!$G$132:$K$171,5,FALSE) -> WF-6 | C56: WF | J56: F86607 | L56: 14184 | M56: 67 | N56: 59 | O56: 58 | P56: 59 | Q56: 55 | R56: 19 | S56: 53 | T56: 48 | U56: 44 | V56: 44 | W56: 43 | X56: 44 | Y56: 46 | Z56: 43 | AA56: 43 | AB56: 37 | AC56: 43 | AD56: 37
A57: 2019-03-01 | B57: =VLOOKUP(J57,'Control Panel'!$G$132:$K$171,5,FALSE) -> WF-2 | C57: WF | J57: F86616 | L57: 6599 | M57: 36 | N57: 33 | O57: 34 | P57: 34 | Q57: 33 | R57: 2 | S57: 22 | T57: 20 | U57: 18 | V57: 18 | W57: 19 | X57: 17 | Y57: 28 | Z57: 23 | AA57: 24 | AB57: 20 | AC57: 24 | AD57: 20
A58: 2019-03-01 | B58: =VLOOKUP(J58,'Control Panel'!$G$132:$K$171,5,FALSE) -> WF-5 | C58: WF | J58: F86621 | L58: 5650 | M58: 19 | N58: 17 | O58: 17 | P58: 17 | Q58: 17 | R58: 11 | S58: 14 | T58: 13 | U58: 13 | V58: 13 | W58: 13 | X58: 13 | Y58: 13 | Z58: 2 | AA58: 5 | AB58: 10 | AC58: 4 | AD58: 10
A59: 2019-03-01 | B59: =VLOOKUP(J59,'Control Panel'!$G$132:$K$171,5,FALSE) -> WF-5 | C59: WF | J59: F86625 | L59: 6116 | M59: 16 | N59: 16 | O59: 16 | P59: 16 | Q59: 16 | R59: 3 | S59: 17 | T59: 16 | U59: 11 | V59: 11 | W59: 11 | X59: 11 | Y59: 19 | Z59: 18 | AA59: 16 | AB59: 7 | AC59: 2 | AD59: 8
A60: 2019-03-01 | B60: =VLOOKUP(J60,'Control Panel'!$G$132:$K$171,5,FALSE) -> WF-1 | C60: WF | J60: F86626 | L60: 5280 | M60: 16 | N60: 15 | O60: 14 | P60: 15 | Q60: 13 | R60: 2 | S60: 20 | T60: 19 | U60: 18 | V60: 19 | W60: 19 | X60: 17 | Y60: 8 | Z60: 8 | AA60: 8 | AB60: 7 | AC60: 2 | AD60: 7
A61: 2019-03-01 | B61: =VLOOKUP(J61,'Control Panel'!$G$132:$K$171,5,FALSE) -> WF-2 | C61: WF | J61: F86627 | L61: 13926 | M61: 32 | N61: 29 | O61: 27 | P61: 29 | Q61: 27 | R61: 5 | S61: 36 | T61: 35 | U61: 32 | V61: 32 | W61: 30 | X61: 31 | Y61: 29 | Z61: 26 | AA61: 26 | AB61: 22 | AC61: 26 | AD61: 24
A62: 2019-03-01 | B62: =VLOOKUP(J62,'Control Panel'!$G$132:$K$171,5,FALSE) -> WF-6 | C62: WF | J62: F86644 | L62: 10812 | M62: 28 | N62: 24 | O62: 25 | P62: 25 | Q62: 24 | R62: 0 | S62: 32 | T62: 29 | U62: 28 | V62: 28 | W62: 27 | X62: 28 | Y62: 41 | Z62: 40 | AA62: 37 | AB62: 17 | AC62: 37 | AD62: 32
A63: 2019-03-01 | B63: =VLOOKUP(J63,'Control Panel'!$G$132:$K$171,5,FALSE) -> WF-4 | C63: WF | J63: F86650 | L63: 8170 | M63: 21 | N63: 16 | O63: 15 | P63: 17 | Q63: 17 | R63: 8 | S63: 20 | T63: 14 | U63: 13 | V63: 12 | W63: 12 | X63: 12 | Y63: 24 | Z63: 21 | AA63: 21 | AB63: 14 | AC63: 21 | AD63: 14
A64: 2019-03-01 | B64: =VLOOKUP(J64,'Control Panel'!$G$132:$K$171,5,FALSE) -> WF-1 | C64: WF | J64: F86664 | L64: 8254 | M64: 15 | N64: 14 | O64: 14 | P64: 14 | Q64: 14 | R64: 3 | S64: 24 | T64: 22 | U64: 22 | V64: 21 | W64: 22 | X64: 21 | Y64: 19 | Z64: 18 | AA64: 18 | AB64: 16 | AC64: 18 | AD64: 16
A65: 2019-03-01 | B65: =VLOOKUP(J65,'Control Panel'!$G$132:$K$171,5,FALSE) -> WF-5 | C65: WF | J65: F86666 | L65: 14094 | M65: 35 | N65: 28 | O65: 24 | P65: 28 | Q65: 26 | R65: 13 | S65: 45 | T65: 39 | U65: 36 | V65: 36 | W65: 36 | X65: 37 | Y65: 37 | Z65: 35 | AA65: 33 | AB65: 27 | AC65: 31 | AD65: 28
A66: 2019-03-01 | B66: =VLOOKUP(J66,'Control Panel'!$G$132:$K$171,5,FALSE) -> WF-7 | C66: WF | J66: F86679 | L66: 5734 | M66: 19 | N66: 18 | O66: 18 | P66: 18 | Q66: 17 | R66: 3 | S66: 27 | T66: 24 | U66: 23 | V66: 23 | W66: 23 | X66: 23 | Y66: 18 | Z66: 12 | AA66: 11 | AB66: 13 | AC66: 10 | AD66: 13
A67: 2019-03-01 | B67: =VLOOKUP(J67,'Control Panel'!$G$132:$K$171,5,FALSE) -> WF-1 | C67: WF | J67: F86689 | L67: 4008 | M67: 15 | N67: 12 | O67: 12 | P67: 12 | Q67: 11 | R67: 4 | S67: 17 | T67: 17 | U67: 13 | V67: 13 | W67: 13 | X67: 13 | Y67: 17 | Z67: 9 | AA67: 11 | AB67: 11 | AC67: 11 | AD67: 13
A68: 2019-03-01 | B68: =VLOOKUP(J68,'Control Panel'!$G$132:$K$171,5,FALSE) -> WF-4 | C68: WF | J68: F86696 | L68: 5091 | M68: 19 | N68: 15 | O68: 16 | P68: 15 | Q68: 15 | R68: 0 | S68: 18 | T68: 17 | U68: 17 | V68: 17 | W68: 17 | X68: 16 | Y68: 13 | Z68: 12 | AA68: 12 | AB68: 10 | AC68: 11 | AD68: 10
A69: 2019-03-01 | B69: =VLOOKUP(J69,'Control Panel'!$G$132:$K$171,5,FALSE) -> WF-1 | C69: WF | J69: F86700 | L69: 3756 | M69: 7 | N69: 7 | O69: 7 | P69: 7 | Q69: 6 | R69: 2 | S69: 13 | T69: 13 | U69: 11 | V69: 12 | W69: 12 | X69: 12 | Y69: 7 | Z69: 7 | AA69: 7 | AB69: 6 | AC69: 7 | AD69: 6
A70: 2019-03-01 | B70: =VLOOKUP(J70,'Control Panel'!$G$132:$K$171,5,FALSE) -> WF-5 | C70: WF | J70: F86701 | L70: 3264 | M70: 6 | N70: 5 | O70: 4 | P70: 5 | Q70: 4 | R70: 3 | S70: 8 | T70: 6 | U70: 5 | V70: 5 | W70: 6 | X70: 6 | Y70: 10 | Z70: 1 | AA70: 4 | AB70: 9 | AC70: 4 | AD70: 9
A71: 2019-03-01 | B71: =VLOOKUP(J71,'Control Panel'!$G$132:$K$171,5,FALSE) -> WF-5 | C71: WF | J71: F86705 | L71: 2995 | M71: 9 | N71: 7 | O71: 7 | P71: 7 | Q71: 7 | R71: 3 | S71: 9 | T71: 8 | U71: 8 | V71: 8 | W71: 8 | X71: 8 | Y71: 8 | Z71: 8 | AA71: 8 | AB71: 7 | AC71: 8 | AD71: 7
A72: 2019-03-01 | B72: =VLOOKUP(J72,'Control Panel'!$G$132:$K$171,5,FALSE) -> WF-6 | C72: WF | J72: F86708 | L72: 2775 | M72: 7 | N72: 6 | O72: 6 | P72: 6 | Q72: 5 | R72: 5 | S72: 9 | T72: 7 | U72: 6 | V72: 6 | W72: 6 | X72: 6 | Y72: 13 | Z72: 11 | AA72: 11 | AB72: 9 | AC72: 11 | AD72: 9
A73: 2019-03-01 | B73: =VLOOKUP(J73,'Control Panel'!$G$132:$K$171,5,FALSE) -> WF-4 | C73: WF | J73: F86712 | L73: 3055 | M73: 11 | N73: 10 | O73: 10 | P73: 10 | Q73: 9 | R73: 0 | S73: 8 | T73: 8 | U73: 8 | V73: 8 | W73: 8 | X73: 8 | Y73: 4 | Z73: 2 | AA73: 2 | AB73: 3 | AC73: 2 | AD73: 3
A74: 2019-03-01 | B74: =VLOOKUP(J74,'Control Panel'!$G$132:$K$171,5,FALSE) -> WF-2 | C74: WF | J74: Y01291 | L74: 8779 | M74: 28 | N74: 24 | O74: 24 | P74: 24 | Q74: 23 | R74: 17 | S74: 26 | T74: 26 | U74: 26 | V74: 26 | W74: 25 | X74: 26 | Y74: 30 | Z74: 30 | AA74: 28 | AB74: 26 | AC74: 28 | AD74: 26
A75: 2019-03-01 | B75: =VLOOKUP(J75,'Control Panel'!$G$132:$K$171,5,FALSE) -> WF-1 | C75: WF | J75: Y01839 | L75: 6534 | M75: 30 | N75: 27 | O75: 27 | P75: 28 | Q75: 25 | R75: 6 | S75: 24 | T75: 22 | U75: 20 | V75: 20 | W75: 21 | X75: 21 | Y75: 21 | Z75: 21 | AA75: 19 | AB75: 16 | AC75: 19 | AD75: 16
A76: 2019-03-01 | B76: =VLOOKUP(J76,'Control Panel'!$G$132:$K$171,5,FALSE) -> WF-3 | C76: WF | J76: Y02585 | L76: 8112 | M76: 24 | N76: 22 | O76: 22 | P76: 22 | Q76: 23 | R76: 11 | S76: 32 | T76: 29 | U76: 22 | V76: 21 | W76: 22 | X76: 21 | Y76: 26 | Z76: 18 | AA76: 18 | AB76: 14 | AC76: 18 | AD76: 14
A77: 2019-03-01 | B77: =VLOOKUP(J77,'Control Panel'!$G$132:$K$171,5,FALSE) ->  | J77: Total | L77: 268570 | M77: 858 | N77: 758 | O77: 750 | P77: 768 | Q77: 730 | R77: 202 | S77: 881 | T77: 806 | U77: 729 | V77: 728 | W77: 731 | X77: 728 | Y77: 790 | Z77: 656 | AA77: 675 | AB77: 561 | AC77: 651 | AD77: 592
A78: 2019-05-01 | B78: =VLOOKUP(J78,'Control Panel'!$G$132:$K$171,5,FALSE) ->  | C78: Childhood Immunisations Q1 | E78: Last Run: | G78: Population Count | H78: 283847 | K78: Search | L78: All Patients | M78: (01) 12 MONTH COHORT | N78: (01.01) DTaP/IPV/Hib 6in1 | O78: (01.02) Men B (1st and 2nd) | P78: (01.03) PCV | Q78: (01.04) Rotavirus | R78: (01.05) BCG | S78: (02) 24 MONTH COHORT | T78: (02.01) DTaP/IPV/Hib or DTaP/IPV/Hib/HepB | U78: (02.02) MMR | V78: (02.03) HiB/Men C | W78: (02.04) PCV (Booster) | X78: (02.05) Men B (Booster) | Y78: (03) 5 YEAR COHORT | Z78: (03.01) DTaP/IPV/Hib or DTaP/IPV/Hib/HepB | AA78: (03.02) MMR (Primary) | AB78: (03.03) DTaP/IPV (Booster) | AC78: (03.04) HiB/Men C | AD78: (03.05) MMR (Booster)
A79: 2019-05-01 | B79: =VLOOKUP(J79,'Control Panel'!$G$132:$K$171,5,FALSE) ->  | E79: 2019-06-03T13:16:00 | G79: Males | H79: 144788 | J79: Organisation Code
A80: 2019-05-01 | B80: =VLOOKUP(J80,'Control Panel'!$G$132:$K$171,5,FALSE) ->  | E80: Relative Date: | G80: Females | H80: 139059 | J80: F84676 | L80: 4396 | M80: 12 | N80: 12 | O80: 11 | P80: 12 | Q80: 12 | R80: 7 | S80: 12 | T80: 11 | U80: 10 | V80: 10 | W80: 10 | X80: 10 | Y80: 12 | Z80: 10 | AA80: 10 | AB80: 9 | AC80: 10 | AD80: 9
A81: 2019-05-01 | B81: =VLOOKUP(J81,'Control Panel'!$G$132:$K$171,5,FALSE) -> WF-6 | C81: WF | E81: 2019-06-01 | J81: F86001 | L81: 7931 | M81: 20 | N81: 20 | O81: 20 | P81: 20 | Q81: 19 | R81: 3 | S81: 30 | T81: 25 | U81: 20 | V81: 20 | W81: 20 | X81: 20 | Y81: 22 | Z81: 17 | AA81: 15 | AB81: 10 | AC81: 16 | AD81: 12
A82: 2019-05-01 | B82: =VLOOKUP(J82,'Control Panel'!$G$132:$K$171,5,FALSE) -> WF-1 | C82: WF | J82: F86005 | L82: 8218 | M82: 54 | N82: 45 | O82: 45 | P82: 46 | Q82: 47 | R82: 3 | S82: 31 | T82: 31 | U82: 30 | V82: 29 | W82: 29 | X82: 30 | Y82: 26 | Z82: 25 | AA82: 25 | AB82: 18 | AC82: 25 | AD82: 19
A83: 2019-05-01 | B83: =VLOOKUP(J83,'Control Panel'!$G$132:$K$171,5,FALSE) -> WF-7 | C83: WF | J83: F86006 | L83: 6212 | M83: 24 | N83: 17 | O83: 17 | P83: 18 | Q83: 19 | R83: 3 | S83: 24 | T83: 22 | U83: 20 | V83: 21 | W83: 21 | X83: 21 | Y83: 19 | Z83: 17 | AA83: 16 | AB83: 11 | AC83: 15 | AD83: 11
A84: 2019-05-01 | B84: =VLOOKUP(J84,'Control Panel'!$G$132:$K$171,5,FALSE) -> WF-3 | C84: WF | J84: F86011 | L84: 9226 | M84: 29 | N84: 23 | O84: 24 | P84: 24 | Q84: 20 | R84: 2 | S84: 27 | T84: 23 | U84: 21 | V84: 20 | W84: 21 | X84: 20 | Y84: 17 | Z84: 14 | AA84: 15 | AB84: 14 | AC84: 14 | AD84: 14
A85: 2019-05-01 | B85: =VLOOKUP(J85,'Control Panel'!$G$132:$K$171,5,FALSE) -> WF-7 | C85: WF | J85: F86030 | L85: 8103 | M85: 39 | N85: 34 | O85: 34 | P85: 35 | Q85: 33 | R85: 13 | S85: 41 | T85: 40 | U85: 40 | V85: 40 | W85: 40 | X85: 40 | Y85: 21 | Z85: 19 | AA85: 20 | AB85: 17 | AC85: 20 | AD85: 19
A86: 2019-05-01 | B86: =VLOOKUP(J86,'Control Panel'!$G$132:$K$171,5,FALSE) -> WF-4 | C86: WF | J86: F86036 | L86: 15884 | M86: 45 | N86: 43 | O86: 43 | P86: 43 | Q86: 42 | R86: 23 | S86: 51 | T86: 49 | U86: 45 | V86: 45 | W86: 45 | X86: 45 | Y86: 45 | Z86: 39 | AA86: 40 | AB86: 39 | AC86: 39 | AD86: 38
A87: 2019-05-01 | B87: =VLOOKUP(J87,'Control Panel'!$G$132:$K$171,5,FALSE) -> WF-3 | C87: WF | J87: F86038 | L87: 11020 | M87: 47 | N87: 37 | O87: 37 | P87: 38 | Q87: 37 | R87: 3 | S87: 44 | T87: 39 | U87: 35 | V87: 36 | W87: 36 | X87: 35 | Y87: 38 | Z87: 32 | AA87: 32 | AB87: 27 | AC87: 30 | AD87: 28
A88: 2019-05-01 | B88: =VLOOKUP(J88,'Control Panel'!$G$132:$K$171,5,FALSE) -> WF-4 | C88: WF | J88: F86044 | L88: 8989 | M88: 33 | N88: 26 | O88: 26 | P88: 26 | Q88: 24 | R88: 7 | S88: 33 | T88: 25 | U88: 23 | V88: 24 | W88: 24 | X88: 23 | Y88: 22 | Z88: 16 | AA88: 17 | AB88: 13 | AC88: 16 | AD88: 14
A89: 2019-05-01 | B89: =VLOOKUP(J89,'Control Panel'!$G$132:$K$171,5,FALSE) -> WF-5 | C89: WF | J89: F86045 | L89: 1921 | M89: 4 | N89: 4 | O89: 3 | P89: 4 | Q89: 4 | R89: 2 | S89: 0 | T89: 0 | U89: 0 | V89: 0 | W89: 0 | X89: 0 | Y89: 4 | Z89: 4 | AA89: 4 | AB89: 4 | AC89: 3 | AD89: 4
A90: 2019-05-01 | B90: =VLOOKUP(J90,'Control Panel'!$G$132:$K$171,5,FALSE) -> WF-7 | C90: WF | J90: F86058 | L90: 15141 | M90: 66 | N90: 51 | O90: 51 | P90: 51 | Q90: 53 | R90: 13 | S90: 67 | T90: 53 | U90: 49 | V90: 49 | W90: 50 | X90: 50 | Y90: 58 | Z90: 52 | AA90: 49 | AB90: 41 | AC90: 50 | AD90: 42
A91: 2019-05-01 | B91: =VLOOKUP(J91,'Control Panel'!$G$132:$K$171,5,FALSE) -> WF-7 | C91: WF | J91: F86062 | L91: 7086 | M91: 28 | N91: 24 | O91: 24 | P91: 25 | Q91: 25 | R91: 9 | S91: 21 | T91: 19 | U91: 17 | V91: 17 | W91: 17 | X91: 17 | Y91: 23 | Z91: 20 | AA91: 20 | AB91: 14 | AC91: 19 | AD91: 15
A92: 2019-05-01 | B92: =VLOOKUP(J92,'Control Panel'!$G$132:$K$171,5,FALSE) -> WF-2 | C92: WF | J92: F86078 | L92: 7358 | M92: 14 | N92: 13 | O92: 13 | P92: 13 | Q92: 10 | R92: 6 | S92: 13 | T92: 13 | U92: 12 | V92: 12 | W92: 12 | X92: 12 | Y92: 18 | Z92: 18 | AA92: 17 | AB92: 11 | AC92: 17 | AD92: 14
A93: 2019-05-01 | B93: =VLOOKUP(J93,'Control Panel'!$G$132:$K$171,5,FALSE) -> WF-6 | C93: WF | J93: F86086 | L93: 5939 | M93: 24 | N93: 21 | O93: 21 | P93: 21 | Q93: 20 | R93: 7 | S93: 30 | T93: 26 | U93: 22 | V93: 22 | W93: 22 | X93: 22 | Y93: 22 | Z93: 7 | AA93: 19 | AB93: 13 | AC93: 18 | AD93: 15
A94: 2019-05-01 | B94: =VLOOKUP(J94,'Control Panel'!$G$132:$K$171,5,FALSE) -> WF-4 | C94: WF | J94: F86088 | L94: 4791 | M94: 11 | N94: 9 | O94: 9 | P94: 9 | Q94: 9 | R94: 1 | S94: 7 | T94: 6 | U94: 3 | V94: 3 | W94: 4 | X94: 3 | Y94: 5 | Z94: 3 | AA94: 4 | AB94: 3 | AC94: 5 | AD94: 3
A95: 2019-05-01 | B95: =VLOOKUP(J95,'Control Panel'!$G$132:$K$171,5,FALSE) -> WF-6 | C95: WF | J95: F86607 | L95: 14162 | M95: 55 | N95: 48 | O95: 48 | P95: 49 | Q95: 48 | R95: 23 | S95: 48 | T95: 45 | U95: 42 | V95: 44 | W95: 42 | X95: 43 | Y95: 48 | Z95: 46 | AA95: 43 | AB95: 38 | AC95: 42 | AD95: 45
A96: 2019-05-01 | B96: =VLOOKUP(J96,'Control Panel'!$G$132:$K$171,5,FALSE) -> WF-2 | C96: WF | J96: F86616 | L96: 6736 | M96: 18 | N96: 14 | O96: 13 | P96: 15 | Q96: 15 | R96: 1 | S96: 44 | T96: 39 | U96: 37 | V96: 38 | W96: 38 | X96: 35 | Y96: 15 | Z96: 13 | AA96: 12 | AB96: 12 | AC96: 11 | AD96: 11
A97: 2019-05-01 | B97: =VLOOKUP(J97,'Control Panel'!$G$132:$K$171,5,FALSE) -> WF-5 | C97: WF | J97: F86621 | L97: 5695 | M97: 19 | N97: 17 | O97: 18 | P97: 18 | Q97: 19 | R97: 7 | S97: 22 | T97: 21 | U97: 20 | V97: 20 | W97: 20 | X97: 19 | Y97: 12 | Z97: 2 | AA97: 2 | AB97: 8 | AC97: 2 | AD97: 9
A98: 2019-05-01 | B98: =VLOOKUP(J98,'Control Panel'!$G$132:$K$171,5,FALSE) -> WF-5 | C98: WF | J98: F86625 | L98: 6101 | M98: 14 | N98: 12 | O98: 12 | P98: 12 | Q98: 12 | R98: 3 | S98: 19 | T98: 17 | U98: 17 | V98: 17 | W98: 17 | X98: 17 | Y98: 18 | Z98: 17 | AA98: 15 | AB98: 13 | AC98: 4 | AD98: 14
A99: 2019-05-01 | B99: =VLOOKUP(J99,'Control Panel'!$G$132:$K$171,5,FALSE) -> WF-1 | C99: WF | J99: F86626 | L99: 5320 | M99: 13 | N99: 13 | O99: 13 | P99: 13 | Q99: 13 | R99: 5 | S99: 14 | T99: 13 | U99: 11 | V99: 11 | W99: 12 | X99: 12 | Y99: 20 | Z99: 20 | AA99: 17 | AB99: 14 | AC99: 13 | AD99: 14
A100: 2019-05-01 | B100: =VLOOKUP(J100,'Control Panel'!$G$132:$K$171,5,FALSE) -> WF-2 | C100: WF | J100: F86627 | L100: 13877 | M100: 36 | N100: 31 | O100: 30 | P100: 32 | Q100: 27 | R100: 11 | S100: 33 | T100: 33 | U100: 28 | V100: 29 | W100: 29 | X100: 29 | Y100: 42 | Z100: 36 | AA100: 36 | AB100: 35 | AC100: 35 | AD100: 35
A101: 2019-05-01 | B101: =VLOOKUP(J101,'Control Panel'!$G$132:$K$171,5,FALSE) -> WF-6 | C101: WF | J101: F86644 | L101: 10912 | M101: 33 | N101: 25 | O101: 24 | P101: 25 | Q101: 23 | R101: 6 | S101: 38 | T101: 35 | U101: 27 | V101: 27 | W101: 29 | X101: 29 | Y101: 37 | Z101: 32 | AA101: 34 | AB101: 18 | AC101: 30 | AD101: 27
A102: 2019-05-01 | B102: =VLOOKUP(J102,'Control Panel'!$G$132:$K$171,5,FALSE) -> WF-4 | C102: WF | J102: F86650 | L102: 8208 | M102: 32 | N102: 24 | O102: 24 | P102: 24 | Q102: 23 | R102: 3 | S102: 29 | T102: 26 | U102: 24 | V102: 24 | W102: 24 | X102: 23 | Y102: 24 | Z102: 20 | AA102: 19 | AB102: 12 | AC102: 20 | AD102: 12
A103: 2019-05-01 | B103: =VLOOKUP(J103,'Control Panel'!$G$132:$K$171,5,FALSE) -> WF-1 | C103: WF | J103: F86664 | L103: 8337 | M103: 25 | N103: 22 | O103: 21 | P103: 22 | Q103: 23 | R103: 2 | S103: 27 | T103: 25 | U103: 24 | V103: 24 | W103: 25 | X103: 24 | Y103: 32 | Z103: 30 | AA103: 28 | AB103: 28 | AC103: 29 | AD103: 29
A104: 2019-05-01 | B104: =VLOOKUP(J104,'Control Panel'!$G$132:$K$171,5,FALSE) -> WF-5 | C104: WF | J104: F86666 | L104: 14214 | M104: 43 | N104: 38 | O104: 38 | P104: 38 | Q104: 38 | R104: 14 | S104: 45 | T104: 42 | U104: 39 | V104: 40 | W104: 40 | X104: 40 | Y104: 52 | Z104: 43 | AA104: 44 | AB104: 41 | AC104: 43 | AD104: 43
A105: 2019-05-01 | B105: =VLOOKUP(J105,'Control Panel'!$G$132:$K$171,5,FALSE) -> WF-7 | C105: WF | J105: F86679 | L105: 5788 | M105: 29 | N105: 27 | O105: 25 | P105: 25 | Q105: 26 | R105: 8 | S105: 22 | T105: 19 | U105: 20 | V105: 20 | W105: 21 | X105: 20 | Y105: 18 | Z105: 6 | AA105: 7 | AB105: 12 | AC105: 8 | AD105: 14
A106: 2019-05-01 | B106: =VLOOKUP(J106,'Control Panel'!$G$132:$K$171,5,FALSE) -> WF-1 | C106: WF | J106: F86689 | L106: 4092 | M106: 37 | N106: 36 | O106: 36 | P106: 37 | Q106: 37 | R106: 9 | S106: 30 | T106: 25 | U106: 24 | V106: 25 | W106: 25 | X106: 25 | Y106: 13 | Z106: 7 | AA106: 11 | AB106: 9 | AC106: 11 | AD106: 9
A107: 2019-05-01 | B107: =VLOOKUP(J107,'Control Panel'!$G$132:$K$171,5,FALSE) -> WF-4 | C107: WF | J107: F86696 | L107: 5140 | M107: 11 | N107: 10 | O107: 10 | P107: 11 | Q107: 10 | R107: 0 | S107: 17 | T107: 12 | U107: 12 | V107: 13 | W107: 12 | X107: 11 | Y107: 17 | Z107: 16 | AA107: 16 | AB107: 12 | AC107: 16 | AD107: 14
A108: 2019-05-01 | B108: =VLOOKUP(J108,'Control Panel'!$G$132:$K$171,5,FALSE) -> WF-1 | C108: WF | J108: F86700 | L108: 3810 | M108: 13 | N108: 12 | O108: 12 | P108: 12 | Q108: 12 | R108: 3 | S108: 11 | T108: 11 | U108: 10 | V108: 10 | W108: 10 | X108: 9 | Y108: 15 | Z108: 15 | AA108: 15 | AB108: 14 | AC108: 15 | AD108: 15
A109: 2019-05-01 | B109: =VLOOKUP(J109,'Control Panel'!$G$132:$K$171,5,FALSE) -> WF-5 | C109: WF | J109: F86701 | L109: 3308 | M109: 9 | N109: 9 | O109: 9 | P109: 9 | Q109: 9 | R109: 1 | S109: 9 | T109: 9 | U109: 9 | V109: 9 | W109: 9 | X109: 9 | Y109: 11 | Z109: 6 | AA109: 6 | AB109: 8 | AC109: 5 | AD109: 9
A110: 2019-05-01 | B110: =VLOOKUP(J110,'Control Panel'!$G$132:$K$171,5,FALSE) -> WF-5 | C110: WF | J110: F86705 | L110: 3024 | M110: 14 | N110: 13 | O110: 13 | P110: 13 | Q110: 13 | R110: 10 | S110: 9 | T110: 9 | U110: 7 | V110: 5 | W110: 5 | X110: 6 | Y110: 10 | Z110: 10 | AA110: 10 | AB110: 9 | AC110: 9 | AD110: 9
A111: 2019-05-01 | B111: =VLOOKUP(J111,'Control Panel'!$G$132:$K$171,5,FALSE) -> WF-6 | C111: WF | J111: F86708 | L111: 2786 | M111: 9 | N111: 9 | O111: 9 | P111: 9 | Q111: 8 | R111: 6 | S111: 9 | T111: 8 | U111: 7 | V111: 7 | W111: 7 | X111: 7 | Y111: 4 | Z111: 4 | AA111: 3 | AB111: 2 | AC111: 3 | AD111: 2
A112: 2019-05-01 | B112: =VLOOKUP(J112,'Control Panel'!$G$132:$K$171,5,FALSE) -> WF-4 | C112: WF | J112: F86712 | L112: 3101 | M112: 4 | N112: 3 | O112: 3 | P112: 3 | Q112: 3 | R112: 1 | S112: 7 | T112: 6 | U112: 6 | V112: 6 | W112: 6 | X112: 6 | Y112: 8 | Z112: 2 | AA112: 6 | AB112: 5 | AC112: 6 | AD112: 6
A113: 2019-05-01 | B113: =VLOOKUP(J113,'Control Panel'!$G$132:$K$171,5,FALSE) -> WF-2 | C113: WF | J113: Y01291 | L113: 8804 | M113: 24 | N113: 23 | O113: 23 | P113: 24 | Q113: 19 | R113: 5 | S113: 32 | T113: 30 | U113: 29 | V113: 29 | W113: 29 | X113: 29 | Y113: 33 | Z113: 33 | AA113: 32 | AB113: 30 | AC113: 31 | AD113: 30
A114: 2019-05-01 | B114: =VLOOKUP(J114,'Control Panel'!$G$132:$K$171,5,FALSE) -> WF-1 | C114: WF | J114: Y01839 | L114: 6550 | M114: 32 | N114: 27 | O114: 27 | P114: 27 | Q114: 27 | R114: 9 | S114: 23 | T114: 22 | U114: 20 | V114: 21 | W114: 21 | X114: 21 | Y114: 30 | Z114: 28 | AA114: 28 | AB114: 24 | AC114: 28 | AD114: 24
A115: 2019-05-01 | B115: =VLOOKUP(J115,'Control Panel'!$G$132:$K$171,5,FALSE) -> WF-3 | C115: WF | J115: Y02585 | L115: 8051 | M115: 29 | N115: 20 | O115: 19 | P115: 20 | Q115: 19 | R115: 12 | S115: 36 | T115: 30 | U115: 24 | V115: 24 | W115: 25 | X115: 26 | Y115: 30 | Z115: 29 | AA115: 27 | AB115: 24 | AC115: 28 | AD115: 25
A116: 2019-05-01 | B116: =VLOOKUP(J116,'Control Panel'!$G$132:$K$171,5,FALSE) ->  | J116: Total | L116: 270231 | M116: 949 | N116: 812 | O116: 805 | P116: 823 | Q116: 798 | R116: 241 | S116: 955 | T116: 859 | U116: 784 | V116: 791 | W116: 797 | X116: 788 | Y116: 841 | Z116: 708 | AA116: 714 | AB116: 612 | AC116: 686 | AD116: 653
A117: 2019-06-01 | B117: =VLOOKUP(J117,'Control Panel'!$G$132:$K$171,5,FALSE) ->  | C117: Childhood Immunisations Q1 | E117: Last Run: | G117: Population Count | H117: 284503 | K117: Search | L117: All Patients | M117: (01) 12 MONTH COHORT | N117: (01.01) DTaP/IPV/Hib 6in1 | O117: (01.02) Men B (1st and 2nd) | P117: (01.03) PCV | Q117: (01.04) Rotavirus | R117: (01.05) BCG | S117: (02) 24 MONTH COHORT | T117: (02.01) DTaP/IPV/Hib or DTaP/IPV/Hib/HepB | U117: (02.02) MMR | V117: (02.03) HiB/Men C | W117: (02.04) PCV (Booster) | X117: (02.05) Men B (Booster) | Y117: (03) 5 YEAR COHORT | Z117: (03.01) DTaP/IPV/Hib or DTaP/IPV/Hib/HepB | AA117: (03.02) MMR (Primary) | AB117: (03.03) DTaP/IPV (Booster) | AC117: (03.04) HiB/Men C | AD117: (03.05) MMR (Booster)
A118: 2019-06-01 | B118: =VLOOKUP(J118,'Control Panel'!$G$132:$K$171,5,FALSE) ->  | E118: 2019-07-02T09:45:00 | G118: Males | H118: 145114 | J118: Organisation Code
A119: 2019-06-01 | B119: =VLOOKUP(J119,'Control Panel'!$G$132:$K$171,5,FALSE) ->  | E119: Relative Date: | G119: Females | H119: 139389 | J119: F84676 | L119: 4383 | M119: 12 | N119: 12 | O119: 11 | P119: 12 | Q119: 12 | R119: 9 | S119: 12 | T119: 11 | U119: 10 | V119: 10 | W119: 10 | X119: 10 | Y119: 12 | Z119: 10 | AA119: 10 | AB119: 9 | AC119: 10 | AD119: 9
A120: 2019-06-01 | B120: =VLOOKUP(J120,'Control Panel'!$G$132:$K$171,5,FALSE) -> WF-6 | C120: WF | E120: 2019-07-01 | J120: F86001 | L120: 7931 | M120: 21 | N120: 21 | O120: 21 | P120: 21 | Q120: 20 | R120: 3 | S120: 30 | T120: 25 | U120: 20 | V120: 20 | W120: 20 | X120: 20 | Y120: 21 | Z120: 17 | AA120: 15 | AB120: 10 | AC120: 16 | AD120: 12
A121: 2019-06-01 | B121: =VLOOKUP(J121,'Control Panel'!$G$132:$K$171,5,FALSE) -> WF-1 | C121: WF | J121: F86005 | L121: 8304 | M121: 56 | N121: 47 | O121: 47 | P121: 48 | Q121: 50 | R121: 3 | S121: 31 | T121: 31 | U121: 30 | V121: 29 | W121: 29 | X121: 30 | Y121: 26 | Z121: 25 | AA121: 25 | AB121: 18 | AC121: 25 | AD121: 19
A122: 2019-06-01 | B122: =VLOOKUP(J122,'Control Panel'!$G$132:$K$171,5,FALSE) -> WF-7 | C122: WF | J122: F86006 | L122: 6248 | M122: 25 | N122: 19 | O122: 20 | P122: 20 | Q122: 20 | R122: 3 | S122: 24 | T122: 22 | U122: 20 | V122: 21 | W122: 21 | X122: 21 | Y122: 18 | Z122: 16 | AA122: 15 | AB122: 10 | AC122: 14 | AD122: 10
A123: 2019-06-01 | B123: =VLOOKUP(J123,'Control Panel'!$G$132:$K$171,5,FALSE) -> WF-3 | C123: WF | J123: F86011 | L123: 9216 | M123: 30 | N123: 24 | O123: 25 | P123: 25 | Q123: 21 | R123: 2 | S123: 27 | T123: 23 | U123: 21 | V123: 20 | W123: 21 | X123: 20 | Y123: 18 | Z123: 15 | AA123: 16 | AB123: 15 | AC123: 15 | AD123: 15
A124: 2019-06-01 | B124: =VLOOKUP(J124,'Control Panel'!$G$132:$K$171,5,FALSE) -> WF-7 | C124: WF | J124: F86030 | L124: 8163 | M124: 39 | N124: 34 | O124: 34 | P124: 35 | Q124: 33 | R124: 13 | S124: 42 | T124: 41 | U124: 41 | V124: 41 | W124: 41 | X124: 41 | Y124: 22 | Z124: 19 | AA124: 20 | AB124: 17 | AC124: 20 | AD124: 19
A125: 2019-06-01 | B125: =VLOOKUP(J125,'Control Panel'!$G$132:$K$171,5,FALSE) -> WF-4 | C125: WF | J125: F86036 | L125: 15971 | M125: 44 | N125: 43 | O125: 43 | P125: 43 | Q125: 41 | R125: 23 | S125: 50 | T125: 48 | U125: 45 | V125: 45 | W125: 45 | X125: 45 | Y125: 45 | Z125: 39 | AA125: 40 | AB125: 39 | AC125: 39 | AD125: 38
A126: 2019-06-01 | B126: =VLOOKUP(J126,'Control Panel'!$G$132:$K$171,5,FALSE) -> WF-3 | C126: WF | J126: F86038 | L126: 11048 | M126: 45 | N126: 36 | O126: 36 | P126: 37 | Q126: 36 | R126: 3 | S126: 45 | T126: 39 | U126: 35 | V126: 36 | W126: 36 | X126: 35 | Y126: 38 | Z126: 32 | AA126: 32 | AB126: 27 | AC126: 30 | AD126: 28
A127: 2019-06-01 | B127: =VLOOKUP(J127,'Control Panel'!$G$132:$K$171,5,FALSE) -> WF-4 | C127: WF | J127: F86044 | L127: 8948 | M127: 33 | N127: 25 | O127: 25 | P127: 25 | Q127: 23 | R127: 7 | S127: 33 | T127: 26 | U127: 24 | V127: 25 | W127: 25 | X127: 24 | Y127: 22 | Z127: 16 | AA127: 17 | AB127: 13 | AC127: 16 | AD127: 14
A128: 2019-06-01 | B128: =VLOOKUP(J128,'Control Panel'!$G$132:$K$171,5,FALSE) -> WF-5 | C128: WF | J128: F86045 | L128: 1940 | M128: 4 | N128: 4 | O128: 3 | P128: 4 | Q128: 4 | R128: 2 | S128: 0 | T128: 0 | U128: 0 | V128: 0 | W128: 0 | X128: 0 | Y128: 4 | Z128: 4 | AA128: 4 | AB128: 4 | AC128: 3 | AD128: 4
A129: 2019-06-01 | B129: =VLOOKUP(J129,'Control Panel'!$G$132:$K$171,5,FALSE) -> WF-7 | C129: WF | J129: F86058 | L129: 15254 | M129: 66 | N129: 52 | O129: 53 | P129: 53 | Q129: 53 | R129: 13 | S129: 67 | T129: 53 | U129: 49 | V129: 49 | W129: 50 | X129: 50 | Y129: 58 | Z129: 52 | AA129: 49 | AB129: 41 | AC129: 50 | AD129: 42
A130: 2019-06-01 | B130: =VLOOKUP(J130,'Control Panel'!$G$132:$K$171,5,FALSE) -> WF-7 | C130: WF | J130: F86062 | L130: 7121 | M130: 27 | N130: 23 | O130: 23 | P130: 24 | Q130: 24 | R130: 9 | S130: 21 | T130: 19 | U130: 17 | V130: 17 | W130: 17 | X130: 17 | Y130: 23 | Z130: 20 | AA130: 20 | AB130: 14 | AC130: 19 | AD130: 15
A131: 2019-06-01 | B131: =VLOOKUP(J131,'Control Panel'!$G$132:$K$171,5,FALSE) -> WF-2 | C131: WF | J131: F86078 | L131: 7347 | M131: 15 | N131: 14 | O131: 14 | P131: 14 | Q131: 11 | R131: 6 | S131: 13 | T131: 13 | U131: 12 | V131: 12 | W131: 12 | X131: 12 | Y131: 18 | Z131: 18 | AA131: 17 | AB131: 11 | AC131: 17 | AD131: 14
A132: 2019-06-01 | B132: =VLOOKUP(J132,'Control Panel'!$G$132:$K$171,5,FALSE) -> WF-6 | C132: WF | J132: F86086 | L132: 5932 | M132: 23 | N132: 22 | O132: 22 | P132: 22 | Q132: 21 | R132: 7 | S132: 29 | T132: 25 | U132: 22 | V132: 22 | W132: 22 | X132: 22 | Y132: 21 | Z132: 6 | AA132: 18 | AB132: 12 | AC132: 17 | AD132: 14
A133: 2019-06-01 | B133: =VLOOKUP(J133,'Control Panel'!$G$132:$K$171,5,FALSE) -> WF-4 | C133: WF | J133: F86088 | L133: 4774 | M133: 11 | N133: 9 | O133: 9 | P133: 9 | Q133: 9 | R133: 1 | S133: 7 | T133: 6 | U133: 3 | V133: 3 | W133: 4 | X133: 3 | Y133: 5 | Z133: 3 | AA133: 4 | AB133: 3 | AC133: 5 | AD133: 3
A134: 2019-06-01 | B134: =VLOOKUP(J134,'Control Panel'!$G$132:$K$171,5,FALSE) -> WF-6 | C134: WF | J134: F86607 | L134: 14131 | M134: 54 | N134: 47 | O134: 47 | P134: 48 | Q134: 48 | R134: 23 | S134: 48 | T134: 45 | U134: 42 | V134: 44 | W134: 42 | X134: 43 | Y134: 47 | Z134: 45 | AA134: 43 | AB134: 37 | AC134: 42 | AD134: 44
A135: 2019-06-01 | B135: =VLOOKUP(J135,'Control Panel'!$G$132:$K$171,5,FALSE) -> WF-2 | C135: WF | J135: F86616 | L135: 6809 | M135: 18 | N135: 14 | O135: 13 | P135: 15 | Q135: 15 | R135: 1 | S135: 44 | T135: 39 | U135: 37 | V135: 38 | W135: 38 | X135: 35 | Y135: 15 | Z135: 13 | AA135: 12 | AB135: 12 | AC135: 11 | AD135: 11
A136: 2019-06-01 | B136: =VLOOKUP(J136,'Control Panel'!$G$132:$K$171,5,FALSE) -> WF-5 | C136: WF | J136: F86621 | L136: 5691 | M136: 20 | N136: 18 | O136: 19 | P136: 19 | Q136: 20 | R136: 7 | S136: 22 | T136: 21 | U136: 20 | V136: 20 | W136: 20 | X136: 19 | Y136: 11 | Z136: 2 | AA136: 2 | AB136: 8 | AC136: 2 | AD136: 9
A137: 2019-06-01 | B137: =VLOOKUP(J137,'Control Panel'!$G$132:$K$171,5,FALSE) -> WF-5 | C137: WF | J137: F86625 | L137: 6121 | M137: 14 | N137: 12 | O137: 12 | P137: 12 | Q137: 12 | R137: 3 | S137: 19 | T137: 17 | U137: 17 | V137: 17 | W137: 17 | X137: 17 | Y137: 17 | Z137: 16 | AA137: 15 | AB137: 13 | AC137: 4 | AD137: 14
A138: 2019-06-01 | B138: =VLOOKUP(J138,'Control Panel'!$G$132:$K$171,5,FALSE) -> WF-1 | C138: WF | J138: F86626 | L138: 5342 | M138: 13 | N138: 13 | O138: 13 | P138: 13 | Q138: 13 | R138: 5 | S138: 14 | T138: 13 | U138: 12 | V138: 12 | W138: 13 | X138: 13 | Y138: 19 | Z138: 19 | AA138: 17 | AB138: 14 | AC138: 13 | AD138: 14
A139: 2019-06-01 | B139: =VLOOKUP(J139,'Control Panel'!$G$132:$K$171,5,FALSE) -> WF-2 | C139: WF | J139: F86627 | L139: 13882 | M139: 36 | N139: 32 | O139: 31 | P139: 33 | Q139: 28 | R139: 12 | S139: 33 | T139: 33 | U139: 28 | V139: 29 | W139: 29 | X139: 29 | Y139: 42 | Z139: 36 | AA139: 36 | AB139: 35 | AC139: 35 | AD139: 35
A140: 2019-06-01 | B140: =VLOOKUP(J140,'Control Panel'!$G$132:$K$171,5,FALSE) -> WF-6 | C140: WF | J140: F86644 | L140: 10849 | M140: 34 | N140: 25 | O140: 25 | P140: 26 | Q140: 24 | R140: 7 | S140: 37 | T140: 34 | U140: 26 | V140: 26 | W140: 28 | X140: 28 | Y140: 37 | Z140: 33 | AA140: 34 | AB140: 18 | AC140: 30 | AD140: 27
A141: 2019-06-01 | B141: =VLOOKUP(J141,'Control Panel'!$G$132:$K$171,5,FALSE) -> WF-4 | C141: WF | J141: F86650 | L141: 8292 | M141: 33 | N141: 25 | O141: 25 | P141: 25 | Q141: 24 | R141: 4 | S141: 29 | T141: 27 | U141: 24 | V141: 24 | W141: 24 | X141: 24 | Y141: 24 | Z141: 20 | AA141: 19 | AB141: 12 | AC141: 20 | AD141: 12
A142: 2019-06-01 | B142: =VLOOKUP(J142,'Control Panel'!$G$132:$K$171,5,FALSE) -> WF-1 | C142: WF | J142: F86664 | L142: 8373 | M142: 25 | N142: 22 | O142: 21 | P142: 22 | Q142: 23 | R142: 2 | S142: 27 | T142: 25 | U142: 24 | V142: 24 | W142: 25 | X142: 24 | Y142: 33 | Z142: 30 | AA142: 28 | AB142: 28 | AC142: 29 | AD142: 29
A143: 2019-06-01 | B143: =VLOOKUP(J143,'Control Panel'!$G$132:$K$171,5,FALSE) -> WF-5 | C143: WF | J143: F86666 | L143: 14259 | M143: 44 | N143: 38 | O143: 38 | P143: 39 | Q143: 38 | R143: 15 | S143: 45 | T143: 42 | U143: 39 | V143: 40 | W143: 40 | X143: 40 | Y143: 52 | Z143: 43 | AA143: 44 | AB143: 41 | AC143: 43 | AD143: 43
A144: 2019-06-01 | B144: =VLOOKUP(J144,'Control Panel'!$G$132:$K$171,5,FALSE) -> WF-7 | C144: WF | J144: F86679 | L144: 5849 | M144: 28 | N144: 26 | O144: 25 | P144: 25 | Q144: 25 | R144: 8 | S144: 23 | T144: 20 | U144: 19 | V144: 19 | W144: 20 | X144: 19 | Y144: 18 | Z144: 6 | AA144: 7 | AB144: 12 | AC144: 8 | AD144: 14
A145: 2019-06-01 | B145: =VLOOKUP(J145,'Control Panel'!$G$132:$K$171,5,FALSE) -> WF-1 | C145: WF | J145: F86689 | L145: 4112 | M145: 37 | N145: 36 | O145: 37 | P145: 37 | Q145: 37 | R145: 9 | S145: 30 | T145: 25 | U145: 24 | V145: 25 | W145: 25 | X145: 25 | Y145: 13 | Z145: 7 | AA145: 11 | AB145: 9 | AC145: 11 | AD145: 9
A146: 2019-06-01 | B146: =VLOOKUP(J146,'Control Panel'!$G$132:$K$171,5,FALSE) -> WF-4 | C146: WF | J146: F86696 | L146: 5156 | M146: 11 | N146: 10 | O146: 10 | P146: 11 | Q146: 10 | R146: 0 | S146: 16 | T146: 11 | U146: 11 | V146: 12 | W146: 11 | X146: 11 | Y146: 17 | Z146: 16 | AA146: 16 | AB146: 12 | AC146: 16 | AD146: 14
A147: 2019-06-01 | B147: =VLOOKUP(J147,'Control Panel'!$G$132:$K$171,5,FALSE) -> WF-1 | C147: WF | J147: F86700 | L147: 3834 | M147: 12 | N147: 11 | O147: 11 | P147: 11 | Q147: 11 | R147: 2 | S147: 11 | T147: 11 | U147: 10 | V147: 10 | W147: 10 | X147: 9 | Y147: 16 | Z147: 15 | AA147: 16 | AB147: 15 | AC147: 16 | AD147: 16
A148: 2019-06-01 | B148: =VLOOKUP(J148,'Control Panel'!$G$132:$K$171,5,FALSE) -> WF-5 | C148: WF | J148: F86701 | L148: 3312 | M148: 9 | N148: 9 | O148: 9 | P148: 9 | Q148: 9 | R148: 1 | S148: 9 | T148: 9 | U148: 9 | V148: 9 | W148: 9 | X148: 9 | Y148: 11 | Z148: 6 | AA148: 6 | AB148: 8 | AC148: 5 | AD148: 9
A149: 2019-06-01 | B149: =VLOOKUP(J149,'Control Panel'!$G$132:$K$171,5,FALSE) -> WF-5 | C149: WF | J149: F86705 | L149: 3038 | M149: 14 | N149: 13 | O149: 13 | P149: 13 | Q149: 13 | R149: 10 | S149: 9 | T149: 9 | U149: 7 | V149: 5 | W149: 5 | X149: 6 | Y149: 10 | Z149: 10 | AA149: 10 | AB149: 9 | AC149: 9 | AD149: 9
A150: 2019-06-01 | B150: =VLOOKUP(J150,'Control Panel'!$G$132:$K$171,5,FALSE) -> WF-6 | C150: WF | J150: F86708 | L150: 2786 | M150: 9 | N150: 9 | O150: 9 | P150: 9 | Q150: 8 | R150: 6 | S150: 9 | T150: 8 | U150: 7 | V150: 7 | W150: 7 | X150: 7 | Y150: 4 | Z150: 4 | AA150: 3 | AB150: 2 | AC150: 3 | AD150: 2
A151: 2019-06-01 | B151: =VLOOKUP(J151,'Control Panel'!$G$132:$K$171,5,FALSE) -> WF-4 | C151: WF | J151: F86712 | L151: 3111 | M151: 4 | N151: 3 | O151: 3 | P151: 3 | Q151: 3 | R151: 1 | S151: 7 | T151: 6 | U151: 6 | V151: 6 | W151: 6 | X151: 6 | Y151: 8 | Z151: 2 | AA151: 6 | AB151: 5 | AC151: 6 | AD151: 6
A152: 2019-06-01 | B152: =VLOOKUP(J152,'Control Panel'!$G$132:$K$171,5,FALSE) -> WF-2 | C152: WF | J152: Y01291 | L152: 8805 | M152: 24 | N152: 23 | O152: 23 | P152: 24 | Q152: 19 | R152: 9 | S152: 32 | T152: 30 | U152: 29 | V152: 29 | W152: 29 | X152: 29 | Y152: 33 | Z152: 33 | AA152: 32 | AB152: 30 | AC152: 31 | AD152: 30
A153: 2019-06-01 | B153: =VLOOKUP(J153,'Control Panel'!$G$132:$K$171,5,FALSE) -> WF-1 | C153: WF | J153: Y01839 | L153: 6535 | M153: 31 | N153: 26 | O153: 26 | P153: 26 | Q153: 26 | R153: 9 | S153: 25 | T153: 24 | U153: 22 | V153: 23 | W153: 23 | X153: 21 | Y153: 30 | Z153: 28 | AA153: 28 | AB153: 25 | AC153: 28 | AD153: 25
A154: 2019-06-01 | B154: =VLOOKUP(J154,'Control Panel'!$G$132:$K$171,5,FALSE) -> WF-3 | C154: WF | J154: Y02585 | L154: 7977 | M154: 29 | N154: 20 | O154: 19 | P154: 20 | Q154: 19 | R154: 13 | S154: 35 | T154: 29 | U154: 24 | V154: 24 | W154: 25 | X154: 26 | Y154: 30 | Z154: 29 | AA154: 27 | AB154: 24 | AC154: 28 | AD154: 25
A155: 2019-06-01 | B155: =VLOOKUP(J155,'Control Panel'!$G$132:$K$171,5,FALSE) ->  | J155: Total | L155: 270844 | M155: 950 | N155: 817 | O155: 815 | P155: 832 | Q155: 803 | R155: 251 | S155: 955 | T155: 860 | U155: 786 | V155: 793 | W155: 799 | X155: 790 | Y155: 838 | Z155: 705 | AA155: 714 | AB155: 612 | AC155: 686 | AD155: 653
A156: 2019-07-01 | B156: =VLOOKUP(J156,'Control Panel'!$G$132:$K$171,5,FALSE) ->  | C156: Childhood Immunisations Q2 | E156: Last Run: | G156: Population Count | H156: 281296 | K156: Search | L156: All Patients | M156: (01) 12 MONTH COHORT | N156: (01.01) DTaP/IPV/Hib 6in1 | O156: (01.02) Men B (1st and 2nd) | P156: (01.03) PCV | Q156: (01.04) Rotavirus | R156: (01.05) BCG | S156: (02) 24 MONTH COHORT | T156: (02.01) DTaP/IPV/Hib Combined | U156: (02.02) MMR | V156: (02.03) HiB/Men C | W156: (02.04) PCV (Booster) | X156: (02.05) Men B (Booster) | Y156: (03) 5 YEAR COHORT | Z156: (03.01) DTaP/IPV/Hib Combined | AA156: (03.02) MMR (Primary) | AB156: (03.03) DTaP/IPV (Booster) | AC156: (03.04) HiB/Men C | AD156: (03.05) MMR (Booster)
A157: 2019-07-01 | B157: =VLOOKUP(J157,'Control Panel'!$G$132:$K$171,5,FALSE) ->  | E157: 2019-08-02T09:07:00 | G157: Males | H157: 143494 | J157: Organisation Code
A158: 2019-07-01 | B158: =VLOOKUP(J158,'Control Panel'!$G$132:$K$171,5,FALSE) -> WF-6 | C158: WF | E158: Relative Date: | G158: Females | H158: 137802 | J158: F86001 | L158: 7927 | M158: 28 | N158: 26 | O158: 26 | P158: 26 | Q158: 25 | R158: 5 | S158: 28 | T158: 25 | U158: 22 | V158: 23 | W158: 23 | X158: 24 | Y158: 30 | Z158: 24 | AA158: 24 | AB158: 17 | AC158: 24 | AD158: 19
A159: 2019-07-01 | B159: =VLOOKUP(J159,'Control Panel'!$G$132:$K$171,5,FALSE) -> WF-1 | C159: WF | E159: 2019-08-01 | J159: F86005 | L159: 8370 | M159: 39 | N159: 31 | O159: 29 | P159: 31 | Q159: 30 | R159: 3 | S159: 49 | T159: 47 | U159: 43 | V159: 43 | W159: 44 | X159: 42 | Y159: 32 | Z159: 29 | AA159: 29 | AB159: 18 | AC159: 28 | AD159: 21
A160: 2019-07-01 | B160: =VLOOKUP(J160,'Control Panel'!$G$132:$K$171,5,FALSE) -> WF-7 | C160: WF | J160: F86006 | L160: 6278 | M160: 13 | N160: 11 | O160: 11 | P160: 11 | Q160: 11 | R160: 1 | S160: 14 | T160: 14 | U160: 11 | V160: 13 | W160: 13 | X160: 11 | Y160: 21 | Z160: 21 | AA160: 20 | AB160: 14 | AC160: 17 | AD160: 16
A161: 2019-07-01 | B161: =VLOOKUP(J161,'Control Panel'!$G$132:$K$171,5,FALSE) -> WF-3 | C161: WF | J161: F86011 | L161: 9200 | M161: 16 | N161: 12 | O161: 13 | P161: 13 | Q161: 13 | R161: 0 | S161: 27 | T161: 23 | U161: 22 | V161: 23 | W161: 23 | X161: 23 | Y161: 27 | Z161: 24 | AA161: 20 | AB161: 20 | AC161: 21 | AD161: 19
A162: 2019-07-01 | B162: =VLOOKUP(J162,'Control Panel'!$G$132:$K$171,5,FALSE) -> WF-7 | C162: WF | J162: F86030 | L162: 8162 | M162: 24 | N162: 21 | O162: 21 | P162: 21 | Q162: 21 | R162: 7 | S162: 33 | T162: 32 | U162: 31 | V162: 31 | W162: 31 | X162: 31 | Y162: 30 | Z162: 25 | AA162: 24 | AB162: 24 | AC162: 25 | AD162: 24
A163: 2019-07-01 | B163: =VLOOKUP(J163,'Control Panel'!$G$132:$K$171,5,FALSE) -> WF-4 | C163: WF | J163: F86036 | L163: 16031 | M163: 70 | N163: 63 | O163: 63 | P163: 63 | Q163: 59 | R163: 34 | S163: 71 | T163: 69 | U163: 64 | V163: 63 | W163: 65 | X163: 64 | Y163: 57 | Z163: 56 | AA163: 54 | AB163: 49 | AC163: 52 | AD163: 49
A164: 2019-07-01 | B164: =VLOOKUP(J164,'Control Panel'!$G$132:$K$171,5,FALSE) -> WF-3 | C164: WF | J164: F86038 | L164: 11108 | M164: 52 | N164: 48 | O164: 47 | P164: 48 | Q164: 49 | R164: 5 | S164: 41 | T164: 41 | U164: 33 | V164: 32 | W164: 33 | X164: 33 | Y164: 56 | Z164: 48 | AA164: 48 | AB164: 37 | AC164: 50 | AD164: 39
A165: 2019-07-01 | B165: =VLOOKUP(J165,'Control Panel'!$G$132:$K$171,5,FALSE) -> WF-4 | C165: WF | J165: F86044 | L165: 8911 | M165: 49 | N165: 41 | O165: 40 | P165: 41 | Q165: 41 | R165: 4 | S165: 40 | T165: 27 | U165: 26 | V165: 26 | W165: 26 | X165: 26 | Y165: 30 | Z165: 22 | AA165: 19 | AB165: 17 | AC165: 19 | AD165: 17
A166: 2019-07-01 | B166: =VLOOKUP(J166,'Control Panel'!$G$132:$K$171,5,FALSE) -> WF-5 | C166: WF | J166: F86045 | L166: 1955 | M166: 4 | N166: 3 | O166: 3 | P166: 3 | Q166: 3 | R166: 1 | S166: 3 | T166: 3 | U166: 2 | V166: 2 | W166: 2 | X166: 2 | Y166: 4 | Z166: 3 | AA166: 4 | AB166: 3 | AC166: 4 | AD166: 4
A167: 2019-07-01 | B167: =VLOOKUP(J167,'Control Panel'!$G$132:$K$171,5,FALSE) -> WF-7 | C167: WF | J167: F86058 | L167: 15424 | M167: 64 | N167: 53 | O167: 51 | P167: 51 | Q167: 49 | R167: 15 | S167: 63 | T167: 62 | U167: 52 | V167: 51 | W167: 53 | X167: 52 | Y167: 56 | Z167: 52 | AA167: 52 | AB167: 42 | AC167: 51 | AD167: 44
A168: 2019-07-01 | B168: =VLOOKUP(J168,'Control Panel'!$G$132:$K$171,5,FALSE) -> WF-7 | C168: WF | J168: F86062 | L168: 7132 | M168: 25 | N168: 22 | O168: 22 | P168: 22 | Q168: 19 | R168: 4 | S168: 25 | T168: 23 | U168: 19 | V168: 18 | W168: 19 | X168: 19 | Y168: 15 | Z168: 14 | AA168: 15 | AB168: 12 | AC168: 14 | AD168: 11
A169: 2019-07-01 | B169: =VLOOKUP(J169,'Control Panel'!$G$132:$K$171,5,FALSE) -> WF-2 | C169: WF | J169: F86078 | L169: 7338 | M169: 22 | N169: 19 | O169: 19 | P169: 20 | Q169: 17 | R169: 5 | S169: 13 | T169: 13 | U169: 10 | V169: 10 | W169: 10 | X169: 9 | Y169: 14 | Z169: 14 | AA169: 12 | AB169: 9 | AC169: 12 | AD169: 9
A170: 2019-07-01 | B170: =VLOOKUP(J170,'Control Panel'!$G$132:$K$171,5,FALSE) -> WF-6 | C170: WF | J170: F86086 | L170: 5943 | M170: 19 | N170: 15 | O170: 15 | P170: 15 | Q170: 15 | R170: 3 | S170: 19 | T170: 17 | U170: 14 | V170: 13 | W170: 13 | X170: 13 | Y170: 25 | Z170: 9 | AA170: 23 | AB170: 11 | AC170: 23 | AD170: 19
A171: 2019-07-01 | B171: =VLOOKUP(J171,'Control Panel'!$G$132:$K$171,5,FALSE) -> WF-4 | C171: WF | J171: F86088 | L171: 4784 | M171: 18 | N171: 16 | O171: 15 | P171: 16 | Q171: 15 | R171: 3 | S171: 10 | T171: 8 | U171: 6 | V171: 5 | W171: 6 | X171: 6 | Y171: 13 | Z171: 11 | AA171: 13 | AB171: 9 | AC171: 13 | AD171: 11
A172: 2019-07-01 | B172: =VLOOKUP(J172,'Control Panel'!$G$132:$K$171,5,FALSE) -> WF-6 | C172: WF | J172: F86607 | L172: 14073 | M172: 56 | N172: 46 | O172: 52 | P172: 52 | Q172: 50 | R172: 21 | S172: 49 | T172: 44 | U172: 43 | V172: 43 | W172: 44 | X172: 43 | Y172: 65 | Z172: 61 | AA172: 60 | AB172: 56 | AC172: 59 | AD172: 60
A173: 2019-07-01 | B173: =VLOOKUP(J173,'Control Panel'!$G$132:$K$171,5,FALSE) -> WF-2 | C173: WF | J173: F86616 | L173: 6875 | M173: 25 | N173: 24 | O173: 24 | P173: 24 | Q173: 23 | R173: 2 | S173: 37 | T173: 34 | U173: 34 | V173: 34 | W173: 33 | X173: 34 | Y173: 20 | Z173: 17 | AA173: 16 | AB173: 11 | AC173: 17 | AD173: 12
A174: 2019-07-01 | B174: =VLOOKUP(J174,'Control Panel'!$G$132:$K$171,5,FALSE) -> WF-5 | C174: WF | J174: F86621 | L174: 5697 | M174: 21 | N174: 19 | O174: 18 | P174: 19 | Q174: 18 | R174: 10 | S174: 10 | T174: 10 | U174: 10 | V174: 10 | W174: 10 | X174: 10 | Y174: 15 | Z174: 6 | AA174: 14 | AB174: 11 | AC174: 14 | AD174: 11
A175: 2019-07-01 | B175: =VLOOKUP(J175,'Control Panel'!$G$132:$K$171,5,FALSE) -> WF-5 | C175: WF | J175: F86625 | L175: 6148 | M175: 14 | N175: 9 | O175: 9 | P175: 9 | Q175: 8 | R175: 2 | S175: 11 | T175: 9 | U175: 8 | V175: 8 | W175: 8 | X175: 8 | Y175: 20 | Z175: 19 | AA175: 18 | AB175: 13 | AC175: 7 | AD175: 15
A176: 2019-07-01 | B176: =VLOOKUP(J176,'Control Panel'!$G$132:$K$171,5,FALSE) -> WF-1 | C176: WF | J176: F86626 | L176: 5404 | M176: 18 | N176: 17 | O176: 17 | P176: 17 | Q176: 17 | R176: 4 | S176: 17 | T176: 16 | U176: 11 | V176: 12 | W176: 12 | X176: 12 | Y176: 22 | Z176: 22 | AA176: 20 | AB176: 19 | AC176: 21 | AD176: 18
A177: 2019-07-01 | B177: =VLOOKUP(J177,'Control Panel'!$G$132:$K$171,5,FALSE) -> WF-2 | C177: WF | J177: F86627 | L177: 13894 | M177: 38 | N177: 35 | O177: 35 | P177: 35 | Q177: 28 | R177: 8 | S177: 43 | T177: 37 | U177: 36 | V177: 36 | W177: 35 | X177: 32 | Y177: 46 | Z177: 45 | AA177: 44 | AB177: 33 | AC177: 43 | AD177: 36
A178: 2019-07-01 | B178: =VLOOKUP(J178,'Control Panel'!$G$132:$K$171,5,FALSE) -> WF-6 | C178: WF | J178: F86644 | L178: 10928 | M178: 27 | N178: 25 | O178: 25 | P178: 26 | Q178: 23 | R178: 2 | S178: 43 | T178: 38 | U178: 36 | V178: 37 | W178: 37 | X178: 37 | Y178: 35 | Z178: 34 | AA178: 34 | AB178: 13 | AC178: 34 | AD178: 27
A179: 2019-07-01 | B179: =VLOOKUP(J179,'Control Panel'!$G$132:$K$171,5,FALSE) -> WF-4 | C179: WF | J179: F86650 | L179: 8276 | M179: 33 | N179: 30 | O179: 30 | P179: 30 | Q179: 29 | R179: 8 | S179: 35 | T179: 31 | U179: 28 | V179: 28 | W179: 28 | X179: 28 | Y179: 41 | Z179: 34 | AA179: 32 | AB179: 25 | AC179: 35 | AD179: 24
A180: 2019-07-01 | B180: =VLOOKUP(J180,'Control Panel'!$G$132:$K$171,5,FALSE) -> WF-1 | C180: WF | J180: F86664 | L180: 8403 | M180: 35 | N180: 32 | O180: 32 | P180: 32 | Q180: 33 | R180: 1 | S180: 30 | T180: 30 | U180: 25 | V180: 25 | W180: 25 | X180: 25 | Y180: 25 | Z180: 23 | AA180: 22 | AB180: 19 | AC180: 22 | AD180: 19
A181: 2019-07-01 | B181: =VLOOKUP(J181,'Control Panel'!$G$132:$K$171,5,FALSE) -> WF-5 | C181: WF | J181: F86666 | L181: 14288 | M181: 43 | N181: 38 | O181: 33 | P181: 37 | Q181: 31 | R181: 16 | S181: 51 | T181: 47 | U181: 43 | V181: 45 | W181: 43 | X181: 43 | Y181: 52 | Z181: 49 | AA181: 47 | AB181: 39 | AC181: 42 | AD181: 41
A182: 2019-07-01 | B182: =VLOOKUP(J182,'Control Panel'!$G$132:$K$171,5,FALSE) -> WF-7 | C182: WF | J182: F86679 | L182: 5856 | M182: 33 | N182: 29 | O182: 29 | P182: 30 | Q182: 29 | R182: 6 | S182: 30 | T182: 29 | U182: 25 | V182: 25 | W182: 26 | X182: 26 | Y182: 16 | Z182: 12 | AA182: 15 | AB182: 13 | AC182: 14 | AD182: 13
A183: 2019-07-01 | B183: =VLOOKUP(J183,'Control Panel'!$G$132:$K$171,5,FALSE) -> WF-1 | C183: WF | J183: F86689 | L183: 4149 | M183: 35 | N183: 34 | O183: 34 | P183: 34 | Q183: 31 | R183: 7 | S183: 17 | T183: 17 | U183: 17 | V183: 17 | W183: 17 | X183: 17 | Y183: 18 | Z183: 10 | AA183: 14 | AB183: 11 | AC183: 14 | AD183: 13
A184: 2019-07-01 | B184: =VLOOKUP(J184,'Control Panel'!$G$132:$K$171,5,FALSE) -> WF-4 | C184: WF | J184: F86696 | L184: 5164 | M184: 16 | N184: 16 | O184: 16 | P184: 16 | Q184: 16 | R184: 3 | S184: 8 | T184: 7 | U184: 7 | V184: 7 | W184: 7 | X184: 7 | Y184: 10 | Z184: 10 | AA184: 10 | AB184: 7 | AC184: 10 | AD184: 7
A185: 2019-07-01 | B185: =VLOOKUP(J185,'Control Panel'!$G$132:$K$171,5,FALSE) -> WF-1 | C185: WF | J185: F86700 | L185: 3834 | M185: 13 | N185: 10 | O185: 10 | P185: 10 | Q185: 10 | R185: 4 | S185: 9 | T185: 9 | U185: 8 | V185: 8 | W185: 8 | X185: 7 | Y185: 8 | Z185: 7 | AA185: 7 | AB185: 7 | AC185: 7 | AD185: 7
A186: 2019-07-01 | B186: =VLOOKUP(J186,'Control Panel'!$G$132:$K$171,5,FALSE) -> WF-5 | C186: WF | J186: F86701 | L186: 3320 | M186: 12 | N186: 10 | O186: 10 | P186: 11 | Q186: 11 | R186: 2 | S186: 14 | T186: 12 | U186: 13 | V186: 11 | W186: 12 | X186: 12 | Y186: 12 | Z186: 4 | AA186: 9 | AB186: 9 | AC186: 9 | AD186: 8
A187: 2019-07-01 | B187: =VLOOKUP(J187,'Control Panel'!$G$132:$K$171,5,FALSE) -> WF-5 | C187: WF | J187: F86705 | L187: 3037 | M187: 9 | N187: 9 | O187: 9 | P187: 9 | Q187: 9 | R187: 6 | S187: 4 | T187: 4 | U187: 4 | V187: 3 | W187: 3 | X187: 3 | Y187: 5 | Z187: 5 | AA187: 5 | AB187: 4 | AC187: 4 | AD187: 4
A188: 2019-07-01 | B188: =VLOOKUP(J188,'Control Panel'!$G$132:$K$171,5,FALSE) -> WF-6 | C188: WF | J188: F86708 | L188: 2796 | M188: 6 | N188: 4 | O188: 4 | P188: 4 | Q188: 3 | R188: 3 | S188: 7 | T188: 7 | U188: 7 | V188: 7 | W188: 7 | X188: 6 | Y188: 10 | Z188: 10 | AA188: 10 | AB188: 7 | AC188: 10 | AD188: 7
A189: 2019-07-01 | B189: =VLOOKUP(J189,'Control Panel'!$G$132:$K$171,5,FALSE) -> WF-4 | C189: WF | J189: F86712 | L189: 3115 | M189: 16 | N189: 13 | O189: 14 | P189: 13 | Q189: 14 | R189: 1 | S189: 5 | T189: 5 | U189: 4 | V189: 4 | W189: 4 | X189: 4 | Y189: 7 | Z189: 3 | AA189: 7 | AB189: 4 | AC189: 7 | AD189: 5
A190: 2019-07-01 | B190: =VLOOKUP(J190,'Control Panel'!$G$132:$K$171,5,FALSE) -> WF-2 | C190: WF | J190: Y01291 | L190: 8772 | M190: 34 | N190: 31 | O190: 31 | P190: 31 | Q190: 30 | R190: 9 | S190: 28 | T190: 27 | U190: 24 | V190: 24 | W190: 25 | X190: 25 | Y190: 34 | Z190: 32 | AA190: 33 | AB190: 30 | AC190: 32 | AD190: 30
A191: 2019-07-01 | B191: =VLOOKUP(J191,'Control Panel'!$G$132:$K$171,5,FALSE) -> WF-1 | C191: WF | J191: Y01839 | L191: 6505 | M191: 28 | N191: 27 | O191: 27 | P191: 27 | Q191: 26 | R191: 10 | S191: 27 | T191: 26 | U191: 25 | V191: 25 | W191: 25 | X191: 25 | Y191: 22 | Z191: 18 | AA191: 19 | AB191: 17 | AC191: 17 | AD191: 16
A192: 2019-07-01 | B192: =VLOOKUP(J192,'Control Panel'!$G$132:$K$171,5,FALSE) -> WF-3 | C192: WF | J192: Y02585 | L192: 7917 | M192: 32 | N192: 29 | O192: 29 | P192: 29 | Q192: 30 | R192: 18 | S192: 31 | T192: 30 | U192: 29 | V192: 28 | W192: 28 | X192: 28 | Y192: 21 | Z192: 18 | AA192: 19 | AB192: 13 | AC192: 18 | AD192: 13
A193: 2019-07-01 | B193: =VLOOKUP(J193,'Control Panel'!$G$132:$K$171,5,FALSE) ->  | J193: Total | L193: 267014 | M193: 987 | N193: 868 | O193: 863 | P193: 876 | Q193: 836 | R193: 233 | S193: 942 | T193: 873 | U193: 792 | V193: 790 | W193: 798 | X193: 787 | Y193: 914 | Z193: 791 | AA193: 812 | AB193: 643 | AC193: 789 | AD193: 688
A194: 2019-08-01 | B194: =VLOOKUP(J194,'Control Panel'!$G$132:$K$171,5,FALSE) ->  | C194: Childhood Immunisations Q2 | E194: Last Run: | G194: Population Count | H194: 281420 | K194: Search | L194: All Patients | M194: (01) 12 MONTH COHORT | N194: (01.01) DTaP/IPV/Hib 6in1 | O194: (01.02) Men B (1st and 2nd) | P194: (01.03) PCV | Q194: (01.04) Rotavirus | R194: (01.05) BCG | S194: (02) 24 MONTH COHORT | T194: (02.01) DTaP/IPV/Hib Combined | U194: (02.02) MMR | V194: (02.03) HiB/Men C | W194: (02.04) PCV (Booster) | X194: (02.05) Men B (Booster) | Y194: (03) 5 YEAR COHORT | Z194: (03.01) DTaP/IPV/Hib Combined | AA194: (03.02) MMR (Primary) | AB194: (03.03) DTaP/IPV (Booster) | AC194: (03.04) HiB/Men C | AD194: (03.05) MMR (Booster)
A195: 2019-08-01 | B195: =VLOOKUP(J195,'Control Panel'!$G$132:$K$171,5,FALSE) ->  | E195: 2019-09-02T09:31:00 | G195: Males | H195: 143521 | J195: Organisation Code
A196: 2019-08-01 | B196: =VLOOKUP(J196,'Control Panel'!$G$132:$K$171,5,FALSE) -> WF-6 | C196: WF | E196: Relative Date: | G196: Females | H196: 137899 | J196: F86001 | L196: 7917 | M196: 28 | N196: 26 | O196: 26 | P196: 26 | Q196: 25 | R196: 5 | S196: 28 | T196: 25 | U196: 22 | V196: 23 | W196: 23 | X196: 24 | Y196: 30 | Z196: 24 | AA196: 24 | AB196: 17 | AC196: 24 | AD196: 19
A197: 2019-08-01 | B197: =VLOOKUP(J197,'Control Panel'!$G$132:$K$171,5,FALSE) -> WF-1 | C197: WF | E197: 2019-09-01 | J197: F86005 | L197: 8427 | M197: 41 | N197: 33 | O197: 30 | P197: 33 | Q197: 30 | R197: 3 | S197: 46 | T197: 44 | U197: 40 | V197: 40 | W197: 41 | X197: 39 | Y197: 32 | Z197: 29 | AA197: 29 | AB197: 18 | AC197: 28 | AD197: 21
A198: 2019-08-01 | B198: =VLOOKUP(J198,'Control Panel'!$G$132:$K$171,5,FALSE) -> WF-7 | C198: WF | J198: F86006 | L198: 6288 | M198: 13 | N198: 11 | O198: 11 | P198: 11 | Q198: 11 | R198: 1 | S198: 14 | T198: 14 | U198: 11 | V198: 13 | W198: 13 | X198: 11 | Y198: 21 | Z198: 21 | AA198: 20 | AB198: 14 | AC198: 17 | AD198: 16
A199: 2019-08-01 | B199: =VLOOKUP(J199,'Control Panel'!$G$132:$K$171,5,FALSE) -> WF-3 | C199: WF | J199: F86011 | L199: 9227 | M199: 16 | N199: 13 | O199: 13 | P199: 13 | Q199: 13 | R199: 0 | S199: 26 | T199: 22 | U199: 21 | V199: 22 | W199: 22 | X199: 22 | Y199: 27 | Z199: 24 | AA199: 20 | AB199: 20 | AC199: 21 | AD199: 19
A200: 2019-08-01 | B200: =VLOOKUP(J200,'Control Panel'!$G$132:$K$171,5,FALSE) -> WF-7 | C200: WF | J200: F86030 | L200: 8158 | M200: 24 | N200: 21 | O200: 21 | P200: 21 | Q200: 21 | R200: 7 | S200: 32 | T200: 31 | U200: 30 | V200: 30 | W200: 30 | X200: 30 | Y200: 30 | Z200: 25 | AA200: 24 | AB200: 24 | AC200: 25 | AD200: 24
... 1235 more rows

Sheet 01072021 (hidden)
A1: Registered practice ID | B1: (01)_12_MONTH_COHORT_(WF_Dashboards_CEG___COVER_Audit_Child_Imms).csv | C1: (01.01)_DTaP_IPV_Hib_HepB_(WF_Dashboards_CEG___COVER_Audit_Child_Imms).csv | D1: (01.02)_Men_B_(1st_and_2nd)_(WF_Dashboards_CEG___COVER_Audit_Child_Imms).csv | E1: (01.03)_PCV_(WF_Dashboards_CEG___COVER_Audit_Child_Imms).csv | F1: (01.04)_Rotavirus_(WF_Dashboards_CEG___COVER_Audit_Child_Imms).csv | G1: (01.05)_BCG_(WF_Dashboards_CEG___COVER_Audit_Child_Imms).csv | H1: (02)_24_MONTH_COHORT_(WF_Dashboards_CEG___COVER_Audit_Child_Imms).csv | I1: (02.01)_DTaP_IPV_Hib_or_DTaP_IPV_Hib_HepB_(WF_Dashboards_CEG___COVER_Audit_Child_Imms).csv | J1: (02.02)_MMR_(WF_Dashboards_CEG___COVER_Audit_Child_Imms).csv | K1: (02.03)_HiB_Men_C_(WF_Dashboards_CEG___COVER_Audit_Child_Imms).csv | L1: (02.04)_PCV_(Booster)_(WF_Dashboards_CEG___COVER_Audit_Child_Imms).csv | M1: (02.05)_Men_B_(Booster)_(WF_Dashboards_CEG___COVER_Audit_Child_Imms).csv | N1: (03)_5_YEAR_COHORT_(WF_Dashboards_CEG___COVER_Audit_Child_Imms).csv | O1: (03.01)_DTaP_IPV_Hib_or_DTaP_IPV_Hib_HepB_(WF_Dashboards_CEG___COVER_Audit_Child_Imms).csv | P1: (03.02)_MMR_(Primary)_(WF_Dashboards_CEG___COVER_Audit_Child_Imms).csv | Q1: (03.03)_DTaP_IPV_(Booster)_(WF_Dashboards_CEG___COVER_Audit_Child_Imms).csv | R1: (03.04)_HiB_Men_C_(WF_Dashboards_CEG___COVER_Audit_Child_Imms).csv | S1: (03.05)_MMR_(Booster)_(WF_Dashboards_CEG___COVER_Audit_Child_Imms).csv | T1: listsize_(WF_Dashboards_CEG___COVER_Audit_Child_Imms).csv
A2: A83635 | T2: 1
A3: B82012 | T3: 2
A4: E82068 | T4: 1
A5: E82638 | T5: 1
A6: E83017 | T6: 1
A7: E84066 | T7: 1
A8: E85030 | T8: 1
A9: E85107 | T9: 1
A10: E85657 | T10: 1
A11: E86014 | T11: 1
A12: E86028 | T12: 1
A13: E87024 | T13: 2
A14: E87754 | T14: 1
A15: F81078 | T15: 2
A16: F81114 | T16: 2
A17: F81115 | T17: 1
A18: F81122 | N18: 1 | O18: 1 | P18: 1 | Q18: 1 | R18: 1 | T18: 1
A19: F81153 | T19: 3
A20: F81165 | T20: 1
A21: F82011 | T21: 1
A22: F82013 | T22: 1
A23: F82680 | T23: 108
A24: F83017 | T24: 1
A25: F83673 | T25: 1
A26: F84036 | T26: 1
A27: F84053 | T27: 1
A28: F84072 | T28: 1
A29: F84086 | T29: 1
A30: F84111 | T30: 1
A31: F84730 | T31: 1
A32: F85039 | T32: 1
A33: F86004 | B33: 51 | C33: 47 | D33: 46 | E33: 46 | F33: 46 | G33: 9 | H33: 53 | I33: 50 | J33: 27 | K33: 53 | L33: 53 | M33: 52 | N33: 58 | O33: 37 | P33: 36 | Q33: 47 | R33: 41 | S33: 2 | T33: 15970
A34: F86006 | T34: 1
A35: F86011 | T35: 2
A36: F86013 | T36: 322
A37: F86018 | B37: 17 | C37: 17 | D37: 16 | E37: 16 | G37: 3 | H37: 30 | I37: 27 | J37: 2 | K37: 25 | L37: 26 | M37: 26 | N37: 28 | O37: 18 | P37: 8 | Q37: 15 | R37: 21 | S37: 2 | T37: 9966
A38: F86025 | N38: 1 | T38: 215
A39: F86026 | B39: 11 | C39: 9 | D39: 9 | E39: 9 | F39: 8 | H39: 21 | I39: 17 | J39: 1 | K39: 17 | L39: 18 | M39: 17 | N39: 22 | O39: 8 | P39: 8 | Q39: 14 | R39: 10 | T39: 7223
A40: F86028 | T40: 1
A41: F86030 | T41: 2
A42: F86034 | T42: 1
A43: F86036 | T43: 1
A44: F86044 | T44: 2
A45: F86045 | T45: 1
A46: F86062 | T46: 1
A47: F86074 | B47: 39 | C47: 37 | D47: 34 | E47: 34 | F47: 25 | G47: 7 | H47: 52 | I47: 42 | J47: 17 | K47: 32 | L47: 43 | M47: 43 | N47: 53 | O47: 29 | P47: 30 | Q47: 33 | R47: 31 | T47: 15092
A48: F86082 | T48: 68
A49: F86616 | T49: 2
A50: F86626 | T50: 1
A51: F86638 | B51: 17 | C51: 12 | D51: 12 | E51: 12 | F51: 1 | G51: 2 | H51: 18 | I51: 13 | J51: 1 | K51: 12 | L51: 13 | M51: 14 | N51: 20 | O51: 14 | P51: 2 | Q51: 9 | R51: 16 | S51: 1 | T51: 5199
A52: F86644 | T52: 2
A53: F86657 | T53: 120
A54: F86691 | T54: 2
A55: F86700 | T55: 1
A56: F86701 | T56: 1
A57: G85012 | T57: 1
A58: G85087 | T58: 1
A59: G85109 | T59: 1
A60: G85136 | T60: 1
A61: H83015 | T61: 1
A62: J81028 | T62: 1
A63: K83059 | T63: 3
A64: M83650 | T64: 1
A65: P81002 | T65: 1
A66: Unknown | T66: 46
A67: Y00155 | T67: 191
A68: Y00403 | T68: 1
A69: Y01066 | T69: 1
A70: Y01795 | T70: 1
A71: Y01839 | T71: 1
A72: Y02987 | T72: 3

Sheet Control Panel (hidden)
B1: Q4 | E1: Search Title | F1: Report Title | I1: 2019-03-01
E2: All Patients | F2: Listsize | I2: April 2021 | J2: Q1 | K2: Q1: April 2017 - June 2017 | M2: Select Dates | U2: total | V2: 2 | W2: =$V$7&ADDRESS(1,V2)&":"&ADDRESS($V$8,V2) -> 'Data'!$B$1:$B$2000
E3: (01) 12 MONTH COHORT | F3: Patients becoming 12m | I3: May 2021 | J3: Q1 | K3: Q1: April 2017 - June 2017 | M3: 2017-04-01 | O3: - | P3: Select Practice | Q3: DN Team | R3: Patch | S3: Network | U3: OrgID | V3: 10 | W3: =$V$7&ADDRESS(1,V3)&":"&ADDRESS($V$8,V3) -> 'Data'!$J$1:$J$2000
E4: (01.01) DTaP/IPV/Hib 6in1 | F4: DTaP/IPV/Hib/HepB | I4: June 2021 | J4: Q1 | K4: Q1: April 2017 - June 2017 | M4: 2017-05-01 | N4: Bethnal Green Health Centre | O4: F84083 | P4: Bethnal Green Health Centre | S4: NW1 | U4: REL_D | V4: 1 | W4: =$V$7&ADDRESS(1,V4)&":"&ADDRESS($V$8,V4) -> 'Data'!$A$1:$A$2000
E5: DTaP/IPV/Hib(%) | F5: DTaP/IPV/Hib/HepB(%) | I5: July 2021 | J5: Q2 | K5: Q2: July 2017 - September 2017 | M5: 2017-06-01 | N5: The Mission Practice | O5: F84016 | P5: The Mission Practice | S5: NW1 | U5: IND | V5: - | W5: =$V$7&ADDRESS(V12,1)&":"&ADDRESS(V12,V9) -> 'Data'!$A$1:$AD$1
E6: Patients required to achieve NHSE Target (90%) | F6: Patients required to achieve NHSE Target (90%) | I6: August 2021 | J6: Q2 | K6: Q2: July 2017 - September 2017 | M6: 2017-07-01 | N6: Globe Town Surgery | O6: F84123 | P6: Globe Town Surgery | S6: NW1 | U6: NwID | V6: 3 | W6: =$V$7&ADDRESS(1,V6)&":"&ADDRESS($V$8,V6) -> 'Data'!$C$1:$C$2000
E7: Patients required to achieve CCG Target (95%) | F7: Patients required to achieve CCG Target (95%) | I7: September 2021 | J7: Q2 | K7: Q2: July 2017 - September 2017 | M7: 2017-08-01 | N7: Pollard Row Surgery | O7: Y00212 | P7: Pollard Row Surgery | S7: NW1 | U7: Data | V7: =IF(V10="N","BLANK!","'"&V11&"'!") -> 'Data'!
E8: (01.02) Men B (1st and 2nd) | F8: Men B | I8: October 2021 | J8: Q3 | K8: Q3: October 2017 - December 2017 | M8: 2017-09-01 | N8: Strouts Place Medical Centre | O8: F84051 | P8: Strouts Place Medical Centre | S8: NW1 | U8: Rows | V8: 2000
B9: Waltham Forest | C9: Total | E9: Men B(%) | F9: Men B(%) | I9: November 2021 | J9: Q3 | K9: Q3: October 2017 - December 2017 | M9: 2017-10-01 | N9: Spitalfields Practice | O9: F84081 | P9: Spitalfields Practice | S9: NW2 | U9: Columns | V9: 30
A10: LC1 | B10: Chingford Locality | C10: LC1 | E10: Patients required to achieve NHSE Target (90%) | F10: Patients required to achieve NHSE Target (90%) | I10: December 2021 | J10: Q3 | K10: Q3: October 2017 - December 2017 | M10: 2017-11-01 | N10: Blithehale Medical Centre | O10: F84718 | P10: Blithehale Medical Centre | S10: NW2 | U10: Data (Y/N) | V10: Y
A11: LC2 | B11: Leyton & Leytonstone Locality | C11: LC2 | E11: Patients required to achieve CCG Target (95%) | F11: Patients required to achieve CCG Target (95%) | I11: January 2022 | J11: Q4 | K11: Q4: January 2018 - March 2018 | M11: 2017-12-01 | N11: Health E1 | O11: F84733 | P11: Health E1 | S11: NW2 | U11: Q Work Sheet | V11: Data | W11: =$V$7&ADDRESS(1,1)&":"&ADDRESS(V8,V9) -> 'Data'!$A$1:$AD$2000
A12: LC3 | B12: Walthamstow Locality | C12: LC3 | E12: (01.03) PCV | F12: PCV | I12: February 2022 | J12: Q4 | K12: Q4: January 2018 - March 2018 | M12: 2018-01-01 | N12: Albion Health Centre | O12: F84012 | P12: Albion Health Centre | S12: NW2 | U12: Header Row | V12: 1
A13: LC1 | B13: =VLOOKUP(C13,$C$132:$D$171,2,FALSE) -> Chingford Medical Practice | C13: Y01291 | D13: LC3 | E13: PCV(%) | F13: PCV(%) | I13: March 2022 | J13: Q4 | K13: Q4: January 2018 - March 2018 | M13: 2018-02-01 | N13: Harford Health Centre | O13: F84087 | P13: Harford Health Centre | S13: NW3 | U13: Header Row 2 | V13: 3
A14: LC1 | B14: Churchill Medical Centre | C14: F86627 | D14: LC1 | E14: Patients required to achieve NHSE Target (90%) | F14: Patients required to achieve NHSE Target (90%) | M14: 2018-03-01 | N14: Brayford Square (Dr Varma) | O14: F84046 | P14: Brayford Square (Dr Varma) | S14: NW3
A15: LC1 | B15: Kings Head Medical Practice | C15: F86700 | D15: LC1 | E15: Patients required to achieve CCG Target (95%) | F15: Patients required to achieve CCG Target (95%) | N15: Whitechapel Health (Shah Jalal) | O15: F84039 | P15: Whitechapel Health (Shah Jalal) | S15: NW3
A16: LC1 | B16: Larkshall Medical Centre | C16: F86664 | D16: LC3 | E16: (01.04) Rotavirus | F16: Rotavirus | N16: City Wellbeing Practice (Tower Medical) | O16: F84114 | P16: City Wellbeing Practice (Tower Medical) | S16: NW3
A17: LC1 | B17: Old Church Surgery | C17: F86616 | D17: LC2 | E17: Rotavirus(%) | F17: Rotavirus(%) | N17: Wapping Group Practice | O17: F84079 | P17: Wapping Group Practice | S17: NW4
A18: LC1 | B18: The Ridgeway Surgery | C18: F86078 | D18: LC3 | N18: Jubilee Street Practice | O18: F84031 | P18: Jubilee Street Practice | S18: NW4 | V18: Patients becoming 12m | Z18: Patients becoming 12m
A19: LC2 | B19: Crawley Road Medical Centre | C19: F86044 | D19: LC3 | K19: 2015/16 Q1 | N19: St Katharine Docks Practice | O19: F84731 | P19: St Katharine Docks Practice | S19: NW4 | V19: DTaP/IPV/Hib | Z19: DTaP/IPV/Hib %
A20: LC2 | B20: Francis Road Medical Centre | C20: F86696 | D20: LC2 | K20: 2015/16 Q2 | N20: East One Health | O20: F84682 | P20: East One Health | S20: NW4 | V20: Men B | Z20: Men C / Men B %
A21: LC2 | B21: Green Man Medical Centre | C21: F86621 | D21: LC2 | K21: 2015/16 Q3 | N21: Harley Grove Medical Centre | O21: F84044 | P21: Harley Grove Medical Centre | S21: NW5 | V21: PCV | Z21: PCV %
A22: LC2 | B22: Hampton Medical Centre | C22: F86712 | D22: LC2 | K22: 2015/16 Q4 | N22: St Stephens Health Centre | O22: F84034 | P22: St Stephens Health Centre | S22: NW5
A23: LC2 | B23: High Road Surgery | C23: F86045 | D23: LC2 | K23: 2016/17 Q1 | N23: Ruston Street Clinic (Dr Amin) | O23: F84030 | P23: Ruston Street Clinic (Dr Amin) | S23: NW5 | V23: Patients becoming 24m | Z23: Patients becoming 24m
A24: LC2 | B24: Kiyani Medical Practice | C24: F86701 | D24: LC3 | K24: 2016/17 Q2 | N24: Grove Road Surgery (Dr Shah) | O24: F84055 | P24: Grove Road Surgery (Dr Shah) | S24: NW5 | V24: MMR | Z24: MMR %
A25: LC2 | B25: LL Medical Care (Agarwal & Agrwal Practice) | C25: F86625 | D25: LC1 | E25: All Patients | F25: Listsize | K25: 2016/17 Q3 | N25: The Tredegar Practice | O25: F84696 | P25: The Tredegar Practice | S25: NW5 | V25: HiB/Men C | Z25: HiB/Men C %
A26: LC2 | B26: The Langthorne Sharma Family Practice | C26: F86705 | D26: LC2 | E26: (02) 24 MONTH COHORT | F26: Patients becoming 24m | K26: 2016/17 Q4 | N26: Stroudley Walk Centre | O26: F84676 | P26: Stroudley Walk Centre | S26: NW6 | V26: PCV (Booster) | Z26: PCV (Booster) %
A27: LC2 | B27: Lime Tree Surgery | C27: F86650 | D27: LC2 | E27: (02.01) DTaP/IPV/Hib or DTaP/IPV/Hib/HepB | F27: DTaP/IPV/Hib | K27: 2017/18 Q1 | N27: St Andrews Health Centre | O27: Y03023 | P27: St Andrews Health Centre | S27: NW6
A28: LC2 | B28: Sma Medical Centre | C28: F86038 | D28: LC2 | E28: DTaP/IPV/Hib(%) | F28: DTaP/IPV/Hib(%) | K28: 2017/18 Q2 | N28: Merchant Street (Dr Rana) | O28: F84118 | P28: Merchant Street (Dr Rana) | S28: NW6 | V28: Patients becoming 5y | Z28: Patients becoming 5y
A29: LC2 | B29: The Allum Medical Centre | C29: F86036 | D29: LC1 | E29: Patients required to achieve NHSE Target (90%) | F29: Patients required to achieve NHSE Target (90%) | K29: 2017/18 Q3 | N29: St Pauls Way Medical Centre | O29: F84714 | P29: St Pauls Way Medical Centre | S29: NW6 | V29: DTaP/IPV (Booster)(%) | Z29: DTaP/IPV (Booster)(%)
A30: LC2 | B30: The Harrow Road Surgery | C30: F86666 | D30: LC3 | E30: Patients required to achieve CCG Target (95%) | F30: Patients required to achieve CCG Target (95%) | K30: 2017/18 Q4 | N30: Bromley-By-Bow Health Centre / XX Place | O30: F84122 | P30: Bromley-By-Bow Health Centre / XX Place | S30: NW6 | V30: MMR (Booster)(%) | Z30: MMR (Booster)(%)
A31: LC2 | B31: The Lyndhurst Surgery | C31: F86088 | D31: LC2 | E31: (02.02) MMR | F31: MMR | K31: 2018/19 Q1 | N31: Limehouse Practice (Gill Street) | O31: F84054 | P31: Limehouse Practice (Gill Street) | S31: NW7
A32: LC2 | B32: The Manor Practice | C32: F86011 | D32: LC3 | E32: MMR(%) | F32: MMR(%) | K32: 2018/19 Q2 | N32: Chrisp Street Health Centre | O32: F84062 | P32: Chrisp Street Health Centre | S32: NW7 | V32: (01) 12 MONTH COHORT
A33: LC3 | B33: =VLOOKUP(C33,$C$132:$D$171,2,FALSE) -> Addison Road Medical Practice | C33: F86607 | D33: LC3 | E33: Patients required to achieve NHSE Target (90%) | F33: Patients required to achieve NHSE Target (90%) | K33: 2018/19 Q3 | N33: Aberfeldy Practice | O33: F84698 | P33: Aberfeldy Practice | S33: NW7 | V33: (01.01) DTaP/IPV/Hib 6in1
A34: LC3 | B34: Claremont Medical Centre | C34: F86708 | D34: LC2 | E34: Patients required to achieve CCG Target (95%) | F34: Patients required to achieve CCG Target (95%) | K34: 2018/19 Q4 | N34: Gough Walk (Dr Selvan) | O34: F84025 | P34: Gough Walk (Dr Selvan) | S34: NW7 | V34: (01.02) Men B (1st and 2nd)
A35: LC3 | B35: Dr Dhital Practice | C35: F86086 | D35: LC3 | E35: (02.03) HiB/Men C | F35: HiB/Men C | N35: Island Health | O35: F84710 | P35: Island Health | S35: NW8 | V35: (01.03) PCV
A36: LC3 | B36: Dr Shantir Practice | C36: F86626 | D36: LC2 | E36: HiB/Men C (%) | F36: HiB/Men C (%) | J36: Patient becoming 12m | K36: 'Control Panel'!$V$18:$V$21 | L36: 'Control Panel'!$Z$18:$Z$21 | N36: Docklands Medical Centre | O36: F84656 | P36: Docklands Medical Centre | S36: NW8
A37: LC3 | B37: Higham Hill Medical Centre | C37: F86679 | D37: LC3 | E37: Patients required to achieve NHSE Target (90%) | F37: Patients required to achieve NHSE Target (90%) | J37: Patient becoming 24m | K37: 'Control Panel'!$V23:$V$26 | L37: 'Control Panel'!$Z23:$Z$26 | N37: Island Medical Centre | O37: F84647 | P37: Island Medical Centre | S37: NW8 | V37: (02) 24 MONTH COHORT
A38: LC3 | B38: Lime Tree & Sinnott Healthcare Ltd | C38: Y01839 | D38: LC3 | E38: Patients required to achieve CCG Target (95%) | F38: Patients required to achieve CCG Target (95%) | J38: Patient becoming 5y | K38: 'Control Panel'!$V28:$V$30 | L38: 'Control Panel'!$Z28:$Z$30 | N38: Barkantine Practice | O38: F84747 | P38: Barkantine Practice | S38: NW8 | V38: (02.02) MMR
A39: LC3 | B39: The Penryhn Surgery | C39: F86005 | D39: LC3 | E39: (02.04) PCV (Booster) | F39: PCV (Booster) | N39: Tower Hamlets | O39: Total | P39: Tower Hamlets | V39: (02.03) HiB/Men C
A40: LC3 | B40: Queens Road Medical Centre | C40: F86030 | D40: LC2 | E40: PCV (Booster)(%) | F40: PCV (Booster)(%) | N40: The One Network | O40: NW1 | P40: The One Network | S40: NW1 | V40: (02.04) PCV (Booster)
A41: LC3 | B41: Seymour Medical Centre | C41: F86006 | D41: LC2 | E41: Patients required to achieve NHSE Target (90%) | F41: Patients required to achieve NHSE Target (90%) | J41: Patient becoming 12m | K41: 'Control Panel'!$V$32:$V$35 | N41: East End Health Network | O41: NW2 | P41: East End Health Network | S41: NW2
A42: LC3 | B42: St James Medical Practice Ltd | C42: F86058 | D42: LC2 | E42: Patients required to achieve CCG Target (95%) | F42: Patients required to achieve CCG Target (95%) | J42: Patient becoming 24m | K42: 'Control Panel'!$V37:$V$40 | N42: Stepney and Whitechapel Network | O42: NW3 | P42: Stepney and Whitechapel Network | S42: NW3 | V42: (03) 5 YEAR COHORT
A43: LC3 | B43: The Bailey Practice | C43: F86689 | D43: LC1 | E43: (02.05) Men B (Booster) | F43: Men B (Booster) | J43: Patient becoming 5y | K43: 'Control Panel'!$V42:$V$44 | N43: The Highway Network | O43: NW4 | P43: The Highway Network | S43: NW4 | V43: (03.03) DTaP/IPV (Booster)
A44: LC3 | B44: The Firs | C44: F86001 | D44: LC2 | E44: Men B (Booster)(%) | F44: Men B (Booster)(%) | N44: Bow Health Network | O44: NW5 | P44: Bow Health Network | S44: NW5 | V44: (03.05) MMR (Booster)
A45: LC3 | B45: Grove Surgery | C45: F86062 | D45: LC1 | N45: Mile End East and Bromley by Bow Network | O45: NW6 | P45: Mile End East and Bromley by Bow Network | S45: NW6
A46: LC3 | B46: Waltham Forest Community & Family Health Services Ltd | C46: F86644 | D46: LC3 | N46: Poplar and Limehouse Network | O46: NW7 | P46: Poplar and Limehouse Network | S46: NW7
N47: Healthy Island Network | O47: NW8 | P47: Healthy Island Network | S47: NW8
E48: All Patients | F48: Listsize
E49: (03) 5 YEAR COHORT | F49: Patients becoming 5y | Y49: April 2019 | Z49: 2019-05-01
E50: (03.01) DTaP/IPV/Hib or DTaP/IPV/Hib/HepB | F50: DTaP/IPV/Hib | Y50: May 2019 | Z50: 2019-06-01
E51: DTaP/IPV/Hib(%) | F51: DTaP/IPV/Hib(%) | N51: xx | R51: bbb | Y51: June 2019 | Z51: 2019-07-01
E52: (03.02) MMR (Primary) | F52: MMR (Primary) | Y52: July 2019 | Z52: 2019-08-01
E53: MMR (Primary)(%) | F53: MMR (Primary)(%) | J53: Data | N53: Array Start | O53: Array End | P53: Array as Text | R53: Array Start | S53: Array End | Y53: August 2019 | Z53: 2019-09-01
E54: (03.03) DTaP/IPV (Booster) | F54: DTaP/IPV (Booster) | N54: ="'XX place'!"&ADDRESS(MATCH(I56,#REF!,0)+7,2) ->  | O54: =ADDRESS(MATCH(I56,#REF!,0)+43,3) ->  | P54: =TEXT(N54&":"&O54,"") ->  | R54: ="'BBB'!"&ADDRESS(MATCH(I56,#REF!,0)+7,2) ->  | S54: =ADDRESS(MATCH(I56,#REF!,0)+43,3) ->  | Y54: September 2019 | Z54: 2019-10-01
E55: DTaP/IPV (Booster)(%) | F55: DTaP/IPV (Booster)(%) | I55: Search Title | J55: Array Start | K55: Array End | L55: Array as Text | N55: ="'XX place'!"&ADDRESS(MATCH(I57,#REF!,0)+7,2) ->  | O55: =ADDRESS(MATCH(I57,#REF!,0)+43,3) ->  | R55: ="'BBB'!"&ADDRESS(MATCH(I57,#REF!,0)+7,2) ->  | S55: =ADDRESS(MATCH(I57,#REF!,0)+43,3) ->  | T55: Array as Text | Y55: October 2019 | Z55: 2019-11-01
E56: Patients required to achieve NHSE Target (90%) | F56: Patients required to achieve NHSE Target (90%) | I56: All Patients | J56: ="Data!"&ADDRESS(MATCH(I56,#REF!,0)+7,2) ->  | K56: =ADDRESS(MATCH(I56,#REF!,0)+46,3) ->  | L56: =TEXT(J56&":"&K56,"") ->  | N56: ="'XX place'!"&ADDRESS(MATCH(I58,#REF!,0)+7,2) ->  | O56: =ADDRESS(MATCH(I58,#REF!,0)+43,3) ->  | R56: ="'BBB'!"&ADDRESS(MATCH(I58,#REF!,0)+7,2) ->  | S56: =ADDRESS(MATCH(I58,#REF!,0)+43,3) ->  | T56: =TEXT(R54&":"&S54,"") ->  | Y56: November 2019 | Z56: 2019-12-01
E57: Patients required to achieve CCG Target (95%) | F57: Patients required to achieve CCG Target (95%) | I57: (01) 12 MONTH COHORT | J57: ="Data!"&ADDRESS(MATCH(I57,#REF!,0)+7,2) ->  | K57: =ADDRESS(MATCH(I57,#REF!,0)+46,3) ->  | N57: ="'XX place'!"&ADDRESS(MATCH(I59,#REF!,0)+7,2) ->  | O57: =ADDRESS(MATCH(I59,#REF!,0)+43,3) ->  | R57: ="'BBB'!"&ADDRESS(MATCH(I59,#REF!,0)+7,2) ->  | S57: =ADDRESS(MATCH(I59,#REF!,0)+43,3) ->  | Y57: December 2019 | Z57: 2020-01-01
E58: (03.05) MMR (Booster) | F58: MMR (Booster) | I58: (01.01) DTaP/IPV/Hib | J58: ="Data!"&ADDRESS(MATCH(I58,#REF!,0)+7,2) ->  | K58: =ADDRESS(MATCH(I58,#REF!,0)+46,3) ->  | N58: ="'XX place'!"&ADDRESS(MATCH(I60,#REF!,0)+7,2) ->  | O58: =ADDRESS(MATCH(I60,#REF!,0)+43,3) ->  | R58: ="'BBB'!"&ADDRESS(MATCH(I60,#REF!,0)+7,2) ->  | S58: =ADDRESS(MATCH(I60,#REF!,0)+43,3) ->  | Y58: January 2020 | Z58: 2020-02-01
E59: MMR (Booster)(%) | F59: MMR (Booster)(%) | I59: (01.02) Men C | J59: ="Data!"&ADDRESS(MATCH(I59,#REF!,0)+7,2) ->  | K59: =ADDRESS(MATCH(I59,#REF!,0)+46,3) ->  | N59: ="'XX place'!"&ADDRESS(MATCH(I61,#REF!,0)+7,2) ->  | O59: =ADDRESS(MATCH(I61,#REF!,0)+43,3) ->  | R59: ="'BBB'!"&ADDRESS(MATCH(I61,#REF!,0)+7,2) ->  | S59: =ADDRESS(MATCH(I61,#REF!,0)+43,3) ->  | Y59: February 2020 | Z59: 2020-03-01
E60: Patients required to achieve NHSE Target (90%) | F60: Patients required to achieve NHSE Target (90%) | I60: (01.03) PCV | J60: ="Data!"&ADDRESS(MATCH(I60,#REF!,0)+7,2) ->  | K60: =ADDRESS(MATCH(I60,#REF!,0)+46,3) ->  | N60: ="'XX place'!"&ADDRESS(MATCH(I62,#REF!,0)+7,2) ->  | O60: =ADDRESS(MATCH(I62,#REF!,0)+43,3) ->  | R60: ="'BBB'!"&ADDRESS(MATCH(I62,#REF!,0)+7,2) ->  | S60: =ADDRESS(MATCH(I62,#REF!,0)+43,3) ->  | Y60: March 2020 | Z60: 2020-04-01
E61: Patients required to achieve CCG Target (95%) | F61: Patients required to achieve CCG Target (95%) | I61: (01.04) Rotavirus | J61: ="Data!"&ADDRESS(MATCH(I61,#REF!,0)+7,2) ->  | K61: =ADDRESS(MATCH(I61,#REF!,0)+46,3) ->  | N61: ="'XX place'!"&ADDRESS(MATCH(I63,#REF!,0)+7,2) ->  | O61: =ADDRESS(MATCH(I63,#REF!,0)+43,3) ->  | R61: ="'BBB'!"&ADDRESS(MATCH(I63,#REF!,0)+7,2) ->  | S61: =ADDRESS(MATCH(I63,#REF!,0)+43,3) -> 
E62: (03.04) HiB/Men C | F62: HiB/Men C | I62: (01.05) BCG | J62: ="Data!"&ADDRESS(MATCH(I62,#REF!,0)+7,2) ->  | K62: =ADDRESS(MATCH(I62,#REF!,0)+46,3) ->  | N62: ="'XX place'!"&ADDRESS(MATCH(I64,#REF!,0)+7,2) ->  | O62: =ADDRESS(MATCH(I64,#REF!,0)+43,3) ->  | R62: ="'BBB'!"&ADDRESS(MATCH(I64,#REF!,0)+7,2) ->  | S62: =ADDRESS(MATCH(I64,#REF!,0)+43,3) -> 
E63: HiB/Men C(%) | F63: HiB/Men C(%) | I63: (02) 24 MONTH COHORT | J63: ="Data!"&ADDRESS(MATCH(I63,#REF!,0)+7,2) ->  | K63: =ADDRESS(MATCH(I63,#REF!,0)+46,3) ->  | N63: ="'XX place'!"&ADDRESS(MATCH(I65,#REF!,0)+7,2) ->  | O63: =ADDRESS(MATCH(I65,#REF!,0)+43,3) ->  | R63: ="'BBB'!"&ADDRESS(MATCH(I65,#REF!,0)+7,2) ->  | S63: =ADDRESS(MATCH(I65,#REF!,0)+43,3) -> 
I64: (02.01) DTaP/IPV/Hib | J64: ="Data!"&ADDRESS(MATCH(I64,#REF!,0)+7,2) ->  | K64: =ADDRESS(MATCH(I64,#REF!,0)+46,3) ->  | N64: ="'XX place'!"&ADDRESS(MATCH(I66,#REF!,0)+7,2) ->  | O64: =ADDRESS(MATCH(I66,#REF!,0)+43,3) ->  | R64: ="'BBB'!"&ADDRESS(MATCH(I66,#REF!,0)+7,2) ->  | S64: =ADDRESS(MATCH(I66,#REF!,0)+43,3) -> 
I65: (02.02) MMR | J65: ="Data!"&ADDRESS(MATCH(I65,#REF!,0)+7,2) ->  | K65: =ADDRESS(MATCH(I65,#REF!,0)+46,3) ->  | N65: ="'XX place'!"&ADDRESS(MATCH(I67,#REF!,0)+7,2) ->  | O65: =ADDRESS(MATCH(I67,#REF!,0)+43,3) ->  | R65: ="'BBB'!"&ADDRESS(MATCH(I67,#REF!,0)+7,2) ->  | S65: =ADDRESS(MATCH(I67,#REF!,0)+43,3) -> 
I66: (02.03) HiB/Men C | J66: ="Data!"&ADDRESS(MATCH(I66,#REF!,0)+7,2) ->  | K66: =ADDRESS(MATCH(I66,#REF!,0)+46,3) ->  | N66: ="'XX place'!"&ADDRESS(MATCH(I68,#REF!,0)+7,2) ->  | O66: =ADDRESS(MATCH(I68,#REF!,0)+43,3) ->  | R66: ="'BBB'!"&ADDRESS(MATCH(I68,#REF!,0)+7,2) ->  | S66: =ADDRESS(MATCH(I68,#REF!,0)+43,3) -> 
E67: 3rd DTAP/IPV/Hib | F67: 'Control Panel'!$G$67:$G$69 | G67: (01) 12 MONTH COHORT | I67: (02.04) PCV (Booster) | J67: ="Data!"&ADDRESS(MATCH(I67,#REF!,0)+7,2) ->  | K67: =ADDRESS(MATCH(I67,#REF!,0)+46,3) ->  | N67: ="'XX place'!"&ADDRESS(MATCH(I69,#REF!,0)+7,2) ->  | O67: =ADDRESS(MATCH(I69,#REF!,0)+43,3) ->  | R67: ="'BBB'!"&ADDRESS(MATCH(I69,#REF!,0)+7,2) ->  | S67: =ADDRESS(MATCH(I69,#REF!,0)+43,3) -> 
E68: MMR 1 at 2years | F68: 'Control Panel'!$G$70:$G$72 | G68: (01.01) DTaP/IPV/Hib | I68: (03) 5 YEAR COHORT | J68: ="Data!"&ADDRESS(MATCH(I68,#REF!,0)+7,2) ->  | K68: =ADDRESS(MATCH(I68,#REF!,0)+46,3) ->  | N68: ="'XX place'!"&ADDRESS(MATCH(I70,#REF!,0)+7,2) ->  | O68: =ADDRESS(MATCH(I70,#REF!,0)+43,3) ->  | R68: ="'BBB'!"&ADDRESS(MATCH(I70,#REF!,0)+7,2) ->  | S68: =ADDRESS(MATCH(I70,#REF!,0)+43,3) -> 
E69: MMR 2 at 5yrs | F69: 'Control Panel'!$G$73:$G$75 | G69: DTaP/IPV/Hib(%) | I69: (03.01) DTaP/IPV/Hib | J69: ="Data!"&ADDRESS(MATCH(I69,#REF!,0)+7,2) ->  | K69: =ADDRESS(MATCH(I69,#REF!,0)+46,3) ->  | N69: ="'XX place'!"&ADDRESS(MATCH(I71,#REF!,0)+7,2) ->  | O69: =ADDRESS(MATCH(I71,#REF!,0)+43,3) ->  | R69: ="'BBB'!"&ADDRESS(MATCH(I71,#REF!,0)+7,2) ->  | S69: =ADDRESS(MATCH(I71,#REF!,0)+43,3) -> 
E70: 3rd DTAP/IPV/Hib at 1 year | F70: 'Control Panel'!$G$67:$G$69 | G70: (02) 24 MONTH COHORT | I70: (03.02) MMR (Primary) | J70: ="Data!"&ADDRESS(MATCH(I70,#REF!,0)+7,2) ->  | K70: =ADDRESS(MATCH(I70,#REF!,0)+46,3) ->  | N70: ="'XX place'!"&ADDRESS(MATCH(I72,#REF!,0)+7,2) ->  | O70: =ADDRESS(MATCH(I72,#REF!,0)+43,3) ->  | R70: ="'BBB'!"&ADDRESS(MATCH(I72,#REF!,0)+7,2) ->  | S70: =ADDRESS(MATCH(I72,#REF!,0)+43,3) -> 
E71: MMR 1 at 2 years | F71: 'Control Panel'!$G$70:$G$72 | G71: (02.02) MMR | I71: (03.03) DTaP/IPV (Booster) | J71: ="Data!"&ADDRESS(MATCH(I71,#REF!,0)+7,2) ->  | K71: =ADDRESS(MATCH(I71,#REF!,0)+46,3) ->  | N71: ="'XX place'!"&ADDRESS(MATCH(I73,#REF!,0)+7,2) ->  | O71: =ADDRESS(MATCH(I73,#REF!,0)+43,3) ->  | P71: =TEXT(N71&":"&O71,"") ->  | R71: ="'BBB'!"&ADDRESS(MATCH(I73,#REF!,0)+7,2) ->  | S71: =ADDRESS(MATCH(I73,#REF!,0)+43,3) -> 
E72: Pre-school booster at 5years | F72: 'Control Panel'!$G$76:$G$78 | G72: MMR(%) | I72: (03.04) HiB/Men C | J72: ="Data!"&ADDRESS(MATCH(I72,#REF!,0)+7,2) ->  | K72: =ADDRESS(MATCH(I72,#REF!,0)+46,3) -> 
G73: (03) 5 YEAR COHORT | I73: (03.05) MMR (Booster) | J73: ="Data!"&ADDRESS(MATCH(I73,#REF!,0)+7,2) ->  | K73: =ADDRESS(MATCH(I73,#REF!,0)+46,3) ->  | L73: =TEXT(J73&":"&K73,"") ->  | T73: =TEXT(R71&":"&S71,"") -> 
G74: (03.02) MMR (Primary)
G75: MMR (Primary)(%)
G76: (03) 5 YEAR COHORT
G77: (03.05) MMR (Booster) | I77: Waltham Forest | J77: Total
G78: MMR (Booster)(%) | H78: WF-1 | I78: Chingford/ Walthamstow | J78: WF-1
H79: WF-2 | I79: Chingford E4 | J79: WF-2
H80: WF-3 | I80: Leyton Collaborative | J80: WF-3
H81: WF-4 | I81: Forest Integrated Health | J81: WF-4
H82: WF-5 | I82: South Leytonstone | J82: WF-5
H83: WF-6 | I83: Central Walthamstow | J83: WF-6
H84: WF-7 | I84: Walthamstow West | J84: WF-7
A85: F86700 | B85: Kings Head Medical Practice | C85: WF | D85: Waltham Forest | E85: WF-1 | F85: Chingford E4 | H85: WF-1 | I85: Dr Shantir Practice | J85: F86626 | K85: WF-6
A86: F86664 | B86: Larkshall Medical Centre | C86: WF | D86: Waltham Forest | E86: WF-1 | F86: Chingford E4 | H86: WF-1 | I86: Kings Head Medical Practice | J86: F86700 | K86: WF-2
A87: F86638 | B87: The Microfaculty* | C87: WF | D87: Waltham Forest | E87: WF-1 | F87: Chingford E4 | H87: WF-1 | I87: Larkshall Medical Centre | J87: F86664 | K87: WF-2
A88: F86005 | B88: The Penryhn Surgery | C88: WF | D88: Waltham Forest | E88: WF-1 | F88: Chingford/ Walthamstow | H88: WF-1 | I88: Lime Tree & Sinnott Healthcare Ltd | J88: Y01839 | K88: WF-6
A89: F86626 | B89: Dr Shantir Practice | C89: WF | D89: Waltham Forest | E89: WF-1 | F89: Chingford/ Walthamstow | H89: WF-1 | I89: The Penryhn Surgery | J89: F86005 | K89: WF-4
A90: Y01839 | B90: Lime Tree & Sinnott Healthcare Ltd | C90: WF | D90: Waltham Forest | E90: WF-1 | F90: Chingford E4 | H90: WF-1 | I90: The Bailey Practice | J90: F86689 | K90: WF-6
A91: F86689 | B91: The Bailey Practice | C91: WF | D91: Waltham Forest | E91: WF-1 | F91: Chingford/ Walthamstow | H91: WF-2 | I91: Chingford Medical Practice | J91: Y01291 | K91: WF-1
A92: F86026 | B92: Forest Surgery* | C92: WF | D92: Waltham Forest | E92: WF-1 | F92: Leyton Collaborative | H92: WF-2 | I92: Churchill Medical Centre | J92: F86627 | K92: WF-4
A93: F86004 | B93: Handsworth Medical Centre* | C93: WF | D93: Waltham Forest | E93: WF-1 | F93: Forest Integrated Health | H93: WF-2 | I93: Old Church Surgery | J93: F86616 | K93: WF-5
A94: Y01291 | B94: Chingford Medical Practice | C94: WF | D94: Waltham Forest | E94: WF-2 | F94: Leyton Collaborative | H94: WF-2 | I94: The Ridgeway Surgery | J94: F86078 | K94: WF-4
A95: F86627 | B95: Churchill Medical Centre | C95: WF | D95: Waltham Forest | E95: WF-2 | F95: Forest Integrated Health | H95: WF-3 | I95: Sma Medical Centre | J95: F86038 | K95: WF-5
A96: F86078 | B96: The Ridgeway Surgery | C96: WF | D96: Waltham Forest | E96: WF-2 | F96: Forest Integrated Health | H96: WF-3 | I96: The Manor Practice | J96: F86011 | K96: WF-7
A97: F86616 | B97: Old Church Surgery | C97: WF | D97: Waltham Forest | E97: WF-2 | F97: South Leytonstone | H97: WF-4 | I97: Crawley Road Medical Centre | J97: F86044 | K97: WF-5
A98: F86011 | B98: The Manor Practice | C98: WF | D98: Waltham Forest | E98: WF-3 | F98: Forest Integrated Health | H98: WF-4 | I98: Francis Road Medical Centre | J98: F86696 | K98: WF-5
A99: F86038 | B99: Sma Medical Centre | C99: WF | D99: Waltham Forest | E99: WF-3 | F99: South Leytonstone | H99: WF-4 | I99: Hampton Medical Centre | J99: F86712 | K99: WF-5
A100: F86074 | B100: Leyton Healthcare (Oliver Road)* | C100: WF | D100: Waltham Forest | E100: WF-3 | F100: South Leytonstone | H100: WF-4 | I100: Lime Tree Surgery | J100: F86650 | K100: WF-1
A101: F86036 | B101: The Allum Medical Centre | C101: WF | D101: Waltham Forest | E101: WF-4 | F101: Forest Integrated Health | H101: WF-4 | I101: The Allum Medical Centre | J101: F86036 | K101: WF-1
A102: F86044 | B102: Crawley Road Medical Centre | C102: WF | D102: Waltham Forest | E102: WF-4 | F102: South Leytonstone | H102: WF-4 | I102: The Lyndhurst Surgery | J102: F86088 | K102: WF-4
A103: F86696 | B103: Francis Road Medical Centre | C103: WF | D103: Waltham Forest | E103: WF-4 | F103: South Leytonstone | H103: WF-5 | I103: Green Man Medical Centre | J103: F86621 | K103: WF-1
A104: F86712 | B104: Hampton Medical Centre | C104: WF | D104: Waltham Forest | E104: WF-4 | F104: South Leytonstone | H104: WF-5 | I104: High Road Surgery | J104: F86045 | K104: WF-7
A105: F86650 | B105: Lime Tree Surgery | C105: WF | D105: Waltham Forest | E105: WF-4 | F105: Forest Integrated Health | H105: WF-5 | I105: Kiyani Medical Practice | J105: F86701 | K105: WF-7
A106: F86088 | B106: The Lyndhurst Surgery | C106: WF | D106: Waltham Forest | E106: WF-4 | F106: Leyton Collaborative | H106: WF-5 | I106: LL Medical Care (Agarwal & Agrwal Practice) | J106: F86625 | K106: WF-3
A107: F86018 | B107: The Ecclesbourne Practice* | C107: WF | D107: Waltham Forest | E107: WF-4 | F107: Leyton Collaborative | H107: WF-5 | I107: The Langthorne Sharma Family Practice | J107: F86705 | K107: WF-7
A108: F86621 | B108: Green Man Medical Centre | C108: WF | D108: Waltham Forest | E108: WF-5 | F108: Forest Integrated Health | H108: WF-5 | I108: The Harrow Road Surgery | J108: F86666 | K108: WF-4
A109: F86045 | B109: High Road Surgery | C109: WF | D109: Waltham Forest | E109: WF-5 | F109: Central Walthamstow | H109: WF-6 | I109: Addison Road Medical Practice | J109: F86607 | K109: WF-1
A110: F86701 | B110: Kiyani Medical Practice | C110: WF | D110: Waltham Forest | E110: WF-5 | F110: Central Walthamstow | H110: WF-6 | I110: Claremont Medical Centre | J110: F86708 | K110: WF-6
A111: F86625 | B111: LL Medical Care (Agarwal & Agrwal Practice) | C111: WF | D111: Waltham Forest | E111: WF-5 | F111: Central Walthamstow | H111: WF-6 | I111: Dr Dhital Practice | J111: F86086 | K111: WF-7
A112: F86666 | B112: The Harrow Road Surgery | C112: WF | D112: Waltham Forest | E112: WF-5 | F112: Chingford/ Walthamstow | H112: WF-6 | I112: The Firs | J112: F86001 | K112: WF-5
A113: F86705 | B113: The Langthorne Sharma Family Practice | C113: WF | D113: Waltham Forest | E113: WF-5 | F113: Central Walthamstow | H113: WF-6 | I113: Waltham Forest Community & Family Health Services Ltd | J113: F86644 | K113: WF-4
A114: F86607 | B114: Addison Road Medical Practice | C114: WF | D114: Waltham Forest | E114: WF-6 | F114: Walthamstow West | H114: WF-7 | I114: Higham Hill Medical Centre | J114: F86679 | K114: WF-3
A115: F86708 | B115: Claremont Medical Centre | C115: WF | D115: Waltham Forest | E115: WF-6 | F115: Chingford/ Walthamstow | H115: WF-7 | I115: Queens Road Medical Centre | J115: F86030 | K115: WF-2
A116: F86001 | B116: The Firs | C116: WF | D116: Waltham Forest | E116: WF-6 | F116: Walthamstow West | H116: WF-7 | I116: Seymour Medical centre | J116: F86006 | K116: WF-3
A117: F86086 | B117: Dr Dhital Practice | C117: WF | D117: Waltham Forest | E117: WF-6 | F117: Walthamstow West | H117: WF-7 | I117: St James Medical Practice Ltd | J117: F86058 | K117: WF-2
A118: F86644 | B118: Waltham Forest Community & Family Health Services Ltd | C118: WF | D118: Waltham Forest | E118: WF-6 | F118: Walthamstow West | H118: WF-7 | I118: The Grove Road Medical Centre | J118: F86062 | K118: WF-6
A119: F86006 | B119: Seymour Medical centre | C119: WF | D119: Waltham Forest | E119: WF-7 | F119: Chingford/ Walthamstow
A120: F86030 | B120: Queens Road Medical Centre | C120: WF | D120: Waltham Forest | E120: WF-7 | F120: Walthamstow West
A121: F86062 | B121: The Grove Road Medical Centre | C121: WF | D121: Waltham Forest | E121: WF-7 | F121: Chingford/ Walthamstow
A122: F86679 | B122: Higham Hill Medical Centre | C122: WF | D122: Waltham Forest | E122: WF-7 | F122: Central Walthamstow
A123: F86058 | B123: St James Medical Practice Ltd | C123: WF | D123: Waltham Forest | E123: WF-7 | F123: Chingford/ Walthamstow
F124: Chingford/ Walthamstow
B132: =VLOOKUP(D132,$B$13:$C$47,2,FALSE) -> F86700 | C132: F86700 | D132: Kings Head Medical Practice | G132: F86700 | H132: Kings Head Medical Practice | I132: WF | J132: Waltham Forest | K132: WF-1
B133: =VLOOKUP(D133,$B$13:$C$47,2,FALSE) -> F86664 | C133: F86664 | D133: Larkshall Medical Centre | G133: F86664 | H133: Larkshall Medical Centre | I133: WF | J133: Waltham Forest | K133: WF-1
C134: F86638 | D134: The Microfaculty | G134: F86638 | H134: The Microfaculty | I134: WF | J134: Waltham Forest | K134: WF-1
B135: F86005 | C135: F86005 | D135: The Penryhn Surgery | G135: F86005 | H135: The Penryhn Surgery | I135: WF | J135: Waltham Forest | K135: WF-1
B136: F86626 | C136: F86626 | D136: Dr Shantir Practice | G136: F86626 | H136: Dr Shantir Practice | I136: WF | J136: Waltham Forest | K136: WF-1
B137: Y01839 | C137: Y01839 | D137: Lime Tree & Sinnott Healthcare Ltd | G137: Y01839 | H137: Lime Tree & Sinnott Healthcare Ltd | I137: WF | J137: Waltham Forest | K137: WF-1
B138: F86689 | C138: F86689 | D138: The Bailey Practice | G138: F86689 | H138: The Bailey Practice | I138: WF | J138: Waltham Forest | K138: WF-1
C139: F86026 | D139: Forest Surgery | G139: F86026 | H139: Forest Surgery | I139: WF | J139: Waltham Forest | K139: WF-1
C140: F86004 | D140: Handsworth Medical Centre | G140: F86004 | H140: Handsworth Medical Centre | I140: WF | J140: Waltham Forest | K140: WF-2
B141: Y01291 | C141: Y01291 | D141: Chingford Medical Practice | G141: Y01291 | H141: Chingford Medical Practice | I141: WF | J141: Waltham Forest | K141: WF-2
B142: F86627 | C142: F86627 | D142: Churchill Medical Centre | G142: F86627 | H142: Churchill Medical Centre | I142: WF | J142: Waltham Forest | K142: WF-2
B143: F86078 | C143: F86078 | D143: The Ridgeway Surgery | G143: F86078 | H143: The Ridgeway Surgery | I143: WF | J143: Waltham Forest | K143: WF-2
B144: F86616 | C144: F86616 | D144: Old Church Surgery | G144: F86616 | H144: Old Church Surgery | I144: WF | J144: Waltham Forest | K144: WF-2
B145: F86011 | C145: F86011 | D145: The Manor Practice | G145: F86011 | H145: The Manor Practice | I145: WF | J145: Waltham Forest | K145: WF-3
B146: F86038 | C146: F86038 | D146: Sma Medical Centre | G146: F86038 | H146: Sma Medical Centre | I146: WF | J146: Waltham Forest | K146: WF-3
C147: Y02585 | D147: The Orient Practice | G147: Y02585 | H147: The Orient Practice | I147: WF | J147: Waltham Forest | K147: WF-3
C148: F86074 | D148: Leyton Healthcare (Oliver Road) | G148: F86074 | H148: Leyton Healthcare (Oliver Road) | I148: WF | J148: Waltham Forest | K148: WF-3
B149: F86036 | C149: F86036 | D149: The Allum Medical Centre | G149: F86036 | H149: The Allum Medical Centre | I149: WF | J149: Waltham Forest | K149: WF-4
B150: F86044 | C150: F86044 | D150: Crawley Road Medical Centre | G150: F86044 | H150: Crawley Road Medical Centre | I150: WF | J150: Waltham Forest | K150: WF-4
B151: F86696 | C151: F86696 | D151: Francis Road Medical Centre | G151: F86696 | H151: Francis Road Medical Centre | I151: WF | J151: Waltham Forest | K151: WF-4
B152: F86712 | C152: F86712 | D152: Hampton Medical Centre | G152: F86712 | H152: Hampton Medical Centre | I152: WF | J152: Waltham Forest | K152: WF-4
B153: F86650 | C153: F86650 | D153: Lime Tree Surgery | G153: F86650 | H153: Lime Tree Surgery | I153: WF | J153: Waltham Forest | K153: WF-4
B154: F86088 | C154: F86088 | D154: The Lyndhurst Surgery | G154: F86088 | H154: The Lyndhurst Surgery | I154: WF | J154: Waltham Forest | K154: WF-4
C155: F86018 | D155: The Ecclesbourne Practice | G155: F86018 | H155: The Ecclesbourne Practice | I155: WF | J155: Waltham Forest | K155: WF-4
B156: F86621 | C156: F86621 | D156: Green Man Medical Centre | G156: F86621 | H156: Green Man Medical Centre | I156: WF | J156: Waltham Forest | K156: WF-5
B157: F86045 | C157: F86045 | D157: High Road Surgery | G157: F86045 | H157: High Road Surgery | I157: WF | J157: Waltham Forest | K157: WF-5
B158: F86701 | C158: F86701 | D158: Kiyani Medical Practice | G158: F86701 | H158: Kiyani Medical Practice | I158: WF | J158: Waltham Forest | K158: WF-5
B159: F86625 | C159: F86625 | D159: LL Medical Care (Agarwal & Agrwal Practice) | G159: F86625 | H159: LL Medical Care (Agarwal & Agrwal Practice) | I159: WF | J159: Waltham Forest | K159: WF-5
B160: F86666 | C160: F86666 | D160: The Harrow Road Surgery | G160: F86666 | H160: The Harrow Road Surgery | I160: WF | J160: Waltham Forest | K160: WF-5
B161: F86705 | C161: F86705 | D161: The Langthorne Sharma Family Practice | G161: F86705 | H161: The Langthorne Sharma Family Practice | I161: WF | J161: Waltham Forest | K161: WF-5
B162: F86607 | C162: F86607 | D162: Addison Road Medical Practice | G162: F86607 | H162: Addison Road Medical Practice | I162: WF | J162: Waltham Forest | K162: WF-6
B163: F86708 | C163: F86708 | D163: Claremont Medical Centre | G163: F86708 | H163: Claremont Medical Centre | I163: WF | J163: Waltham Forest | K163: WF-6
B164: F86001 | C164: F86001 | D164: The Firs | G164: F86001 | H164: The Firs | I164: WF | J164: Waltham Forest | K164: WF-6
B165: F86086 | C165: F86086 | D165: Dr Dhital Practice | G165: F86086 | H165: Dr Dhital Practice | I165: WF | J165: Waltham Forest | K165: WF-6
B166: F86644 | C166: F86644 | D166: Waltham Forest Community & Family Health Services Ltd | G166: F86644 | H166: Waltham Forest Community & Family Health Services Ltd | I166: WF | J166: Waltham Forest | K166: WF-6
B167: F86006 | C167: F86006 | D167: Seymour Medical Centre | G167: F86006 | H167: Seymour Medical Centre | I167: WF | J167: Waltham Forest | K167: WF-7
B168: F86030 | C168: F86030 | D168: Queens Road Medical Centre | G168: F86030 | H168: Queens Road Medical Centre | I168: WF | J168: Waltham Forest | K168: WF-7
B169: F86062 | C169: F86062 | D169: Grove Surgery | G169: F86062 | H169: Grove Surgery | I169: WF | J169: Waltham Forest | K169: WF-7
B170: F86679 | C170: F86679 | D170: Higham Hill Medical Centre | G170: F86679 | H170: Higham Hill Medical Centre | I170: WF | J170: Waltham Forest | K170: WF-7
B171: F86058 | C171: F86058 | D171: St James Medical Practice Ltd | G171: F86058 | H171: St James Medical Practice Ltd | I171: WF | J171: Waltham Forest | K171: WF-7

Sheet Sheet2 (hidden)
A1: Practice ID | B1: Practice | C1: Locality ID | D1: Locality | E1: SubLocality ID | F1: SubLocality | G1: Clinical System | H1: Address 1 | I1: Address 2 | J1: Postcode | K1: Grid Reference | L1: X (easting) | M1: Y (northing) | N1: Latitude | O1: Longitude
A2: F82001 | B2: Halbutt Street Surgery | C2: BK | D2: Barking and Dagenham | E2: BK-1 | F2: East | G2: EMISweb | H2: 2 Halbutt Street | I2: Dagenham | J2: RM9 5AS | K2: TQ 48956 85305 | L2: 548956 | M2: 185305 | N2: 51.546983 | O2: 0.14681208
A3: F82005 | B3: Church Elm Lane Medical Practice | C3: BK | D3: Barking and Dagenham | E3: BK-1 | F3: East | G3: EMISweb | H3: Church Elm Lane | I3: Dagenham | J3: RM10 9RR | K3: TQ 49667 84556 | L3: 549667 | M3: 184556 | N3: 51.540066 | O3: 0.15673988
A4: Y01719 | B4: Broad Street Medical Centre | C4: BK | D4: Barking and Dagenham | E4: BK-1 | F4: East | G4: EMISweb | H4: Broad Street Resource Centre | I4: Dagenham | J4: RM10 9HU | K4: TQ 49367 83962 | L4: 549367 | M4: 183962 | N4: 51.534808 | O4: 0.15216548
A5: Y02575 | B5: Porters Avenue Doctors Surgery | C5: BK | D5: Barking and Dagenham | E5: BK-1 | F5: East | G5: EMISweb | H5: 234 Porters Avenue | I5: Dagenham | J5: RM8 2EQ | K5: TQ 47283 85077 | L5: 547283 | M5: 185077 | N5: 51.545373 | O5: 0.12260706
A6: F82003 | B6: First Avenue Surgery | C6: BK | D6: Barking and Dagenham | E6: BK-2 | F6: East One | G6: EMISweb | H6: 2 First Avenue | I6: Dagenham | J6: RM10 9AT | K6: TQ 49762 83388 | L6: 549762 | M6: 183388 | N6: 51.529546 | O6: 0.15761231
A7: F82015 | B7: Hedgemans Surgery | C7: BK | D7: Barking and Dagenham | E7: BK-2 | F7: East One | G7: EMISweb | H7: 92 Hedgemans Road | I7: Dagenham | J7: RM9 6HT | K7: TQ 48734 84495 | L7: 548734 | M7: 184495 | N7: 51.539764 | O7: 0.14327082
A8: F82017 | B8: St Albans Surgery | C8: BK | D8: Barking and Dagenham | E8: BK-2 | F8: East One | G8: EMISweb | H8: Urswick Road | I8: Dagenham | J8: RM9 6EA | K8: TQ 48052 84181 | L8: 548052 | M8: 184181 | N8: 51.537122 | O8: 0.13331215
A9: F82621 | B9: The Surgery (Dr Ola) | C9: BK | D9: Barking and Dagenham | E9: BK-2 | F9: East One | G9: EMISweb | H9: 36 Dewey Road | I9: Dagenham | J9: RM10 8AR | K9: TQ 50141 84824 | L9: 550141 | M9: 184824 | N9: 51.542348 | O9: 0.16368374
A10: F82634 | B10: Heathway Medical Centre | C10: BK | D10: Barking and Dagenham | E10: BK-2 | F10: East One | G10: EMISweb | H10: Morland Road | I10: Dagenham | J10: RM10 9HU | K10: TQ 49367 83962 | L10: 549367 | M10: 183962 | N10: 51.534808 | O10: 0.15216548
A11: F82678 | B11: Dr Alkaisy Surgery | C11: BK | D11: Barking and Dagenham | E11: BK-2 | F11: East One | G11: EMISweb | H11: Urswick Road | I11: Dagenham | J11: RM9 6EA | K11: TQ 48052 84181 | L11: 548052 | M11: 184181 | N11: 51.537122 | O11: 0.13331215
A12: F82679 | B12: Parkview Medical Practice | C12: BK | D12: Barking and Dagenham | E12: BK-2 | F12: East One | G12: EMISweb | H12: 199 Reede Road | I12: Dagenham | J12: RM10 8EJ | K12: TQ 49877 85126 | L12: 549877 | M12: 185126 | N12: 51.545131 | O12: 0.16000821
A13: F82034 | B13: Victoria Medical Centre | C13: BK | D13: Barking and Dagenham | E13: BK-3 | F13: West | G13: EMISweb | H13: 1 Queens Road | I13: Barking | J13: IG11 8GD | K13: TQ 44085 84494 | L13: 544085 | M13: 184494 | N13: 51.54096 | O13: 0.076282445
A14: F82042 | B14: Aurora Medcare | C14: BK | D14: Barking and Dagenham | E14: BK-3 | F14: West | G14: EMISweb | H14: 1 King Edwards Road | I14: Barking | J14: IG11 7TB | K14: TQ 44643 83708 | L14: 544643 | M14: 183708 | N14: 51.533755 | O14: 0.084000311
A15: F82625 | B15: Abbey Medical centre | C15: BK | D15: Barking and Dagenham | E15: BK-3 | F15: West | G15: EMISweb | H15: 1 Harpour Road | I15: Barking | J15: IG11 8RJ | K15: TQ 44215 84642 | L15: 544215 | M15: 184642 | N15: 51.542256 | O15: 0.078216284
A16: Y01280 | B16: Shifa Medical Practice | C16: BK | D16: Barking and Dagenham | E16: BK-3 | F16: West | G16: EMISweb | H16: Gasgoine Road | I16: Barking | J16: IG11 7RS | K16: TQ 44478 83438 | L16: 544478 | M16: 183438 | N16: 51.531371 | O16: 0.081512428
A17: F82018 | B17: Barking Medical Group Practice | C17: BK | D17: Barking and Dagenham | E17: BK-4 | F17: West One | G17: EMISweb | H17: 130 Upney lane | I17: Barking | J17: IG11 9LT | K17: TQ 45536 84574 | L17: 545536 | M17: 184574 | N17: 51.541307 | O17: 0.097223615
A18: F82040 | B18: John Smith House | C18: BK | D18: Barking and Dagenham | E18: BK-4 | F18: West One | G18: EMISweb | H18: 145-207 Bevan Avenue | I18: Barking | J18: IG11 9NS | K18: TQ 46496 84245 | L18: 546496 | M18: 184245 | N18: 51.538102 | O18: 0.11091985
A19: F82612 | B19: The White House | C19: BK | D19: Barking and Dagenham | E19: BK-4 | F19: West One | G19: EMISweb | H19: 12 Movers Lane | I19: Barking | J19: IG11 7UN | K19: TQ 44930 83744 | L19: 544930 | M19: 183744 | N19: 51.534005 | O19: 0.088149992
A20: F82647 | B20: Dr Gupta & Partner | C20: BK | D20: Barking and Dagenham | E20: BK-4 | F20: West One | G20: EMISweb | H20: 7 Salisbury Avenue | I20: Barking | J20: IG11 9XQ | K20: TQ 44605 84272 | L20: 544605 | M20: 184272 | N20: 51.538832 | O20: 0.08368429
A21: F82650 | B21: Ripple Road Medical Centre | C21: BK | D21: Barking and Dagenham | E21: BK-4 | F21: West One | G21: EMISweb | H21: 343 Ripple Road | I21: Barking | J21: IG11 7RJ | K21: TQ 45217 83938 | L21: 545217 | M21: 183938 | N21: 51.535674 | O21: 0.092364824
A22: F82680 | B22: Highgrove Surgery | C22: BK | D22: Barking and Dagenham | E22: BK-4 | F22: West One | G22: SystmOne | H22: Upney Lane | I22: Barking | J22: IG11 9LX | K22: TQ 45644 84306 | L22: 545644 | M22: 184306 | N22: 51.538871 | O22: 0.098669045
A23: F82027 | B23: Faircross Health Centre | C23: BK | D23: Barking and Dagenham | E23: BK-5 | F23: North | G23: EMISweb | H23: 51 Upney Lane | I23: Barking | J23: IG11 9LP | K23: TQ 45367 84850 | L23: 545367 | M23: 184850 | N23: 51.54383 | O23: 0.094902305
A24: F82012 | B24: Five Elms | C24: BK | D24: Barking and Dagenham | E24: BK-5 | F24: North | G24: EMISweb | H24: Five Elms Road | I24: Dagenham | J24: RM9 5TT | K24: TQ 48622 86004 | L24: 548622 | M24: 186004 | N24: 51.553352 | O24: 0.14229391
A25: F82025 | B25: Julia Engwell Surgery | C25: BK | D25: Barking and Dagenham | E25: BK-5 | F25: North | G25: EMISweb | H25: Woodward Road | I25: Dagenham | J25: RM9 4SR | K25: TQ 47520 84362 | L25: 547520 | M25: 184362 | N25: 51.538887 | O25: 0.12572292
A26: F82051 | B26: Laburnum Health centre | C26: BK | D26: Barking and Dagenham | E26: BK-5 | F26: North | G26: EMISweb | H26: 11 Althorne Way | I26: Dagenham | J26: RM10 7DF | K26: TQ 49234 86817 | L26: 549234 | M26: 186817 | N26: 51.560495 | O26: 0.1514593
A27: F82642 | B27: Gables Surgery | C27: BK | D27: Barking and Dagenham | E27: BK-5 | F27: North | G27: EMISweb | H27: Markyate Road | I27: Dagenham | J27: RM8 2LD | K27: TQ 46953 85105 | L27: 546953 | M27: 185105 | N27: 51.545711 | O27: 0.11786324
A28: F82661 | B28: Green Lane Surgery | C28: BK | D28: Barking and Dagenham | E28: BK-5 | F28: North | G28: EMISweb | H28: 872 Green Lane | I28: Dagenham | J28: RM8 1BX | K28: TQ 48005 86869 | L28: 548005 | M28: 186869 | N28: 51.561286 | O28: 0.13376487
A29: F86040 | B29: The Surgery | C29: BK | D29: Barking and Dagenham | E29: BK-5 | F29: North | G29: EMISweb | H29: 620 Longbridge Road | I29: Dagenham | J29: RM8 2AJ | K29: TQ 46755 85732 | L29: 546755 | M29: 185732 | N29: 51.551396 | O29: 0.11527123
A30: Y01795 | B30: Oval Road Practice | C30: BK | D30: Barking and Dagenham | E30: BK-5 | F30: North | G30: EMISweb | H30: 69 Oval Road North | I30: Dagenham | J30: RM10 9ET | K30: TQ 49697 83763 | L30: 549697 | M30: 183763 | N30: 51.532933 | O30: 0.15683523
A31: F82038 | B31: Valence Medical Centre | C31: BK | D31: Barking and Dagenham | E31: BK-5 | F31: North | G31: EMISweb | H31: 563 Valence Avenue | I31: Dagenham | J31: RM8 3RH | K31: TQ 47822 85951 | L31: 547822 | M31: 185951 | N31: 51.553086 | O31: 0.13074125
A32: F82604 | B32: Marks Gate Medical Practice | C32: BK | D32: Barking and Dagenham | E32: BK-6 | F32: Central | G32: EMISweb | H32: Lawn Farm Grove | I32: Dagenham | J32: RM6 5LL | K32: TQ 48155 89472 | L32: 548155 | M32: 189472 | N32: 51.584635 | O32: 0.13702397
A33: F82660 | B33: Tulasi Medical Centre | C33: BK | D33: Barking and Dagenham | E33: BK-6 | F33: Central | G33: EMISweb | H33: 10 Bennetts Castle Lane | I33: Dagenham | J33: RM8 3XU | K33: TQ 47363 86819 | L33: 547363 | M33: 186819 | N33: 51.561005 | O33: 0.12448914
A34: F82677 | B34: Becontree Medical Centre | C34: BK | D34: Barking and Dagenham | E34: BK-6 | F34: Central | G34: EMISweb | H34: 645 Becontree Avenue | I34: Dagenham | J34: RM8 3HP | K34: TQ 48516 86671 | L34: 548516 | M34: 186671 | N34: 51.559373 | O34: 0.1410476
A35: F84013 | B35: Stamford Hill Surgery | C35: CH | D35: City & Hackney | E35: CH-NE1 | F35: Springfield Park (NE1) | G35: EMISweb | H35: 2 Egerton Road | I35: Stamford Hill | J35: N16 6UA | K35: TQ 33741 87885 | L35: 533741 | M35: 187885 | N35: 51.573976 | O35: -0.071492952
A36: F84686 | B36: Cranwich Road Surgery | C36: CH | D36: City & Hackney | E36: CH-NE1 | F36: Springfield Park (NE1) | G36: EMISweb | H36: 62 Cranwich Road | J36: N16 5JF | K36: TQ 33045 87827 | L36: 533045 | M36: 187827 | N36: 51.573619 | O36: -0.081552204
A37: Y03049 | B37: Spring Hill Practice | C37: CH | D37: City & Hackney | E37: CH-NE1 | F37: Springfield Park (NE1) | G37: EMISweb | H37: 19-21 Oldhill Street | J37: N16 6LU | K37: TQ 34202 87381 | L37: 534202 | M37: 187381 | N37: 51.569337 | O37: -0.065037069
A38: F84018 | B38: The Nightingale Practice | C38: CH | D38: City & Hackney | E38: CH-NE2 | F38: Hackney Downs (NE2) | G38: EMISweb | H38: 10 Kenninghall Rd | I38: Clapton | J38: E5 8BY | K38: TQ 34412 86145 | L38: 534412 | M38: 186145 | N38: 51.55818 | O38: -0.062481117
A39: F84080 | B39: The Gadvhi Practice | C39: CH | D39: City & Hackney | E39: CH-NE2 | F39: Hackney Downs (NE2) | G39: EMISweb | H39: 1a Fountayne Road | J39: N16 7EA | K39: TQ 34209 86834 | L39: 534209 | M39: 186834 | N39: 51.56442 | O39: -0.06514483
A40: F84619 | B40: The Riverside Practice | C40: CH | D40: City & Hackney | E40: CH-NE2 | F40: Hackney Downs (NE2) | G40: EMISweb | H40: 14 Urban Hive, Theydon Rd | J40: E5 9BQ | K40: TQ 35164 86953 | L40: 535164 | M40: 186953 | N40: 51.565262 | O40: -0.051329752
A41: F84668 | B41: Clapton Surgery | C41: CH | D41: City & Hackney | E41: CH-NE2 | F41: Hackney Downs (NE2) | G41: EMISweb | H41: 14 Theydon Road | J41: E5 9BQ | K41: TQ 35164 86953 | L41: 535164 | M41: 186953 | N41: 51.565262 | O41: -0.051329752
A42: F84685 | B42: Elm Practice | C42: CH | D42: City & Hackney | E42: CH-NE2 | F42: Hackney Downs (NE2) | G42: EMISweb | H42: 1a Fountayne Road | J42: N16 7EA | K42: TQ 34209 86834 | L42: 534209 | M42: 186834 | N42: 51.56442 | O42: -0.06514483
A43: F84711 | B43: Rosewood Practice | C43: CH | D43: City & Hackney | E43: CH-NE2 | F43: Hackney Downs (NE2) | G43: EMISweb | H43: 1a Fountayne Road | J43: N16 7EA | K43: TQ 34209 86834 | L43: 534209 | M43: 186834 | N43: 51.56442 | O43: -0.06514483
A44: F84720 | B44: Healy Medical Centre | C44: CH | D44: City & Hackney | E44: CH-NE2 | F44: Hackney Downs (NE2) | G44: EMISweb | H44: 200 Upper Clapton Road | J44: E5 9HD | K44: TQ 35028 87268 | L44: 535028 | M44: 187268 | N44: 51.568125 | O44: -0.053169742
A45: F84036 | B45: Cedar Practice | C45: CH | D45: City & Hackney | E45: CH-NW1 | F45: Woodberry Wetlands (NW1) | G45: EMISweb | H45: John Scott Health Centre | I45: Green Lanes | J45: N4 2NU | K45: TQ 32221 87203 | L45: 532221 | M45: 187203 | N45: 51.568205 | O45: -0.093670043
A46: F84115 | B46: Statham Grove Surgery | C46: CH | D46: City & Hackney | E46: CH-NW1 | F46: Woodberry Wetlands (NW1) | G46: EMISweb | H46: Statham Grove | J46: N16 9DP | K46: TQ 32544 86016 | L46: 532544 | M46: 186016 | N46: 51.557463 | O46: -0.089459644
A47: F84119 | B47: The Heron Practice | C47: CH | D47: City & Hackney | E47: CH-NW1 | F47: Woodberry Wetlands (NW1) | G47: EMISweb | H47: John Scott Health Centre | I47: Green Lanes | J47: N4 2NU | K47: TQ 32221 87203 | L47: 532221 | M47: 187203 | N47: 51.568205 | O47: -0.093670043
A48: F84716 | B48: Allerton Road Medical Centre | C48: CH | D48: City & Hackney | E48: CH-NW1 | F48: Woodberry Wetlands (NW1) | G48: EMISweb | H48: 34a Allerton Road | J48: N16 5UF | K48: TQ 32456 86933 | L48: 532456 | M48: 186933 | N48: 51.565724 | O48: -0.090383086
A49: F84008 | B49: Barton House Health Centre | C49: CH | D49: City & Hackney | E49: CH-NW2 | F49: Clissold Park (NW2) | G49: EMISweb | H49: 233 Albion Road | I49: Stoke Newington | J49: N16 9JT | K49: TQ 32926 86369 | L49: 532926 | M49: 186369 | N49: 51.560545 | O49: -0.083819308
A50: F84033 | B50: Somerford Grove Practice | C50: CH | D50: City & Hackney | E50: CH-NW2 | F50: Clissold Park (NW2) | G50: EMISweb | H50: Somerford Grove | J50: N16 7UA | K50: TQ 33722 85639 | L50: 533722 | M50: 185639 | N50: 51.553797 | O50: -0.07262063
A51: F84636 | B51: Barretts Grove Surgery | C51: CH | D51: City & Hackney | E51: CH-NW2 | F51: Clissold Park (NW2) | G51: EMISweb | H51: 6 Barretts Grove | J51: N16 8AR | K51: TQ 33334 85451 | L51: 533334 | M51: 185451 | N51: 51.5522 | O51: -0.078284859
A52: F84694 | B52: Brooke Road Surgery | C52: CH | D52: City & Hackney | E52: CH-NW2 | F52: Clissold Park (NW2) | G52: EMISweb | H52: 40-42 Brooke Road | J52: N16 7LR | K52: TQ 33833 86338 | L52: 533833 | M52: 186338 | N52: 51.560052 | O52: -0.070754775
A53: F84003 | B53: Lower Clapton Group Practice | C53: CH | D53: City & Hackney | E53: CH-SE1 | F53: Hackney Marshes (SE1) | G53: EMISweb | H53: 36 Lower Clapton Road | J53: E5 0PD | K53: TQ 35145 85320 | L53: 535145 | M53: 185320 | N53: 51.550592 | O53: -0.052230775
A54: F84015 | B54: Kingsmead Healthcare | C54: CH | D54: City & Hackney | E54: CH-SE1 | F54: Hackney Marshes (SE1) | G54: EMISweb | H54: 4 Kingsmead Way | J54: E9 5QG | K54: TQ 36351 85487 | L54: 536351 | M54: 185487 | N54: 51.551803 | O54: -0.034783216
A55: F84060 | B55: Athena Medical Centre | C55: CH | D55: City & Hackney | E55: CH-SE1 | F55: Hackney Marshes (SE1) | G55: EMISweb | H55: 21 Atherden Road | I55: Clapton | J55: E5 0QP | K55: TQ 35057 85799 | L55: 535057 | M55: 185799 | N55: 51.554917 | O55: -0.053315427
A56: F84105 | B56: The Lea Surgery | C56: CH | D56: City & Hackney | E56: CH-SE1 | F56: Hackney Marshes (SE1) | G56: EMISweb | H56: 186 Homerton High Street | J56: E9 6AG | K56: TQ 35784 85079 | L56: 535784 | M56: 185079 | N56: 51.548273 | O56: -0.04311334
A57: F84719 | B57: Latimer Health Centre | C57: CH | D57: City & Hackney | E57: CH-SE1 | F57: Hackney Marshes (SE1) | G57: EMISweb | H57: 4 Homerton Terrace | J57: E9 6RT | K57: TQ 35346 84880 | L57: 535346 | M57: 184880 | N57: 51.54659 | O57: -0.049502727
A58: F84069 | B58: The Well Street Surgery | C58: CH | D58: City & Hackney | E58: CH-SE2 | F58: Well Street Common (SE2) | G58: EMISweb | H58: 28 Shore Road | J58: E9 7TA | K58: TQ 35138 84055 | L58: 535138 | M58: 184055 | N58: 51.539226 | O58: -0.052817041
A59: F84601 | B59: Elsdale Street Surgery | C59: CH | D59: City & Hackney | E59: CH-SE2 | F59: Well Street Common (SE2) | G59: EMISweb | H59: 28 Elsdale Street | J59: E9 6QY | K59: TQ 35380 84483 | L59: 535380 | M59: 184483 | N59: 51.543014 | O59: -0.0491653
A60: F84620 | B60: The Wick Health Centre | C60: CH | D60: City & Hackney | E60: CH-SE2 | F60: Well Street Common (SE2) | G60: EMISweb | H60: 200 Wick Rd | J60: E9 5AN | K60: TQ 36085 84711 | L60: 536085 | M60: 184711 | N60: 51.544894 | O60: -0.038917245
A61: F84632 | B61: The Greenhouse | C61: CH | D61: City & Hackney | E61: CH-SE2 | F61: Well Street Common (SE2) | G61: EMISweb | H61: 19 Tudor Road | J61: E9 7SN | K61: TQ 34985 83975 | L61: 534985 | M61: 183975 | N61: 51.538544 | O61: -0.055052455
A62: Y00403 | B62: Trowbridge Surgery | C62: CH | D62: City & Hackney | E62: CH-SE2 | F62: Well Street Common (SE2) | G62: EMISweb | H62: 18 Merriam Avenue | J62: E9 5NE | K62: TQ 36747 84792 | L62: 536747 | M62: 184792 | N62: 51.545462 | O62: -0.029345179
A63: F84021 | B63: London Fields Medical Centre | C63: CH | D63: City & Hackney | E63: CH-SW1 | F63: London Fields (SW1) | G63: EMISweb | H63: 38-44 Broadway Market | J63: E8 4QJ | K63: TQ 34536 83745 | L63: 534536 | M63: 183745 | N63: 51.536584 | O63: -0.061610386
A64: F84035 | B64: Richmond Road Medical Centre | C64: CH | D64: City & Hackney | E64: CH-SW1 | F64: London Fields (SW1) | G64: EMISweb | H64: 136 Richmond Road | J64: E8 3HN | K64: TQ 34245 84457 | L64: 534245 | M64: 184457 | N64: 51.543051 | O64: -0.06553224
A65: F84038 | B65: Beechwood Medical Centre | C65: CH | D65: City & Hackney | E65: CH-SW1 | F65: London Fields (SW1) | G65: EMISweb | H65: 86-86a Dalston Lane | J65: E8 3AH | K65: TQ 33890 84780 | L65: 533890 | M65: 184780 | N65: 51.546038 | O65: -0.070525556
A66: F84063 | B66: Dalston Practice | C66: CH | D66: City & Hackney | E66: CH-SW1 | F66: London Fields (SW1) | G66: EMISweb | H66: 1b Madinah Road | J66: E8 1PG | K66: TQ 34111 84978 | L66: 534111 | M66: 184978 | N66: 51.547765 | O66: -0.067264996
A67: F84117 | B67: Queensbridge Group Practice | C67: CH | D67: City & Hackney | E67: CH-SW1 | F67: London Fields (SW1) | G67: EMISweb | H67: 24, Holly Street | J67: E8 3XP | K67: TQ 33838 84271 | L67: 533838 | M67: 184271 | N67: 51.541476 | O67: -0.071468414
A68: F84621 | B68: The Sandringham Practice | C68: CH | D68: City & Hackney | E68: CH-SW1 | F68: London Fields (SW1) | G68: EMISweb | H68: 1a Madinah Road | J68: E8 1PG | K68: TQ 34111 84978 | L68: 534111 | M68: 184978 | N68: 51.547765 | O68: -0.067264996
A69: F84640 | B69: The Neaman Practice | C69: CH | D69: City & Hackney | E69: CH-SW2 | F69: Shoreditch Park & City (SW2) | G69: EMISweb | H69: 15 Half Moon Court | J69: EC1A 7HF | K69: TQ 32048 81725 | L69: 532048 | M69: 181725 | N69: 51.519018 | O69: -0.098218282
A70: F84041 | B70: Southgate & Whiston Road Surgery | C70: CH | D70: City & Hackney | E70: CH-SW2 | F70: Shoreditch Park & City (SW2) | G70: EMISweb | H70: 101 - 103 Southgate Road | J70: N1 3JS | K70: TQ 32865 84163 | L70: 532865 | M70: 184163 | N70: 51.540736 | O70: -0.085531213
A71: F84072 | B71: De Beauvoir Surgery | C71: CH | D71: City & Hackney | E71: CH-SW2 | F71: Shoreditch Park & City (SW2) | G71: EMISweb | H71: 30 Hertford Road | J71: N1 5QT | K71: TQ 33377 83922 | L71: 533377 | M71: 183922 | N71: 51.538449 | O71: -0.078244064
A72: F84096 | B72: The Lawson Practice | C72: CH | D72: City & Hackney | E72: CH-SW2 | F72: Shoreditch Park & City (SW2) | G72: EMISweb | H72: St Leonard's Hospital, Nuttall St | I72: Nuttall Street | J72: N1 5HZ | K72: TQ 33302 83395 | L72: 533302 | M72: 183395 | N72: 51.533731 | O72: -0.079524183
A73: F84635 | B73: Shoreditch Park Surgery | C73: CH | D73: City & Hackney | E73: CH-SW2 | F73: Shoreditch Park & City (SW2) | G73: EMISweb | H73: 10 Rushton Street | J73: N1 5DR | K73: TQ 32796 83359 | L73: 532796 | M73: 183359 | N73: 51.533527 | O73: -0.086828572
A74: F84692 | B74: The Hoxton Surgery | C74: CH | D74: City & Hackney | E74: CH-SW2 | F74: Shoreditch Park & City (SW2) | G74: EMISweb | H74: 12 Rushton Street | J74: N1 5DR | K74: TQ 32796 83359 | L74: 532796 | M74: 183359 | N74: 51.533527 | O74: -0.086828572
A75: F82011 | B75: St Edwards Surgery | C75: HV | D75: Havering | E75: HV-1 | F75: Havering Crest | G75: EMISweb | H75: 7 St Edwards Way | I75: Romford | J75: RM1 3DQ | K75: TQ 51307 89056 | L75: 551307 | M75: 189056 | N75: 51.580061 | O75: 0.18230462
A76: F82019 | B76: Chadwell Heath Health Centre - The Upstairs Surgery (Dr Hamilton-Smith) | C76: HV | D76: Havering | E76: HV-1 | F76: Havering Crest | G76: EMISweb | H76: Ashton Garden | I76: Chadwell Heath | J76: RM6 6RT | K76: TQ 48405 88264 | L76: 548405 | M76: 188264 | N76: 51.573715 | O76: 0.14011965
A77: F82638 | B77: The Modern Medical Centre | C77: HV | D77: Havering | E77: HV-1 | F77: Havering Crest | G77: EMISweb | H77: 195 Rush Green Road | I77: Rush Green | J77: RM7 0PX | K77: TQ 51030 87418 | L77: 551030 | M77: 187418 | N77: 51.565418 | O77: 0.17760643
A78: F82039 | B78: Rush Green Medical Centre (Dr Poologanathan & Partners) | C78: HV | D78: Havering | E78: HV-1 | F78: Havering Crest | G78: EMISweb | H78: 261 Dagenham Road | I78: Rush Green | J78: RM7 0XR | K78: TQ 50932 86893 | L78: 550932 | M78: 186893 | N78: 51.560727 | O78: 0.1759684
A79: F82031 | B79: Rush Green Medical Centre (Dr Sanomi) | C79: HV | D79: Havering | E79: HV-1 | F79: Havering Crest | G79: EMISweb | H79: 261 Dagenham Road | I79: Rush Green | J79: RM7 0XR | K79: TQ 50932 86893 | L79: 550932 | M79: 186893 | N79: 51.560727 | O79: 0.1759684
A80: F82023 | B80: High Street Surgery (Dr Pervez) | C80: HV | D80: Havering | E80: HV-1 | F80: Havering Crest | G80: EMISweb | H80: 219 High Street | I80: Hornchurch | J80: RM11 3XT | K80: TQ 54233 87089 | L80: 554233 | M80: 187089 | N80: 51.561596 | O80: 0.22363675
A81: F82675 | B81: Billet Lane Medical Centre | C81: HV | D81: Havering | E81: HV-1 | F81: Havering Crest | G81: EMISweb | H81: 58b Billet Lane | I81: Hornchurch | J81: RM11 1XA | K81: TQ 53895 87670 | L81: 553895 | M81: 187670 | N81: 51.566908 | O81: 0.21901872
A82: F82663 | B82: Brentwood Road Surgery (Dr Marks) | C82: HV | D82: Havering | E82: HV-1 | F82: Havering Crest | G82: EMISweb | H82: 107 Brentwood Road | I82: Romford | J82: RM1 2SB | K82: TQ 52030 88243 | L82: 552030 | M82: 188243 | N82: 51.572562 | O82: 0.19237934
A83: F82013 | B83: Western Road Medical Centre | C83: HV | D83: Havering | E83: HV-2 | F83: Havering Marshall | G83: EMISweb | H83: 99 Western Road | I83: Romford | J83: RM1 3LS | K83: TQ 51671 88948 | L83: 551671 | M83: 188948 | N83: 51.578992 | O83: 0.18750723
A84: F82021 | B84: The New Medical Centre | C84: HV | D84: Havering | E84: HV-2 | F84: Havering Marshall | G84: EMISweb | H84: 264 Brentwood Road | I84: Romford | J84: RM2 5SU | K84: TQ 52819 88475 | L84: 552819 | M84: 188475 | N84: 51.574433 | O84: 0.20385631
A85: F82009 | B85: North Street Medical Care | C85: HV | D85: Havering | E85: HV-2 | F85: Havering Marshall | G85: EMISweb | H85: 274 North Street | I85: Romford | J85: RM1 4QJ | K85: TQ 50672 89720 | L85: 550672 | M85: 189720 | N85: 51.586196 | O85: 0.17343195
A86: F82686 | B86: Chadwell Heath Health Centre (Dr A Patel) | C86: HV | D86: Havering | E86: HV-3 | F86: Havering North | G86: EMISweb | H86: Ashton Gardens | I86: Chadwell Heath | J86: RM6 6RT | K86: TQ 48405 88264 | L86: 548405 | M86: 188264 | N86: 51.573715 | O86: 0.14011965
A87: F82010 | B87: Petersfield Surgery | C87: HV | D87: Havering | E87: HV-3 | F87: Havering North | G87: EMISweb | H87: 70 Petersfield Ave | I87: Harold Hill | J87: RM3 9PD | K87: TQ 54717 92014 | L87: 554717 | M87: 192014 | N87: 51.605712 | O87: 0.23278189
A88: F82648 | B88: Ingrebourne Medical Centre | C88: HV | D88: Havering | E88: HV-3 | F88: Havering North | G88: EMISweb | H88: 135 Straight Road | I88: Harold Hill | J88: RM3 7JJ | K88: TQ 53197 91366 | L88: 553197 | M88: 191366 | N88: 51.600305 | O88: 0.21056731
A89: F82671 | B89: Straight Road Doctors Surgery (Dr Prasad) | C89: HV | D89: Havering | E89: HV-3 | F89: Havering North | G89: EMISweb | H89: 137 Straight Road | I89: Harold Hill | J89: RM3 7JJ | K89: TQ 53197 91366 | L89: 553197 | M89: 191366 | N89: 51.600305 | O89: 0.21056731
A90: F82670 | B90: AbbaMoor Surgery | C90: HV | D90: Havering | E90: HV-3 | F90: Havering North | G90: EMISweb | H90: Gooshays Drive | I90: Harold Hill | J90: RM3 9SU | K90: TQ 54169 92056 | L90: 554169 | M90: 192056 | N90: 51.606239 | O90: 0.22489343
A91: F82014 | B91: Harold Hill Health Centre (Dr Kuchhai) | C91: HV | D91: Havering | E91: HV-3 | F91: Havering North | G91: EMISweb | H91: Gooshays Drive | I91: Harold Hill | J91: RM3 9SU | K91: TQ 54169 92056 | L91: 554169 | M91: 192056 | N91: 51.606239 | O91: 0.22489343
A92: F82016 | B92: Central Park Surgery (Dr Kakad) | C92: HV | D92: Havering | E92: HV-3 | F92: Havering North | G92: EMISweb | H92: Gooshays Drive | I92: Harold Hill | J92: RM3 9SU | K92: TQ 54169 92056 | L92: 554169 | M92: 192056 | N92: 51.606239 | O92: 0.22489343
A93: Y00312 | B93: The Robins Surgery | C93: HV | D93: Havering | E93: HV-3 | F93: Havering North | G93: EMISweb | H93: Gooshays Drive | I93: Harold Hill | J93: RM3 9SU | K93: TQ 54169 92056 | L93: 554169 | M93: 192056 | N93: 51.606239 | O93: 0.22489343
A94: F82007 | B94: The Greenwood Practice | C94: HV | D94: Havering | E94: HV-3 | F94: Havering North | G94: EMISweb | H94: 89 Gubbins Lane | I94: Harold Wood | J94: RM3 0DR | K94: TQ 54748 90860 | L94: 554748 | M94: 190860 | N94: 51.595335 | O94: 0.23272048
A95: F82045 | B95: Oak Lodge Surgery (Dr Chowdhury) | C95: HV | D95: Havering | E95: HV-3 | F95: Havering North | G95: EMISweb | H95: 6 Oak Road | I95: Harold Wood | J95: RM3 0PT | K95: TQ 54849 90533 | L95: 554849 | M95: 190533 | N95: 51.59237 | O95: 0.23403325
A96: Y02973 | B96: Kings Park Surgery | C96: HV | D96: Havering | E96: HV-3 | F96: Havering North | G96: EMISweb | H96: St Clements Avenue | I96: Harold Wood | J96: RM3 0FE | K96: TQ 54268 90605 | L96: 554268 | M96: 190605 | N96: 51.593176 | O96: 0.22568428
A97: F82030 | B97: Lynwood Medical Centre | C97: HV | D97: Havering | E97: HV-3 | F97: Havering North | G97: EMISweb | H97: 4 Lynwood Drive | I97: Collier Row | J97: RM5 3QL | K97: TQ 49970 91426 | L97: 549970 | M97: 191426 | N97: 51.601712 | O97: 0.16403547
A98: F82630 | B98: Chase Cross Medical Centre (Dr Kulendran) | C98: HV | D98: Havering | E98: HV-3 | F98: Havering North | G98: EMISweb | H98: Chase Cross Road | I98: Collier Row | J98: RM5 3PJ | K98: TQ 50027 91251 | L98: 550027 | M98: 191251 | N98: 51.600124 | O98: 0.16478307
A99: F82610 | B99: Dr N K Gupta Surgery | C99: HV | D99: Havering | E99: HV-3 | F99: Havering North | G99: EMISweb | H99: 206 Mawney Road | I99: Romford | J99: RM7 8BU | K99: TQ 50077 89338 | L99: 550077 | M99: 189338 | N99: 51.582923 | O99: 0.16468707
A100: F82055 | B100: Hornchurch Healthcare | C100: HV | D100: Havering | E100: HV-4 | F100: Havering South | G100: EMISweb | H100: 58b Billet Lane | I100: Hornchurch | J100: RM11 1XA | K100: TQ 53895 87670 | L100: 553895 | M100: 187670 | N100: 51.566908 | O100: 0.21901872
A101: F82609 | B101: Sutton Ave surgery (P M Patel) | C101: HV | D101: Havering | E101: HV-4 | F101: Havering South | G101: EMISweb | H101: 24 Suttons Ave | I101: Hornchurch | J101: RM12 4LF | K101: TQ 53941 86488 | L101: 553941 | M101: 186488 | N101: 51.556275 | O101: 0.21916472
A102: F82002 | B102: Haiderian Medical Centre | C102: HV | D102: Havering | E102: HV-4 | F102: Havering South | G102: EMISweb | H102: 181 Corbets Tey Road | I102: Upminster | J102: RM14 2YN | K102: TQ 55913 85795 | L102: 555913 | M102: 185795 | N102: 51.549508 | O102: 0.24727998
A103: F82008 | B103: Maylands Health Care | C103: HV | D103: Havering | E103: HV-4 | F103: Havering South | G103: EMISweb | H103: 300 Upper Rainham Road | I103: Elm Park | J103: RM12 4EQ | K103: TQ 51980 86056 | L103: 551980 | M103: 186056 | N103: 51.552925 | O103: 0.19071367
A104: F82028 | B104: Wood Lane Medical Centre | C104: HV | D104: Havering | E104: HV-4 | F104: Havering South | G104: EMISweb | H104: 39 Wood Lane | I104: Elm Park | J104: RM12 5HX | K104: TQ 52375 85087 | L104: 552375 | M104: 185087 | N104: 51.544113 | O104: 0.19598719
A105: F82666 | B105: The Surgery (Dr Rahman) | C105: HV | D105: Havering | E105: HV-4 | F105: Havering South | G105: EMISweb | H105: 482 South End Road | I105: Elm Park | J105: RM12 5PA | K105: TQ 52924 85456 | L105: 552924 | M105: 185456 | N105: 51.54728 | O105: 0.20405819
A106: F82022 | B106: The Rosewood Medical Centre | C106: HV | D106: Havering | E106: HV-4 | F106: Havering South | G106: EMISweb | H106: 30 Astra Close | I106: Hornchurch | J106: RM12 5NJ | K106: TQ 52722 84935 | L106: 552722 | M106: 184935 | N106: 51.542653 | O106: 0.20092136
A107: F82619 | B107: Harlow Road Surgery (Dr N Tariq) | C107: HV | D107: Havering | E107: HV-4 | F107: Havering South | G107: EMISweb | H107: 1 Harlow Road | I107: Rainham | J107: RM13 7UP | K107: TQ 51752 83712 | L107: 551752 | M107: 183712 | N107: 51.531926 | O107: 0.1864178
A108: F82627 | B108: Rainham Health Centre | C108: HV | D108: Havering | E108: HV-4 | F108: Havering South | G108: EMISweb | H108: Upminster Road South | I108: Rainham | J108: RM13 9AB | K108: TQ 52533 82337 | L108: 552533 | M108: 182337 | N108: 51.519362 | O108: 0.19707375
A109: F82649 | B109: Berwick Surgery | C109: HV | D109: Havering | E109: HV-4 | F109: Havering South | G109: EMISweb | H109: 17 Berwick Road | I109: Rainham | J109: RM13 9QU | K109: TQ 53679 83242 | L109: 553679 | M109: 183242 | N109: 51.527183 | O109: 0.21397232
A110: F82607 | B110: South Hornchurch Medical Practice | C110: HV | D110: Havering | E110: HV-4 | F110: Havering South | G110: EMISweb | H110: 382 Upminster Road North | I110: North Rainham | J110: RM13 9RZ | K110: TQ 53703 82663 | L110: 553703 | M110: 182663 | N110: 51.521974 | O110: 0.21406561
A111: F82674 | B111: Avon Road Surgery (Cranham Health Centre) | C111: HV | D111: Havering | E111: HV-4 | F111: Havering South | G111: EMISweb | H111: Avon Road | I111: Cranham | J111: RM14 1RG | K111: TQ 57095 87988 | L111: 557095 | M111: 187988 | N111: 51.568883 | O111: 0.26529226
A112: F82006 | B112: Cranham Village Surgery (Dr C Dahs & Dr IP Humberstone Surgery) | C112: HV | D112: Havering | E112: HV-4 | F112: Havering South | G112: EMISweb | H112: 143 Ingrebourne Gardens | I112: Cranham | J112: RM14 1BJ | K112: TQ 56984 87288 | L112: 556984 | M112: 187288 | N112: 51.562625 | O112: 0.26337962
A113: F82053 | B113: Upminster Medical Centre | C113: HV | D113: Havering | E113: HV-4 | F113: Havering South | G113: EMISweb | H113: 226 St Mary's Lane | I113: Upminster | J113: RM14 3DH | K113: TQ 56440 86625 | L113: 556440 | M113: 186625 | N113: 51.556819 | O113: 0.25524324
A114: F82624 | B114: The Upminster Bridge Surgery (Dr O'Moore) | C114: HV | D114: Havering | E114: HV-4 | F114: Havering South | G114: EMISweb | H114: 126 Upminster Road | I114: Upminster | J114: RM12 6PL | K114: TQ 55046 86819 | L114: 555046 | M114: 186819 | N114: 51.558947 | O114: 0.23523689
A115: F82033 | B115: Dr V M Patel Surgery | C115: HV | D115: Havering | E115: HV-4 | F115: Havering South | G115: VISION | H115: 9 Glanville Drive | I115: Hornchurch | J115: RM11 3SZ | K115: TQ 54586 87037 | L115: 554586 | M115: 187037 | N115: 51.561032 | O115: 0.22870229
A116: F84047 | B116: Custom House Surgery | C116: NH | D116: Newham | E116: NH-PCN1 | F116: South One Newham | G116: EMISweb | H116: 16 Freemasons Rd | J116: E16 3NA | K116: TQ 40635 81244 | L116: 540635 | M116: 181244 | N116: 51.512625 | O116: 0.025271616
A117: F84666 | B117: Dr Ruiz – St Lukes Medical Centre | C117: NH | D117: Newham | E117: NH-PCN1 | F117: South One Newham | G117: EMISweb | H117: 2 St Luke's Square | J117: E16 1HT | K117: TQ 39825 81135 | L117: 539825 | M117: 181135 | N117: 51.511847 | O117: 0.013563443
A118: F84657 | B118: Cumberland Road Medical Practice | C118: NH | D118: Newham | E118: NH-PCN1 | F118: South One Newham | G118: EMISweb | H118: 179 Cumberland Rd | J118: E13 8LS | K118: TQ 40666 82033 | L118: 540666 | M118: 182033 | N118: 51.519707 | O118: 0.026032652
A119: F84092 | B119: Glen Road Medical Centre | C119: NH | D119: Newham | E119: NH-PCN1 | F119: South One Newham | G119: EMISweb | H119: 1-9 Glen Rd | J119: E13 8RU | K119: TQ 41109 82327 | L119: 541109 | M119: 182327 | N119: 51.522239 | O119: 0.032530947
A120: F84017 | B120: Star Lane Medical Centre | C120: NH | D120: Newham | E120: NH-PCN1 | F120: South One Newham | G120: EMISweb | H120: 121 Star Ln | J120: E16 4QH | K120: TQ 39602 82012 | L120: 539602 | M120: 182012 | N120: 51.519782 | O120: 0.010699055
A121: F84717 | B121: Royal Docks Medical Centre | C121: NH | D121: Newham | E121: NH-PCN10 | F121: Docklands | G121: EMISweb | H121: 21 East Ham Manor Way | J121: E6 5NA | K121: TQ 43258 80969 | L121: 543258 | M121: 180969 | N121: 51.509496 | O121: 0.06293342
A122: F84093 | B122: Tollgate Health Centre | C122: NH | D122: Newham | E122: NH-PCN10 | F122: Docklands | G122: EMISweb | H122: 220 Tollgate Rd | J122: E6 5JS | K122: TQ 42787 81629 | L122: 542787 | M122: 181629 | N122: 51.515546 | O122: 0.056418169
A123: Y02928 | B123: E16 Health | C123: NH | D123: Newham | E123: NH-PCN10 | F123: Docklands | G123: EMISweb | H123: 76 Albert Rd | J123: E16 2DY | K123: TQ 42593 80059 | L123: 542593 | M123: 180059 | N123: 51.501487 | O123: 0.052989908
A124: F84735 | B124: The Azad Practice | C124: NH | D124: Newham | E124: NH-PCN2 | F124: Central 1 | G124: EMISweb | H124: 152 Barking Road | J124: E6 3BD | K124: TQ 41930 83350 | L124: 541930 | M124: 183350 | N124: 51.531226 | O124: 0.044768459
A125: F84669 | B125: Newham Medical Centre | C125: NH | D125: Newham | E125: NH-PCN2 | F125: Central 1 | G125: EMISweb | H125: 576 Green St | J125: E13 9DA | K125: TQ 41405 83360 | L125: 541405 | M125: 183360 | N125: 51.531447 | O125: 0.037208861
A126: F84010 | B126: St Bartholomew Surgery | C126: NH | D126: Newham | E126: NH-PCN2 | F126: Central 1 | G126: EMISweb | H126: 292A Barking Road | J126: E6 3BA | K126: TQ 42477 83507 | L126: 542477 | M126: 183507 | N126: 51.532499 | O126: 0.052712424
A127: F84004 | B127: Market Street Health Group | C127: NH | D127: Newham | E127: NH-PCN2 | F127: Central 1 | G127: EMISweb | H127: 52 Market St | J127: E6 2RA | K127: TQ 42814 83350 | L127: 542814 | M127: 183350 | N127: 51.531003 | O127: 0.057504007
A128: F84053 | B128: Greengate Medical Practice | C128: NH | D128: Newham | E128: NH-PCN2 | F128: Central 1 | G128: EMISweb | H128: 497 Barking Road | J128: E13 8PS | K128: TQ 40757 82646 | L128: 540757 | M128: 182646 | N128: 51.525193 | O128: 0.027588027
A129: F84124 | B129: The Project Surgery | C129: NH | D129: Newham | E129: NH-PCN2 | F129: Central 1 | G129: EMISweb | H129: 10 Lettsom Walk | J129: E13 0LN | K129: TQ 40253 83419 | L129: 540253 | M129: 183419 | N129: 51.532264 | O129: 0.020635385
A130: F84050 | B130: Boleyn Medical Centre | C130: NH | D130: Newham | E130: NH-PCN2 | F130: Central 1 | G130: EMISweb | H130: 152 Barking Road | J130: E6 3BD | K130: TQ 41930 83350 | L130: 541930 | M130: 183350 | N130: 51.531226 | O130: 0.044768459
A131: F84052 | B131: Essex Lodge | C131: NH | D131: Newham | E131: NH-PCN3 | F131: Newham Central | G131: EMISweb | H131: 94 Greengate St | J131: E13 0AS | K131: TQ 40684 82946 | L131: 540684 | M131: 182946 | N131: 51.527907 | O131: 0.026656164
A132: F84681 | B132: Balaam Street Practice | C132: NH | D132: Newham | E132: NH-PCN3 | F132: Newham Central | G132: EMISweb | H132: 113 Balaam St | J132: E13 8AF | K132: TQ 40488 82808 | L132: 540488 | M132: 182808 | N132: 51.526716 | O132: 0.023777605
A133: F84642 | B133: Lucas Avenue Surgery | C133: NH | D133: Newham | E133: NH-PCN3 | F133: Newham Central | G133: EMISweb | J133: E13 0QP | K133: TQ 40943 83883 | L133: 540943 | M133: 183883 | N133: 51.536262 | O133: 0.030761987
A134: F84749 | B134: Carpenter's Practice | C134: NH | D134: Newham | E134: NH-PCN3 | F134: Newham Central | G134: EMISweb | H134: 236-252 High St | J134: E15 2JA | K134: TQ 38568 83938 | L134: 538568 | M134: 183938 | N134: 51.537344 | O134: -0.0034372388
A135: F84658 | B135: Sangam Surgery | C135: NH | D135: Newham | E135: NH-PCN4 | F135: North East 1 | G135: EMISweb | H135: Snowshill Rd | J135: E12 6BE | K135: TQ 42142 85378 | L135: 542142 | M135: 185378 | N135: 51.549395 | O135: 0.04864096
A136: F84660 | B136: Dr CM Patel | C136: NH | D136: Newham | E136: NH-PCN4 | F136: North East 1 | G136: EMISweb | H136: 2 Jephson Rd | J136: E7 8LZ | K136: TQ 41250 84414 | L136: 541250 | M136: 184414 | N136: 51.540957 | O136: 0.03539828
A137: F84088 | B137: Plashet Medical Centre | C137: NH | D137: Newham | E137: NH-PCN4 | F137: North East 1 | G137: EMISweb | H137: 152 Plashet Rd | J137: E13 0QT | K137: TQ 41097 84021 | L137: 541097 | M137: 184021 | N137: 51.537464 | O137: 0.033036159
A138: F84670 | B138: Westbury Road Medical Practice | C138: NH | D138: Newham | E138: NH-PCN4 | F138: North East 1 | G138: EMISweb | H138: 45 Westbury Terrace | J138: E7 8BU | K138: TQ 40876 84941 | L138: 540876 | M138: 184941 | N138: 51.545786 | O138: 0.030219712
A139: F84729 | B139: The Manor Park Practice | C139: NH | D139: Newham | E139: NH-PCN4 | F139: North East 1 | G139: EMISweb | H139: 778 Romford Rd | J139: E12 5JG | K139: TQ 42725 85896 | L139: 542725 | M139: 185896 | N139: 51.553903 | O139: 0.057253424
A140: F84641 | B140: Birchdale Road Medical Practice | C140: NH | D140: Newham | E140: NH-PCN4 | F140: North East 1 | G140: EMISweb | H140: 2 Birchdale Rd | J140: E7 8AR | K140: TQ 41441 85069 | L140: 541441 | M140: 185069 | N140: 51.546795 | O140: 0.038413612
A141: F84739 | B141: E12 Medical Practice | C141: NH | D141: Newham | E141: NH-PCN5 | F141: North East 2 | G141: EMISweb | H141: 243 High Street North | J141: E12 6SJ | K141: TQ 42286 84464 | L141: 542286 | M141: 184464 | N141: 51.541146 | O141: 0.0503471
A142: F84006 | B142: Shrewsbury Road Surgery | C142: NH | D142: Newham | E142: NH-PCN5 | F142: North East 2 | G142: EMISweb | H142: Shrewsbury Annexe' Shrewsbury Road | J142: E7 8QP | K142: TQ 41796 84426 | L142: 541796 | M142: 184426 | N142: 51.540928 | O142: 0.043270927
A143: F84074 | B143: Wordsworth Health Centre | C143: NH | D143: Newham | E143: NH-PCN5 | F143: North East 2 | G143: EMISweb | H143: 19 Wordsworth Avenue | J143: E12 6SU | K143: TQ 42172 84503 | L143: 542172 | M143: 184503 | N143: 51.541525 | O143: 0.04872011
A144: F84741 | B144: Dr Sathyajith Surgery | C144: NH | D144: Newham | E144: NH-PCN5 | F144: North East 2 | G144: EMISweb | H144: Eastham Memorial Hospital | J144: E7 8QP | K144: TQ 41796 84426 | L144: 541796 | M144: 184426 | N144: 51.540928 | O144: 0.043270927
A145: F84742 | B145: The Summit Practice | C145: NH | D145: Newham | E145: NH-PCN5 | F145: North East 2 | G145: EMISweb | H145: Old East Ham Memorial Hospital | J145: E7 8PP | K145: TQ 41670 84155 | L145: 541670 | M145: 184155 | N145: 51.538524 | O145: 0.041346302
A146: F84070 | B146: Lathom Medical Centre | C146: NH | D146: Newham | E146: NH-PCN5 | F146: North East 2 | G146: EMISweb | H146: 2A Lathom Rd | J146: E6 2DU | K146: TQ 42458 84130 | L146: 542458 | M146: 184130 | N146: 51.538102 | O146: 0.052690543
A147: F84672 | B147: E7 Health - First 4 Health Group | C147: NH | D147: Newham | E147: NH-PCN6 | F147: North Newham | G147: EMISweb | H147: 157 Leytonstone Rd | J147: E15 1LH | K147: TQ 39102 85361 | L147: 539102 | M147: 185361 | N147: 51.55 | O147: 0.0048192101
A148: F84097 | B148: Claremont Clinic | C148: NH | D148: Newham | E148: NH-PCN6 | F148: North Newham | G148: EMISweb | H148: 459-463 Romford Rd | J148: E7 8AB | K148: TQ 41105 85137 | L148: 541105 | M148: 185137 | N148: 51.54749 | O148: 0.033598485
A149: F84724 | B149: Woodgrange Medical Practice | C149: NH | D149: Newham | E149: NH-PCN6 | F149: North Newham | G149: EMISweb | H149: 40 Woodgrange Rd | J149: E7 0QH | K149: TQ 40516 85243 | L149: 540516 | M149: 185243 | N149: 51.548589 | O149: 0.025152046
A150: F84111 | B150: Abbey Road Medical Practice | C150: NH | D150: Newham | E150: NH-PCN8 | F150: Stratford | G150: EMISweb | H150: 28a Abbey Rd | J150: E15 3LT | K150: TQ 39225 83671 | L150: 539225 | M150: 183671 | N150: 51.534783 | O150: 0.0059240574
A151: Y04273 | B151: Liberty Bridge Road | C151: NH | D151: Newham | E151: NH-PCN8 | F151: Stratford | G151: EMISweb | H151: 40 Liberty Bridge Rd | J151: E20 1AS | K151: TQ 38349 85140 | L151: 538349 | M151: 185140 | N151: 51.548199 | O151: -0.0061207496
A152: F84730 | B152: The Vicarage Lane Surgery | C152: NH | D152: Newham | E152: NH-PCN8 | F152: Stratford | G152: EMISweb | H152: 10 Vicarage Ln | J152: E15 4HG | K152: TQ 39553 84332 | L152: 539553 | M152: 184332 | N152: 51.540642 | O152: 0.010911767
A153: F84121 | B153: First4Health Church Road | C153: NH | D153: Newham | E153: NH-PCN8 | F153: Stratford | G153: EMISweb | H153: 30 Church Road | J153: E12 6AQ | K153: TQ 42460 85199 | L153: 542460 | M153: 185199 | N153: 51.547707 | O153: 0.053151713
A154: F84009 | B154: Stratford Village Surgery | C154: NH | D154: Newham | E154: NH-PCN8 | F154: Stratford | G154: EMISweb | H154: 50C Romford Rd | J154: E15 4BZ | K154: TQ 39233 84486 | L154: 539233 | M154: 184486 | N154: 51.542105 | O154: 0.0063613933
A155: F84740 | B155: Newham Transitional Team | C155: NH | D155: Newham | E155: NH-PCN8 | F155: Stratford | G155: EMISweb | H155: 30 Church Rd | J155: E12 6AQ | K155: TQ 42460 85199 | L155: 542460 | M155: 185199 | N155: 51.547707 | O155: 0.053151713
A156: F84077 | B156: Dr Samuel & Dr Khan's Practice | C156: NH | D156: Newham | E156: NH-PCN9 | F156: North West 2 | G156: EMISweb | H156: 10 Vicarage Ln | J156: E15 4ES | K156: TQ 39491 84416 | L156: 539491 | M156: 184416 | N156: 51.541412 | O156: 0.010051602
A157: F84677 | B157: East End Medical Centre | C157: NH | D157: Newham | E157: NH-PCN9 | F157: North West 2 | G157: EMISweb | H157: 61 Plashet Rd | J157: E13 0QA | K157: TQ 40567 83994 | L157: 540567 | M157: 183994 | N157: 51.537353 | O157: 0.025388644
A158: F84022 | B158: Stratford Health Centre | C158: NH | D158: Newham | E158: NH-PCN9 | F158: North West 2 | G158: EMISweb | H158: 123 The Grove | J158: E15 1EN | K158: TQ 39112 84766 | L158: 539112 | M158: 184766 | N158: 51.54465 | O158: 0.0047282946
A159: F84086 | B159: The Forest Practice | C159: NH | D159: Newham | E159: NH-PCN9 | F159: North West 2 | G159: EMISweb | H159: 121 Woodgrange Rd | J159: E7 0EP | K159: TQ 40492 85464 | L159: 540492 | M159: 185464 | N159: 51.550581 | O159: 0.024894327
A160: F84014 | B160: Upton Lane Medical Centre | C160: NH | D160: Newham | E160: NH-PCN9 | F160: North West 2 | G160: EMISweb | H160: 75-77 Upton Ln | J160: E7 9PB | K160: TQ 40620 84636 | L160: 540620 | M160: 184636 | N160: 51.543109 | O160: 0.026408576
A161: F86652 | B161: Drive Surgery | C161: RB | D161: Redbridge | E161: RB-1 | F161: Cranbrook | G161: EMISweb | H161: 68 The Drive | I161: Ilford | J161: IG1 3HZ | K161: TQ 42899 87429 | L161: 542899 | M161: 187429 | N161: 51.567634 | O161: 0.060384001
A162: F86702 | B162: St Clements Surgery | C162: RB | D162: Redbridge | E162: RB-1 | F162: Cranbrook | G162: EMISweb | H162: 38 Bathhurst Road | I162: Ilford | J162: IG1 4LA | K162: TQ 43751 87002 | L162: 543751 | M162: 187002 | N162: 51.563581 | O162: 0.072493725
A163: Y00918 | B163: Granville Medical Centre | C163: RB | D163: Redbridge | E163: RB-1 | F163: Cranbrook | G163: EMISweb | H163: 4 Granville Road | I163: Ilford | J163: IG1 4JY | K163: TQ 43646 86952 | L163: 543646 | M163: 186952 | N163: 51.563158 | O163: 0.070959546
A164: F86042 | B164: Balfour Road Surgery | C164: RB | D164: Redbridge | E164: RB-1 | F164: Cranbrook | G164: EMISweb | H164: 92 Balfour Road | I164: Ilford | J164: IG1 4JE | K164: TQ 43990 86949 | L164: 543990 | M164: 186949 | N164: 51.563043 | O164: 0.075917641
A165: F86698 | B165: Cranbrook Surgery | C165: RB | D165: Redbridge | E165: RB-1 | F165: Cranbrook | G165: EMISweb | H165: 465 Cranbrook Road | I165: Ilford | J165: IG2 6EW | K165: TQ 43201 88032 | L165: 543201 | M165: 188032 | N165: 51.572975 | O165: 0.06498382
A166: F86008 | B166: Gants Hill Medical Centre | C166: RB | D166: Redbridge | E166: RB-1 | F166: Cranbrook | G166: EMISweb | H166: 63-65 Ethelbert Gardens | I166: Gants Hill | J166: IG2 6UW | K166: TQ 43151 88496 | L166: 543151 | M166: 188496 | N166: 51.577157 | O166: 0.064451751
A167: F86703 | B167: Redbridge Surgery | C167: RB | D167: Redbridge | E167: RB-1 | F167: Cranbrook | G167: EMISweb | H167: 49 Windermere Gardens | I167: Gants Hill | J167: IG4 5BZ | K167: TQ 42406 88530 | L167: 542406 | M167: 188530 | N167: 51.577651 | O167: 0.053721702
A168: F86657 | B168: York Road Surgery | C168: RB | D168: Redbridge | E168: RB-1 | F168: Cranbrook | G168: SystmOne | H168: 55 York Road | I168: Ilford | J168: IG1 3AF | K168: TQ 43305 86498 | L168: 543305 | M168: 186498 | N168: 51.559165 | O168: 0.065858546
A169: F86081 | B169: Kenwood Medical Centre | C169: RB | D169: Redbridge | E169: RB-2 | F169: Fairlop | G169: EMISweb | H169: Kenwood Gardens | I169: Gants Hill | J169: IG2 6YG | K169: TQ 43661 88984 | L169: 543661 | M169: 188984 | N169: 51.581413 | O169: 0.072005967
A170: F86083 | B170: Eastern Avenue Medical Centre | C170: RB | D170: Redbridge | E170: RB-2 | F170: Fairlop | G170: EMISweb | H170: 167 Eastern Avenue | I170: Gants Hill | J170: IG4 5AW | K170: TQ 42226 88390 | L170: 542226 | M170: 188390 | N170: 51.576439 | O170: 0.051069203
A171: F86612 | B171: Fullwell Avenue Surgery | C171: RB | D171: Redbridge | E171: RB-2 | F171: Fairlop | G171: EMISweb | H171: 272 Fullwell Avenue | I171: Fullwell Cross | J171: IG5 0SB | K171: TQ 43621 90647 | L171: 543621 | M171: 190647 | N171: 51.596366 | O171: 0.072108948
A172: F86624 | B172: Heathcote Primary Care Centre | C172: RB | D172: Redbridge | E172: RB-2 | F172: Fairlop | G172: EMISweb | H172: Heathcote Avenue | I172: Barkingside | J172: IG5 0QS | K172: TQ 42982 90347 | L172: 542982 | M172: 190347 | N172: 51.593832 | O172: 0.062767795
A173: F86707 | B173: Fencepiece Road Medical Practice | C173: RB | D173: Redbridge | E173: RB-2 | F173: Fairlop | G173: EMISweb | H173: 83 Fencepiece Road | I173: Fairlop | J173: IG6 2NB | K173: TQ 44453 91094 | L173: 544453 | M173: 191094 | N173: 51.60017 | O173: 0.084296186
A174: F86057 | B174: The Willows Practice | C174: RB | D174: Redbridge | E174: RB-2 | F174: Fairlop | G174: EMISweb | H174: Hainault Health Centre | I174: Chigwell | J174: IG7 4DF | K174: TQ 45822 91978 | L174: 545822 | M174: 191978 | N174: 51.60776 | O174: 0.10441554
A175: F86007 | B175: Forest Edge Practice | C175: RB | D175: Redbridge | E175: RB-2 | F175: Fairlop | G175: EMISweb | H175: Hainault Health Centre | I175: Chigwell | J175: IG7 4DF | K175: TQ 45822 91978 | L175: 545822 | M175: 191978 | N175: 51.60776 | O175: 0.10441554
A176: F86009 | B176: The Palms Medical Centre | C176: RB | D176: Redbridge | E176: RB-3 | F176: Seven Kings | G176: EMISweb | H176: 97-101 Netley Road | I176: Newbury Park | J176: IG2 7NW | K176: TQ 44820 88524 | L176: 544820 | M176: 188524 | N176: 51.576983 | O176: 0.088531907
A177: F86087 | B177: Goodmayes Medical Centre | C177: RB | D177: Redbridge | E177: RB-3 | F177: Seven Kings | G177: EMISweb | H177: 4 Eastwood Road | I177: Goodmayes | J177: IG3 8XB | K177: TQ 46331 87526 | L177: 546331 | M177: 187526 | N177: 51.567626 | O177: 0.10990631
A178: F86637 | B178: Seven Kings Practice | C178: RB | D178: Redbridge | E178: RB-3 | F178: Seven Kings | G178: EMISweb | H178: 1 Salisbury Road | I178: Seven Kings | J178: IG3 8BG | K178: TQ 45438 87037 | L178: 545438 | M178: 187037 | N178: 51.563463 | O178: 0.096829019
A179: Y00090 | B179: Doctor's House | C179: RB | D179: Redbridge | E179: RB-3 | F179: Seven Kings | G179: EMISweb | H179: 40 Cameron Road | I179: Seven Kings | J179: IG3 8LF | K179: TQ 45249 87246 | L179: 545249 | M179: 187246 | N179: 51.565389 | O179: 0.094190583
A180: F86034 | B180: Green Lane, Goodmayes Medical practice | C180: RB | D180: Redbridge | E180: RB-3 | F180: Seven Kings | G180: EMISweb | H180: 595 Green Lane | I180: Goodmayes | J180: IG3 9RN | K180: TQ 46598 87054 | L180: 546598 | M180: 187054 | N180: 51.563316 | O180: 0.11355913
A181: F86642 | B181: Castleton Road Surgery | C181: RB | D181: Redbridge | E181: RB-3 | F181: Seven Kings | G181: EMISweb | H181: 19 Castleton Road | I181: Goodmayes | J181: IG3 9QW | K181: TQ 46532 87121 | L181: 546532 | M181: 187121 | N181: 51.563935 | O181: 0.11263556
A182: F86028 | B182: Chadwell Heath Surgery | C182: RB | D182: Redbridge | E182: RB-3 | F182: Seven Kings | G182: EMISweb | H182: 72 Chadwell Heath Lane | I182: Chadwell Heath | J182: RM6 4AF | K182: TQ 47352 88216 | L182: 547352 | M182: 188216 | N182: 51.57356 | O182: 0.12491581
A183: Y00155 | B183: Grove Surgery | C183: RB | D183: Redbridge | E183: RB-3 | F183: Seven Kings | G183: SystmOne | H183: 200-202 Chadwell Heath Lane | I183: Chadwell Heath | J183: RM6 4YU | K183: TQ 47178 88535 | L183: 547178 | M183: 188535 | N183: 51.576472 | O183: 0.12254036
A184: F86013 | B184: Broadway Surgery | C184: RB | D184: Redbridge | E184: RB-4 | F184: Wanstead & Woodford | G184: SystmOne | H184: 3 The Broadway | I184: Woodford Green | J184: IG8 0HF | K184: TQ 40897 91927 | L184: 540897 | M184: 191927 | N184: 51.608555 | O184: 0.033322328
A185: F86023 | B185: The Evergreen Practice | C185: RB | D185: Redbridge | E185: RB-4 | F185: Wanstead & Woodford | G185: EMISweb | H185: 26 High Street | I185: Wanstead | J185: E11 2AQ | K185: TQ 40453 88526 | L185: 540453 | M185: 188526 | N185: 51.578105 | O185: 0.025554684
A186: F86032 | B186: Wanstead Place Surgery | C186: RB | D186: Redbridge | E186: RB-4 | F186: Wanstead & Woodford | G186: EMISweb | H186: 45 Wanstead Place | I186: Wanstead | J186: E11 2SW | K186: TQ 40289 88521 | L186: 540289 | M186: 188521 | N186: 51.578101 | O186: 0.023187509
A187: F86731 | B187: Aldersbrook Medical Centre | C187: RB | D187: Redbridge | E187: RB-4 | F187: Wanstead & Woodford | G187: EMISweb | H187: 65 Aldersbrook Road | I187: Manor Park | J187: E12 5DL | K187: TQ 41394 86612 | L187: 541394 | M187: 186612 | N187: 51.560671 | O187: 0.038356032
A188: F86066 | B188: Southdene Surgery | C188: RB | D188: Redbridge | E188: RB-4 | F188: Wanstead & Woodford | G188: EMISweb | H188: The Shrubberies, George Ln | I188: South Woodford | J188: E18 1BD | K188: TQ 40404 90279 | L188: 540404 | M188: 190279 | N188: 51.593869 | O188: 0.02554851
A189: F86641 | B189: Shrubberies Medical Centre | C189: RB | D189: Redbridge | E189: RB-4 | F189: Wanstead & Woodford | G189: EMISweb | H189: 12 The Shrubberies, | I189: South Woodford | J189: E18 1BD | K189: TQ 40404 90279 | L189: 540404 | M189: 190279 | N189: 51.593869 | O189: 0.02554851
A190: F86020 | B190: Glebelands Practice | C190: RB | D190: Redbridge | E190: RB-4 | F190: Wanstead & Woodford | G190: EMISweb | H190: 2 Glebelands Avenue | I190: South Woodford | J190: E18 2AB | K190: TQ 40310 90124 | L190: 540310 | M190: 190124 | N190: 51.5925 | O190: 0.024130468
A191: F86064 | B191: Elmhurst Practice | C191: RB | D191: Redbridge | E191: RB-4 | F191: Wanstead & Woodford | G191: EMISweb | H191: 114 High Road | I191: South Woodford | J191: E18 2QS | K191: TQ 40129 90669 | L191: 540129 | M191: 190669 | N191: 51.597442 | O191: 0.021736757
A192: F86691 | B192: Clayhall Clinic | C192: RB | D192: Redbridge | E192: RB-4 | F192: Wanstead & Woodford | G192: EMISweb | H192: 14 Clayhall Avenue | I192: Ilford | J192: IG5 0LG | K192: TQ 42206 90038 | L192: 542206 | M192: 190038 | N192: 51.591252 | O192: 0.051447693
A193: F86012 | B193: Rydal Practice | C193: RB | D193: Redbridge | E193: RB-4 | F193: Wanstead & Woodford | G193: EMISweb | H193: 375 High Road | I193: Woodford Green | J193: IG8 9QJ | K193: TQ 39982 91888 | L193: 539982 | M193: 191888 | N193: 51.608432 | O193: 0.020101964
A194: F86658 | B194: Queen Mary Practice | C194: RB | D194: Redbridge | E194: RB-4 | F194: Wanstead & Woodford | G194: EMISweb | H194: 114 High Road | I194: South Woodford | J194: E18 2QS | K194: TQ 40129 90669 | L194: 540129 | M194: 190669 | N194: 51.597442 | O194: 0.021736757
A195: F86022 | B195: Ilford Medical Centre | C195: RB | D195: Redbridge | E195: RB-5 | F195: Loxford | G195: EMISweb | H195: 61 Cleveland Road | I195: Ilford | J195: IG1 1EE | K195: TQ 43897 86254 | L195: 543897 | M195: 186254 | N195: 51.556822 | O195: 0.074292692
A196: Y02987 | B196: The Practice Loxford | C196: RB | D196: Redbridge | E196: RB-5 | F196: Loxford | G196: EMISweb | H196: 417 Ilford Lane | I196: Ilford | J196: IG1 2SN | K196: TQ 44106 85110 | L196: 544106 | M196: 185110 | N196: 51.546489 | O196: 0.076837077
A197: F86692 | B197: Mathukias Surgery | C197: RB | D197: Redbridge | E197: RB-5 | F197: Loxford | G197: EMISweb | H197: 281 Ilford Lane | I197: Ilford | J197: IG1 2SF | K197: TQ 43991 85477 | L197: 543991 | M197: 185477 | N197: 51.549816 | O197: 0.075329843
A198: F86082 | B198: Ilford Lane Surgery | C198: RB | D198: Redbridge | E198: RB-5 | F198: Loxford | G198: SystmOne | H198: 417 Ilford Lane | I198: Ilford | J198: IG1 2SN | K198: TQ 44106 85110 | L198: 544106 | M198: 185110 | N198: 51.546489 | O198: 0.076837077
A199: F86025 | B199: Oak Tree Medical Practice | C199: RB | D199: Redbridge | E199: RB-5 | F199: Loxford | G199: SystmOne | H199: 273-275 Green Lane | I199: Seven Kings | J199: IG3 9TJ | K199: TQ 45422 86734 | L199: 545422 | M199: 186734 | N199: 51.560744 | O199: 0.09647312
A200: F86085 | B200: Hainault Surgery | C200: RB | D200: Redbridge | E200: RB-6 | F200: NewCross Alliance | G200: EMISweb | H200: 34 New North Road | I200: Hainault | J200: IG6 2XG | K200: TQ 44572 91321 | L200: 544572 | M200: 191321 | N200: 51.602179 | O200: 0.086106632
... 74 more rows
